Workbook

Sheet Model input
B3: Name of project | D3: Investment A
B5: Start year (yr 0) | D5: 2016
B6: Inflation | D6: 0.02
B7: Discount rate | D7: 0.04
B8: Sq ft to m2 conversion | D8: 10.7639

Sheet Dashboard
B2: ='Model input'!D3&" appraisal - DASHBOARD" -> Investment A appraisal - DASHBOARD
B4: Summary of Base Case Options
C5: Option 1 | D5: Option 2 | E5: Option 3 | F5: Option 4
B7: Key metrics (£m)
B8: Initial capital cost | C8: ='Opt 1 Output sheet'!H17/1000000 -> -0.0101 | D8: ='Opt 2 Output sheet'!H17/1000000 -> 0 | E8: ='Opt 3 Output sheet'!H17/1000000 -> 0 | F8: ='Opt 4 Output sheet'!H17/1000000 -> 0
B9: Total revenue | C9: ='Opt 1 Output sheet'!H27/1000000 -> 0.004640777059 | D9: ='Opt 2 Output sheet'!H27/1000000 -> 0 | E9: ='Opt 3 Output sheet'!H27/1000000 -> 0 | F9: ='Opt 4 Output sheet'!H27/1000000 -> 0
B10: Total expenditure | C10: ='Opt 1 Output sheet'!H40/1000000 -> 0 | D10: ='Opt 2 Output sheet'!H40/1000000 -> 0 | E10: ='Opt 3 Output sheet'!H40/1000000 -> 0 | F10: ='Opt 4 Output sheet'!H40/1000000 -> 0
B11: Operating free cash | C11: ='Opt 1 Output sheet'!H47/1000000 -> 0.004640777059 | D11: ='Opt 2 Output sheet'!H47/1000000 -> 0 | E11: ='Opt 3 Output sheet'!H47/1000000 -> 0 | F11: ='Opt 4 Output sheet'!H47/1000000 -> 0
B12: Terminal value | C12: ='Opt 1 Output sheet'!Z42/1000000 -> 0 | D12: ='Opt 2 Output sheet'!Z42/1000000 -> 0 | E12: ='Opt 3 Output sheet'!Z42/1000000 -> 0 | F12: ='Opt 4 Output sheet'!Z42/1000000 -> 0
B13: Yield on cash | C13: ='Opt 1 Output sheet'!C48 -> 0.04229736285 | D13: ='Opt 2 Output sheet'!C48 ->  | E13: ='Opt 3 Output sheet'!C48 ->  | F13: ='Opt 4 Output sheet'!C48 -> 
B14: IRR | C14: ='Opt 1 Output sheet'!C45 -> -0.05918240944 | D14: ='Opt 2 Output sheet'!C45 ->  | E14: ='Opt 3 Output sheet'!C45 ->  | F14: ='Opt 4 Output sheet'!C45 -> 
B15: NPV
B16: Payback period | C16: ='Opt 1 Output sheet'!C126 -> 0
B18: Key assumptions
B19: Construction period | C19: ='Opt 1 Input Sheet'!G17 -> 2 | D19: ='Opt 2 Input Sheet'!G17 -> 2 | E19: ='Opt 3 Input Sheet'!G17 -> 2 | F19: ='Opt 4 Input Sheet'!G17 -> 2
B20: Rent review period
B21: Inflation measure | C21: ='Model input'!$D$6 -> 0.02 | D21: ='Model input'!$D$6 -> 0.02 | E21: ='Model input'!$D$6 -> 0.02 | F21: ='Model input'!$D$6 -> 0.02
B22: Discount rate | C22: ='Model input'!$D$7 -> 0.04 | D22: ='Model input'!$D$7 -> 0.04 | E22: ='Model input'!$D$7 -> 0.04 | F22: ='Model input'!$D$7 -> 0.04
B23: Interest on loan
B26: Sensitivity Analysis
B27: Drivers behind Negative IRR
C28: =C5 -> Option 1 | E28: =D5 -> Option 2 | G28: =E5 -> Option 3 | I28: =F5 -> Option 4
C29: Description | D29: Value (£) | E29: Description | F29: Value (£) | G29: Description | H29: Value (£) | I29: Description | J29: Value (£)
B30: Driver
B31: % change in driver for IRR to become negative | D31: =D30*C31 -> 0 | F31: =F30*E31 -> 0 | H31: =H30*G31 -> 0 | J31: =J30*I31 -> 0
B32: Driver
B33: % change in driver for IRR to become negative | D33: =D32*C33 -> 0 | F33: =F32*E33 -> 0 | H33: =H32*G33 -> 0 | J33: =J32*I33 -> 0
B34: Driver
B35: % change in driver for IRR to become negative | D35: =D34*C35 -> 0 | F35: =F34*E35 -> 0 | H35: =H34*G35 -> 0 | J35: =J34*I35 -> 0
B37: Top 5 Key Inputs to IRR
C38: Option 1 | D38: Option 2 | E38: Option 3 | F38: Option 4
B40: Most sensitive variable (25% change) | C40: =VLOOKUP(MAX(#REF!),#REF!,3,FALSE) -> 
C47: Option 1 | D47: Option 2 | E47: Option 3 | F47: Option 4
B48: Largest income stream | C48: =VLOOKUP(MAX('Opt 1 Output sheet'!H21:H26),'Opt 1 Output sheet'!H21:AD26,23,FALSE) -> Membership income | D48: =VLOOKUP(MAX('Opt 2 Output sheet'!H21:H26),'Opt 2 Output sheet'!H21:AD26,23,FALSE) -> Membership income | E48: =VLOOKUP(MAX('Opt 3 Output sheet'!H21:H26),'Opt 3 Output sheet'!H21:AD26,23,FALSE) -> Membership income | F48: =VLOOKUP(MAX('Opt 4 Output sheet'!H21:H26),'Opt 4 Output sheet'!H21:AD26,23,FALSE) -> Membership income
B49: Largest expense | C49: =VLOOKUP(MIN('Opt 1 Output sheet'!H31:H39),'Opt 1 Output sheet'!H31:AD39,23,FALSE) -> Staff costs | D49: =VLOOKUP(MIN('Opt 2 Output sheet'!H31:H39),'Opt 2 Output sheet'!H31:AD39,23,FALSE) -> Staff costs | E49: =VLOOKUP(MIN('Opt 3 Output sheet'!H31:H39),'Opt 3 Output sheet'!H31:AD39,23,FALSE) -> Staff costs | F49: =VLOOKUP(MIN('Opt 4 Output sheet'!H31:H39),'Opt 4 Output sheet'!H31:AD39,23,FALSE) -> Staff costs
B50: Average profit margin | C50: =AVERAGE('Opt 1 Output sheet'!K129:Z129) -> 0 | D50: =AVERAGE('Opt 2 Output sheet'!K129:Z129) -> 0 | E50: =AVERAGE('Opt 3 Output sheet'!K129:Z129) -> 0 | F50: =AVERAGE('Opt 4 Output sheet'!K129:Z129) -> 0

Sheet Club & Hotel Input Sheet (hidden)
A1: Plot A Analysis - Option 2: Club & Hotel
A2: Input Sheet
A4: Scenario | G4: 1 | I4: 1 | J4: 2 | K4: 3
A5: Description | G5: =HLOOKUP(G4,I4:K5,2) -> Base Case | I5: Base Case | J5: Upper Case | K5: Lower Case | M5: Assumptions
A8: Balance sheet
B9: Building GIA (sq ft) | G9: =OFFSET(H9,0,G$4) -> 70000 | I9: 70000 | J9: 70000 | K9: 70000
B10: Club GIA (sq ft) | G10: =OFFSET(H10,0,G$4) -> 14000 | I10: 14000 | J10: 14000 | K10: 14000
B11: Hotel GIA (sq ft) | G11: 56000 | I11: 56000 | J11: 56000 | K11: 56000
J12: =IF((J11+J10)>J9,"Error",) -> 0 | K12: 0
B13: Club Construction cost (£/sq ft) | G13: =OFFSET(H13,0,G$4) -> 540 | I13: 540 | J13: 525 | K13: 555
B14: Hotel Construction cost (£/sq ft) | G14: =OFFSET(H14,0,G$4) -> 360 | I14: 360 | J14: 350 | K14: 370
B16: Refurbishment schedule
C17: Refurbishment in year | G17: =OFFSET(H17,0,G$4) -> 0 | I17: 0 | J17: 7 | K17: 7
C18: Refurbishment cost (£/sq ft) | G18: =OFFSET(H18,0,G$4) -> 270 | I18: 270 | J18: 270 | K18: 270
A20: Income statement
B21: Revenue generation
C22: Accommodation
D23: Number of rooms - Club | G23: =OFFSET(H23,0,G$4) -> 6 | I23: 6 | J23: 6 | K23: 6 | M23: Rooms 21sqm-24sqm; 4* standard
D24: Number of rooms - Hotel | G24: =OFFSET(H24,0,G$4) -> 125 | I24: 125 | J24: 125 | K24: 125
D25: Price per night (£/night) | G25: =OFFSET(H25,0,G$4) -> 185 | I25: 185 | J25: 200 | K25: 170 | M25: Based on club comparisons/SK hotel comparison (blended rate - more detailed model would include tiered members rates, non members, rates differentiating for time of year etc)
D26: Nights in operation | G26: 350 | I26: 350 | J26: 350 | K26: 350 | M26: Based on 50 week year
D27: Occupancy | G27: 0.82 | I27: 0.82 | J27: 0.82 | K27: 0.82 | M27: Based on Club sector advice - top end usually @ 97% ; lower performance of well established top club would be 88%
C29: Room & equipment hire
D30: Number of rooms | G30: =OFFSET(H30,0,G$4) -> 10 | I30: 10 | J30: 10 | K30: 10 | M30: 10 hireable spaces. 5 large, 5 small
D31: Blended rate (£/day) | G31: 600 | I31: 600 | J31: 625 | K31: 575 | M31: Based Imperial College comparitor pricing. 5 large rooms (£800 a day) 5 small rooms (£400 a day). Blended rate £600
D32: Days in operation | G32: 350 | I32: 350 | J32: 350 | K32: 350 | M32: Based on 50 week year
D33: Occupancy | G33: 0.4 | I33: 0.4 | J33: 0.4 | K33: 0.4 | M33: Based on Imperial Commercial experience
C35: Restaurant and private dining
D36: Covers per day - Club | G36: =OFFSET(H36,0,G$4) -> 100 | I36: 100 | J36: 100 | K36: 100 | M36: Based on Imperial commercial experience - includes restaurant covers and private dining covers
D37: Covers per day - Hotel | G37: =OFFSET(H37,0,G$4) -> 200 | I37: 200 | J37: 200 | K37: 200
D38: Price (£/cover) | G38: =OFFSET(H38,0,G$4) -> 50 | I38: 50 | J38: 60 | K38: 40 | M38: Based on commercial experience and club sector benchmark
D39: Days in operation | G39: 350 | I39: 350 | J39: 350 | K39: 350 | M39: 50 week year, 7am -11pm, 7 days a week
D40: Occupancy | G40: 0.5 | I40: 0.5 | J40: 0.5 | K40: 0.5 | M40: Based on Imperial commercial experience
C42: Events
D43: Number of events per annum | G43: =OFFSET(H43,0,G$4) -> 100 | I43: 100 | J43: 100 | K43: 100
D44: Average takings (£/event) | G44: 2000 | I44: 2000 | J44: 2000 | K44: 2000
D45: Funded by ticket sales | G45: 0.5 | I45: 0.5 | J45: 0.5 | K45: 0.5 | M45: Remainder paid by marketing/promotions budget as per sector advice
B47: Expenditure
C48: Cost of sales
D49: % of restaurant income | G49: =OFFSET(H49,0,G$4) -> 0.3 | I49: 0.3 | J49: 0.3 | K49: 0.35 | M49: Based on club sector benchmark
C50: Staff
D51: % of total income | G51: =OFFSET(H51,0,G$4) -> 0.4 | I51: 0.4 | J51: 0.35 | K51: 0.45 | M51: Based on bottom up staffing plan ~30 staff. Club sector rule of thumb is staff costs are ~40% of total income
C52: Estates & FM
D53: Cost (£/sq ft) | G53: =OFFSET(H53,0,G$4) -> 20 | I53: 20 | J53: 18 | K53: 22 | M53: Includes house-keeping, deep clean, wate disposal, pest control, ultities, insurance, minor repairs, maintenance, PPM, security
D54: Area (sq ft) - Club | G54: 14000 | I54: =I10 -> 14000 | J54: 14000 | K54: 14000
D55: Area (sq ft) - Hotel | G55: 56000 | I55: 56000 | J55: 56000 | K55: 56000
C56: Marketing
D57: Cost in year 1 | G57: =OFFSET(H57,0,G$4) -> 20000 | I57: 20000 | J57: 20000 | K57: 20000 | M57: Based on Imperial commercial experience - 40k in year 1; 20k subsequent years (not halved in refurb year like other OPEX as marketing in this year for next would be especially important
D58: Cost in year 2+ | G58: 40000 | I58: 40000 | J58: 40000 | K58: 40000
C59: Promotions and events
D60: Not funded by ticket sales | G60: =OFFSET(H60,0,G$4) -> 0.5 | I60: =1-I45 -> 0.5 | J60: =1-J45 -> 0.5 | K60: =1-K45 -> 0.5
C61: Equipment
D62: Cost (£/year) | G62: =OFFSET(H62,0,G$4) -> 20000 | I62: 20000 | J62: 20000 | K62: 20000 | M62: Based on Imperial commercial experience
A64: Other factors
B65: Inflation | G65: =OFFSET(H65,0,G$4) -> 0.02 | I65: 0.02
B66: Discount factor (RPI+4%) | G66: 0.06 | I66: =I65+0.04 -> 0.06
B68: Developers contingency | G68: =OFFSET(H68,0,Scenario) ->  | I68: 1000000 | J68: =I68*0.9 -> 900000 | K68: =I68*1.1 -> 1100000
B70: CIL/s.106/s.278 costs | G70: =OFFSET(H70,0,Scenario) ->  | I70: =10*I9 -> 700000 | J70: =I70*0.9 -> 630000 | K70: =I70*1.1 -> 770000
B72: Land cost | G72: =I72 -> 3500000 | I72: 3500000 | J72: =I72*0.9 -> 3150000 | K72: =I72*1.1 -> 3850000

Sheet Combined Club & Hotel (hidden)
A1: Plot A Analysis - Option 2: Club & Hotel
A2: Workings Sheet
E4: Units | F4: Constant | G4: Total | H4: Sparkline | J4: 0 | K4: 1 | L4: 2 | M4: 3 | N4: 4 | O4: 5 | P4: 6 | Q4: 7 | R4: 8 | S4: 9 | T4: 10
A6: Inflation index | E6: % | F6: ='Club & Hotel Input Sheet'!G65 -> 0.02 | J6: =(1+'Club & Hotel Input Sheet'!$G65)^J4 -> 1 | K6: =(1+'Club & Hotel Input Sheet'!$G65)^K4 -> 1.02 | L6: =(1+'Club & Hotel Input Sheet'!$G65)^L4 -> 1.0404 | M6: =(1+'Club & Hotel Input Sheet'!$G65)^M4 -> 1.061208 | N6: =(1+'Club & Hotel Input Sheet'!$G65)^N4 -> 1.08243216 | O6: =(1+'Club & Hotel Input Sheet'!$G65)^O4 -> 1.104080803 | P6: =(1+'Club & Hotel Input Sheet'!$G65)^P4 -> 1.126162419 | Q6: =(1+'Club & Hotel Input Sheet'!$G65)^Q4 -> 1.148685668 | R6: =(1+'Club & Hotel Input Sheet'!$G65)^R4 -> 1.171659381 | S6: =(1+'Club & Hotel Input Sheet'!$G65)^S4 -> 1.195092569 | T6: =(1+'Club & Hotel Input Sheet'!$G65)^T4 -> 1.21899442
A9: Refurbishment | J9: =IF(J4='Club & Hotel Input Sheet'!$G17,"Yes","No") -> Yes | K9: =IF(K4='Club & Hotel Input Sheet'!$G17,"Yes","No") -> No | L9: =IF(L4='Club & Hotel Input Sheet'!$G17,"Yes","No") -> No | M9: =IF(M4='Club & Hotel Input Sheet'!$G17,"Yes","No") -> No | N9: =IF(N4='Club & Hotel Input Sheet'!$G17,"Yes","No") -> No | O9: =IF(O4='Club & Hotel Input Sheet'!$G17,"Yes","No") -> No | P9: =IF(P4='Club & Hotel Input Sheet'!$G17,"Yes","No") -> No | Q9: =IF(Q4='Club & Hotel Input Sheet'!$G17,"Yes","No") -> No | R9: =IF(R4='Club & Hotel Input Sheet'!$G17,"Yes","No") -> No | S9: =IF(S4='Club & Hotel Input Sheet'!$G17,"Yes","No") -> No | T9: =IF(T4='Club & Hotel Input Sheet'!$G17,"Yes","No") -> No
A10: Refurbishment factor | J10: 1 | K10: =IF(K9="No",1,0.5) -> 1 | L10: 1 | M10: 1 | N10: 1 | O10: 1 | P10: 1 | Q10: 1 | R10: 1 | S10: 1 | T10: 1
A12: BASE CASE
A13: Capital
B14: New capital cost | E14: £ | G14: =SUM(J14:T14) -> -34720000 | J14: =('Club Workings Sheet'!J14+'Hotel Workings Sheet'!J14)/2 -> -17360000 | K14: =J14 -> -17360000
B15: CIL/s.106/s.278 costs | E15: £ | G15: =SUM(J15:T15) -> -700000 | J15: =-'Club & Hotel Input Sheet'!I70/2 -> -350000 | K15: =J15 -> -350000
B16: Developers contingency | E16: £ | G16: -1000000 | J16: =-'Club & Hotel Input Sheet'!I68/2 -> -500000 | K16: =J16 -> -500000
B17: Refurbishment | E17: £ | G17: =SUM(J17:T17) -> 0 | K17: ='Club Workings Sheet'!K17+'Hotel Workings Sheet'!K17 -> 0 | L17: ='Club Workings Sheet'!L17+'Hotel Workings Sheet'!L17 -> 0 | M17: ='Club Workings Sheet'!M17+'Hotel Workings Sheet'!M17 -> 0 | N17: ='Club Workings Sheet'!N17+'Hotel Workings Sheet'!N17 -> 0 | O17: ='Club Workings Sheet'!O17+'Hotel Workings Sheet'!O17 -> 0 | P17: ='Club Workings Sheet'!P17+'Hotel Workings Sheet'!P17 -> 0 | Q17: ='Club Workings Sheet'!Q17+'Hotel Workings Sheet'!Q17 -> 0 | R17: ='Club Workings Sheet'!R17+'Hotel Workings Sheet'!R17 -> 0 | S17: ='Club Workings Sheet'!S17+'Hotel Workings Sheet'!S17 -> 0 | T17: ='Club Workings Sheet'!T17+'Hotel Workings Sheet'!T17 -> 0
G18: =SUM(G14:G17) -> -36420000
A20: Cash Flow Statement
B21: Revenue
C22: Accommodation | E22: £ | G22: =SUM(J22:T22) -> 70588831.92 | L22: ='Club Workings Sheet'!L22+'Hotel Workings Sheet'!L22 -> 7236444.978 | M22: ='Club Workings Sheet'!M22+'Hotel Workings Sheet'!M22 -> 7381173.878 | N22: ='Club Workings Sheet'!N22+'Hotel Workings Sheet'!N22 -> 7528797.355 | O22: ='Club Workings Sheet'!O22+'Hotel Workings Sheet'!O22 -> 7679373.302 | P22: ='Club Workings Sheet'!P22+'Hotel Workings Sheet'!P22 -> 7832960.768 | Q22: ='Club Workings Sheet'!Q22+'Hotel Workings Sheet'!Q22 -> 7989619.984 | R22: ='Club Workings Sheet'!R22+'Hotel Workings Sheet'!R22 -> 8149412.383 | S22: ='Club Workings Sheet'!S22+'Hotel Workings Sheet'!S22 -> 8312400.631 | T22: ='Club Workings Sheet'!T22+'Hotel Workings Sheet'!T22 -> 8478648.644
C23: Room & equip hire | E23: £ | G23: =SUM(J23:T23) -> 8524920.953 | L23: ='Club Workings Sheet'!L23+'Hotel Workings Sheet'!L23 -> 873936 | M23: ='Club Workings Sheet'!M23+'Hotel Workings Sheet'!M23 -> 891414.72 | N23: ='Club Workings Sheet'!N23+'Hotel Workings Sheet'!N23 -> 909243.0144 | O23: ='Club Workings Sheet'!O23+'Hotel Workings Sheet'!O23 -> 927427.8747 | P23: ='Club Workings Sheet'!P23+'Hotel Workings Sheet'!P23 -> 945976.4322 | Q23: ='Club Workings Sheet'!Q23+'Hotel Workings Sheet'!Q23 -> 964895.9608 | R23: ='Club Workings Sheet'!R23+'Hotel Workings Sheet'!R23 -> 984193.88 | S23: ='Club Workings Sheet'!S23+'Hotel Workings Sheet'!S23 -> 1003877.758 | T23: ='Club Workings Sheet'!T23+'Hotel Workings Sheet'!T23 -> 1023955.313
C24: Restaurant | E24: £ | G24: 26640377.98 | L24: ='Club Workings Sheet'!L24+'Hotel Workings Sheet'!L24 -> 2731050 | M24: ='Club Workings Sheet'!M24+'Hotel Workings Sheet'!M24 -> 2785671 | N24: ='Club Workings Sheet'!N24+'Hotel Workings Sheet'!N24 -> 2841384.42 | O24: ='Club Workings Sheet'!O24+'Hotel Workings Sheet'!O24 -> 2898212.108 | P24: ='Club Workings Sheet'!P24+'Hotel Workings Sheet'!P24 -> 2956176.351 | Q24: ='Club Workings Sheet'!Q24+'Hotel Workings Sheet'!Q24 -> 3015299.878 | R24: ='Club Workings Sheet'!R24+'Hotel Workings Sheet'!R24 -> 3075605.875 | S24: ='Club Workings Sheet'!S24+'Hotel Workings Sheet'!S24 -> 3137117.993 | T24: ='Club Workings Sheet'!T24+'Hotel Workings Sheet'!T24 -> 3199860.352
C25: Events | E25: £ | G25: 1014871.542 | L25: ='Club Workings Sheet'!L25+'Hotel Workings Sheet'!L25 -> 104040 | M25: ='Club Workings Sheet'!M25+'Hotel Workings Sheet'!M25 -> 106120.8 | N25: ='Club Workings Sheet'!N25+'Hotel Workings Sheet'!N25 -> 108243.216 | O25: ='Club Workings Sheet'!O25+'Hotel Workings Sheet'!O25 -> 110408.0803 | P25: ='Club Workings Sheet'!P25+'Hotel Workings Sheet'!P25 -> 112616.2419 | Q25: ='Club Workings Sheet'!Q25+'Hotel Workings Sheet'!Q25 -> 114868.5668 | R25: ='Club Workings Sheet'!R25+'Hotel Workings Sheet'!R25 -> 117165.9381 | S25: ='Club Workings Sheet'!S25+'Hotel Workings Sheet'!S25 -> 119509.2569 | T25: ='Club Workings Sheet'!T25+'Hotel Workings Sheet'!T25 -> 121899.442
B26: Total revenue | E26: £ | G26: =SUM(G22:G25) -> 106769002.4 | K26: =SUM(K22:K25) -> 0 | L26: =SUM(L22:L25) -> 10945470.98 | M26: 11164380.4 | N26: 11387668.01 | O26: 11615421.37 | P26: 11847729.79 | Q26: 12084684.39 | R26: 12326378.08 | S26: 12572905.64 | T26: 12824363.75
B29: Expenditure
C30: Cost of sales | E30: £ | G30: =SUM(J30:T30) -> -7992113.393 | L30: ='Club Workings Sheet'!L30+'Hotel Workings Sheet'!L30 -> -819315 | M30: ='Club Workings Sheet'!M30+'Hotel Workings Sheet'!M30 -> -835701.3 | N30: ='Club Workings Sheet'!N30+'Hotel Workings Sheet'!N30 -> -852415.326 | O30: ='Club Workings Sheet'!O30+'Hotel Workings Sheet'!O30 -> -869463.6325 | P30: ='Club Workings Sheet'!P30+'Hotel Workings Sheet'!P30 -> -886852.9052 | Q30: ='Club Workings Sheet'!Q30+'Hotel Workings Sheet'!Q30 -> -904589.9633 | R30: ='Club Workings Sheet'!R30+'Hotel Workings Sheet'!R30 -> -922681.7625 | S30: ='Club Workings Sheet'!S30+'Hotel Workings Sheet'!S30 -> -941135.3978 | T30: ='Club Workings Sheet'!T30+'Hotel Workings Sheet'!T30 -> -959958.1057
C31: Staff costs | E31: £ | G31: =SUM(J31:T31) -> -42707600.96 | L31: ='Club Workings Sheet'!L31+'Hotel Workings Sheet'!L31 -> -4378188.391 | M31: ='Club Workings Sheet'!M31+'Hotel Workings Sheet'!M31 -> -4465752.159 | N31: ='Club Workings Sheet'!N31+'Hotel Workings Sheet'!N31 -> -4555067.202 | O31: ='Club Workings Sheet'!O31+'Hotel Workings Sheet'!O31 -> -4646168.546 | P31: ='Club Workings Sheet'!P31+'Hotel Workings Sheet'!P31 -> -4739091.917 | Q31: ='Club Workings Sheet'!Q31+'Hotel Workings Sheet'!Q31 -> -4833873.756 | R31: ='Club Workings Sheet'!R31+'Hotel Workings Sheet'!R31 -> -4930551.231 | S31: ='Club Workings Sheet'!S31+'Hotel Workings Sheet'!S31 -> -5029162.255 | T31: ='Club Workings Sheet'!T31+'Hotel Workings Sheet'!T31 -> -5129745.5
C32: Estates & FM | E32: £ | G32: -14208201.59 | L32: ='Club Workings Sheet'!L32+'Hotel Workings Sheet'!L32 -> -1456560 | M32: ='Club Workings Sheet'!M32+'Hotel Workings Sheet'!M32 -> -1485691.2 | N32: ='Club Workings Sheet'!N32+'Hotel Workings Sheet'!N32 -> -1515405.024 | O32: ='Club Workings Sheet'!O32+'Hotel Workings Sheet'!O32 -> -1545713.124 | P32: ='Club Workings Sheet'!P32+'Hotel Workings Sheet'!P32 -> -1576627.387 | Q32: ='Club Workings Sheet'!Q32+'Hotel Workings Sheet'!Q32 -> -1608159.935 | R32: ='Club Workings Sheet'!R32+'Hotel Workings Sheet'!R32 -> -1640323.133 | S32: ='Club Workings Sheet'!S32+'Hotel Workings Sheet'!S32 -> -1673129.596 | T32: ='Club Workings Sheet'!T32+'Hotel Workings Sheet'!T32 -> -1706592.188
C33: Marketing | E33: £ | G33: -811897.2336 | L33: ='Club Workings Sheet'!L33+'Hotel Workings Sheet'!L33 -> -83232 | M33: ='Club Workings Sheet'!M33+'Hotel Workings Sheet'!M33 -> -84896.64 | N33: ='Club Workings Sheet'!N33+'Hotel Workings Sheet'!N33 -> -86594.5728 | O33: ='Club Workings Sheet'!O33+'Hotel Workings Sheet'!O33 -> -88326.46426 | P33: ='Club Workings Sheet'!P33+'Hotel Workings Sheet'!P33 -> -90092.99354 | Q33: ='Club Workings Sheet'!Q33+'Hotel Workings Sheet'!Q33 -> -91894.85341 | R33: ='Club Workings Sheet'!R33+'Hotel Workings Sheet'!R33 -> -93732.75048 | S33: ='Club Workings Sheet'!S33+'Hotel Workings Sheet'!S33 -> -95607.40549 | T33: ='Club Workings Sheet'!T33+'Hotel Workings Sheet'!T33 -> -97519.5536
C34: Promotions | E34: £ | G34: -1014871.542 | L34: ='Club Workings Sheet'!L34+'Hotel Workings Sheet'!L34 -> -104040 | M34: ='Club Workings Sheet'!M34+'Hotel Workings Sheet'!M34 -> -106120.8 | N34: ='Club Workings Sheet'!N34+'Hotel Workings Sheet'!N34 -> -108243.216 | O34: ='Club Workings Sheet'!O34+'Hotel Workings Sheet'!O34 -> -110408.0803 | P34: ='Club Workings Sheet'!P34+'Hotel Workings Sheet'!P34 -> -112616.2419 | Q34: ='Club Workings Sheet'!Q34+'Hotel Workings Sheet'!Q34 -> -114868.5668 | R34: ='Club Workings Sheet'!R34+'Hotel Workings Sheet'!R34 -> -117165.9381 | S34: ='Club Workings Sheet'!S34+'Hotel Workings Sheet'!S34 -> -119509.2569 | T34: ='Club Workings Sheet'!T34+'Hotel Workings Sheet'!T34 -> -121899.442
C35: Equipment | E35: £ | G35: -405948.6168 | L35: ='Club Workings Sheet'!L35+'Hotel Workings Sheet'!L35 -> -41616 | M35: ='Club Workings Sheet'!M35+'Hotel Workings Sheet'!M35 -> -42448.32 | N35: ='Club Workings Sheet'!N35+'Hotel Workings Sheet'!N35 -> -43297.2864 | O35: ='Club Workings Sheet'!O35+'Hotel Workings Sheet'!O35 -> -44163.23213 | P35: ='Club Workings Sheet'!P35+'Hotel Workings Sheet'!P35 -> -45046.49677 | Q35: ='Club Workings Sheet'!Q35+'Hotel Workings Sheet'!Q35 -> -45947.42671 | R35: ='Club Workings Sheet'!R35+'Hotel Workings Sheet'!R35 -> -46866.37524 | S35: ='Club Workings Sheet'!S35+'Hotel Workings Sheet'!S35 -> -47803.70274 | T35: ='Club Workings Sheet'!T35+'Hotel Workings Sheet'!T35 -> -48759.7768
B36: Total expenditure | E36: £ | G36: =SUM(G30:G35) -> -67140633.33 | K36: =SUM(K30:K35) -> 0 | L36: =SUM(L30:L35) -> -6882951.391 | M36: -7020610.419 | N36: -7161022.627 | O36: -7304243.08 | P36: -7450327.942 | Q36: -7599334.5 | R36: -7751321.19 | S36: -7906347.614 | T36: -8064474.566
B38: Terminal value | T38: =(T36+T26)/'Club & Hotel Input Sheet'!I$66 -> 79331486.41
A40: Free Cash Flow | E40: £ | G40: =SUM(J40:T40) -> 83389855.47 | J40: =J26+J36+J17+J14+J38+J15+J16 -> -18210000 | K40: =K26+K36+K17+K14+K38 -> -17360000 | L40: 4062519.587 | M40: 4143769.979 | N40: 4226645.378 | O40: 4311178.286 | P40: 4397401.851 | Q40: 4485349.888 | R40: 4575056.886 | S40: 4666558.024 | T40: =T26+T36+T17+T14+T38 -> 84091375.59
A41: IRR | B41: =IRR(J40:T40) -> 0.1693568016
A43: UPPER CASE
A44: Capital
B45: New capital cost | E45: £ | G45: =SUM(J45:T45) -> -33250000 | J45: ='Club Workings Sheet'!J45+'Hotel Workings Sheet'!J45 -> -33250000
B46: CIL/s.106/s.278 costs | E46: £ | G46: =SUM(J46:T46) -> -630000 | J46: =-'Club & Hotel Input Sheet'!J70 -> -630000
B47: Developers contingency | E47: £ | G47: -900000 | J47: =-'Club & Hotel Input Sheet'!J68 -> -900000
B48: Refurbishment | E48: £ | G48: =SUM(J48:T48) -> -7560000 | J48: ='Club Workings Sheet'!J48+'Hotel Workings Sheet'!J48 -> -7560000 | K48: ='Club Workings Sheet'!K48+'Hotel Workings Sheet'!K48 -> 0 | L48: ='Club Workings Sheet'!L48+'Hotel Workings Sheet'!L48 -> 0 | M48: ='Club Workings Sheet'!M48+'Hotel Workings Sheet'!M48 -> 0 | N48: ='Club Workings Sheet'!N48+'Hotel Workings Sheet'!N48 -> 0 | O48: ='Club Workings Sheet'!O48+'Hotel Workings Sheet'!O48 -> 0 | P48: ='Club Workings Sheet'!P48+'Hotel Workings Sheet'!P48 -> 0 | Q48: ='Club Workings Sheet'!Q48+'Hotel Workings Sheet'!Q48 -> 0 | R48: ='Club Workings Sheet'!R48+'Hotel Workings Sheet'!R48 -> 0 | S48: ='Club Workings Sheet'!S48+'Hotel Workings Sheet'!S48 -> 0 | T48: ='Club Workings Sheet'!T48+'Hotel Workings Sheet'!T48 -> 0
G49: =SUM(G45:G48) -> -42340000
A51: Cash Flow Statement
B52: Revenue
C53: Accommodation | E53: £ | G53: =SUM(J53:T53) -> 83982038.73 | K53: ='Club Workings Sheet'!K53+'Hotel Workings Sheet'!K53 -> 7669788 | L53: ='Club Workings Sheet'!L53+'Hotel Workings Sheet'!L53 -> 7823183.76 | M53: ='Club Workings Sheet'!M53+'Hotel Workings Sheet'!M53 -> 7979647.435 | N53: ='Club Workings Sheet'!N53+'Hotel Workings Sheet'!N53 -> 8139240.384 | O53: ='Club Workings Sheet'!O53+'Hotel Workings Sheet'!O53 -> 8302025.192 | P53: ='Club Workings Sheet'!P53+'Hotel Workings Sheet'!P53 -> 8468065.695 | Q53: ='Club Workings Sheet'!Q53+'Hotel Workings Sheet'!Q53 -> 8637427.009 | R53: ='Club Workings Sheet'!R53+'Hotel Workings Sheet'!R53 -> 8810175.55 | S53: ='Club Workings Sheet'!S53+'Hotel Workings Sheet'!S53 -> 8986379.06 | T53: ='Club Workings Sheet'!T53+'Hotel Workings Sheet'!T53 -> 9166106.642
C54: Room & equip hire | E54: £ | G54: =SUM(J54:T54) -> 9772625.992 | K54: ='Club Workings Sheet'!K54+'Hotel Workings Sheet'!K54 -> 892500 | L54: ='Club Workings Sheet'!L54+'Hotel Workings Sheet'!L54 -> 910350 | M54: ='Club Workings Sheet'!M54+'Hotel Workings Sheet'!M54 -> 928557 | N54: ='Club Workings Sheet'!N54+'Hotel Workings Sheet'!N54 -> 947128.14 | O54: ='Club Workings Sheet'!O54+'Hotel Workings Sheet'!O54 -> 966070.7028 | P54: ='Club Workings Sheet'!P54+'Hotel Workings Sheet'!P54 -> 985392.1169 | Q54: ='Club Workings Sheet'!Q54+'Hotel Workings Sheet'!Q54 -> 1005099.959 | R54: ='Club Workings Sheet'!R54+'Hotel Workings Sheet'!R54 -> 1025201.958 | S54: ='Club Workings Sheet'!S54+'Hotel Workings Sheet'!S54 -> 1045705.998 | T54: ='Club Workings Sheet'!T54+'Hotel Workings Sheet'!T54 -> 1066620.117
C55: Restaurant | E55: £ | G55: 35181453.57 | K55: ='Club Workings Sheet'!K55+'Hotel Workings Sheet'!K55 -> 3213000 | L55: ='Club Workings Sheet'!L55+'Hotel Workings Sheet'!L55 -> 3277260 | M55: ='Club Workings Sheet'!M55+'Hotel Workings Sheet'!M55 -> 3342805.2 | N55: ='Club Workings Sheet'!N55+'Hotel Workings Sheet'!N55 -> 3409661.304 | O55: ='Club Workings Sheet'!O55+'Hotel Workings Sheet'!O55 -> 3477854.53 | P55: ='Club Workings Sheet'!P55+'Hotel Workings Sheet'!P55 -> 3547411.621 | Q55: ='Club Workings Sheet'!Q55+'Hotel Workings Sheet'!Q55 -> 3618359.853 | R55: ='Club Workings Sheet'!R55+'Hotel Workings Sheet'!R55 -> 3690727.05 | S55: ='Club Workings Sheet'!S55+'Hotel Workings Sheet'!S55 -> 3764541.591 | T55: ='Club Workings Sheet'!T55+'Hotel Workings Sheet'!T55 -> 3839832.423
C56: Events | E56: £ | G56: 1116871.542 | K56: ='Club Workings Sheet'!K56+'Hotel Workings Sheet'!K56 -> 102000 | L56: ='Club Workings Sheet'!L56+'Hotel Workings Sheet'!L56 -> 104040 | M56: ='Club Workings Sheet'!M56+'Hotel Workings Sheet'!M56 -> 106120.8 | N56: ='Club Workings Sheet'!N56+'Hotel Workings Sheet'!N56 -> 108243.216 | O56: ='Club Workings Sheet'!O56+'Hotel Workings Sheet'!O56 -> 110408.0803 | P56: ='Club Workings Sheet'!P56+'Hotel Workings Sheet'!P56 -> 112616.2419 | Q56: ='Club Workings Sheet'!Q56+'Hotel Workings Sheet'!Q56 -> 114868.5668 | R56: ='Club Workings Sheet'!R56+'Hotel Workings Sheet'!R56 -> 117165.9381 | S56: ='Club Workings Sheet'!S56+'Hotel Workings Sheet'!S56 -> 119509.2569 | T56: ='Club Workings Sheet'!T56+'Hotel Workings Sheet'!T56 -> 121899.442
B57: Total revenue | E57: £ | G57: =SUM(G53:G56) -> 130052989.8 | K57: =SUM(K53:K56) -> 11877288 | L57: =SUM(L53:L56) -> 12114833.76 | M57: 12357130.44 | N57: 12604273.04 | O57: 12856358.5 | P57: 13113485.67 | Q57: 13375755.39 | R57: 13643270.5 | S57: 13916135.91 | T57: 14194458.62
B60: Expenditure
C61: Cost of sales | E61: £ | G61: =SUM(J61:T61) -> -10554436.07 | K61: ='Club Workings Sheet'!K61+'Hotel Workings Sheet'!K61 -> -963900 | L61: ='Club Workings Sheet'!L61+'Hotel Workings Sheet'!L61 -> -983178 | M61: ='Club Workings Sheet'!M61+'Hotel Workings Sheet'!M61 -> -1002841.56 | N61: ='Club Workings Sheet'!N61+'Hotel Workings Sheet'!N61 -> -1022898.391 | O61: ='Club Workings Sheet'!O61+'Hotel Workings Sheet'!O61 -> -1043356.359 | P61: ='Club Workings Sheet'!P61+'Hotel Workings Sheet'!P61 -> -1064223.486 | Q61: ='Club Workings Sheet'!Q61+'Hotel Workings Sheet'!Q61 -> -1085507.956 | R61: ='Club Workings Sheet'!R61+'Hotel Workings Sheet'!R61 -> -1107218.115 | S61: ='Club Workings Sheet'!S61+'Hotel Workings Sheet'!S61 -> -1129362.477 | T61: ='Club Workings Sheet'!T61+'Hotel Workings Sheet'!T61 -> -1151949.727
C62: Staff costs | E62: £ | G62: =SUM(J62:T62) -> -45518546.44 | K62: ='Club Workings Sheet'!K62+'Hotel Workings Sheet'!K62 -> -4157050.8 | L62: ='Club Workings Sheet'!L62+'Hotel Workings Sheet'!L62 -> -4240191.816 | M62: ='Club Workings Sheet'!M62+'Hotel Workings Sheet'!M62 -> -4324995.652 | N62: ='Club Workings Sheet'!N62+'Hotel Workings Sheet'!N62 -> -4411495.565 | O62: ='Club Workings Sheet'!O62+'Hotel Workings Sheet'!O62 -> -4499725.477 | P62: ='Club Workings Sheet'!P62+'Hotel Workings Sheet'!P62 -> -4589719.986 | Q62: ='Club Workings Sheet'!Q62+'Hotel Workings Sheet'!Q62 -> -4681514.386 | R62: ='Club Workings Sheet'!R62+'Hotel Workings Sheet'!R62 -> -4775144.674 | S62: ='Club Workings Sheet'!S62+'Hotel Workings Sheet'!S62 -> -4870647.567 | T62: ='Club Workings Sheet'!T62+'Hotel Workings Sheet'!T62 -> -4968060.518
C63: Estates & FM | E63: £ | G63: -14072581.43 | K63: ='Club Workings Sheet'!K63+'Hotel Workings Sheet'!K63 -> -1285200 | L63: ='Club Workings Sheet'!L63+'Hotel Workings Sheet'!L63 -> -1310904 | M63: ='Club Workings Sheet'!M63+'Hotel Workings Sheet'!M63 -> -1337122.08 | N63: ='Club Workings Sheet'!N63+'Hotel Workings Sheet'!N63 -> -1363864.522 | O63: ='Club Workings Sheet'!O63+'Hotel Workings Sheet'!O63 -> -1391141.812 | P63: ='Club Workings Sheet'!P63+'Hotel Workings Sheet'!P63 -> -1418964.648 | Q63: ='Club Workings Sheet'!Q63+'Hotel Workings Sheet'!Q63 -> -1447343.941 | R63: ='Club Workings Sheet'!R63+'Hotel Workings Sheet'!R63 -> -1476290.82 | S63: ='Club Workings Sheet'!S63+'Hotel Workings Sheet'!S63 -> -1505816.636 | T63: ='Club Workings Sheet'!T63+'Hotel Workings Sheet'!T63 -> -1535932.969
C64: Marketing | E64: £ | G64: -852697.2336 | K64: ='Club Workings Sheet'!K64+'Hotel Workings Sheet'!K64 -> -40800 | L64: ='Club Workings Sheet'!L64+'Hotel Workings Sheet'!L64 -> -83232 | M64: ='Club Workings Sheet'!M64+'Hotel Workings Sheet'!M64 -> -84896.64 | N64: ='Club Workings Sheet'!N64+'Hotel Workings Sheet'!N64 -> -86594.5728 | O64: ='Club Workings Sheet'!O64+'Hotel Workings Sheet'!O64 -> -88326.46426 | P64: ='Club Workings Sheet'!P64+'Hotel Workings Sheet'!P64 -> -90092.99354 | Q64: ='Club Workings Sheet'!Q64+'Hotel Workings Sheet'!Q64 -> -91894.85341 | R64: ='Club Workings Sheet'!R64+'Hotel Workings Sheet'!R64 -> -93732.75048 | S64: ='Club Workings Sheet'!S64+'Hotel Workings Sheet'!S64 -> -95607.40549 | T64: ='Club Workings Sheet'!T64+'Hotel Workings Sheet'!T64 -> -97519.5536
C65: Promotions | E65: £ | G65: -1116871.542 | K65: ='Club Workings Sheet'!K65+'Hotel Workings Sheet'!K65 -> -102000 | L65: ='Club Workings Sheet'!L65+'Hotel Workings Sheet'!L65 -> -104040 | M65: ='Club Workings Sheet'!M65+'Hotel Workings Sheet'!M65 -> -106120.8 | N65: ='Club Workings Sheet'!N65+'Hotel Workings Sheet'!N65 -> -108243.216 | O65: ='Club Workings Sheet'!O65+'Hotel Workings Sheet'!O65 -> -110408.0803 | P65: ='Club Workings Sheet'!P65+'Hotel Workings Sheet'!P65 -> -112616.2419 | Q65: ='Club Workings Sheet'!Q65+'Hotel Workings Sheet'!Q65 -> -114868.5668 | R65: ='Club Workings Sheet'!R65+'Hotel Workings Sheet'!R65 -> -117165.9381 | S65: ='Club Workings Sheet'!S65+'Hotel Workings Sheet'!S65 -> -119509.2569 | T65: ='Club Workings Sheet'!T65+'Hotel Workings Sheet'!T65 -> -121899.442
C66: Equipment | E66: £ | G66: -446748.6168 | K66: ='Club Workings Sheet'!K66+'Hotel Workings Sheet'!K66 -> -40800 | L66: ='Club Workings Sheet'!L66+'Hotel Workings Sheet'!L66 -> -41616 | M66: ='Club Workings Sheet'!M66+'Hotel Workings Sheet'!M66 -> -42448.32 | N66: ='Club Workings Sheet'!N66+'Hotel Workings Sheet'!N66 -> -43297.2864 | O66: ='Club Workings Sheet'!O66+'Hotel Workings Sheet'!O66 -> -44163.23213 | P66: ='Club Workings Sheet'!P66+'Hotel Workings Sheet'!P66 -> -45046.49677 | Q66: ='Club Workings Sheet'!Q66+'Hotel Workings Sheet'!Q66 -> -45947.42671 | R66: ='Club Workings Sheet'!R66+'Hotel Workings Sheet'!R66 -> -46866.37524 | S66: ='Club Workings Sheet'!S66+'Hotel Workings Sheet'!S66 -> -47803.70274 | T66: ='Club Workings Sheet'!T66+'Hotel Workings Sheet'!T66 -> -48759.7768
B67: Total expenditure | E67: £ | G67: =SUM(G61:G66) -> -72561881.33 | K67: =SUM(K61:K66) -> -6589750.8 | L67: =SUM(L61:L66) -> -6763161.816 | M67: -6898425.052 | N67: -7036393.553 | O67: -7177121.424 | P67: -7320663.853 | Q67: -7467077.13 | R67: -7616418.673 | S67: -7768747.046 | T67: -7924121.987
B69: Terminal value | T69: =(T67+T57)/'Club & Hotel Input Sheet'!I$66 -> 104505610.6
A71: Free Cash Flow | E71: £ | G71: =SUM(J71:T71) -> 119656719.1 | J71: =J57+J67+J48+J45+J69+J46+J47 -> -42340000 | K71: =K57+K67+K48+K45+K69 -> 5287537.2 | L71: 5351671.944 | M71: 5458705.383 | N71: 5567879.491 | O71: 5679237.08 | P71: 5792821.822 | Q71: 5908678.258 | R71: 6026851.824 | S71: 6147388.86 | T71: =T57+T67+T48+T45+T69 -> 110775947.3
A72: IRR | B72: =IRR(J71:T71) -> 0.191258814
A74: LOWER CASE
A75: Capital
B76: New capital cost | E76: £ | G76: =SUM(J76:T76) -> -36190000 | J76: ='Club Workings Sheet'!J76+'Hotel Workings Sheet'!J77 -> -36190000
B77: CIL/s.106/s.278 costs | E77: £ | G77: =SUM(J77:T77) -> -770000 | J77: =-'Club & Hotel Input Sheet'!K70 -> -770000
B78: Developers contingency | E78: £ | G78: -1100000 | J78: =-'Club & Hotel Input Sheet'!K68 -> -1100000
B79: Refurbishment | E79: £ | G79: =SUM(J79:T79) -> -7560000 | J79: ='Club Workings Sheet'!J79+'Hotel Workings Sheet'!J80 -> -7560000 | K79: ='Club Workings Sheet'!K79+'Hotel Workings Sheet'!K80 -> 0 | L79: ='Club Workings Sheet'!L79+'Hotel Workings Sheet'!L80 -> 0 | M79: ='Club Workings Sheet'!M79+'Hotel Workings Sheet'!M80 -> 0 | N79: ='Club Workings Sheet'!N79+'Hotel Workings Sheet'!N80 -> 0 | O79: ='Club Workings Sheet'!O79+'Hotel Workings Sheet'!O80 -> 0 | P79: ='Club Workings Sheet'!P79+'Hotel Workings Sheet'!P80 -> 0 | Q79: ='Club Workings Sheet'!Q79+'Hotel Workings Sheet'!Q80 -> 0 | R79: ='Club Workings Sheet'!R79+'Hotel Workings Sheet'!R80 -> 0 | S79: ='Club Workings Sheet'!S79+'Hotel Workings Sheet'!S80 -> 0 | T79: ='Club Workings Sheet'!T79+'Hotel Workings Sheet'!T80 -> 0
G80: =SUM(G76:G79) -> -45620000
A82: Cash Flow Statement
B83: Revenue
C84: Accommodation | E84: £ | G84: =SUM(J84:T84) -> 71384732.92 | K84: ='Club Workings Sheet'!K84+'Hotel Workings Sheet'!K85 -> 6519319.8 | L84: ='Club Workings Sheet'!L84+'Hotel Workings Sheet'!L85 -> 6649706.196 | M84: ='Club Workings Sheet'!M84+'Hotel Workings Sheet'!M85 -> 6782700.32 | N84: ='Club Workings Sheet'!N84+'Hotel Workings Sheet'!N85 -> 6918354.326 | O84: ='Club Workings Sheet'!O84+'Hotel Workings Sheet'!O85 -> 7056721.413 | P84: ='Club Workings Sheet'!P84+'Hotel Workings Sheet'!P85 -> 7197855.841 | Q84: ='Club Workings Sheet'!Q84+'Hotel Workings Sheet'!Q85 -> 7341812.958 | R84: ='Club Workings Sheet'!R84+'Hotel Workings Sheet'!R85 -> 7488649.217 | S84: ='Club Workings Sheet'!S84+'Hotel Workings Sheet'!S85 -> 7638422.201 | T84: ='Club Workings Sheet'!T84+'Hotel Workings Sheet'!T85 -> 7791190.645
C85: Room & equip hire | E85: £ | G85: =SUM(J85:T85) -> 8990815.913 | K85: ='Club Workings Sheet'!K85+'Hotel Workings Sheet'!K86 -> 821100 | L85: ='Club Workings Sheet'!L85+'Hotel Workings Sheet'!L86 -> 837522 | M85: ='Club Workings Sheet'!M85+'Hotel Workings Sheet'!M86 -> 854272.44 | N85: ='Club Workings Sheet'!N85+'Hotel Workings Sheet'!N86 -> 871357.8888 | O85: ='Club Workings Sheet'!O85+'Hotel Workings Sheet'!O86 -> 888785.0466 | P85: ='Club Workings Sheet'!P85+'Hotel Workings Sheet'!P86 -> 906560.7475 | Q85: ='Club Workings Sheet'!Q85+'Hotel Workings Sheet'!Q86 -> 924691.9625 | R85: ='Club Workings Sheet'!R85+'Hotel Workings Sheet'!R86 -> 943185.8017 | S85: ='Club Workings Sheet'!S85+'Hotel Workings Sheet'!S86 -> 962049.5177 | T85: ='Club Workings Sheet'!T85+'Hotel Workings Sheet'!T86 -> 981290.5081
C86: Restaurant | E86: £ | G86: 23454302.38 | K86: ='Club Workings Sheet'!K86+'Hotel Workings Sheet'!K87 -> 2142000 | L86: ='Club Workings Sheet'!L86+'Hotel Workings Sheet'!L87 -> 2184840 | M86: ='Club Workings Sheet'!M86+'Hotel Workings Sheet'!M87 -> 2228536.8 | N86: ='Club Workings Sheet'!N86+'Hotel Workings Sheet'!N87 -> 2273107.536 | O86: ='Club Workings Sheet'!O86+'Hotel Workings Sheet'!O87 -> 2318569.687 | P86: ='Club Workings Sheet'!P86+'Hotel Workings Sheet'!P87 -> 2364941.08 | Q86: ='Club Workings Sheet'!Q86+'Hotel Workings Sheet'!Q87 -> 2412239.902 | R86: ='Club Workings Sheet'!R86+'Hotel Workings Sheet'!R87 -> 2460484.7 | S86: ='Club Workings Sheet'!S86+'Hotel Workings Sheet'!S87 -> 2509694.394 | T86: ='Club Workings Sheet'!T86+'Hotel Workings Sheet'!T87 -> 2559888.282
C87: Events | E87: £ | G87: 1116871.542 | K87: ='Club Workings Sheet'!K87+'Hotel Workings Sheet'!K88 -> 102000 | L87: ='Club Workings Sheet'!L87+'Hotel Workings Sheet'!L88 -> 104040 | M87: ='Club Workings Sheet'!M87+'Hotel Workings Sheet'!M88 -> 106120.8 | N87: ='Club Workings Sheet'!N87+'Hotel Workings Sheet'!N88 -> 108243.216 | O87: ='Club Workings Sheet'!O87+'Hotel Workings Sheet'!O88 -> 110408.0803 | P87: ='Club Workings Sheet'!P87+'Hotel Workings Sheet'!P88 -> 112616.2419 | Q87: ='Club Workings Sheet'!Q87+'Hotel Workings Sheet'!Q88 -> 114868.5668 | R87: ='Club Workings Sheet'!R87+'Hotel Workings Sheet'!R88 -> 117165.9381 | S87: ='Club Workings Sheet'!S87+'Hotel Workings Sheet'!S88 -> 119509.2569 | T87: ='Club Workings Sheet'!T87+'Hotel Workings Sheet'!T88 -> 121899.442
B88: Total revenue | E88: £ | G88: =SUM(G84:G87) -> 104946722.8 | K88: =SUM(K84:K87) -> 9584419.8 | L88: =SUM(L84:L87) -> 9776108.196 | M88: 9971630.36 | N88: 10171062.97 | O88: 10374484.23 | P88: 10581973.91 | Q88: 10793613.39 | R88: 11009485.66 | S88: 11229675.37 | T88: 11454268.88
B91: Expenditure
C92: Cost of sales | E92: £ | G92: =SUM(J92:T92) -> -8209005.834 | K92: ='Club Workings Sheet'!K92+'Hotel Workings Sheet'!K93 -> -749700 | L92: ='Club Workings Sheet'!L92+'Hotel Workings Sheet'!L93 -> -764694 | M92: ='Club Workings Sheet'!M92+'Hotel Workings Sheet'!M93 -> -779987.88 | N92: ='Club Workings Sheet'!N92+'Hotel Workings Sheet'!N93 -> -795587.6376 | O92: ='Club Workings Sheet'!O92+'Hotel Workings Sheet'!O93 -> -811499.3904 | P92: ='Club Workings Sheet'!P92+'Hotel Workings Sheet'!P93 -> -827729.3782 | Q92: ='Club Workings Sheet'!Q92+'Hotel Workings Sheet'!Q93 -> -844283.9657 | R92: ='Club Workings Sheet'!R92+'Hotel Workings Sheet'!R93 -> -861169.645 | S92: ='Club Workings Sheet'!S92+'Hotel Workings Sheet'!S93 -> -878393.0379 | T92: ='Club Workings Sheet'!T92+'Hotel Workings Sheet'!T93 -> -895960.8987
C93: Staff costs | E93: £ | G93: =SUM(J93:T93) -> -47226025.24 | K93: ='Club Workings Sheet'!K93+'Hotel Workings Sheet'!K94 -> -4312988.91 | L93: ='Club Workings Sheet'!L93+'Hotel Workings Sheet'!L94 -> -4399248.688 | M93: ='Club Workings Sheet'!M93+'Hotel Workings Sheet'!M94 -> -4487233.662 | N93: ='Club Workings Sheet'!N93+'Hotel Workings Sheet'!N94 -> -4576978.335 | O93: ='Club Workings Sheet'!O93+'Hotel Workings Sheet'!O94 -> -4668517.902 | P93: ='Club Workings Sheet'!P93+'Hotel Workings Sheet'!P94 -> -4761888.26 | Q93: ='Club Workings Sheet'!Q93+'Hotel Workings Sheet'!Q94 -> -4857126.025 | R93: ='Club Workings Sheet'!R93+'Hotel Workings Sheet'!R94 -> -4954268.546 | S93: ='Club Workings Sheet'!S93+'Hotel Workings Sheet'!S94 -> -5053353.917 | T93: ='Club Workings Sheet'!T93+'Hotel Workings Sheet'!T94 -> -5154420.995
C94: Estates & FM | E94: £ | G94: -17199821.75 | K94: ='Club Workings Sheet'!K94+'Hotel Workings Sheet'!K95 -> -1570800 | L94: ='Club Workings Sheet'!L94+'Hotel Workings Sheet'!L95 -> -1602216 | M94: ='Club Workings Sheet'!M94+'Hotel Workings Sheet'!M95 -> -1634260.32 | N94: ='Club Workings Sheet'!N94+'Hotel Workings Sheet'!N95 -> -1666945.526 | O94: ='Club Workings Sheet'!O94+'Hotel Workings Sheet'!O95 -> -1700284.437 | P94: ='Club Workings Sheet'!P94+'Hotel Workings Sheet'!P95 -> -1734290.126 | Q94: ='Club Workings Sheet'!Q94+'Hotel Workings Sheet'!Q95 -> -1768975.928 | R94: ='Club Workings Sheet'!R94+'Hotel Workings Sheet'!R95 -> -1804355.447 | S94: ='Club Workings Sheet'!S94+'Hotel Workings Sheet'!S95 -> -1840442.556 | T94: ='Club Workings Sheet'!T94+'Hotel Workings Sheet'!T95 -> -1877251.407
C95: Marketing | E95: £ | G95: -852697.2336 | K95: ='Club Workings Sheet'!K95+'Hotel Workings Sheet'!K96 -> -40800 | L95: ='Club Workings Sheet'!L95+'Hotel Workings Sheet'!L96 -> -83232 | M95: ='Club Workings Sheet'!M95+'Hotel Workings Sheet'!M96 -> -84896.64 | N95: ='Club Workings Sheet'!N95+'Hotel Workings Sheet'!N96 -> -86594.5728 | O95: ='Club Workings Sheet'!O95+'Hotel Workings Sheet'!O96 -> -88326.46426 | P95: ='Club Workings Sheet'!P95+'Hotel Workings Sheet'!P96 -> -90092.99354 | Q95: ='Club Workings Sheet'!Q95+'Hotel Workings Sheet'!Q96 -> -91894.85341 | R95: ='Club Workings Sheet'!R95+'Hotel Workings Sheet'!R96 -> -93732.75048 | S95: ='Club Workings Sheet'!S95+'Hotel Workings Sheet'!S96 -> -95607.40549 | T95: ='Club Workings Sheet'!T95+'Hotel Workings Sheet'!T96 -> -97519.5536
C96: Promotions | E96: £ | G96: -1116871.542 | K96: ='Club Workings Sheet'!K96+'Hotel Workings Sheet'!K97 -> -102000 | L96: ='Club Workings Sheet'!L96+'Hotel Workings Sheet'!L97 -> -104040 | M96: ='Club Workings Sheet'!M96+'Hotel Workings Sheet'!M97 -> -106120.8 | N96: ='Club Workings Sheet'!N96+'Hotel Workings Sheet'!N97 -> -108243.216 | O96: ='Club Workings Sheet'!O96+'Hotel Workings Sheet'!O97 -> -110408.0803 | P96: ='Club Workings Sheet'!P96+'Hotel Workings Sheet'!P97 -> -112616.2419 | Q96: ='Club Workings Sheet'!Q96+'Hotel Workings Sheet'!Q97 -> -114868.5668 | R96: ='Club Workings Sheet'!R96+'Hotel Workings Sheet'!R97 -> -117165.9381 | S96: ='Club Workings Sheet'!S96+'Hotel Workings Sheet'!S97 -> -119509.2569 | T96: ='Club Workings Sheet'!T96+'Hotel Workings Sheet'!T97 -> -121899.442
C97: Equipment | E97: £ | G97: -446748.6168 | K97: ='Club Workings Sheet'!K97+'Hotel Workings Sheet'!K98 -> -40800 | L97: ='Club Workings Sheet'!L97+'Hotel Workings Sheet'!L98 -> -41616 | M97: ='Club Workings Sheet'!M97+'Hotel Workings Sheet'!M98 -> -42448.32 | N97: ='Club Workings Sheet'!N97+'Hotel Workings Sheet'!N98 -> -43297.2864 | O97: ='Club Workings Sheet'!O97+'Hotel Workings Sheet'!O98 -> -44163.23213 | P97: ='Club Workings Sheet'!P97+'Hotel Workings Sheet'!P98 -> -45046.49677 | Q97: ='Club Workings Sheet'!Q97+'Hotel Workings Sheet'!Q98 -> -45947.42671 | R97: ='Club Workings Sheet'!R97+'Hotel Workings Sheet'!R98 -> -46866.37524 | S97: ='Club Workings Sheet'!S97+'Hotel Workings Sheet'!S98 -> -47803.70274 | T97: ='Club Workings Sheet'!T97+'Hotel Workings Sheet'!T98 -> -48759.7768
B98: Total expenditure | E98: £ | G98: =SUM(G92:G97) -> -75051170.21 | K98: =SUM(K92:K97) -> -6817088.91 | L98: =SUM(L92:L97) -> -6995046.688 | M98: -7134947.622 | N98: -7277646.574 | O98: -7423199.506 | P98: -7571663.496 | Q98: -7723096.766 | R98: -7877558.701 | S98: -8035109.875 | T98: -8195812.073
B100: Terminal value | T100: =(T98+T88)/'Club & Hotel Input Sheet'!I$66 -> 54307613.41
A102: Free Cash Flow | E102: £ | G102: =SUM(J102:T102) -> 38583165.96 | J102: =J88+J98+J79+J76+J100+J77+J78 -> -45620000 | K102: =K88+K98+K79+K76+K100 -> 2767330.89 | L102: 2781061.508 | M102: 2836682.738 | N102: 2893416.393 | O102: 2951284.721 | P102: 3010310.415 | Q102: 3070516.623 | R102: 3131926.956 | S102: 3194565.495 | T102: =T88+T98+T79+T76+T100 -> 57566070.22
A103: IRR | B103: =IRR(J102:T102) -> 0.07803979277

Sheet Club Workings Sheet (hidden)
A1: Plot A Analysis - Option 2: Club
A2: Workings Sheet
E4: Units | F4: Constant | G4: Total | H4: Sparkline | J4: 0 | K4: 1 | L4: 2 | M4: 3 | N4: 4 | O4: 5 | P4: 6 | Q4: 7 | R4: 8 | S4: 9 | T4: 10
A6: Inflation index | E6: % | F6: ='Club & Hotel Input Sheet'!G65 -> 0.02 | J6: =(1+'Club & Hotel Input Sheet'!$G65)^J4 -> 1 | K6: =(1+'Club & Hotel Input Sheet'!$G65)^K4 -> 1.02 | L6: =(1+'Club & Hotel Input Sheet'!$G65)^L4 -> 1.0404 | M6: =(1+'Club & Hotel Input Sheet'!$G65)^M4 -> 1.061208 | N6: =(1+'Club & Hotel Input Sheet'!$G65)^N4 -> 1.08243216 | O6: =(1+'Club & Hotel Input Sheet'!$G65)^O4 -> 1.104080803 | P6: =(1+'Club & Hotel Input Sheet'!$G65)^P4 -> 1.126162419 | Q6: =(1+'Club & Hotel Input Sheet'!$G65)^Q4 -> 1.148685668 | R6: =(1+'Club & Hotel Input Sheet'!$G65)^R4 -> 1.171659381 | S6: =(1+'Club & Hotel Input Sheet'!$G65)^S4 -> 1.195092569 | T6: =(1+'Club & Hotel Input Sheet'!$G65)^T4 -> 1.21899442
A9: Refurbishment | J9: =IF(J4='Club & Hotel Input Sheet'!$G17,"Yes","No") -> Yes | K9: =IF(K4='Club & Hotel Input Sheet'!$G17,"Yes","No") -> No | L9: =IF(L4='Club & Hotel Input Sheet'!$G17,"Yes","No") -> No | M9: =IF(M4='Club & Hotel Input Sheet'!$G17,"Yes","No") -> No | N9: =IF(N4='Club & Hotel Input Sheet'!$G17,"Yes","No") -> No | O9: =IF(O4='Club & Hotel Input Sheet'!$G17,"Yes","No") -> No | P9: =IF(P4='Club & Hotel Input Sheet'!$G17,"Yes","No") -> No | Q9: =IF(Q4='Club & Hotel Input Sheet'!$G17,"Yes","No") -> No | R9: =IF(R4='Club & Hotel Input Sheet'!$G17,"Yes","No") -> No | S9: =IF(S4='Club & Hotel Input Sheet'!$G17,"Yes","No") -> No | T9: =IF(T4='Club & Hotel Input Sheet'!$G17,"Yes","No") -> No
A10: Refurbishment factor | J10: =IF(J9="No",1,0.5) -> 0.5 | K10: =IF(K9="No",1,0.5) -> 1 | L10: 1 | M10: 1 | N10: 1 | O10: 1 | P10: 1 | Q10: 1 | R10: 1 | S10: 1 | T10: 1
A12: BASE CASE
A13: Capital
B14: New capital cost | E14: £ | G14: =SUM(J14:T14) -> -11060000 | J14: =-'Club & Hotel Input Sheet'!I$13*'Club & Hotel Input Sheet'!I$10-'Club & Hotel Input Sheet'!I72 -> -11060000
B15: CIL/s.106/s.278 costs | E15: £ | G15: =SUM(J15:T15) -> -700000 | J15: =-'Club & Hotel Input Sheet'!I70 -> -700000
B16: Developers contingency | E16: £ | G16: -1000000 | J16: =-'Club & Hotel Input Sheet'!I68 -> -1000000
B17: Refurbishment | E17: £ | G17: =SUM(J17:T17) -> -3780000 | J17: =IF(J$10=1,0,-('Club & Hotel Input Sheet'!$I$18*'Club & Hotel Input Sheet'!$I$10*J$6)) -> -3780000 | K17: =IF(K$10=1,0,-('Club & Hotel Input Sheet'!$I$18*'Club & Hotel Input Sheet'!$I$10*K$6)) -> 0 | L17: =IF(L$10=1,0,-('Club & Hotel Input Sheet'!$I$18*'Club & Hotel Input Sheet'!$I$10*L$6)) -> 0 | M17: =IF(M$10=1,0,-('Club & Hotel Input Sheet'!$I$18*'Club & Hotel Input Sheet'!$I$10*M$6)) -> 0 | N17: =IF(N$10=1,0,-('Club & Hotel Input Sheet'!$I$18*'Club & Hotel Input Sheet'!$I$10*N$6)) -> 0 | O17: =IF(O$10=1,0,-('Club & Hotel Input Sheet'!$I$18*'Club & Hotel Input Sheet'!$I$10*O$6)) -> 0 | P17: =IF(P$10=1,0,-('Club & Hotel Input Sheet'!$I$18*'Club & Hotel Input Sheet'!$I$10*P$6)) -> 0 | Q17: =IF(Q$10=1,0,-('Club & Hotel Input Sheet'!$I$18*'Club & Hotel Input Sheet'!$I$10*Q$6)) -> 0 | R17: =IF(R$10=1,0,-('Club & Hotel Input Sheet'!$I$18*'Club & Hotel Input Sheet'!$I$10*R$6)) -> 0 | S17: =IF(S$10=1,0,-('Club & Hotel Input Sheet'!$I$18*'Club & Hotel Input Sheet'!$I$10*S$6)) -> 0 | T17: =IF(T$10=1,0,-('Club & Hotel Input Sheet'!$I$18*'Club & Hotel Input Sheet'!$I$10*T$6)) -> 0
G18: =SUM(G14:G17) -> -16540000
A20: Cash Flow Statement
B21: Revenue
C22: Accommodation | E22: £ | G22: =SUM(J22:T22) -> 3558017.671 | K22: =('Club & Hotel Input Sheet'!$I$23*'Club & Hotel Input Sheet'!$I$25*'Club & Hotel Input Sheet'!$I$26*'Club & Hotel Input Sheet'!$I$27)*K$6 -> 324941.4 | L22: =('Club & Hotel Input Sheet'!$I$23*'Club & Hotel Input Sheet'!$I$25*'Club & Hotel Input Sheet'!$I$26*'Club & Hotel Input Sheet'!$I$27)*L$6 -> 331440.228 | M22: =('Club & Hotel Input Sheet'!$I$23*'Club & Hotel Input Sheet'!$I$25*'Club & Hotel Input Sheet'!$I$26*'Club & Hotel Input Sheet'!$I$27)*M$6 -> 338069.0326 | N22: =('Club & Hotel Input Sheet'!$I$23*'Club & Hotel Input Sheet'!$I$25*'Club & Hotel Input Sheet'!$I$26*'Club & Hotel Input Sheet'!$I$27)*N$6 -> 344830.4132 | O22: =('Club & Hotel Input Sheet'!$I$23*'Club & Hotel Input Sheet'!$I$25*'Club & Hotel Input Sheet'!$I$26*'Club & Hotel Input Sheet'!$I$27)*O$6 -> 351727.0215 | P22: =('Club & Hotel Input Sheet'!$I$23*'Club & Hotel Input Sheet'!$I$25*'Club & Hotel Input Sheet'!$I$26*'Club & Hotel Input Sheet'!$I$27)*P$6 -> 358761.5619 | Q22: =('Club & Hotel Input Sheet'!$I$23*'Club & Hotel Input Sheet'!$I$25*'Club & Hotel Input Sheet'!$I$26*'Club & Hotel Input Sheet'!$I$27)*Q$6 -> 365936.7931 | R22: =('Club & Hotel Input Sheet'!$I$23*'Club & Hotel Input Sheet'!$I$25*'Club & Hotel Input Sheet'!$I$26*'Club & Hotel Input Sheet'!$I$27)*R$6 -> 373255.529 | S22: =('Club & Hotel Input Sheet'!$I$23*'Club & Hotel Input Sheet'!$I$25*'Club & Hotel Input Sheet'!$I$26*'Club & Hotel Input Sheet'!$I$27)*S$6 -> 380720.6396 | T22: =('Club & Hotel Input Sheet'!$I$23*'Club & Hotel Input Sheet'!$I$25*'Club & Hotel Input Sheet'!$I$26*'Club & Hotel Input Sheet'!$I$27)*T$6 -> 388335.0524
C23: Room & equip hire | E23: £ | G23: =SUM(J23:T23) -> 9381720.953 | K23: =('Club & Hotel Input Sheet'!$I$30*'Club & Hotel Input Sheet'!$I$31*'Club & Hotel Input Sheet'!$I$32*'Club & Hotel Input Sheet'!$I$33)*K$6 -> 856800 | L23: =('Club & Hotel Input Sheet'!$I$30*'Club & Hotel Input Sheet'!$I$31*'Club & Hotel Input Sheet'!$I$32*'Club & Hotel Input Sheet'!$I$33)*L$6 -> 873936 | M23: =('Club & Hotel Input Sheet'!$I$30*'Club & Hotel Input Sheet'!$I$31*'Club & Hotel Input Sheet'!$I$32*'Club & Hotel Input Sheet'!$I$33)*M$6 -> 891414.72 | N23: =('Club & Hotel Input Sheet'!$I$30*'Club & Hotel Input Sheet'!$I$31*'Club & Hotel Input Sheet'!$I$32*'Club & Hotel Input Sheet'!$I$33)*N$6 -> 909243.0144 | O23: =('Club & Hotel Input Sheet'!$I$30*'Club & Hotel Input Sheet'!$I$31*'Club & Hotel Input Sheet'!$I$32*'Club & Hotel Input Sheet'!$I$33)*O$6 -> 927427.8747 | P23: =('Club & Hotel Input Sheet'!$I$30*'Club & Hotel Input Sheet'!$I$31*'Club & Hotel Input Sheet'!$I$32*'Club & Hotel Input Sheet'!$I$33)*P$6 -> 945976.4322 | Q23: =('Club & Hotel Input Sheet'!$I$30*'Club & Hotel Input Sheet'!$I$31*'Club & Hotel Input Sheet'!$I$32*'Club & Hotel Input Sheet'!$I$33)*Q$6 -> 964895.9608 | R23: =('Club & Hotel Input Sheet'!$I$30*'Club & Hotel Input Sheet'!$I$31*'Club & Hotel Input Sheet'!$I$32*'Club & Hotel Input Sheet'!$I$33)*R$6 -> 984193.88 | S23: =('Club & Hotel Input Sheet'!$I$30*'Club & Hotel Input Sheet'!$I$31*'Club & Hotel Input Sheet'!$I$32*'Club & Hotel Input Sheet'!$I$33)*S$6 -> 1003877.758 | T23: =('Club & Hotel Input Sheet'!$I$30*'Club & Hotel Input Sheet'!$I$31*'Club & Hotel Input Sheet'!$I$32*'Club & Hotel Input Sheet'!$I$33)*T$6 -> 1023955.313
C24: Restaurant | E24: £ | G24: 9772625.992 | K24: =('Club & Hotel Input Sheet'!$I$36*'Club & Hotel Input Sheet'!$I$38*'Club & Hotel Input Sheet'!$I$39*'Club & Hotel Input Sheet'!$I$40)*K$6 -> 892500 | L24: =('Club & Hotel Input Sheet'!$I$36*'Club & Hotel Input Sheet'!$I$38*'Club & Hotel Input Sheet'!$I$39*'Club & Hotel Input Sheet'!$I$40)*L$6 -> 910350 | M24: =('Club & Hotel Input Sheet'!$I$36*'Club & Hotel Input Sheet'!$I$38*'Club & Hotel Input Sheet'!$I$39*'Club & Hotel Input Sheet'!$I$40)*M$6 -> 928557 | N24: =('Club & Hotel Input Sheet'!$I$36*'Club & Hotel Input Sheet'!$I$38*'Club & Hotel Input Sheet'!$I$39*'Club & Hotel Input Sheet'!$I$40)*N$6 -> 947128.14 | O24: =('Club & Hotel Input Sheet'!$I$36*'Club & Hotel Input Sheet'!$I$38*'Club & Hotel Input Sheet'!$I$39*'Club & Hotel Input Sheet'!$I$40)*O$6 -> 966070.7028 | P24: =('Club & Hotel Input Sheet'!$I$36*'Club & Hotel Input Sheet'!$I$38*'Club & Hotel Input Sheet'!$I$39*'Club & Hotel Input Sheet'!$I$40)*P$6 -> 985392.1169 | Q24: =('Club & Hotel Input Sheet'!$I$36*'Club & Hotel Input Sheet'!$I$38*'Club & Hotel Input Sheet'!$I$39*'Club & Hotel Input Sheet'!$I$40)*Q$6 -> 1005099.959 | R24: =('Club & Hotel Input Sheet'!$I$36*'Club & Hotel Input Sheet'!$I$38*'Club & Hotel Input Sheet'!$I$39*'Club & Hotel Input Sheet'!$I$40)*R$6 -> 1025201.958 | S24: =('Club & Hotel Input Sheet'!$I$36*'Club & Hotel Input Sheet'!$I$38*'Club & Hotel Input Sheet'!$I$39*'Club & Hotel Input Sheet'!$I$40)*S$6 -> 1045705.998 | T24: =('Club & Hotel Input Sheet'!$I$36*'Club & Hotel Input Sheet'!$I$38*'Club & Hotel Input Sheet'!$I$39*'Club & Hotel Input Sheet'!$I$40)*T$6 -> 1066620.117
C25: Events | E25: £ | G25: 1116871.542 | K25: =('Club & Hotel Input Sheet'!$I$43*'Club & Hotel Input Sheet'!$I$44*'Club & Hotel Input Sheet'!$I$45)*K$6 -> 102000 | L25: =('Club & Hotel Input Sheet'!$I$43*'Club & Hotel Input Sheet'!$I$44*'Club & Hotel Input Sheet'!$I$45)*L$6 -> 104040 | M25: =('Club & Hotel Input Sheet'!$I$43*'Club & Hotel Input Sheet'!$I$44*'Club & Hotel Input Sheet'!$I$45)*M$6 -> 106120.8 | N25: =('Club & Hotel Input Sheet'!$I$43*'Club & Hotel Input Sheet'!$I$44*'Club & Hotel Input Sheet'!$I$45)*N$6 -> 108243.216 | O25: =('Club & Hotel Input Sheet'!$I$43*'Club & Hotel Input Sheet'!$I$44*'Club & Hotel Input Sheet'!$I$45)*O$6 -> 110408.0803 | P25: =('Club & Hotel Input Sheet'!$I$43*'Club & Hotel Input Sheet'!$I$44*'Club & Hotel Input Sheet'!$I$45)*P$6 -> 112616.2419 | Q25: =('Club & Hotel Input Sheet'!$I$43*'Club & Hotel Input Sheet'!$I$44*'Club & Hotel Input Sheet'!$I$45)*Q$6 -> 114868.5668 | R25: =('Club & Hotel Input Sheet'!$I$43*'Club & Hotel Input Sheet'!$I$44*'Club & Hotel Input Sheet'!$I$45)*R$6 -> 117165.9381 | S25: =('Club & Hotel Input Sheet'!$I$43*'Club & Hotel Input Sheet'!$I$44*'Club & Hotel Input Sheet'!$I$45)*S$6 -> 119509.2569 | T25: =('Club & Hotel Input Sheet'!$I$43*'Club & Hotel Input Sheet'!$I$44*'Club & Hotel Input Sheet'!$I$45)*T$6 -> 121899.442
B26: Total revenue | E26: £ | G26: =SUM(G22:G25) -> 23829236.16 | K26: =SUM(K22:K25) -> 2176241.4 | L26: =SUM(L22:L25) -> 2219766.228 | M26: 2264161.553 | N26: 2309444.784 | O26: 2355633.679 | P26: 2402746.353 | Q26: 2450801.28 | R26: 2499817.306 | S26: 2549813.652 | T26: 2600809.925
B29: Expenditure
C30: Cost of sales | E30: £ | G30: =SUM(J30:T30) -> -2931787.798 | K30: =-K24*'Club & Hotel Input Sheet'!$I$49 -> -267750 | L30: =-L24*'Club & Hotel Input Sheet'!$I$49 -> -273105 | M30: =-M24*'Club & Hotel Input Sheet'!$I$49 -> -278567.1 | N30: =-N24*'Club & Hotel Input Sheet'!$I$49 -> -284138.442 | O30: =-O24*'Club & Hotel Input Sheet'!$I$49 -> -289821.2108 | P30: =-P24*'Club & Hotel Input Sheet'!$I$49 -> -295617.6351 | Q30: =-Q24*'Club & Hotel Input Sheet'!$I$49 -> -301529.9878 | R30: =-R24*'Club & Hotel Input Sheet'!$I$49 -> -307560.5875 | S30: =-S24*'Club & Hotel Input Sheet'!$I$49 -> -313711.7993 | T30: =-T24*'Club & Hotel Input Sheet'!$I$49 -> -319986.0352
C31: Staff costs | E31: £ | G31: =SUM(J31:T31) -> -9531694.463 | K31: =-K26*'Club & Hotel Input Sheet'!$I$51 -> -870496.56 | L31: =-L26*'Club & Hotel Input Sheet'!$I$51 -> -887906.4912 | M31: =-M26*'Club & Hotel Input Sheet'!$I$51 -> -905664.621 | N31: =-N26*'Club & Hotel Input Sheet'!$I$51 -> -923777.9134 | O31: =-O26*'Club & Hotel Input Sheet'!$I$51 -> -942253.4717 | P31: =-P26*'Club & Hotel Input Sheet'!$I$51 -> -961098.5411 | Q31: =-Q26*'Club & Hotel Input Sheet'!$I$51 -> -980320.512 | R31: =-R26*'Club & Hotel Input Sheet'!$I$51 -> -999926.9222 | S31: =-S26*'Club & Hotel Input Sheet'!$I$51 -> -1019925.461 | T31: =-T26*'Club & Hotel Input Sheet'!$I$51 -> -1040323.97
C32: Estates & FM | E32: £ | G32: -3127240.318 | K32: =-('Club & Hotel Input Sheet'!$I$53*'Club & Hotel Input Sheet'!$I$54)*K$6 -> -285600 | L32: =-('Club & Hotel Input Sheet'!$I$53*'Club & Hotel Input Sheet'!$I$54)*L$6 -> -291312 | M32: =-('Club & Hotel Input Sheet'!$I$53*'Club & Hotel Input Sheet'!$I$54)*M$6 -> -297138.24 | N32: =-('Club & Hotel Input Sheet'!$I$53*'Club & Hotel Input Sheet'!$I$54)*N$6 -> -303081.0048 | O32: =-('Club & Hotel Input Sheet'!$I$53*'Club & Hotel Input Sheet'!$I$54)*O$6 -> -309142.6249 | P32: =-('Club & Hotel Input Sheet'!$I$53*'Club & Hotel Input Sheet'!$I$54)*P$6 -> -315325.4774 | Q32: =-('Club & Hotel Input Sheet'!$I$53*'Club & Hotel Input Sheet'!$I$54)*Q$6 -> -321631.9869 | R32: =-('Club & Hotel Input Sheet'!$I$53*'Club & Hotel Input Sheet'!$I$54)*R$6 -> -328064.6267 | S32: =-('Club & Hotel Input Sheet'!$I$53*'Club & Hotel Input Sheet'!$I$54)*S$6 -> -334625.9192 | T32: =-('Club & Hotel Input Sheet'!$I$53*'Club & Hotel Input Sheet'!$I$54)*T$6 -> -341318.4376
C33: Marketing | E33: £ | G33: -426348.6168 | K33: =-'Club & Hotel Input Sheet'!$I$57*K$6 -> -20400 | L33: =-'Club & Hotel Input Sheet'!$I$58*L$6 -> -41616 | M33: =-'Club & Hotel Input Sheet'!$I$58*M$6 -> -42448.32 | N33: =-'Club & Hotel Input Sheet'!$I$58*N$6 -> -43297.2864 | O33: =-'Club & Hotel Input Sheet'!$I$58*O$6 -> -44163.23213 | P33: =-'Club & Hotel Input Sheet'!$I$58*P$6 -> -45046.49677 | Q33: =-'Club & Hotel Input Sheet'!$I$58*Q$6 -> -45947.42671 | R33: =-'Club & Hotel Input Sheet'!$I$58*R$6 -> -46866.37524 | S33: =-'Club & Hotel Input Sheet'!$I$58*S$6 -> -47803.70274 | T33: =-'Club & Hotel Input Sheet'!$I$58*T$6 -> -48759.7768
C34: Promotions | E34: £ | G34: -1116871.542 | K34: =-('Club & Hotel Input Sheet'!$I$43*'Club & Hotel Input Sheet'!$I$44*'Club & Hotel Input Sheet'!$I$60)*K$6 -> -102000 | L34: =-('Club & Hotel Input Sheet'!$I$43*'Club & Hotel Input Sheet'!$I$44*'Club & Hotel Input Sheet'!$I$60)*L$6 -> -104040 | M34: =-('Club & Hotel Input Sheet'!$I$43*'Club & Hotel Input Sheet'!$I$44*'Club & Hotel Input Sheet'!$I$60)*M$6 -> -106120.8 | N34: =-('Club & Hotel Input Sheet'!$I$43*'Club & Hotel Input Sheet'!$I$44*'Club & Hotel Input Sheet'!$I$60)*N$6 -> -108243.216 | O34: =-('Club & Hotel Input Sheet'!$I$43*'Club & Hotel Input Sheet'!$I$44*'Club & Hotel Input Sheet'!$I$60)*O$6 -> -110408.0803 | P34: =-('Club & Hotel Input Sheet'!$I$43*'Club & Hotel Input Sheet'!$I$44*'Club & Hotel Input Sheet'!$I$60)*P$6 -> -112616.2419 | Q34: =-('Club & Hotel Input Sheet'!$I$43*'Club & Hotel Input Sheet'!$I$44*'Club & Hotel Input Sheet'!$I$60)*Q$6 -> -114868.5668 | R34: =-('Club & Hotel Input Sheet'!$I$43*'Club & Hotel Input Sheet'!$I$44*'Club & Hotel Input Sheet'!$I$60)*R$6 -> -117165.9381 | S34: =-('Club & Hotel Input Sheet'!$I$43*'Club & Hotel Input Sheet'!$I$44*'Club & Hotel Input Sheet'!$I$60)*S$6 -> -119509.2569 | T34: =-('Club & Hotel Input Sheet'!$I$43*'Club & Hotel Input Sheet'!$I$44*'Club & Hotel Input Sheet'!$I$60)*T$6 -> -121899.442
C35: Equipment | E35: £ | G35: -223374.3084 | K35: =-'Club & Hotel Input Sheet'!$I$62*K$6 -> -20400 | L35: =-'Club & Hotel Input Sheet'!$I$62*L$6 -> -20808 | M35: =-'Club & Hotel Input Sheet'!$I$62*M$6 -> -21224.16 | N35: =-'Club & Hotel Input Sheet'!$I$62*N$6 -> -21648.6432 | O35: =-'Club & Hotel Input Sheet'!$I$62*O$6 -> -22081.61606 | P35: =-'Club & Hotel Input Sheet'!$I$62*P$6 -> -22523.24839 | Q35: =-'Club & Hotel Input Sheet'!$I$62*Q$6 -> -22973.71335 | R35: =-'Club & Hotel Input Sheet'!$I$62*R$6 -> -23433.18762 | S35: =-'Club & Hotel Input Sheet'!$I$62*S$6 -> -23901.85137 | T35: =-'Club & Hotel Input Sheet'!$I$62*T$6 -> -24379.8884
B36: Total expenditure | E36: £ | G36: =SUM(G30:G35) -> -17357317.05 | K36: =SUM(K30:K35) -> -1566646.56 | L36: =SUM(L30:L35) -> -1618787.491 | M36: -1651163.241 | N36: -1684186.506 | O36: -1717870.236 | P36: -1752227.641 | Q36: -1787272.193 | R36: -1823017.637 | S36: -1859477.99 | T36: -1896667.55
B38: Terminal value | T38: =(T36+T26)/'Club & Hotel Input Sheet'!I$66 -> 11735706.25
A40: Free Cash Flow | E40: £ | G40: =SUM(J40:T40) -> 1667625.358 | J40: =J26+J36+J17+J14+J38+J15+J16 -> -16540000 | K40: =K26+K36+K17+K14+K38 -> 609594.84 | L40: 600978.7368 | M40: 612998.3115 | N40: 625258.2778 | O40: 637763.4433 | P40: 650518.7122 | Q40: =Q26+Q36+Q17+Q14+Q38 -> 663529.0864 | R40: 676799.6682 | S40: 690335.6615 | T40: =T26+T36+T17+T14+T38 -> 12439848.62
A41: IRR | B41: =IRR(J40:T40) -> 0.01148603021
A43: UPPER CASE
A44: Capital
B45: New capital cost | E45: £ | G45: =SUM(J45:T45) -> -10500000 | J45: =-'Club & Hotel Input Sheet'!J$13*'Club & Hotel Input Sheet'!J$10-'Club & Hotel Input Sheet'!J72 -> -10500000
B46: CIL/s.106/s.278 costs | E46: £ | G46: =SUM(J46:T46) -> -630000 | J46: =-'Club & Hotel Input Sheet'!J70 -> -630000
B47: Developers contingency | E47: £ | G47: -900000 | J47: =-'Club & Hotel Input Sheet'!J68 -> -900000
B48: Refurbishment | E48: £ | G48: =SUM(J48:T48) -> -3780000 | J48: =IF(J$10=1,0,-('Club & Hotel Input Sheet'!$I$18*'Club & Hotel Input Sheet'!$I$10*J$6)) -> -3780000 | K48: =IF(K$10=1,0,-('Club & Hotel Input Sheet'!$I$18*'Club & Hotel Input Sheet'!$I$10*K$6)) -> 0 | L48: =IF(L$10=1,0,-('Club & Hotel Input Sheet'!$I$18*'Club & Hotel Input Sheet'!$I$10*L$6)) -> 0 | M48: =IF(M$10=1,0,-('Club & Hotel Input Sheet'!$I$18*'Club & Hotel Input Sheet'!$I$10*M$6)) -> 0 | N48: =IF(N$10=1,0,-('Club & Hotel Input Sheet'!$I$18*'Club & Hotel Input Sheet'!$I$10*N$6)) -> 0 | O48: =IF(O$10=1,0,-('Club & Hotel Input Sheet'!$I$18*'Club & Hotel Input Sheet'!$I$10*O$6)) -> 0 | P48: =IF(P$10=1,0,-('Club & Hotel Input Sheet'!$I$18*'Club & Hotel Input Sheet'!$I$10*P$6)) -> 0 | Q48: =IF(Q$10=1,0,-('Club & Hotel Input Sheet'!$I$18*'Club & Hotel Input Sheet'!$I$10*Q$6)) -> 0 | R48: =IF(R$10=1,0,-('Club & Hotel Input Sheet'!$I$18*'Club & Hotel Input Sheet'!$I$10*R$6)) -> 0 | S48: =IF(S$10=1,0,-('Club & Hotel Input Sheet'!$I$18*'Club & Hotel Input Sheet'!$I$10*S$6)) -> 0 | T48: =IF(T$10=1,0,-('Club & Hotel Input Sheet'!$I$18*'Club & Hotel Input Sheet'!$I$10*T$6)) -> 0
G49: =SUM(G45:G48) -> -15810000
A51: Cash Flow Statement
B52: Revenue
C53: Accommodation | E53: £ | G53: =SUM(J53:T53) -> 3846505.591 | K53: =('Club & Hotel Input Sheet'!$J$23*'Club & Hotel Input Sheet'!$J$25*'Club & Hotel Input Sheet'!$J$26*'Club & Hotel Input Sheet'!$J$27)*K$6 -> 351288 | L53: =('Club & Hotel Input Sheet'!$J$23*'Club & Hotel Input Sheet'!$J$25*'Club & Hotel Input Sheet'!$J$26*'Club & Hotel Input Sheet'!$J$27)*L$6 -> 358313.76 | M53: =('Club & Hotel Input Sheet'!$J$23*'Club & Hotel Input Sheet'!$J$25*'Club & Hotel Input Sheet'!$J$26*'Club & Hotel Input Sheet'!$J$27)*M$6 -> 365480.0352 | N53: =('Club & Hotel Input Sheet'!$J$23*'Club & Hotel Input Sheet'!$J$25*'Club & Hotel Input Sheet'!$J$26*'Club & Hotel Input Sheet'!$J$27)*N$6 -> 372789.6359 | O53: =('Club & Hotel Input Sheet'!$J$23*'Club & Hotel Input Sheet'!$J$25*'Club & Hotel Input Sheet'!$J$26*'Club & Hotel Input Sheet'!$J$27)*O$6 -> 380245.4286 | P53: =('Club & Hotel Input Sheet'!$J$23*'Club & Hotel Input Sheet'!$J$25*'Club & Hotel Input Sheet'!$J$26*'Club & Hotel Input Sheet'!$J$27)*P$6 -> 387850.3372 | Q53: =('Club & Hotel Input Sheet'!$J$23*'Club & Hotel Input Sheet'!$J$25*'Club & Hotel Input Sheet'!$J$26*'Club & Hotel Input Sheet'!$J$27)*Q$6 -> 395607.3439 | R53: =('Club & Hotel Input Sheet'!$J$23*'Club & Hotel Input Sheet'!$J$25*'Club & Hotel Input Sheet'!$J$26*'Club & Hotel Input Sheet'!$J$27)*R$6 -> 403519.4908 | S53: =('Club & Hotel Input Sheet'!$J$23*'Club & Hotel Input Sheet'!$J$25*'Club & Hotel Input Sheet'!$J$26*'Club & Hotel Input Sheet'!$J$27)*S$6 -> 411589.8806 | T53: =('Club & Hotel Input Sheet'!$J$23*'Club & Hotel Input Sheet'!$J$25*'Club & Hotel Input Sheet'!$J$26*'Club & Hotel Input Sheet'!$J$27)*T$6 -> 419821.6782
C54: Room & equip hire | E54: £ | G54: =SUM(J54:T54) -> 9772625.992 | K54: =('Club & Hotel Input Sheet'!$J$30*'Club & Hotel Input Sheet'!$J$31*'Club & Hotel Input Sheet'!$J$32*'Club & Hotel Input Sheet'!$J$33)*K$6 -> 892500 | L54: =('Club & Hotel Input Sheet'!$J$30*'Club & Hotel Input Sheet'!$J$31*'Club & Hotel Input Sheet'!$J$32*'Club & Hotel Input Sheet'!$J$33)*L$6 -> 910350 | M54: =('Club & Hotel Input Sheet'!$J$30*'Club & Hotel Input Sheet'!$J$31*'Club & Hotel Input Sheet'!$J$32*'Club & Hotel Input Sheet'!$J$33)*M$6 -> 928557 | N54: =('Club & Hotel Input Sheet'!$J$30*'Club & Hotel Input Sheet'!$J$31*'Club & Hotel Input Sheet'!$J$32*'Club & Hotel Input Sheet'!$J$33)*N$6 -> 947128.14 | O54: =('Club & Hotel Input Sheet'!$J$30*'Club & Hotel Input Sheet'!$J$31*'Club & Hotel Input Sheet'!$J$32*'Club & Hotel Input Sheet'!$J$33)*O$6 -> 966070.7028 | P54: =('Club & Hotel Input Sheet'!$J$30*'Club & Hotel Input Sheet'!$J$31*'Club & Hotel Input Sheet'!$J$32*'Club & Hotel Input Sheet'!$J$33)*P$6 -> 985392.1169 | Q54: =('Club & Hotel Input Sheet'!$J$30*'Club & Hotel Input Sheet'!$J$31*'Club & Hotel Input Sheet'!$J$32*'Club & Hotel Input Sheet'!$J$33)*Q$6 -> 1005099.959 | R54: =('Club & Hotel Input Sheet'!$J$30*'Club & Hotel Input Sheet'!$J$31*'Club & Hotel Input Sheet'!$J$32*'Club & Hotel Input Sheet'!$J$33)*R$6 -> 1025201.958 | S54: =('Club & Hotel Input Sheet'!$J$30*'Club & Hotel Input Sheet'!$J$31*'Club & Hotel Input Sheet'!$J$32*'Club & Hotel Input Sheet'!$J$33)*S$6 -> 1045705.998 | T54: =('Club & Hotel Input Sheet'!$J$30*'Club & Hotel Input Sheet'!$J$31*'Club & Hotel Input Sheet'!$J$32*'Club & Hotel Input Sheet'!$J$33)*T$6 -> 1066620.117
C55: Restaurant | E55: £ | G55: 11727151.19 | K55: =('Club & Hotel Input Sheet'!$J$36*'Club & Hotel Input Sheet'!$J$38*'Club & Hotel Input Sheet'!$J$39*'Club & Hotel Input Sheet'!$J$40)*K$6 -> 1071000 | L55: =('Club & Hotel Input Sheet'!$J$36*'Club & Hotel Input Sheet'!$J$38*'Club & Hotel Input Sheet'!$J$39*'Club & Hotel Input Sheet'!$J$40)*L$6 -> 1092420 | M55: =('Club & Hotel Input Sheet'!$J$36*'Club & Hotel Input Sheet'!$J$38*'Club & Hotel Input Sheet'!$J$39*'Club & Hotel Input Sheet'!$J$40)*M$6 -> 1114268.4 | N55: =('Club & Hotel Input Sheet'!$J$36*'Club & Hotel Input Sheet'!$J$38*'Club & Hotel Input Sheet'!$J$39*'Club & Hotel Input Sheet'!$J$40)*N$6 -> 1136553.768 | O55: =('Club & Hotel Input Sheet'!$J$36*'Club & Hotel Input Sheet'!$J$38*'Club & Hotel Input Sheet'!$J$39*'Club & Hotel Input Sheet'!$J$40)*O$6 -> 1159284.843 | P55: =('Club & Hotel Input Sheet'!$J$36*'Club & Hotel Input Sheet'!$J$38*'Club & Hotel Input Sheet'!$J$39*'Club & Hotel Input Sheet'!$J$40)*P$6 -> 1182470.54 | Q55: =('Club & Hotel Input Sheet'!$J$36*'Club & Hotel Input Sheet'!$J$38*'Club & Hotel Input Sheet'!$J$39*'Club & Hotel Input Sheet'!$J$40)*Q$6 -> 1206119.951 | R55: =('Club & Hotel Input Sheet'!$J$36*'Club & Hotel Input Sheet'!$J$38*'Club & Hotel Input Sheet'!$J$39*'Club & Hotel Input Sheet'!$J$40)*R$6 -> 1230242.35 | S55: =('Club & Hotel Input Sheet'!$J$36*'Club & Hotel Input Sheet'!$J$38*'Club & Hotel Input Sheet'!$J$39*'Club & Hotel Input Sheet'!$J$40)*S$6 -> 1254847.197 | T55: =('Club & Hotel Input Sheet'!$J$36*'Club & Hotel Input Sheet'!$J$38*'Club & Hotel Input Sheet'!$J$39*'Club & Hotel Input Sheet'!$J$40)*T$6 -> 1279944.141
C56: Events | E56: £ | G56: 1116871.542 | K56: =('Club & Hotel Input Sheet'!$J$43*'Club & Hotel Input Sheet'!$J$44*'Club & Hotel Input Sheet'!$J$45)*K$6 -> 102000 | L56: =('Club & Hotel Input Sheet'!$J$43*'Club & Hotel Input Sheet'!$J$44*'Club & Hotel Input Sheet'!$J$45)*L$6 -> 104040 | M56: =('Club & Hotel Input Sheet'!$J$43*'Club & Hotel Input Sheet'!$J$44*'Club & Hotel Input Sheet'!$J$45)*M$6 -> 106120.8 | N56: =('Club & Hotel Input Sheet'!$J$43*'Club & Hotel Input Sheet'!$J$44*'Club & Hotel Input Sheet'!$J$45)*N$6 -> 108243.216 | O56: =('Club & Hotel Input Sheet'!$J$43*'Club & Hotel Input Sheet'!$J$44*'Club & Hotel Input Sheet'!$J$45)*O$6 -> 110408.0803 | P56: =('Club & Hotel Input Sheet'!$J$43*'Club & Hotel Input Sheet'!$J$44*'Club & Hotel Input Sheet'!$J$45)*P$6 -> 112616.2419 | Q56: =('Club & Hotel Input Sheet'!$J$43*'Club & Hotel Input Sheet'!$J$44*'Club & Hotel Input Sheet'!$J$45)*Q$6 -> 114868.5668 | R56: =('Club & Hotel Input Sheet'!$J$43*'Club & Hotel Input Sheet'!$J$44*'Club & Hotel Input Sheet'!$J$45)*R$6 -> 117165.9381 | S56: =('Club & Hotel Input Sheet'!$J$43*'Club & Hotel Input Sheet'!$J$44*'Club & Hotel Input Sheet'!$J$45)*S$6 -> 119509.2569 | T56: =('Club & Hotel Input Sheet'!$J$43*'Club & Hotel Input Sheet'!$J$44*'Club & Hotel Input Sheet'!$J$45)*T$6 -> 121899.442
B57: Total revenue | E57: £ | G57: =SUM(G53:G56) -> 26463154.32 | K57: =SUM(K53:K56) -> 2416788 | L57: =SUM(L53:L56) -> 2465123.76 | M57: 2514426.235 | N57: 2564714.76 | O57: 2616009.055 | P57: 2668329.236 | Q57: 2721695.821 | R57: 2776129.737 | S57: 2831652.332 | T57: 2888285.379
B60: Expenditure
C61: Cost of sales | E61: £ | G61: =SUM(J61:T61) -> -3518145.357 | K61: =-K55*'Club & Hotel Input Sheet'!$J$49 -> -321300 | L61: =-L55*'Club & Hotel Input Sheet'!$J$49 -> -327726 | M61: =-M55*'Club & Hotel Input Sheet'!$J$49 -> -334280.52 | N61: =-N55*'Club & Hotel Input Sheet'!$J$49 -> -340966.1304 | O61: =-O55*'Club & Hotel Input Sheet'!$J$49 -> -347785.453 | P61: =-P55*'Club & Hotel Input Sheet'!$J$49 -> -354741.1621 | Q61: =-Q55*'Club & Hotel Input Sheet'!$J$49 -> -361835.9853 | R61: =-R55*'Club & Hotel Input Sheet'!$J$49 -> -369072.705 | S61: =-S55*'Club & Hotel Input Sheet'!$J$49 -> -376454.1591 | T61: =-T55*'Club & Hotel Input Sheet'!$J$49 -> -383983.2423
C62: Staff costs | E62: £ | G62: =SUM(J62:T62) -> -9262104.01 | K62: =-K57*'Club & Hotel Input Sheet'!$J$51 -> -845875.8 | L62: =-L57*'Club & Hotel Input Sheet'!$J$51 -> -862793.316 | M62: =-M57*'Club & Hotel Input Sheet'!$J$51 -> -880049.1823 | N62: =-N57*'Club & Hotel Input Sheet'!$J$51 -> -897650.166 | O62: =-O57*'Club & Hotel Input Sheet'!$J$51 -> -915603.1693 | P62: =-P57*'Club & Hotel Input Sheet'!$J$51 -> -933915.2327 | Q62: =-Q57*'Club & Hotel Input Sheet'!$J$51 -> -952593.5373 | R62: =-R57*'Club & Hotel Input Sheet'!$J$51 -> -971645.4081 | S62: =-S57*'Club & Hotel Input Sheet'!$J$51 -> -991078.3162 | T62: =-T57*'Club & Hotel Input Sheet'!$J$51 -> -1010899.883
C63: Estates & FM | E63: £ | G63: -2814516.286 | K63: =-('Club & Hotel Input Sheet'!$J$53*'Club & Hotel Input Sheet'!$J$54)*K$6 -> -257040 | L63: =-('Club & Hotel Input Sheet'!$J$53*'Club & Hotel Input Sheet'!$J$54)*L$6 -> -262180.8 | M63: =-('Club & Hotel Input Sheet'!$J$53*'Club & Hotel Input Sheet'!$J$54)*M$6 -> -267424.416 | N63: =-('Club & Hotel Input Sheet'!$J$53*'Club & Hotel Input Sheet'!$J$54)*N$6 -> -272772.9043 | O63: =-('Club & Hotel Input Sheet'!$J$53*'Club & Hotel Input Sheet'!$J$54)*O$6 -> -278228.3624 | P63: =-('Club & Hotel Input Sheet'!$J$53*'Club & Hotel Input Sheet'!$J$54)*P$6 -> -283792.9297 | Q63: =-('Club & Hotel Input Sheet'!$J$53*'Club & Hotel Input Sheet'!$J$54)*Q$6 -> -289468.7882 | R63: =-('Club & Hotel Input Sheet'!$J$53*'Club & Hotel Input Sheet'!$J$54)*R$6 -> -295258.164 | S63: =-('Club & Hotel Input Sheet'!$J$53*'Club & Hotel Input Sheet'!$J$54)*S$6 -> -301163.3273 | T63: =-('Club & Hotel Input Sheet'!$J$53*'Club & Hotel Input Sheet'!$J$54)*T$6 -> -307186.5938
C64: Marketing | E64: £ | G64: -426348.6168 | K64: =-'Club & Hotel Input Sheet'!$J$57*K$6 -> -20400 | L64: =-'Club & Hotel Input Sheet'!$J$58*L$6 -> -41616 | M64: =-'Club & Hotel Input Sheet'!$J$58*M$6 -> -42448.32 | N64: =-'Club & Hotel Input Sheet'!$J$58*N$6 -> -43297.2864 | O64: =-'Club & Hotel Input Sheet'!$J$58*O$6 -> -44163.23213 | P64: =-'Club & Hotel Input Sheet'!$J$58*P$6 -> -45046.49677 | Q64: =-'Club & Hotel Input Sheet'!$J$58*Q$6 -> -45947.42671 | R64: =-'Club & Hotel Input Sheet'!$J$58*R$6 -> -46866.37524 | S64: =-'Club & Hotel Input Sheet'!$J$58*S$6 -> -47803.70274 | T64: =-'Club & Hotel Input Sheet'!$J$58*T$6 -> -48759.7768
C65: Promotions | E65: £ | G65: -1116871.542 | K65: =-('Club & Hotel Input Sheet'!$J$43*'Club & Hotel Input Sheet'!$J$44*'Club & Hotel Input Sheet'!$J$60)*K$6 -> -102000 | L65: =-('Club & Hotel Input Sheet'!$J$43*'Club & Hotel Input Sheet'!$J$44*'Club & Hotel Input Sheet'!$J$60)*L$6 -> -104040 | M65: =-('Club & Hotel Input Sheet'!$J$43*'Club & Hotel Input Sheet'!$J$44*'Club & Hotel Input Sheet'!$J$60)*M$6 -> -106120.8 | N65: =-('Club & Hotel Input Sheet'!$J$43*'Club & Hotel Input Sheet'!$J$44*'Club & Hotel Input Sheet'!$J$60)*N$6 -> -108243.216 | O65: =-('Club & Hotel Input Sheet'!$J$43*'Club & Hotel Input Sheet'!$J$44*'Club & Hotel Input Sheet'!$J$60)*O$6 -> -110408.0803 | P65: =-('Club & Hotel Input Sheet'!$J$43*'Club & Hotel Input Sheet'!$J$44*'Club & Hotel Input Sheet'!$J$60)*P$6 -> -112616.2419 | Q65: =-('Club & Hotel Input Sheet'!$J$43*'Club & Hotel Input Sheet'!$J$44*'Club & Hotel Input Sheet'!$J$60)*Q$6 -> -114868.5668 | R65: =-('Club & Hotel Input Sheet'!$J$43*'Club & Hotel Input Sheet'!$J$44*'Club & Hotel Input Sheet'!$J$60)*R$6 -> -117165.9381 | S65: =-('Club & Hotel Input Sheet'!$J$43*'Club & Hotel Input Sheet'!$J$44*'Club & Hotel Input Sheet'!$J$60)*S$6 -> -119509.2569 | T65: =-('Club & Hotel Input Sheet'!$J$43*'Club & Hotel Input Sheet'!$J$44*'Club & Hotel Input Sheet'!$J$60)*T$6 -> -121899.442
C66: Equipment | E66: £ | G66: -223374.3084 | K66: =-'Club & Hotel Input Sheet'!$J$62*K$6 -> -20400 | L66: =-'Club & Hotel Input Sheet'!$J$62*L$6 -> -20808 | M66: =-'Club & Hotel Input Sheet'!$J$62*M$6 -> -21224.16 | N66: =-'Club & Hotel Input Sheet'!$J$62*N$6 -> -21648.6432 | O66: =-'Club & Hotel Input Sheet'!$J$62*O$6 -> -22081.61606 | P66: =-'Club & Hotel Input Sheet'!$J$62*P$6 -> -22523.24839 | Q66: =-'Club & Hotel Input Sheet'!$J$62*Q$6 -> -22973.71335 | R66: =-'Club & Hotel Input Sheet'!$J$62*R$6 -> -23433.18762 | S66: =-'Club & Hotel Input Sheet'!$J$62*S$6 -> -23901.85137 | T66: =-'Club & Hotel Input Sheet'!$J$62*T$6 -> -24379.8884
B67: Total expenditure | E67: £ | G67: =SUM(G61:G66) -> -17361360.12 | K67: =SUM(K61:K66) -> -1567015.8 | L67: =SUM(L61:L66) -> -1619164.116 | M67: -1651547.398 | N67: -1684578.346 | O67: -1718269.913 | P67: -1752635.311 | Q67: -1787688.018 | R67: -1823441.778 | S67: -1859910.614 | T67: -1897108.826
B69: Terminal value | T69: =(T67+T57)/'Club & Hotel Input Sheet'!I$66 -> 16519609.21
A71: Free Cash Flow | E71: £ | G71: =SUM(J71:T71) -> 9811403.409 | J71: =J57+J67+J48+J45+J69+J46+J47 -> -15810000 | K71: =K57+K67+K48+K45+K69 -> 849772.2 | L71: 845959.644 | M71: 862878.8369 | N71: 880136.4136 | O71: 897739.1419 | P71: 915693.9247 | Q71: 934007.8032 | R71: 952687.9593 | S71: 971741.7185 | T71: =T57+T67+T48+T45+T69 -> 17510785.77
A72: IRR | B72: =IRR(J71:T71) -> 0.06045808996
A74: LOWER CASE
A75: Capital
B76: New capital cost | E76: £ | G76: =SUM(J76:T76) -> -11620000 | J76: =-'Club & Hotel Input Sheet'!K$13*'Club & Hotel Input Sheet'!K$10-'Club & Hotel Input Sheet'!K72 -> -11620000
B77: CIL/s.106/s.278 costs | E77: £ | G77: =SUM(J77:T77) -> -770000 | J77: =-'Club & Hotel Input Sheet'!K70 -> -770000
B78: Developers contingency | E78: £ | G78: -1100000 | J78: =-'Club & Hotel Input Sheet'!K68 -> -1100000
B79: Refurbishment | E79: £ | G79: =SUM(J79:T79) -> -3780000 | J79: =IF(J$10=1,0,-('Club & Hotel Input Sheet'!$K$18*'Club & Hotel Input Sheet'!$K$10*J$6)) -> -3780000 | K79: =IF(K$10=1,0,-('Club & Hotel Input Sheet'!$K$18*'Club & Hotel Input Sheet'!$K$10*K$6)) -> 0 | L79: =IF(L$10=1,0,-('Club & Hotel Input Sheet'!$K$18*'Club & Hotel Input Sheet'!$K$10*L$6)) -> 0 | M79: =IF(M$10=1,0,-('Club & Hotel Input Sheet'!$K$18*'Club & Hotel Input Sheet'!$K$10*M$6)) -> 0 | N79: =IF(N$10=1,0,-('Club & Hotel Input Sheet'!$K$18*'Club & Hotel Input Sheet'!$K$10*N$6)) -> 0 | O79: =IF(O$10=1,0,-('Club & Hotel Input Sheet'!$K$18*'Club & Hotel Input Sheet'!$K$10*O$6)) -> 0 | P79: =IF(P$10=1,0,-('Club & Hotel Input Sheet'!$K$18*'Club & Hotel Input Sheet'!$K$10*P$6)) -> 0 | Q79: =IF(Q$10=1,0,-('Club & Hotel Input Sheet'!$K$18*'Club & Hotel Input Sheet'!$K$10*Q$6)) -> 0 | R79: =IF(R$10=1,0,-('Club & Hotel Input Sheet'!$K$18*'Club & Hotel Input Sheet'!$K$10*R$6)) -> 0 | S79: =IF(S$10=1,0,-('Club & Hotel Input Sheet'!$K$18*'Club & Hotel Input Sheet'!$K$10*S$6)) -> 0 | T79: =IF(T$10=1,0,-('Club & Hotel Input Sheet'!$K$18*'Club & Hotel Input Sheet'!$K$10*T$6)) -> 0
G80: =SUM(G76:G79) -> -17270000
A82: Cash Flow Statement
B83: Revenue
C84: Accommodation | E84: £ | G84: =SUM(J84:T84) -> 3269529.752 | K84: =('Club & Hotel Input Sheet'!$K$23*'Club & Hotel Input Sheet'!$K$25*'Club & Hotel Input Sheet'!$K$26*'Club & Hotel Input Sheet'!$K$27)*K$6 -> 298594.8 | L84: =('Club & Hotel Input Sheet'!$K$23*'Club & Hotel Input Sheet'!$K$25*'Club & Hotel Input Sheet'!$K$26*'Club & Hotel Input Sheet'!$K$27)*L$6 -> 304566.696 | M84: =('Club & Hotel Input Sheet'!$K$23*'Club & Hotel Input Sheet'!$K$25*'Club & Hotel Input Sheet'!$K$26*'Club & Hotel Input Sheet'!$K$27)*M$6 -> 310658.0299 | N84: =('Club & Hotel Input Sheet'!$K$23*'Club & Hotel Input Sheet'!$K$25*'Club & Hotel Input Sheet'!$K$26*'Club & Hotel Input Sheet'!$K$27)*N$6 -> 316871.1905 | O84: =('Club & Hotel Input Sheet'!$K$23*'Club & Hotel Input Sheet'!$K$25*'Club & Hotel Input Sheet'!$K$26*'Club & Hotel Input Sheet'!$K$27)*O$6 -> 323208.6143 | P84: =('Club & Hotel Input Sheet'!$K$23*'Club & Hotel Input Sheet'!$K$25*'Club & Hotel Input Sheet'!$K$26*'Club & Hotel Input Sheet'!$K$27)*P$6 -> 329672.7866 | Q84: =('Club & Hotel Input Sheet'!$K$23*'Club & Hotel Input Sheet'!$K$25*'Club & Hotel Input Sheet'!$K$26*'Club & Hotel Input Sheet'!$K$27)*Q$6 -> 336266.2423 | R84: =('Club & Hotel Input Sheet'!$K$23*'Club & Hotel Input Sheet'!$K$25*'Club & Hotel Input Sheet'!$K$26*'Club & Hotel Input Sheet'!$K$27)*R$6 -> 342991.5672 | S84: =('Club & Hotel Input Sheet'!$K$23*'Club & Hotel Input Sheet'!$K$25*'Club & Hotel Input Sheet'!$K$26*'Club & Hotel Input Sheet'!$K$27)*S$6 -> 349851.3985 | T84: =('Club & Hotel Input Sheet'!$K$23*'Club & Hotel Input Sheet'!$K$25*'Club & Hotel Input Sheet'!$K$26*'Club & Hotel Input Sheet'!$K$27)*T$6 -> 356848.4265
C85: Room & equip hire | E85: £ | G85: =SUM(J85:T85) -> 8990815.913 | K85: =('Club & Hotel Input Sheet'!$K$30*'Club & Hotel Input Sheet'!$K$31*'Club & Hotel Input Sheet'!$K$32*'Club & Hotel Input Sheet'!$K$33)*K$6 -> 821100 | L85: =('Club & Hotel Input Sheet'!$K$30*'Club & Hotel Input Sheet'!$K$31*'Club & Hotel Input Sheet'!$K$32*'Club & Hotel Input Sheet'!$K$33)*L$6 -> 837522 | M85: =('Club & Hotel Input Sheet'!$K$30*'Club & Hotel Input Sheet'!$K$31*'Club & Hotel Input Sheet'!$K$32*'Club & Hotel Input Sheet'!$K$33)*M$6 -> 854272.44 | N85: =('Club & Hotel Input Sheet'!$K$30*'Club & Hotel Input Sheet'!$K$31*'Club & Hotel Input Sheet'!$K$32*'Club & Hotel Input Sheet'!$K$33)*N$6 -> 871357.8888 | O85: =('Club & Hotel Input Sheet'!$K$30*'Club & Hotel Input Sheet'!$K$31*'Club & Hotel Input Sheet'!$K$32*'Club & Hotel Input Sheet'!$K$33)*O$6 -> 888785.0466 | P85: =('Club & Hotel Input Sheet'!$K$30*'Club & Hotel Input Sheet'!$K$31*'Club & Hotel Input Sheet'!$K$32*'Club & Hotel Input Sheet'!$K$33)*P$6 -> 906560.7475 | Q85: =('Club & Hotel Input Sheet'!$K$30*'Club & Hotel Input Sheet'!$K$31*'Club & Hotel Input Sheet'!$K$32*'Club & Hotel Input Sheet'!$K$33)*Q$6 -> 924691.9625 | R85: =('Club & Hotel Input Sheet'!$K$30*'Club & Hotel Input Sheet'!$K$31*'Club & Hotel Input Sheet'!$K$32*'Club & Hotel Input Sheet'!$K$33)*R$6 -> 943185.8017 | S85: =('Club & Hotel Input Sheet'!$K$30*'Club & Hotel Input Sheet'!$K$31*'Club & Hotel Input Sheet'!$K$32*'Club & Hotel Input Sheet'!$K$33)*S$6 -> 962049.5177 | T85: =('Club & Hotel Input Sheet'!$K$30*'Club & Hotel Input Sheet'!$K$31*'Club & Hotel Input Sheet'!$K$32*'Club & Hotel Input Sheet'!$K$33)*T$6 -> 981290.5081
C86: Restaurant | E86: £ | G86: 7818100.794 | K86: =('Club & Hotel Input Sheet'!$K$36*'Club & Hotel Input Sheet'!$K$38*'Club & Hotel Input Sheet'!$K$39*'Club & Hotel Input Sheet'!$K$40)*K$6 -> 714000 | L86: =('Club & Hotel Input Sheet'!$K$36*'Club & Hotel Input Sheet'!$K$38*'Club & Hotel Input Sheet'!$K$39*'Club & Hotel Input Sheet'!$K$40)*L$6 -> 728280 | M86: =('Club & Hotel Input Sheet'!$K$36*'Club & Hotel Input Sheet'!$K$38*'Club & Hotel Input Sheet'!$K$39*'Club & Hotel Input Sheet'!$K$40)*M$6 -> 742845.6 | N86: =('Club & Hotel Input Sheet'!$K$36*'Club & Hotel Input Sheet'!$K$38*'Club & Hotel Input Sheet'!$K$39*'Club & Hotel Input Sheet'!$K$40)*N$6 -> 757702.512 | O86: =('Club & Hotel Input Sheet'!$K$36*'Club & Hotel Input Sheet'!$K$38*'Club & Hotel Input Sheet'!$K$39*'Club & Hotel Input Sheet'!$K$40)*O$6 -> 772856.5622 | P86: =('Club & Hotel Input Sheet'!$K$36*'Club & Hotel Input Sheet'!$K$38*'Club & Hotel Input Sheet'!$K$39*'Club & Hotel Input Sheet'!$K$40)*P$6 -> 788313.6935 | Q86: =('Club & Hotel Input Sheet'!$K$36*'Club & Hotel Input Sheet'!$K$38*'Club & Hotel Input Sheet'!$K$39*'Club & Hotel Input Sheet'!$K$40)*Q$6 -> 804079.9674 | R86: =('Club & Hotel Input Sheet'!$K$36*'Club & Hotel Input Sheet'!$K$38*'Club & Hotel Input Sheet'!$K$39*'Club & Hotel Input Sheet'!$K$40)*R$6 -> 820161.5667 | S86: =('Club & Hotel Input Sheet'!$K$36*'Club & Hotel Input Sheet'!$K$38*'Club & Hotel Input Sheet'!$K$39*'Club & Hotel Input Sheet'!$K$40)*S$6 -> 836564.798 | T86: =('Club & Hotel Input Sheet'!$K$36*'Club & Hotel Input Sheet'!$K$38*'Club & Hotel Input Sheet'!$K$39*'Club & Hotel Input Sheet'!$K$40)*T$6 -> 853296.094
C87: Events | E87: £ | G87: 1116871.542 | K87: =('Club & Hotel Input Sheet'!$K$43*'Club & Hotel Input Sheet'!$K$44*'Club & Hotel Input Sheet'!$K$45)*K$6 -> 102000 | L87: =('Club & Hotel Input Sheet'!$K$43*'Club & Hotel Input Sheet'!$K$44*'Club & Hotel Input Sheet'!$K$45)*L$6 -> 104040 | M87: =('Club & Hotel Input Sheet'!$K$43*'Club & Hotel Input Sheet'!$K$44*'Club & Hotel Input Sheet'!$K$45)*M$6 -> 106120.8 | N87: =('Club & Hotel Input Sheet'!$K$43*'Club & Hotel Input Sheet'!$K$44*'Club & Hotel Input Sheet'!$K$45)*N$6 -> 108243.216 | O87: =('Club & Hotel Input Sheet'!$K$43*'Club & Hotel Input Sheet'!$K$44*'Club & Hotel Input Sheet'!$K$45)*O$6 -> 110408.0803 | P87: =('Club & Hotel Input Sheet'!$K$43*'Club & Hotel Input Sheet'!$K$44*'Club & Hotel Input Sheet'!$K$45)*P$6 -> 112616.2419 | Q87: =('Club & Hotel Input Sheet'!$K$43*'Club & Hotel Input Sheet'!$K$44*'Club & Hotel Input Sheet'!$K$45)*Q$6 -> 114868.5668 | R87: =('Club & Hotel Input Sheet'!$K$43*'Club & Hotel Input Sheet'!$K$44*'Club & Hotel Input Sheet'!$K$45)*R$6 -> 117165.9381 | S87: =('Club & Hotel Input Sheet'!$K$43*'Club & Hotel Input Sheet'!$K$44*'Club & Hotel Input Sheet'!$K$45)*S$6 -> 119509.2569 | T87: =('Club & Hotel Input Sheet'!$K$43*'Club & Hotel Input Sheet'!$K$44*'Club & Hotel Input Sheet'!$K$45)*T$6 -> 121899.442
B88: Total revenue | E88: £ | G88: =SUM(G84:G87) -> 21195318 | K88: =SUM(K84:K87) -> 1935694.8 | L88: =SUM(L84:L87) -> 1974408.696 | M88: 2013896.87 | N88: 2054174.807 | O88: 2095258.303 | P88: 2137163.47 | Q88: 2179906.739 | R88: 2223504.874 | S88: 2267974.971 | T88: 2313334.471
B91: Expenditure
C92: Cost of sales | E92: £ | G92: =SUM(J92:T92) -> -2736335.278 | K92: =-K86*'Club & Hotel Input Sheet'!$K$49 -> -249900 | L92: =-L86*'Club & Hotel Input Sheet'!$K$49 -> -254898 | M92: =-M86*'Club & Hotel Input Sheet'!$K$49 -> -259995.96 | N92: =-N86*'Club & Hotel Input Sheet'!$K$49 -> -265195.8792 | O92: =-O86*'Club & Hotel Input Sheet'!$K$49 -> -270499.7968 | P92: =-P86*'Club & Hotel Input Sheet'!$K$49 -> -275909.7927 | Q92: =-Q86*'Club & Hotel Input Sheet'!$K$49 -> -281427.9886 | R92: =-R86*'Club & Hotel Input Sheet'!$K$49 -> -287056.5483 | S92: =-S86*'Club & Hotel Input Sheet'!$K$49 -> -292797.6793 | T92: =-T86*'Club & Hotel Input Sheet'!$K$49 -> -298653.6329
C93: Staff costs | E93: £ | G93: =SUM(J93:T93) -> -9537893.1 | K93: =-K88*'Club & Hotel Input Sheet'!$K$51 -> -871062.66 | L93: =-L88*'Club & Hotel Input Sheet'!$K$51 -> -888483.9132 | M93: =-M88*'Club & Hotel Input Sheet'!$K$51 -> -906253.5915 | N93: =-N88*'Club & Hotel Input Sheet'!$K$51 -> -924378.6633 | O93: =-O88*'Club & Hotel Input Sheet'!$K$51 -> -942866.2366 | P93: =-P88*'Club & Hotel Input Sheet'!$K$51 -> -961723.5613 | Q93: =-Q88*'Club & Hotel Input Sheet'!$K$51 -> -980958.0325 | R93: =-R88*'Club & Hotel Input Sheet'!$K$51 -> -1000577.193 | S93: =-S88*'Club & Hotel Input Sheet'!$K$51 -> -1020588.737 | T93: =-T88*'Club & Hotel Input Sheet'!$K$51 -> -1041000.512
C94: Estates & FM | E94: £ | G94: -3439964.349 | K94: =-('Club & Hotel Input Sheet'!$K$53*'Club & Hotel Input Sheet'!$K$54)*K$6 -> -314160 | L94: =-('Club & Hotel Input Sheet'!$K$53*'Club & Hotel Input Sheet'!$K$54)*L$6 -> -320443.2 | M94: =-('Club & Hotel Input Sheet'!$K$53*'Club & Hotel Input Sheet'!$K$54)*M$6 -> -326852.064 | N94: =-('Club & Hotel Input Sheet'!$K$53*'Club & Hotel Input Sheet'!$K$54)*N$6 -> -333389.1053 | O94: =-('Club & Hotel Input Sheet'!$K$53*'Club & Hotel Input Sheet'!$K$54)*O$6 -> -340056.8874 | P94: =-('Club & Hotel Input Sheet'!$K$53*'Club & Hotel Input Sheet'!$K$54)*P$6 -> -346858.0251 | Q94: =-('Club & Hotel Input Sheet'!$K$53*'Club & Hotel Input Sheet'!$K$54)*Q$6 -> -353795.1856 | R94: =-('Club & Hotel Input Sheet'!$K$53*'Club & Hotel Input Sheet'!$K$54)*R$6 -> -360871.0893 | S94: =-('Club & Hotel Input Sheet'!$K$53*'Club & Hotel Input Sheet'!$K$54)*S$6 -> -368088.5111 | T94: =-('Club & Hotel Input Sheet'!$K$53*'Club & Hotel Input Sheet'!$K$54)*T$6 -> -375450.2814
C95: Marketing | E95: £ | G95: -426348.6168 | K95: =-'Club & Hotel Input Sheet'!$K$57*K$6 -> -20400 | L95: =-'Club & Hotel Input Sheet'!$K$58*L$6 -> -41616 | M95: =-'Club & Hotel Input Sheet'!$K$58*M$6 -> -42448.32 | N95: =-'Club & Hotel Input Sheet'!$K$58*N$6 -> -43297.2864 | O95: =-'Club & Hotel Input Sheet'!$K$58*O$6 -> -44163.23213 | P95: =-'Club & Hotel Input Sheet'!$K$58*P$6 -> -45046.49677 | Q95: =-'Club & Hotel Input Sheet'!$K$58*Q$6 -> -45947.42671 | R95: =-'Club & Hotel Input Sheet'!$K$58*R$6 -> -46866.37524 | S95: =-'Club & Hotel Input Sheet'!$K$58*S$6 -> -47803.70274 | T95: =-'Club & Hotel Input Sheet'!$K$58*T$6 -> -48759.7768
C96: Promotions | E96: £ | G96: -1116871.542 | K96: =-('Club & Hotel Input Sheet'!$K$43*'Club & Hotel Input Sheet'!$K$44*'Club & Hotel Input Sheet'!$K$60)*K$6 -> -102000 | L96: =-('Club & Hotel Input Sheet'!$K$43*'Club & Hotel Input Sheet'!$K$44*'Club & Hotel Input Sheet'!$K$60)*L$6 -> -104040 | M96: =-('Club & Hotel Input Sheet'!$K$43*'Club & Hotel Input Sheet'!$K$44*'Club & Hotel Input Sheet'!$K$60)*M$6 -> -106120.8 | N96: =-('Club & Hotel Input Sheet'!$K$43*'Club & Hotel Input Sheet'!$K$44*'Club & Hotel Input Sheet'!$K$60)*N$6 -> -108243.216 | O96: =-('Club & Hotel Input Sheet'!$K$43*'Club & Hotel Input Sheet'!$K$44*'Club & Hotel Input Sheet'!$K$60)*O$6 -> -110408.0803 | P96: =-('Club & Hotel Input Sheet'!$K$43*'Club & Hotel Input Sheet'!$K$44*'Club & Hotel Input Sheet'!$K$60)*P$6 -> -112616.2419 | Q96: =-('Club & Hotel Input Sheet'!$K$43*'Club & Hotel Input Sheet'!$K$44*'Club & Hotel Input Sheet'!$K$60)*Q$6 -> -114868.5668 | R96: =-('Club & Hotel Input Sheet'!$K$43*'Club & Hotel Input Sheet'!$K$44*'Club & Hotel Input Sheet'!$K$60)*R$6 -> -117165.9381 | S96: =-('Club & Hotel Input Sheet'!$K$43*'Club & Hotel Input Sheet'!$K$44*'Club & Hotel Input Sheet'!$K$60)*S$6 -> -119509.2569 | T96: =-('Club & Hotel Input Sheet'!$K$43*'Club & Hotel Input Sheet'!$K$44*'Club & Hotel Input Sheet'!$K$60)*T$6 -> -121899.442
C97: Equipment | E97: £ | G97: -223374.3084 | K97: =-'Club & Hotel Input Sheet'!$K$62*K$6 -> -20400 | L97: =-'Club & Hotel Input Sheet'!$K$62*L$6 -> -20808 | M97: =-'Club & Hotel Input Sheet'!$K$62*M$6 -> -21224.16 | N97: =-'Club & Hotel Input Sheet'!$K$62*N$6 -> -21648.6432 | O97: =-'Club & Hotel Input Sheet'!$K$62*O$6 -> -22081.61606 | P97: =-'Club & Hotel Input Sheet'!$K$62*P$6 -> -22523.24839 | Q97: =-'Club & Hotel Input Sheet'!$K$62*Q$6 -> -22973.71335 | R97: =-'Club & Hotel Input Sheet'!$K$62*R$6 -> -23433.18762 | S97: =-'Club & Hotel Input Sheet'!$K$62*S$6 -> -23901.85137 | T97: =-'Club & Hotel Input Sheet'!$K$62*T$6 -> -24379.8884
B98: Total expenditure | E98: £ | G98: =SUM(G92:G97) -> -17480787.19 | K98: =SUM(K92:K97) -> -1577922.66 | L98: =SUM(L92:L97) -> -1630289.113 | M98: -1662894.895 | N98: -1696152.793 | O98: -1730075.849 | P98: -1764677.366 | Q98: -1799970.914 | R98: -1835970.332 | S98: -1872689.738 | T98: -1910143.533
B100: Terminal value | T100: =(T98+T88)/'Club & Hotel Input Sheet'!I$66 -> 6719848.956
A102: Free Cash Flow | E102: £ | G102: =SUM(J102:T102) -> -6835620.238 | J102: =J88+J98+J79+J76+J100+J77+J78 -> -17270000 | K102: =K88+K98+K79+K76+K100 -> 357772.14 | L102: 344119.5828 | M102: 351001.9745 | N102: 358022.0139 | O102: 365182.4542 | P102: 372486.1033 | Q102: 379935.8254 | R102: 387534.5419 | S102: 395285.2327 | T102: =T88+T98+T79+T76+T100 -> 7123039.894
A103: IRR | B103: =IRR(J102:T102) -> -0.05662810881

Sheet Hotel Workings Sheet (hidden)
A1: Plot A Analysis - Option 2: Hotel
A2: Workings Sheet
E4: Units | F4: Constant | G4: Total | H4: Sparkline | J4: 0 | K4: 1 | L4: 2 | M4: 3 | N4: 4 | O4: 5 | P4: 6 | Q4: 7 | R4: 8 | S4: 9 | T4: 10
A6: Inflation index | E6: % | F6: ='Club & Hotel Input Sheet'!G65 -> 0.02 | J6: =(1+'Club & Hotel Input Sheet'!$G65)^J4 -> 1 | K6: =(1+'Club & Hotel Input Sheet'!$G65)^K4 -> 1.02 | L6: =(1+'Club & Hotel Input Sheet'!$G65)^L4 -> 1.0404 | M6: =(1+'Club & Hotel Input Sheet'!$G65)^M4 -> 1.061208 | N6: =(1+'Club & Hotel Input Sheet'!$G65)^N4 -> 1.08243216 | O6: =(1+'Club & Hotel Input Sheet'!$G65)^O4 -> 1.104080803 | P6: =(1+'Club & Hotel Input Sheet'!$G65)^P4 -> 1.126162419 | Q6: =(1+'Club & Hotel Input Sheet'!$G65)^Q4 -> 1.148685668 | R6: =(1+'Club & Hotel Input Sheet'!$G65)^R4 -> 1.171659381 | S6: =(1+'Club & Hotel Input Sheet'!$G65)^S4 -> 1.195092569 | T6: =(1+'Club & Hotel Input Sheet'!$G65)^T4 -> 1.21899442
A9: Refurbishment | J9: =IF(J4='Club & Hotel Input Sheet'!$G17,"Yes","No") -> Yes | K9: =IF(K4='Club & Hotel Input Sheet'!$G17,"Yes","No") -> No | L9: =IF(L4='Club & Hotel Input Sheet'!$G17,"Yes","No") -> No | M9: =IF(M4='Club & Hotel Input Sheet'!$G17,"Yes","No") -> No | N9: =IF(N4='Club & Hotel Input Sheet'!$G17,"Yes","No") -> No | O9: =IF(O4='Club & Hotel Input Sheet'!$G17,"Yes","No") -> No | P9: =IF(P4='Club & Hotel Input Sheet'!$G17,"Yes","No") -> No | Q9: =IF(Q4='Club & Hotel Input Sheet'!$G17,"Yes","No") -> No | R9: =IF(R4='Club & Hotel Input Sheet'!$G17,"Yes","No") -> No | S9: =IF(S4='Club & Hotel Input Sheet'!$G17,"Yes","No") -> No | T9: =IF(T4='Club & Hotel Input Sheet'!$G17,"Yes","No") -> No
A10: Refurbishment factor | J10: =IF(J9="No",1,0.5) -> 0.5 | K10: =IF(K9="No",1,0.5) -> 1 | L10: 1 | M10: 1 | N10: 1 | O10: 1 | P10: 1 | Q10: 1 | R10: 1 | S10: 1 | T10: 1
A12: BASE CASE
A13: Capital
B14: New capital cost | E14: £ | G14: =SUM(J14:T14) -> -23660000 | J14: =-'Club & Hotel Input Sheet'!I$14*'Club & Hotel Input Sheet'!I$11-'Club & Hotel Input Sheet'!I72 -> -23660000
B15: CIL/s.106/s.278 costs | E15: £ | G15: =SUM(J15:T15) -> -700000 | J15: =-'Club & Hotel Input Sheet'!I70 -> -700000
B16: Developers contingency | E16: £ | G16: -1000000 | J16: =-'Club & Hotel Input Sheet'!I68 -> -1000000
B17: Refurbishment | E17: £ | G17: -3780000 | J17: =IF(J$10=1,0,-('Club & Hotel Input Sheet'!$I$18*'Club & Hotel Input Sheet'!$I$10*J$6)) -> -3780000 | K17: =IF(K$10=1,0,-('Club & Hotel Input Sheet'!$I$18*'Club & Hotel Input Sheet'!$I$10*K$6)) -> 0 | L17: =IF(L$10=1,0,-('Club & Hotel Input Sheet'!$I$18*'Club & Hotel Input Sheet'!$I$10*L$6)) -> 0 | M17: =IF(M$10=1,0,-('Club & Hotel Input Sheet'!$I$18*'Club & Hotel Input Sheet'!$I$10*M$6)) -> 0 | N17: =IF(N$10=1,0,-('Club & Hotel Input Sheet'!$I$18*'Club & Hotel Input Sheet'!$I$10*N$6)) -> 0 | O17: =IF(O$10=1,0,-('Club & Hotel Input Sheet'!$I$18*'Club & Hotel Input Sheet'!$I$10*O$6)) -> 0 | P17: =IF(P$10=1,0,-('Club & Hotel Input Sheet'!$I$18*'Club & Hotel Input Sheet'!$I$10*P$6)) -> 0 | Q17: =IF(Q$10=1,0,-('Club & Hotel Input Sheet'!$I$18*'Club & Hotel Input Sheet'!$I$11*Q$6)) -> 0 | R17: =IF(R$10=1,0,-('Club & Hotel Input Sheet'!$I$18*'Club & Hotel Input Sheet'!$I$10*R$6)) -> 0 | S17: =IF(S$10=1,0,-('Club & Hotel Input Sheet'!$I$18*'Club & Hotel Input Sheet'!$I$10*S$6)) -> 0 | T17: =IF(T$10=1,0,-('Club & Hotel Input Sheet'!$I$18*'Club & Hotel Input Sheet'!$I$10*T$6)) -> 0
G18: =SUM(G14:G17) -> -29140000
A20: Cash Flow Statement
B21: Revenue
C22: Accommodation | E22: £ | G22: =SUM(J22:T22) -> 74125368.15 | K22: =('Club & Hotel Input Sheet'!$I$24*'Club & Hotel Input Sheet'!$I$25*'Club & Hotel Input Sheet'!$I$26*'Club & Hotel Input Sheet'!$I$27)*K$6 -> 6769612.5 | L22: =('Club & Hotel Input Sheet'!$I$24*'Club & Hotel Input Sheet'!$I$25*'Club & Hotel Input Sheet'!$I$26*'Club & Hotel Input Sheet'!$I$27)*L$6 -> 6905004.75 | M22: =('Club & Hotel Input Sheet'!$I$24*'Club & Hotel Input Sheet'!$I$25*'Club & Hotel Input Sheet'!$I$26*'Club & Hotel Input Sheet'!$I$27)*M$6 -> 7043104.845 | N22: =('Club & Hotel Input Sheet'!$I$24*'Club & Hotel Input Sheet'!$I$25*'Club & Hotel Input Sheet'!$I$26*'Club & Hotel Input Sheet'!$I$27)*N$6 -> 7183966.942 | O22: =('Club & Hotel Input Sheet'!$I$24*'Club & Hotel Input Sheet'!$I$25*'Club & Hotel Input Sheet'!$I$26*'Club & Hotel Input Sheet'!$I$27)*O$6 -> 7327646.281 | P22: =('Club & Hotel Input Sheet'!$I$24*'Club & Hotel Input Sheet'!$I$25*'Club & Hotel Input Sheet'!$I$26*'Club & Hotel Input Sheet'!$I$27)*P$6 -> 7474199.206 | Q22: =('Club & Hotel Input Sheet'!$I$24*'Club & Hotel Input Sheet'!$I$25*'Club & Hotel Input Sheet'!$I$26*'Club & Hotel Input Sheet'!$I$27)*Q$6 -> 7623683.19 | R22: =('Club & Hotel Input Sheet'!$I$24*'Club & Hotel Input Sheet'!$I$25*'Club & Hotel Input Sheet'!$I$26*'Club & Hotel Input Sheet'!$I$27)*R$6 -> 7776156.854 | S22: =('Club & Hotel Input Sheet'!$I$24*'Club & Hotel Input Sheet'!$I$25*'Club & Hotel Input Sheet'!$I$26*'Club & Hotel Input Sheet'!$I$27)*S$6 -> 7931679.991 | T22: =('Club & Hotel Input Sheet'!$I$24*'Club & Hotel Input Sheet'!$I$25*'Club & Hotel Input Sheet'!$I$26*'Club & Hotel Input Sheet'!$I$27)*T$6 -> 8090313.591
C23: Room & equip hire | E23: £ | G23: =SUM(J23:T23) -> 0
C24: Restaurant | E24: £ | G24: 19545251.98 | K24: =('Club & Hotel Input Sheet'!$I$37*'Club & Hotel Input Sheet'!$I$38*'Club & Hotel Input Sheet'!$I$39*'Club & Hotel Input Sheet'!$I$40)*K$6 -> 1785000 | L24: =('Club & Hotel Input Sheet'!$I$37*'Club & Hotel Input Sheet'!$I$38*'Club & Hotel Input Sheet'!$I$39*'Club & Hotel Input Sheet'!$I$40)*L$6 -> 1820700 | M24: =('Club & Hotel Input Sheet'!$I$37*'Club & Hotel Input Sheet'!$I$38*'Club & Hotel Input Sheet'!$I$39*'Club & Hotel Input Sheet'!$I$40)*M$6 -> 1857114 | N24: =('Club & Hotel Input Sheet'!$I$37*'Club & Hotel Input Sheet'!$I$38*'Club & Hotel Input Sheet'!$I$39*'Club & Hotel Input Sheet'!$I$40)*N$6 -> 1894256.28 | O24: =('Club & Hotel Input Sheet'!$I$37*'Club & Hotel Input Sheet'!$I$38*'Club & Hotel Input Sheet'!$I$39*'Club & Hotel Input Sheet'!$I$40)*O$6 -> 1932141.406 | P24: =('Club & Hotel Input Sheet'!$I$37*'Club & Hotel Input Sheet'!$I$38*'Club & Hotel Input Sheet'!$I$39*'Club & Hotel Input Sheet'!$I$40)*P$6 -> 1970784.234 | Q24: =('Club & Hotel Input Sheet'!$I$37*'Club & Hotel Input Sheet'!$I$38*'Club & Hotel Input Sheet'!$I$39*'Club & Hotel Input Sheet'!$I$40)*Q$6 -> 2010199.918 | R24: =('Club & Hotel Input Sheet'!$I$37*'Club & Hotel Input Sheet'!$I$38*'Club & Hotel Input Sheet'!$I$39*'Club & Hotel Input Sheet'!$I$40)*R$6 -> 2050403.917 | S24: =('Club & Hotel Input Sheet'!$I$37*'Club & Hotel Input Sheet'!$I$38*'Club & Hotel Input Sheet'!$I$39*'Club & Hotel Input Sheet'!$I$40)*S$6 -> 2091411.995 | T24: =('Club & Hotel Input Sheet'!$I$37*'Club & Hotel Input Sheet'!$I$38*'Club & Hotel Input Sheet'!$I$39*'Club & Hotel Input Sheet'!$I$40)*T$6 -> 2133240.235
C25: Events | E25: £ | G25: 0
B26: Total revenue | E26: £ | G26: =SUM(G22:G25) -> 93670620.14 | K26: =SUM(K22:K25) -> 8554612.5 | L26: 8725704.75 | M26: 8900218.845 | N26: 9078223.222 | O26: 9259787.686 | P26: 9444983.44 | Q26: 9633883.109 | R26: 9826560.771 | S26: 10023091.99 | T26: 10223553.83
B29: Expenditure
C30: Cost of sales | E30: £ | G30: =SUM(J30:T30) -> -5863575.595 | K30: =-K24*'Club & Hotel Input Sheet'!$I$49 -> -535500 | L30: =-L24*'Club & Hotel Input Sheet'!$I$49 -> -546210 | M30: =-M24*'Club & Hotel Input Sheet'!$I$49 -> -557134.2 | N30: =-N24*'Club & Hotel Input Sheet'!$I$49 -> -568276.884 | O30: =-O24*'Club & Hotel Input Sheet'!$I$49 -> -579642.4217 | P30: =-P24*'Club & Hotel Input Sheet'!$I$49 -> -591235.2701 | Q30: =-Q24*'Club & Hotel Input Sheet'!$I$49 -> -603059.9755 | R30: =-R24*'Club & Hotel Input Sheet'!$I$49 -> -615121.175 | S30: =-S24*'Club & Hotel Input Sheet'!$I$49 -> -627423.5985 | T30: =-T24*'Club & Hotel Input Sheet'!$I$49 -> -639972.0705
C31: Staff costs | E31: £ | G31: =SUM(J31:T31) -> -37468248.05 | K31: =-K26*'Club & Hotel Input Sheet'!$I$51 -> -3421845 | L31: =-L26*'Club & Hotel Input Sheet'!$I$51 -> -3490281.9 | M31: =-M26*'Club & Hotel Input Sheet'!$I$51 -> -3560087.538 | N31: =-N26*'Club & Hotel Input Sheet'!$I$51 -> -3631289.289 | O31: =-O26*'Club & Hotel Input Sheet'!$I$51 -> -3703915.075 | P31: =-P26*'Club & Hotel Input Sheet'!$I$51 -> -3777993.376 | Q31: =-Q26*'Club & Hotel Input Sheet'!$I$51 -> -3853553.244 | R31: =-R26*'Club & Hotel Input Sheet'!$I$51 -> -3930624.308 | S31: =-S26*'Club & Hotel Input Sheet'!$I$51 -> -4009236.795 | T31: =-T26*'Club & Hotel Input Sheet'!$I$51 -> -4089421.53
C32: Estates & FM | E32: £ | G32: -12508961.27 | K32: =-('Club & Hotel Input Sheet'!$I$53*'Club & Hotel Input Sheet'!$I$55)*K$6 -> -1142400 | L32: =-('Club & Hotel Input Sheet'!$I$53*'Club & Hotel Input Sheet'!$I$55)*L$6 -> -1165248 | M32: =-('Club & Hotel Input Sheet'!$I$53*'Club & Hotel Input Sheet'!$I$55)*M$6 -> -1188552.96 | N32: =-('Club & Hotel Input Sheet'!$I$53*'Club & Hotel Input Sheet'!$I$55)*N$6 -> -1212324.019 | O32: =-('Club & Hotel Input Sheet'!$I$53*'Club & Hotel Input Sheet'!$I$55)*O$6 -> -1236570.5 | P32: =-('Club & Hotel Input Sheet'!$I$53*'Club & Hotel Input Sheet'!$I$55)*P$6 -> -1261301.91 | Q32: =-('Club & Hotel Input Sheet'!$I$53*'Club & Hotel Input Sheet'!$I$55)*Q$6 -> -1286527.948 | R32: =-('Club & Hotel Input Sheet'!$I$53*'Club & Hotel Input Sheet'!$I$55)*R$6 -> -1312258.507 | S32: =-('Club & Hotel Input Sheet'!$I$53*'Club & Hotel Input Sheet'!$I$55)*S$6 -> -1338503.677 | T32: =-('Club & Hotel Input Sheet'!$I$53*'Club & Hotel Input Sheet'!$I$55)*T$6 -> -1365273.75
C33: Marketing | E33: £ | G33: -426348.6168 | K33: =-'Club & Hotel Input Sheet'!$I$57*K$6 -> -20400 | L33: =-'Club & Hotel Input Sheet'!$I$58*L$6 -> -41616 | M33: =-'Club & Hotel Input Sheet'!$I$58*M$6 -> -42448.32 | N33: =-'Club & Hotel Input Sheet'!$I$58*N$6 -> -43297.2864 | O33: =-'Club & Hotel Input Sheet'!$I$58*O$6 -> -44163.23213 | P33: =-'Club & Hotel Input Sheet'!$I$58*P$6 -> -45046.49677 | Q33: =-'Club & Hotel Input Sheet'!$I$58*Q$6 -> -45947.42671 | R33: =-'Club & Hotel Input Sheet'!$I$58*R$6 -> -46866.37524 | S33: =-'Club & Hotel Input Sheet'!$I$58*S$6 -> -47803.70274 | T33: =-'Club & Hotel Input Sheet'!$I$58*T$6 -> -48759.7768
C34: Promotions | E34: £ | G34: 0
C35: Equipment | E35: £ | G35: -223374.3084 | K35: =-'Club & Hotel Input Sheet'!$I$62*K$6 -> -20400 | L35: =-'Club & Hotel Input Sheet'!$I$62*L$6 -> -20808 | M35: =-'Club & Hotel Input Sheet'!$I$62*M$6 -> -21224.16 | N35: =-'Club & Hotel Input Sheet'!$I$62*N$6 -> -21648.6432 | O35: =-'Club & Hotel Input Sheet'!$I$62*O$6 -> -22081.61606 | P35: =-'Club & Hotel Input Sheet'!$I$62*P$6 -> -22523.24839 | Q35: =-'Club & Hotel Input Sheet'!$I$62*Q$6 -> -22973.71335 | R35: =-'Club & Hotel Input Sheet'!$I$62*R$6 -> -23433.18762 | S35: =-'Club & Hotel Input Sheet'!$I$62*S$6 -> -23901.85137 | T35: =-'Club & Hotel Input Sheet'!$I$62*T$6 -> -24379.8884
B36: Total expenditure | E36: £ | G36: =SUM(G30:G35) -> -56490507.84 | K36: =SUM(K30:K35) -> -5140545 | L36: =SUM(L30:L35) -> -5264163.9 | M36: -5369447.178 | N36: -5476836.122 | O36: -5586372.844 | P36: -5698100.301 | Q36: -5812062.307 | R36: -5928303.553 | S36: -6046869.624 | T36: -6167807.017
B38: Terminal value | T38: =(T36+T26)/'Club & Hotel Input Sheet'!I$66 -> 67595780.16
A40: Free Cash Flow | E40: £ | G40: =SUM(J40:T40) -> 75635892.45 | J40: =J26+J36+J17+J14+J38+J15+J16 -> -29140000 | K40: =K26+K36+K17+K14+K38 -> 3414067.5 | L40: 3461540.85 | M40: 3530771.667 | N40: 3601387.1 | O40: 3673414.842 | P40: 3746883.139 | Q40: 3821820.802 | R40: 3898257.218 | S40: 3976222.362 | T40: 71651526.97
A41: IRR | B41: =IRR(J40:T40) -> 0.1803716177
A43: UPPER CASE
A44: Capital
B45: New capital cost | E45: £ | G45: =SUM(J45:T45) -> -22750000 | J45: =-'Club & Hotel Input Sheet'!J$14*'Club & Hotel Input Sheet'!J$11-'Club & Hotel Input Sheet'!J72 -> -22750000
B46: CIL/s.106/s.278 costs | E46: £ | G46: =SUM(J46:T46) -> -630000 | J46: =-'Club & Hotel Input Sheet'!J70 -> -630000
B47: Developers contingency | E47: £ | G47: -900000 | J47: =-'Club & Hotel Input Sheet'!J68 -> -900000
B48: Refurbishment | E48: £ | G48: =SUM(J48:T48) -> -3780000 | J48: =IF(J$10=1,0,-('Club & Hotel Input Sheet'!$I$18*'Club & Hotel Input Sheet'!$I$10*J$6)) -> -3780000 | K48: =IF(K$10=1,0,-('Club & Hotel Input Sheet'!$I$18*'Club & Hotel Input Sheet'!$I$10*K$6)) -> 0 | L48: =IF(L$10=1,0,-('Club & Hotel Input Sheet'!$I$18*'Club & Hotel Input Sheet'!$I$10*L$6)) -> 0 | M48: =IF(M$10=1,0,-('Club & Hotel Input Sheet'!$I$18*'Club & Hotel Input Sheet'!$I$10*M$6)) -> 0 | N48: =IF(N$10=1,0,-('Club & Hotel Input Sheet'!$I$18*'Club & Hotel Input Sheet'!$I$10*N$6)) -> 0 | O48: =IF(O$10=1,0,-('Club & Hotel Input Sheet'!$I$18*'Club & Hotel Input Sheet'!$I$10*O$6)) -> 0 | P48: =IF(P$10=1,0,-('Club & Hotel Input Sheet'!$I$18*'Club & Hotel Input Sheet'!$I$10*P$6)) -> 0 | Q48: =IF(Q$10=1,0,-('Club & Hotel Input Sheet'!$J$18*'Club & Hotel Input Sheet'!$J$11*Q$6)) -> 0 | R48: =IF(R$10=1,0,-('Club & Hotel Input Sheet'!$I$18*'Club & Hotel Input Sheet'!$I$10*R$6)) -> 0 | S48: =IF(S$10=1,0,-('Club & Hotel Input Sheet'!$I$18*'Club & Hotel Input Sheet'!$I$10*S$6)) -> 0 | T48: =IF(T$10=1,0,-('Club & Hotel Input Sheet'!$I$18*'Club & Hotel Input Sheet'!$I$10*T$6)) -> 0
G49: =SUM(G45:G48) -> -28060000
A51: Cash Flow Statement
B52: Revenue
C53: Accommodation | E53: £ | G53: =SUM(J53:T53) -> 80135533.14 | K53: =('Club & Hotel Input Sheet'!$J$24*'Club & Hotel Input Sheet'!$J$25*'Club & Hotel Input Sheet'!$J$26*'Club & Hotel Input Sheet'!$J$27)*K$6 -> 7318500 | L53: =('Club & Hotel Input Sheet'!$J$24*'Club & Hotel Input Sheet'!$J$25*'Club & Hotel Input Sheet'!$J$26*'Club & Hotel Input Sheet'!$J$27)*L$6 -> 7464870 | M53: =('Club & Hotel Input Sheet'!$J$24*'Club & Hotel Input Sheet'!$J$25*'Club & Hotel Input Sheet'!$J$26*'Club & Hotel Input Sheet'!$J$27)*M$6 -> 7614167.4 | N53: =('Club & Hotel Input Sheet'!$J$24*'Club & Hotel Input Sheet'!$J$25*'Club & Hotel Input Sheet'!$J$26*'Club & Hotel Input Sheet'!$J$27)*N$6 -> 7766450.748 | O53: =('Club & Hotel Input Sheet'!$J$24*'Club & Hotel Input Sheet'!$J$25*'Club & Hotel Input Sheet'!$J$26*'Club & Hotel Input Sheet'!$J$27)*O$6 -> 7921779.763 | P53: =('Club & Hotel Input Sheet'!$J$24*'Club & Hotel Input Sheet'!$J$25*'Club & Hotel Input Sheet'!$J$26*'Club & Hotel Input Sheet'!$J$27)*P$6 -> 8080215.358 | Q53: =('Club & Hotel Input Sheet'!$J$24*'Club & Hotel Input Sheet'!$J$25*'Club & Hotel Input Sheet'!$J$26*'Club & Hotel Input Sheet'!$J$27)*Q$6 -> 8241819.665 | R53: =('Club & Hotel Input Sheet'!$J$24*'Club & Hotel Input Sheet'!$J$25*'Club & Hotel Input Sheet'!$J$26*'Club & Hotel Input Sheet'!$J$27)*R$6 -> 8406656.059 | S53: =('Club & Hotel Input Sheet'!$J$24*'Club & Hotel Input Sheet'!$J$25*'Club & Hotel Input Sheet'!$J$26*'Club & Hotel Input Sheet'!$J$27)*S$6 -> 8574789.18 | T53: =('Club & Hotel Input Sheet'!$J$24*'Club & Hotel Input Sheet'!$J$25*'Club & Hotel Input Sheet'!$J$26*'Club & Hotel Input Sheet'!$J$27)*T$6 -> 8746284.963
C54: Room & equip hire | E54: £ | G54: =SUM(J54:T54) -> 0
C55: Restaurant | E55: £ | G55: 23454302.38 | K55: =('Club & Hotel Input Sheet'!$J$37*'Club & Hotel Input Sheet'!$J$38*'Club & Hotel Input Sheet'!$J$39*'Club & Hotel Input Sheet'!$J$40)*K$6 -> 2142000 | L55: =('Club & Hotel Input Sheet'!$J$37*'Club & Hotel Input Sheet'!$J$38*'Club & Hotel Input Sheet'!$J$39*'Club & Hotel Input Sheet'!$J$40)*L$6 -> 2184840 | M55: =('Club & Hotel Input Sheet'!$J$37*'Club & Hotel Input Sheet'!$J$38*'Club & Hotel Input Sheet'!$J$39*'Club & Hotel Input Sheet'!$J$40)*M$6 -> 2228536.8 | N55: =('Club & Hotel Input Sheet'!$J$37*'Club & Hotel Input Sheet'!$J$38*'Club & Hotel Input Sheet'!$J$39*'Club & Hotel Input Sheet'!$J$40)*N$6 -> 2273107.536 | O55: =('Club & Hotel Input Sheet'!$J$37*'Club & Hotel Input Sheet'!$J$38*'Club & Hotel Input Sheet'!$J$39*'Club & Hotel Input Sheet'!$J$40)*O$6 -> 2318569.687 | P55: =('Club & Hotel Input Sheet'!$J$37*'Club & Hotel Input Sheet'!$J$38*'Club & Hotel Input Sheet'!$J$39*'Club & Hotel Input Sheet'!$J$40)*P$6 -> 2364941.08 | Q55: =('Club & Hotel Input Sheet'!$J$37*'Club & Hotel Input Sheet'!$J$38*'Club & Hotel Input Sheet'!$J$39*'Club & Hotel Input Sheet'!$J$40)*Q$6 -> 2412239.902 | R55: =('Club & Hotel Input Sheet'!$J$37*'Club & Hotel Input Sheet'!$J$38*'Club & Hotel Input Sheet'!$J$39*'Club & Hotel Input Sheet'!$J$40)*R$6 -> 2460484.7 | S55: =('Club & Hotel Input Sheet'!$J$37*'Club & Hotel Input Sheet'!$J$38*'Club & Hotel Input Sheet'!$J$39*'Club & Hotel Input Sheet'!$J$40)*S$6 -> 2509694.394 | T55: =('Club & Hotel Input Sheet'!$J$37*'Club & Hotel Input Sheet'!$J$38*'Club & Hotel Input Sheet'!$J$39*'Club & Hotel Input Sheet'!$J$40)*T$6 -> 2559888.282
C56: Events | E56: £ | G56: 0
B57: Total revenue | E57: £ | G57: =SUM(G53:G56) -> 103589835.5 | K57: =SUM(K53:K56) -> 9460500 | L57: =SUM(L53:L56) -> 9649710 | M57: 9842704.2 | N57: 10039558.28 | O57: 10240349.45 | P57: 10445156.44 | Q57: 10654059.57 | R57: 10867140.76 | S57: 11084483.57 | T57: 11306173.25
B60: Expenditure
C61: Cost of sales | E61: £ | G61: =SUM(J61:T61) -> -7036290.714 | K61: =-K55*'Club & Hotel Input Sheet'!$J$49 -> -642600 | L61: =-L55*'Club & Hotel Input Sheet'!$J$49 -> -655452 | M61: =-M55*'Club & Hotel Input Sheet'!$J$49 -> -668561.04 | N61: =-N55*'Club & Hotel Input Sheet'!$J$49 -> -681932.2608 | O61: =-O55*'Club & Hotel Input Sheet'!$J$49 -> -695570.906 | P61: =-P55*'Club & Hotel Input Sheet'!$J$49 -> -709482.3241 | Q61: =-Q55*'Club & Hotel Input Sheet'!$J$49 -> -723671.9706 | R61: =-R55*'Club & Hotel Input Sheet'!$J$49 -> -738145.41 | S61: =-S55*'Club & Hotel Input Sheet'!$J$49 -> -752908.3182 | T61: =-T55*'Club & Hotel Input Sheet'!$J$49 -> -767966.4846
C62: Staff costs | E62: £ | G62: =SUM(J62:T62) -> -36256442.43 | K62: =-K57*'Club & Hotel Input Sheet'!$J$51 -> -3311175 | L62: =-L57*'Club & Hotel Input Sheet'!$J$51 -> -3377398.5 | M62: =-M57*'Club & Hotel Input Sheet'!$J$51 -> -3444946.47 | N62: =-N57*'Club & Hotel Input Sheet'!$J$51 -> -3513845.399 | O62: =-O57*'Club & Hotel Input Sheet'!$J$51 -> -3584122.307 | P62: =-P57*'Club & Hotel Input Sheet'!$J$51 -> -3655804.754 | Q62: =-Q57*'Club & Hotel Input Sheet'!$J$51 -> -3728920.849 | R62: =-R57*'Club & Hotel Input Sheet'!$J$51 -> -3803499.266 | S62: =-S57*'Club & Hotel Input Sheet'!$J$51 -> -3879569.251 | T62: =-T57*'Club & Hotel Input Sheet'!$J$51 -> -3957160.636
C63: Estates & FM | E63: £ | G63: -11258065.14 | K63: =-('Club & Hotel Input Sheet'!$J$53*'Club & Hotel Input Sheet'!$J$55)*K$6 -> -1028160 | L63: =-('Club & Hotel Input Sheet'!$J$53*'Club & Hotel Input Sheet'!$J$55)*L$6 -> -1048723.2 | M63: =-('Club & Hotel Input Sheet'!$J$53*'Club & Hotel Input Sheet'!$J$55)*M$6 -> -1069697.664 | N63: =-('Club & Hotel Input Sheet'!$J$53*'Club & Hotel Input Sheet'!$J$55)*N$6 -> -1091091.617 | O63: =-('Club & Hotel Input Sheet'!$J$53*'Club & Hotel Input Sheet'!$J$55)*O$6 -> -1112913.45 | P63: =-('Club & Hotel Input Sheet'!$J$53*'Club & Hotel Input Sheet'!$J$55)*P$6 -> -1135171.719 | Q63: =-('Club & Hotel Input Sheet'!$J$53*'Club & Hotel Input Sheet'!$J$55)*Q$6 -> -1157875.153 | R63: =-('Club & Hotel Input Sheet'!$J$53*'Club & Hotel Input Sheet'!$J$55)*R$6 -> -1181032.656 | S63: =-('Club & Hotel Input Sheet'!$J$53*'Club & Hotel Input Sheet'!$J$55)*S$6 -> -1204653.309 | T63: =-('Club & Hotel Input Sheet'!$J$53*'Club & Hotel Input Sheet'!$J$55)*T$6 -> -1228746.375
C64: Marketing | E64: £ | G64: -426348.6168 | K64: =-'Club & Hotel Input Sheet'!$J$57*K$6 -> -20400 | L64: =-'Club & Hotel Input Sheet'!$J$58*L$6 -> -41616 | M64: =-'Club & Hotel Input Sheet'!$J$58*M$6 -> -42448.32 | N64: =-'Club & Hotel Input Sheet'!$J$58*N$6 -> -43297.2864 | O64: =-'Club & Hotel Input Sheet'!$J$58*O$6 -> -44163.23213 | P64: =-'Club & Hotel Input Sheet'!$J$58*P$6 -> -45046.49677 | Q64: =-'Club & Hotel Input Sheet'!$J$58*Q$6 -> -45947.42671 | R64: =-'Club & Hotel Input Sheet'!$J$58*R$6 -> -46866.37524 | S64: =-'Club & Hotel Input Sheet'!$J$58*S$6 -> -47803.70274 | T64: =-'Club & Hotel Input Sheet'!$J$58*T$6 -> -48759.7768
C65: Promotions | E65: £ | G65: 0
C66: Equipment | E66: £ | G66: -223374.3084 | K66: =-'Club & Hotel Input Sheet'!$J$62*K$6 -> -20400 | L66: =-'Club & Hotel Input Sheet'!$J$62*L$6 -> -20808 | M66: =-'Club & Hotel Input Sheet'!$J$62*M$6 -> -21224.16 | N66: =-'Club & Hotel Input Sheet'!$J$62*N$6 -> -21648.6432 | O66: =-'Club & Hotel Input Sheet'!$J$62*O$6 -> -22081.61606 | P66: =-'Club & Hotel Input Sheet'!$J$62*P$6 -> -22523.24839 | Q66: =-'Club & Hotel Input Sheet'!$J$62*Q$6 -> -22973.71335 | R66: =-'Club & Hotel Input Sheet'!$J$62*R$6 -> -23433.18762 | S66: =-'Club & Hotel Input Sheet'!$J$62*S$6 -> -23901.85137 | T66: =-'Club & Hotel Input Sheet'!$J$62*T$6 -> -24379.8884
B67: Total expenditure | E67: £ | G67: =SUM(G61:G66) -> -55200521.21 | K67: =SUM(K61:K66) -> -5022735 | L67: =SUM(L61:L66) -> -5143997.7 | M67: -5246877.654 | N67: -5351815.207 | O67: -5458851.511 | P67: -5568028.541 | Q67: -5679389.112 | R67: -5792976.895 | S67: -5908836.432 | T67: -6027013.161
B69: Terminal value | T69: =(T67+T57)/'Club & Hotel Input Sheet'!I$66 -> 87986001.41
A71: Free Cash Flow | E71: £ | G71: =SUM(J71:T71) -> 108315315.7 | J71: =J57+J67+J48+J45+J69+J46+J47 -> -28060000 | K71: =K57+K67+K48+K45+K69 -> 4437765 | L71: 4505712.3 | M71: 4595826.546 | N71: 4687743.077 | O71: 4781497.938 | P71: 4877127.897 | Q71: 4974670.455 | R71: 5074163.864 | S71: 5175647.142 | T71: =T57+T67+T48+T45+T69 -> 93265161.49
A72: IRR | B72: =IRR(J71:T71) -> 0.2358953504
A74: LOWER CASE
A75: Capital
B77: New capital cost | E77: £ | G77: =SUM(J77:T77) -> -24570000 | J77: =-'Club & Hotel Input Sheet'!K$14*'Club & Hotel Input Sheet'!K$11-'Club & Hotel Input Sheet'!K72 -> -24570000
B78: CIL/s.106/s.278 costs | E78: £ | G78: =SUM(J78:T78) -> -770000 | J78: =-'Club & Hotel Input Sheet'!K70 -> -770000
B79: Developers contingency | E79: £ | G79: -1100000 | J79: =-'Club & Hotel Input Sheet'!K68 -> -1100000
B80: Refurbishment | E80: £ | G80: =SUM(J80:T80) -> -3780000 | J80: =IF(J$10=1,0,-('Club & Hotel Input Sheet'!$K$18*'Club & Hotel Input Sheet'!$K$10*J$6)) -> -3780000 | K80: =IF(K$10=1,0,-('Club & Hotel Input Sheet'!$K$18*'Club & Hotel Input Sheet'!$K$10*K$6)) -> 0 | L80: =IF(L$10=1,0,-('Club & Hotel Input Sheet'!$K$18*'Club & Hotel Input Sheet'!$K$10*L$6)) -> 0 | M80: =IF(M$10=1,0,-('Club & Hotel Input Sheet'!$K$18*'Club & Hotel Input Sheet'!$K$10*M$6)) -> 0 | N80: =IF(N$10=1,0,-('Club & Hotel Input Sheet'!$K$18*'Club & Hotel Input Sheet'!$K$10*N$6)) -> 0 | O80: =IF(O$10=1,0,-('Club & Hotel Input Sheet'!$K$18*'Club & Hotel Input Sheet'!$K$10*O$6)) -> 0 | P80: =IF(P$10=1,0,-('Club & Hotel Input Sheet'!$K$18*'Club & Hotel Input Sheet'!$K$10*P$6)) -> 0 | Q80: =IF(Q$10=1,0,-('Club & Hotel Input Sheet'!$K$18*'Club & Hotel Input Sheet'!$K$11*Q$6)) -> 0 | R80: =IF(R$10=1,0,-('Club & Hotel Input Sheet'!$K$18*'Club & Hotel Input Sheet'!$K$10*R$6)) -> 0 | S80: =IF(S$10=1,0,-('Club & Hotel Input Sheet'!$K$18*'Club & Hotel Input Sheet'!$K$10*S$6)) -> 0 | T80: =IF(T$10=1,0,-('Club & Hotel Input Sheet'!$K$18*'Club & Hotel Input Sheet'!$K$10*T$6)) -> 0
G81: =SUM(G77:G80) -> -30220000
A83: Cash Flow Statement
B84: Revenue
C85: Accommodation | E85: £ | G85: =SUM(J85:T85) -> 68115203.17 | K85: =('Club & Hotel Input Sheet'!$K$24*'Club & Hotel Input Sheet'!$K$25*'Club & Hotel Input Sheet'!$K$26*'Club & Hotel Input Sheet'!$K$27)*K$6 -> 6220725 | L85: =('Club & Hotel Input Sheet'!$K$24*'Club & Hotel Input Sheet'!$K$25*'Club & Hotel Input Sheet'!$K$26*'Club & Hotel Input Sheet'!$K$27)*L$6 -> 6345139.5 | M85: =('Club & Hotel Input Sheet'!$K$24*'Club & Hotel Input Sheet'!$K$25*'Club & Hotel Input Sheet'!$K$26*'Club & Hotel Input Sheet'!$K$27)*M$6 -> 6472042.29 | N85: =('Club & Hotel Input Sheet'!$K$24*'Club & Hotel Input Sheet'!$K$25*'Club & Hotel Input Sheet'!$K$26*'Club & Hotel Input Sheet'!$K$27)*N$6 -> 6601483.136 | O85: =('Club & Hotel Input Sheet'!$K$24*'Club & Hotel Input Sheet'!$K$25*'Club & Hotel Input Sheet'!$K$26*'Club & Hotel Input Sheet'!$K$27)*O$6 -> 6733512.799 | P85: =('Club & Hotel Input Sheet'!$K$24*'Club & Hotel Input Sheet'!$K$25*'Club & Hotel Input Sheet'!$K$26*'Club & Hotel Input Sheet'!$K$27)*P$6 -> 6868183.054 | Q85: =('Club & Hotel Input Sheet'!$K$24*'Club & Hotel Input Sheet'!$K$25*'Club & Hotel Input Sheet'!$K$26*'Club & Hotel Input Sheet'!$K$27)*Q$6 -> 7005546.716 | R85: =('Club & Hotel Input Sheet'!$K$24*'Club & Hotel Input Sheet'!$K$25*'Club & Hotel Input Sheet'!$K$26*'Club & Hotel Input Sheet'!$K$27)*R$6 -> 7145657.65 | S85: =('Club & Hotel Input Sheet'!$K$24*'Club & Hotel Input Sheet'!$K$25*'Club & Hotel Input Sheet'!$K$26*'Club & Hotel Input Sheet'!$K$27)*S$6 -> 7288570.803 | T85: =('Club & Hotel Input Sheet'!$K$24*'Club & Hotel Input Sheet'!$K$25*'Club & Hotel Input Sheet'!$K$26*'Club & Hotel Input Sheet'!$K$27)*T$6 -> 7434342.219
C86: Room & equip hire | E86: £ | G86: =SUM(J86:T86) -> 0
C87: Restaurant | E87: £ | G87: 15636201.59 | K87: =('Club & Hotel Input Sheet'!$K$37*'Club & Hotel Input Sheet'!$K$38*'Club & Hotel Input Sheet'!$K$39*'Club & Hotel Input Sheet'!$K$40)*K$6 -> 1428000 | L87: =('Club & Hotel Input Sheet'!$K$37*'Club & Hotel Input Sheet'!$K$38*'Club & Hotel Input Sheet'!$K$39*'Club & Hotel Input Sheet'!$K$40)*L$6 -> 1456560 | M87: =('Club & Hotel Input Sheet'!$K$37*'Club & Hotel Input Sheet'!$K$38*'Club & Hotel Input Sheet'!$K$39*'Club & Hotel Input Sheet'!$K$40)*M$6 -> 1485691.2 | N87: =('Club & Hotel Input Sheet'!$K$37*'Club & Hotel Input Sheet'!$K$38*'Club & Hotel Input Sheet'!$K$39*'Club & Hotel Input Sheet'!$K$40)*N$6 -> 1515405.024 | O87: =('Club & Hotel Input Sheet'!$K$37*'Club & Hotel Input Sheet'!$K$38*'Club & Hotel Input Sheet'!$K$39*'Club & Hotel Input Sheet'!$K$40)*O$6 -> 1545713.124 | P87: =('Club & Hotel Input Sheet'!$K$37*'Club & Hotel Input Sheet'!$K$38*'Club & Hotel Input Sheet'!$K$39*'Club & Hotel Input Sheet'!$K$40)*P$6 -> 1576627.387 | Q87: =('Club & Hotel Input Sheet'!$K$37*'Club & Hotel Input Sheet'!$K$38*'Club & Hotel Input Sheet'!$K$39*'Club & Hotel Input Sheet'!$K$40)*Q$6 -> 1608159.935 | R87: =('Club & Hotel Input Sheet'!$K$37*'Club & Hotel Input Sheet'!$K$38*'Club & Hotel Input Sheet'!$K$39*'Club & Hotel Input Sheet'!$K$40)*R$6 -> 1640323.133 | S87: =('Club & Hotel Input Sheet'!$K$37*'Club & Hotel Input Sheet'!$K$38*'Club & Hotel Input Sheet'!$K$39*'Club & Hotel Input Sheet'!$K$40)*S$6 -> 1673129.596 | T87: =('Club & Hotel Input Sheet'!$K$37*'Club & Hotel Input Sheet'!$K$38*'Club & Hotel Input Sheet'!$K$39*'Club & Hotel Input Sheet'!$K$40)*T$6 -> 1706592.188
C88: Events | E88: £ | G88: 0
B89: Total revenue | E89: £ | G89: =SUM(G85:G88) -> 83751404.75 | K89: =SUM(K85:K88) -> 7648725 | L89: =SUM(L85:L88) -> 7801699.5 | M89: 7957733.49 | N89: 8116888.16 | O89: 8279225.923 | P89: 8444810.441 | Q89: 8613706.65 | R89: 8785980.783 | S89: 8961700.399 | T89: 9140934.407
B92: Expenditure
C93: Cost of sales | E93: £ | G93: =SUM(J93:T93) -> -5472670.556 | K93: =-K87*'Club & Hotel Input Sheet'!$K$49 -> -499800 | L93: =-L87*'Club & Hotel Input Sheet'!$K$49 -> -509796 | M93: =-M87*'Club & Hotel Input Sheet'!$K$49 -> -519991.92 | N93: =-N87*'Club & Hotel Input Sheet'!$K$49 -> -530391.7584 | O93: =-O87*'Club & Hotel Input Sheet'!$K$49 -> -540999.5936 | P93: =-P87*'Club & Hotel Input Sheet'!$K$49 -> -551819.5854 | Q93: =-Q87*'Club & Hotel Input Sheet'!$K$49 -> -562855.9771 | R93: =-R87*'Club & Hotel Input Sheet'!$K$49 -> -574113.0967 | S93: =-S87*'Club & Hotel Input Sheet'!$K$49 -> -585595.3586 | T93: =-T87*'Club & Hotel Input Sheet'!$K$49 -> -597307.2658
C94: Staff costs | E94: £ | G94: =SUM(J94:T94) -> -37688132.14 | K94: =-K89*'Club & Hotel Input Sheet'!$K$51 -> -3441926.25 | L94: =-L89*'Club & Hotel Input Sheet'!$K$51 -> -3510764.775 | M94: =-M89*'Club & Hotel Input Sheet'!$K$51 -> -3580980.07 | N94: =-N89*'Club & Hotel Input Sheet'!$K$51 -> -3652599.672 | O94: =-O89*'Club & Hotel Input Sheet'!$K$51 -> -3725651.665 | P94: =-P89*'Club & Hotel Input Sheet'!$K$51 -> -3800164.699 | Q94: =-Q89*'Club & Hotel Input Sheet'!$K$51 -> -3876167.993 | R94: =-R89*'Club & Hotel Input Sheet'!$K$51 -> -3953691.352 | S94: =-S89*'Club & Hotel Input Sheet'!$K$51 -> -4032765.18 | T94: =-T89*'Club & Hotel Input Sheet'!$K$51 -> -4113420.483
C95: Estates & FM | E95: £ | G95: -13759857.4 | K95: =-('Club & Hotel Input Sheet'!$K$53*'Club & Hotel Input Sheet'!$K$55)*K$6 -> -1256640 | L95: =-('Club & Hotel Input Sheet'!$K$53*'Club & Hotel Input Sheet'!$K$55)*L$6 -> -1281772.8 | M95: =-('Club & Hotel Input Sheet'!$K$53*'Club & Hotel Input Sheet'!$K$55)*M$6 -> -1307408.256 | N95: =-('Club & Hotel Input Sheet'!$K$53*'Club & Hotel Input Sheet'!$K$55)*N$6 -> -1333556.421 | O95: =-('Club & Hotel Input Sheet'!$K$53*'Club & Hotel Input Sheet'!$K$55)*O$6 -> -1360227.55 | P95: =-('Club & Hotel Input Sheet'!$K$53*'Club & Hotel Input Sheet'!$K$55)*P$6 -> -1387432.101 | Q95: =-('Club & Hotel Input Sheet'!$K$53*'Club & Hotel Input Sheet'!$K$55)*Q$6 -> -1415180.743 | R95: =-('Club & Hotel Input Sheet'!$K$53*'Club & Hotel Input Sheet'!$K$55)*R$6 -> -1443484.357 | S95: =-('Club & Hotel Input Sheet'!$K$53*'Club & Hotel Input Sheet'!$K$55)*S$6 -> -1472354.045 | T95: =-('Club & Hotel Input Sheet'!$K$53*'Club & Hotel Input Sheet'!$K$55)*T$6 -> -1501801.125
C96: Marketing | E96: £ | G96: -426348.6168 | K96: =-'Club & Hotel Input Sheet'!$K$57*K$6 -> -20400 | L96: =-'Club & Hotel Input Sheet'!$K$58*L$6 -> -41616 | M96: =-'Club & Hotel Input Sheet'!$K$58*M$6 -> -42448.32 | N96: =-'Club & Hotel Input Sheet'!$K$58*N$6 -> -43297.2864 | O96: =-'Club & Hotel Input Sheet'!$K$58*O$6 -> -44163.23213 | P96: =-'Club & Hotel Input Sheet'!$K$58*P$6 -> -45046.49677 | Q96: =-'Club & Hotel Input Sheet'!$K$58*Q$6 -> -45947.42671 | R96: =-'Club & Hotel Input Sheet'!$K$58*R$6 -> -46866.37524 | S96: =-'Club & Hotel Input Sheet'!$K$58*S$6 -> -47803.70274 | T96: =-'Club & Hotel Input Sheet'!$K$58*T$6 -> -48759.7768
C97: Promotions | E97: £ | G97: 0
C98: Equipment | E98: £ | G98: -223374.3084 | K98: =-'Club & Hotel Input Sheet'!$K$62*K$6 -> -20400 | L98: =-'Club & Hotel Input Sheet'!$K$62*L$6 -> -20808 | M98: =-'Club & Hotel Input Sheet'!$K$62*M$6 -> -21224.16 | N98: =-'Club & Hotel Input Sheet'!$K$62*N$6 -> -21648.6432 | O98: =-'Club & Hotel Input Sheet'!$K$62*O$6 -> -22081.61606 | P98: =-'Club & Hotel Input Sheet'!$K$62*P$6 -> -22523.24839 | Q98: =-'Club & Hotel Input Sheet'!$K$62*Q$6 -> -22973.71335 | R98: =-'Club & Hotel Input Sheet'!$K$62*R$6 -> -23433.18762 | S98: =-'Club & Hotel Input Sheet'!$K$62*S$6 -> -23901.85137 | T98: =-'Club & Hotel Input Sheet'!$K$62*T$6 -> -24379.8884
B99: Total expenditure | E99: £ | G99: =SUM(G93:G98) -> -57570383.02 | K99: =SUM(K93:K98) -> -5239166.25 | L99: =SUM(L93:L98) -> -5364757.575 | M99: -5472052.726 | N99: -5581493.781 | O99: -5693123.657 | P99: -5806986.13 | Q99: -5923125.852 | R99: -6041588.369 | S99: -6162420.137 | T99: -6285668.54
B101: Terminal value | T101: =(T99+T89)/'Club & Hotel Input Sheet'!I$66 -> 47587764.46
A103: Free Cash Flow | E103: £ | G103: =SUM(J103:T103) -> 43548786.19 | J103: =J89+J99+J80+J77+J101+J78+J79 -> -30220000 | K103: =K89+K99+K80+K77+K101 -> 2409558.75 | L103: 2436941.925 | M103: 2485680.763 | N103: 2535394.379 | O103: 2586102.266 | P103: 2637824.312 | Q103: 2690580.798 | R103: 2744392.414 | S103: 2799280.262 | T103: =T89+T99+T80+T77+T101 -> 50443030.32
A104: IRR | B104: =IRR(J103:T103) -> 0.1181722948

Sheet Opt 1 Input Sheet
A1: ='Model input'!D3&" Analysis - Option 1" -> Investment A Analysis - Option 1 | G1: Factor to change | H1: Number of years for capex
A2: Input Sheet | G2: Change by | H2: 0.75
Q3: 1 | R3: 2 | S3: 3 | T3: 4
A4: Scenario | G4: 1 | I4: 1 | J4: 2 | K4: 3 | L4: 4 | P4: IRR | Q4: =IF(G4=1,'Opt 1 Output sheet'!C45,0) -> -0.05918240944 | R4: =IF(G4=2,'Opt 1 Output sheet'!C45,0) -> 0 | S4: =IF(G4=3,'Opt 1 Output sheet'!C45,0) -> 0 | T4: =IF(G4=4,'Opt 1 Output sheet'!C45,0) -> 0
A5: Description | G5: =HLOOKUP(G4,I4:L5,2) -> Base Case | I5: Base Case | J5: Upper Case | K5: Lower Case | L5: Variable | N5: Source | P5: Yield on cash | Q5: =IF($G$4=1,'Opt 1 Output sheet'!$C$48,0) -> 0.04229736285 | R5: =IF($G$4=2,'Opt 1 Output sheet'!$C$48,0) -> 0 | S5: =IF($G$4=3,'Opt 1 Output sheet'!$C$48,0) -> 0 | T5: =IF($G$4=4,'Opt 1 Output sheet'!$C$48,0) -> 0
A7: Balance sheet
B8: Initial start up
C9: Initial capital costs | G9: =OFFSET(H9,0,G$4) -> 10000 | I9: 10000 | J9: 10000 | K9: 10000 | L9: =IF(C9=$H$1,I9*(1+$H$2),I9) -> 10000
C10: Total area | G10: 0 | L10: =IF(C10=$H$1,I10*(1+$H$2),I10) -> 0
C11: Construction costs (£/sq ft) | G11: 0 | L11: 0
C12: Fit out costs (£/sq ft) | G12: 0 | L12: 0 | R12: -75 | S12: -50 | T12: -25 | U12: 0 | V12: 25 | W12: 50 | X12: 75
C13: Purchase cost | G13: 0 | L13: 0
C14: Professional fees | G14: 0 | L14: 0
C15: VAT | G15: 0 | L15: 0
C16: Other fees/duties | G16: 0 | L16: 0
C17: Number of years for capex | G17: 2 | I17: 2 | J17: 2 | K17: 2 | L17: 3.5
C18: Residual value | G18: 0 | L18: 0
C19: Refurbishment schedule | G19: 0 | L19: 0
C20: Refurbishment costs (£/sq ft) | G20: 0 | L20: 0
B22: Financing
C23: Drawdown value | G23: =OFFSET(H23,0,G$4) -> 0 | L23: =IF(C23=$H$1,I23*(1+$H$2),I23) -> 0
C24: Drawdown year | G24: 0 | L24: 0
C25: Interest rate | G25: 0 | L25: 0
C26: Payment schedule | G26: 0 | L26: 0
A28: Income statement
C29: Year to commence operations | G29: =OFFSET(H29,0,G$4)-0.01 -> 1.99 | I29: 2 | J29: 2 | K29: 2 | L29: =IF(C29=$H$1,I29*(1+$H$2),I29) -> 2
A31: Revenue generation
B32: Membership income
C33: No of members
D34: Yr 1 | E34: 1 | G34: =OFFSET(H34,0,G$4) -> 1 | I34: 1 | J34: 1 | K34: 1 | L34: =IF(D34=$H$1,I34*(1+$H$2),I34) -> 1
D35: Yr 2 | E35: 2 | G35: 2 | I35: 2 | J35: 2 | K35: 2 | L35: =IF(D35=$H$1,I35*(1+$H$2),I35) -> 2
D36: Yr 3 | E36: 3 | G36: 2 | I36: 2 | J36: 2 | K36: 2 | L36: 2
D37: Yr 4 | E37: 4 | G37: 2 | I37: 2 | J37: 2 | K37: 2 | L37: 2
D38: Yr 5 | E38: 5 | G38: 2 | I38: 2 | J38: 2 | K38: 2 | L38: 2
D39: Yr 6 | E39: 6 | G39: 2 | I39: 2 | J39: 2 | K39: 2 | L39: 2
D40: Yr 7 | E40: 7 | G40: 2 | I40: 2 | J40: 2 | K40: 2 | L40: 2
D41: Yr 8 | E41: 8 | G41: 2 | I41: 2 | J41: 2 | K41: 2 | L41: 2
D42: Yr 9 | E42: 9 | G42: 2 | I42: 2 | J42: 2 | K42: 2 | L42: 2
D43: Yr 10 | E43: 10 | G43: 2 | I43: 2 | J43: 2 | K43: 2 | L43: 2
D44: Yr 11 | E44: 11 | G44: 2 | I44: 2 | J44: 2 | K44: 2 | L44: 2
D45: Yr 12 | E45: 12 | G45: 0 | L45: 0
D46: Yr 13 | E46: 13 | G46: 0 | L46: 0
D47: Yr 14 | E47: 14 | G47: 0 | L47: 0
D48: Yr 15 | E48: 15 | G48: 0 | L48: 0
D50: Membership rate (£ per annum) | G50: 300 | I50: 300 | J50: 300 | K50: 300 | L50: =IF(D50=$H$1,I50*(1+$H$2),I50) -> 300
G51: 0 | L51: =IF(C51=$H$1,I51*(1+$H$2),I51) -> 0
C53: Accommodation income
D54: Number of rooms | G54: =OFFSET(H54,0,G$4) -> 0 | L54: =IF(D54=$H$1,I54*(1+$H$2),I54) -> 0
D55: Price per night (£) | G55: 0 | L55: =IF(D55=$H$1,I55*(1+$H$2),I55) -> 0
D56: Nights in operation | G56: 0 | L56: 0
D57: Occupancy | G57: 0 | L57: =IF(D57=$H$1,I57*(1+$H$2),I57) -> 0
C59: Rental space income
D60: Rent per sq/ft | G60: =OFFSET(H60,0,G$4) -> 0 | L60: =IF(D60=$H$1,I60*(1+$H$2),I60) -> 0
D61: Rental area (sq/ft) | G61: 0 | L61: 0
G62: 0 | L62: 0
C64: Room & equipment hire income
D65: Number of rooms | G65: =OFFSET(H65,0,G$4) -> 0 | L65: =IF(D65=$H$1,I65*(1+$H$2),I65) -> 0
D66: Blended rate (£/day) | G66: 0 | L66: 0
D67: Days in operation | G67: 0 | L67: 0
D68: Occupancy | G68: 0 | L68: 0
C70: Restaurant and private dining income
D71: Covers per day - Club | G71: =OFFSET(H71,0,G$4) -> 0 | L71: =IF(D71=$H$1,I71*(1+$H$2),I71) -> 0
D72: Price (£/cover) - Club | G72: =OFFSET(H72,0,G$4) -> 0 | L72: 0
D73: Days in operation | G73: 0 | L73: 0
G74: 0 | L74: 0
C76: Events income
D77: Number of events per annum | G77: =OFFSET(H77,0,G$4) -> 0 | L77: =IF(D77=$H$1,I77*(1+$H$2),I77) -> 0
D78: Average takings (£/event) | G78: 0 | L78: 0
D79: Funded by ticket sales | G79: 0 | L79: 0
B81: Expenditure
D83: Staff costs | G83: =OFFSET(H83,0,G$4) -> 0 | L83: =IF(D83=$H$1,I83*(1+$H$2),I83) -> 0
D85: Cost of sales | G85: 0 | L85: =IF(D85=$H$1,I85*(1+$H$2),I85) -> 0
D87: Marketing | G87: =OFFSET(H87,0,G$4) -> 0 | L87: =IF(D87=$H$1,I87*(1+$H$2),I87) -> 0
D88: Other opex | G88: 0 | L88: 0
D90: Estates costs | G90: =OFFSET(H90,0,G$4) -> 0 | L90: =IF(D90=$H$1,I90*(1+$H$2),I90) -> 0
D91: Equipment | G91: 0 | L91: 0
D92: Lease costs | L92: 0
D93: Rates | G93: 0 | L93: 0
A95: Other factors
B96: Inflation (@ RPI) | G96: 0.02 | I96: ='Model input'!D6 -> 0.02 | J96: 0.02 | K96: 0.02 | L96: =IF(B96=$H$1,I96*(1+$H$2),I96) -> 0.02
B97: Discount factor (RPI+2.5%) | G97: =OFFSET(H97,0,G$4) -> 0.04 | I97: ='Model input'!D7 -> 0.04 | J97: 0.04 | K97: 0.04 | L97: =IF(B97=$H$1,I97*(1+$H$2),I97) -> 0.04

Sheet Opt 1 Output sheet
B1: ='Model input'!D3&" Analysis - Option 1" -> Investment A Analysis - Option 1
B2: Workings Sheet | K2: ='Model input'!D5 -> 2016 | L2: =L3+$K$2 -> 2017 | M2: =M3+$K$2 -> 2018 | N2: 2019 | O2: 2020 | P2: 2021 | Q2: 2022 | R2: 2023 | S2: 2024 | T2: 2025 | U2: 2026 | V2: 2027 | W2: 2028 | X2: 2029 | Y2: 2030 | Z2: 2031
K3: 0 | L3: 1 | M3: 2 | N3: 3 | O3: 4 | P3: 5 | Q3: 6 | R3: 7 | S3: 8 | T3: 9 | U3: 10 | V3: 11 | W3: 12 | X3: 13 | Y3: 14 | Z3: 15
B5: Inflation index | C5: ='Opt 1 Input Sheet'!G96 -> 0.02 | K5: =(1+'Opt 1 Input Sheet'!$G96)^K3 -> 1 | L5: =(1+'Opt 1 Input Sheet'!$G96)^L3 -> 1.02 | M5: =(1+'Opt 1 Input Sheet'!$G96)^M3 -> 1.0404 | N5: =(1+'Opt 1 Input Sheet'!$G96)^N3 -> 1.061208 | O5: =(1+'Opt 1 Input Sheet'!$G96)^O3 -> 1.08243216 | P5: =(1+'Opt 1 Input Sheet'!$G96)^P3 -> 1.104080803 | Q5: =(1+'Opt 1 Input Sheet'!$G96)^Q3 -> 1.126162419 | R5: =(1+'Opt 1 Input Sheet'!$G96)^R3 -> 1.148685668 | S5: =(1+'Opt 1 Input Sheet'!$G96)^S3 -> 1.171659381 | T5: =(1+'Opt 1 Input Sheet'!$G96)^T3 -> 1.195092569 | U5: =(1+'Opt 1 Input Sheet'!$G96)^U3 -> 1.21899442 | V5: =(1+'Opt 1 Input Sheet'!$G96)^V3 -> 1.243374308 | W5: =(1+'Opt 1 Input Sheet'!$G96)^W3 -> 1.268241795 | X5: =(1+'Opt 1 Input Sheet'!$G96)^X3 -> 1.29360663 | Y5: =(1+'Opt 1 Input Sheet'!$G96)^Y3 -> 1.319478763 | Z5: =(1+'Opt 1 Input Sheet'!$G96)^Z3 -> 1.345868338
B7: Refurbishment | K7: =IF(K3='Opt 1 Input Sheet'!$G$19,"Yes","No") -> Yes | L7: =IF(L3='Opt 1 Input Sheet'!$G$19,"Yes","No") -> No | M7: =IF(M3='Opt 1 Input Sheet'!$G$19,"Yes","No") -> No | N7: =IF(N3='Opt 1 Input Sheet'!$G$19,"Yes","No") -> No | O7: =IF(O3='Opt 1 Input Sheet'!$G$19,"Yes","No") -> No | P7: =IF(P3='Opt 1 Input Sheet'!$G$19,"Yes","No") -> No | Q7: =IF(Q3='Opt 1 Input Sheet'!$G$19,"Yes","No") -> No | R7: =IF(R3='Opt 1 Input Sheet'!$G$19,"Yes","No") -> No | S7: =IF(S3='Opt 1 Input Sheet'!$G$19,"Yes","No") -> No | T7: =IF(T3='Opt 1 Input Sheet'!$G$19,"Yes","No") -> No | U7: =IF(U3='Opt 1 Input Sheet'!$G$19,"Yes","No") -> No | V7: =IF(V3='Opt 1 Input Sheet'!$G$19,"Yes","No") -> No | W7: =IF(W3='Opt 1 Input Sheet'!$G$19,"Yes","No") -> No | X7: =IF(X3='Opt 1 Input Sheet'!$G$19,"Yes","No") -> No | Y7: =IF(Y3='Opt 1 Input Sheet'!$G$19,"Yes","No") -> No | Z7: =IF(Z3='Opt 1 Input Sheet'!$G$19,"Yes","No") -> No
B8: Refurbishment factor | K8: =IF(K7="No",1,0.5) -> 0.5 | L8: =IF(L7="No",1,0.5) -> 1 | M8: 1 | N8: 1 | O8: 1 | P8: 1 | Q8: 1 | R8: 1 | S8: 1 | T8: =IF(T7="No",1,0.5) -> 1 | U8: 1 | V8: 1 | W8: 1 | X8: 1 | Y8: 1 | Z8: 1
B10: BASE CASE
B11: Balance Sheet | C11: Capital | H11: Total | I11: Sparkline
D12: Initial capital cost | F12: £ | H12: =SUM(K12:S12) -> -10100 | K12: =IF(K3<'Opt 1 Input Sheet'!$G$17,-'Opt 1 Input Sheet'!$G$9/'Opt 1 Input Sheet'!$G$17*K5,"") -> -5000 | L12: =IF(L3<'Opt 1 Input Sheet'!$G$17,-'Opt 1 Input Sheet'!$G$9/'Opt 1 Input Sheet'!$G$17*L5,"") -> -5100 | M12: =IF(M3<'Opt 1 Input Sheet'!$G$17,-'Opt 1 Input Sheet'!$G$9/'Opt 1 Input Sheet'!$G$17*M5,"") ->  | N12: =IF(N3<'Opt 1 Input Sheet'!$G$17,-'Opt 1 Input Sheet'!$G$9/'Opt 1 Input Sheet'!$G$17*N5,"") ->  | O12: =IF(O3<'Opt 1 Input Sheet'!$G$17,-'Opt 1 Input Sheet'!$G$9/'Opt 1 Input Sheet'!$G$17*O5,"") ->  | P12: =IF(P3<'Opt 1 Input Sheet'!$G$17,-'Opt 1 Input Sheet'!$G$9/'Opt 1 Input Sheet'!$G$17*P5,"") ->  | Q12: =IF(Q3<'Opt 1 Input Sheet'!$G$17,-'Opt 1 Input Sheet'!$G$9/'Opt 1 Input Sheet'!$G$17*Q5,"") ->  | R12: =IF(R3<'Opt 1 Input Sheet'!$G$17,-'Opt 1 Input Sheet'!$G$9/'Opt 1 Input Sheet'!$G$17*R5,"") ->  | S12: =IF(S3<'Opt 1 Input Sheet'!$G$17,-'Opt 1 Input Sheet'!$G$9/'Opt 1 Input Sheet'!$G$17*S5,"") ->  | T12: =IF(T3<'Opt 1 Input Sheet'!$G$17,-'Opt 1 Input Sheet'!$G$9/'Opt 1 Input Sheet'!$G$17*T5,"") ->  | U12: =IF(U3<'Opt 1 Input Sheet'!$G$17,-'Opt 1 Input Sheet'!$G$9/'Opt 1 Input Sheet'!$G$17*U5,"") ->  | V12: =IF(V3<'Opt 1 Input Sheet'!$G$17,-'Opt 1 Input Sheet'!$G$9/'Opt 1 Input Sheet'!$G$17*V5,"") ->  | W12: =IF(W3<'Opt 1 Input Sheet'!$G$17,-'Opt 1 Input Sheet'!$G$9/'Opt 1 Input Sheet'!$G$17*W5,"") ->  | X12: =IF(X3<'Opt 1 Input Sheet'!$G$17,-'Opt 1 Input Sheet'!$G$9/'Opt 1 Input Sheet'!$G$17*X5,"") ->  | Y12: =IF(Y3<'Opt 1 Input Sheet'!$G$17,-'Opt 1 Input Sheet'!$G$9/'Opt 1 Input Sheet'!$G$17*Y5,"") ->  | Z12: =IF(Z3<'Opt 1 Input Sheet'!$G$17,-'Opt 1 Input Sheet'!$G$9/'Opt 1 Input Sheet'!$G$17*Z5,"") -> 
D13: ='Opt 1 Input Sheet'!C14 -> Professional fees | F13: £ | H13: =SUM(K13:S13) -> 0 | K13: =IF(K3<'Opt 1 Input Sheet'!$G$17,-'Opt 1 Input Sheet'!$G$14/'Opt 1 Input Sheet'!$G$17*K5,"") -> 0 | L13: =IF(L3<'Opt 1 Input Sheet'!$G$17,-'Opt 1 Input Sheet'!$G$14/'Opt 1 Input Sheet'!$G$17*L5,"") -> 0 | M13: =IF(M3<'Opt 1 Input Sheet'!$G$17,-'Opt 1 Input Sheet'!$G$14/'Opt 1 Input Sheet'!$G$17*M5,"") ->  | N13: =IF(N3<'Opt 1 Input Sheet'!$G$17,-'Opt 1 Input Sheet'!$G$14/'Opt 1 Input Sheet'!$G$17*N5,"") ->  | O13: =IF(O3<'Opt 1 Input Sheet'!$G$17,-'Opt 1 Input Sheet'!$G$14/'Opt 1 Input Sheet'!$G$17*O5,"") ->  | P13: =IF(P3<'Opt 1 Input Sheet'!$G$17,-'Opt 1 Input Sheet'!$G$14/'Opt 1 Input Sheet'!$G$17*P5,"") ->  | Q13: =IF(Q3<'Opt 1 Input Sheet'!$G$17,-'Opt 1 Input Sheet'!$G$14/'Opt 1 Input Sheet'!$G$17*Q5,"") ->  | R13: =IF(R3<'Opt 1 Input Sheet'!$G$17,-'Opt 1 Input Sheet'!$G$14/'Opt 1 Input Sheet'!$G$17*R5,"") ->  | S13: =IF(S3<'Opt 1 Input Sheet'!$G$17,-'Opt 1 Input Sheet'!$G$14/'Opt 1 Input Sheet'!$G$17*S5,"") ->  | T13: =IF(T3<'Opt 1 Input Sheet'!$G$17,-'Opt 1 Input Sheet'!$G$14/'Opt 1 Input Sheet'!$G$17*T5,"") ->  | U13: =IF(U3<'Opt 1 Input Sheet'!$G$17,-'Opt 1 Input Sheet'!$G$14/'Opt 1 Input Sheet'!$G$17*U5,"") ->  | V13: =IF(V3<'Opt 1 Input Sheet'!$G$17,-'Opt 1 Input Sheet'!$G$14/'Opt 1 Input Sheet'!$G$17*V5,"") ->  | W13: =IF(W3<'Opt 1 Input Sheet'!$G$17,-'Opt 1 Input Sheet'!$G$14/'Opt 1 Input Sheet'!$G$17*W5,"") ->  | X13: =IF(X3<'Opt 1 Input Sheet'!$G$17,-'Opt 1 Input Sheet'!$G$14/'Opt 1 Input Sheet'!$G$17*X5,"") ->  | Y13: =IF(Y3<'Opt 1 Input Sheet'!$G$17,-'Opt 1 Input Sheet'!$G$14/'Opt 1 Input Sheet'!$G$17*Y5,"") ->  | Z13: =IF(Z3<'Opt 1 Input Sheet'!$G$17,-'Opt 1 Input Sheet'!$G$14/'Opt 1 Input Sheet'!$G$17*Z5,"") -> 
D14: ='Opt 1 Input Sheet'!C15 -> VAT | F14: £ | H14: =SUM(K14:S14) -> 0 | K14: =IF(K3<'Opt 1 Input Sheet'!$G$17,-'Opt 1 Input Sheet'!$G$15/'Opt 1 Input Sheet'!$G$17*K5,"") -> 0 | L14: =IF(L3<'Opt 1 Input Sheet'!$G$17,-'Opt 1 Input Sheet'!$G$15/'Opt 1 Input Sheet'!$G$17*L5,"") -> 0 | M14: =IF(M3<'Opt 1 Input Sheet'!$G$17,-'Opt 1 Input Sheet'!$G$15/'Opt 1 Input Sheet'!$G$17*M5,"") ->  | N14: =IF(N3<'Opt 1 Input Sheet'!$G$17,-'Opt 1 Input Sheet'!$G$15/'Opt 1 Input Sheet'!$G$17*N5,"") ->  | O14: =IF(O3<'Opt 1 Input Sheet'!$G$17,-'Opt 1 Input Sheet'!$G$15/'Opt 1 Input Sheet'!$G$17*O5,"") ->  | P14: =IF(P3<'Opt 1 Input Sheet'!$G$17,-'Opt 1 Input Sheet'!$G$15/'Opt 1 Input Sheet'!$G$17*P5,"") ->  | Q14: =IF(Q3<'Opt 1 Input Sheet'!$G$17,-'Opt 1 Input Sheet'!$G$15/'Opt 1 Input Sheet'!$G$17*Q5,"") ->  | R14: =IF(R3<'Opt 1 Input Sheet'!$G$17,-'Opt 1 Input Sheet'!$G$15/'Opt 1 Input Sheet'!$G$17*R5,"") ->  | S14: =IF(S3<'Opt 1 Input Sheet'!$G$17,-'Opt 1 Input Sheet'!$G$15/'Opt 1 Input Sheet'!$G$17*S5,"") ->  | T14: =IF(T3<'Opt 1 Input Sheet'!$G$17,-'Opt 1 Input Sheet'!$G$15/'Opt 1 Input Sheet'!$G$17*T5,"") ->  | U14: =IF(U3<'Opt 1 Input Sheet'!$G$17,-'Opt 1 Input Sheet'!$G$15/'Opt 1 Input Sheet'!$G$17*U5,"") ->  | V14: =IF(V3<'Opt 1 Input Sheet'!$G$17,-'Opt 1 Input Sheet'!$G$15/'Opt 1 Input Sheet'!$G$17*V5,"") ->  | W14: =IF(W3<'Opt 1 Input Sheet'!$G$17,-'Opt 1 Input Sheet'!$G$15/'Opt 1 Input Sheet'!$G$17*W5,"") ->  | X14: =IF(X3<'Opt 1 Input Sheet'!$G$17,-'Opt 1 Input Sheet'!$G$15/'Opt 1 Input Sheet'!$G$17*X5,"") ->  | Y14: =IF(Y3<'Opt 1 Input Sheet'!$G$17,-'Opt 1 Input Sheet'!$G$15/'Opt 1 Input Sheet'!$G$17*Y5,"") ->  | Z14: =IF(Z3<'Opt 1 Input Sheet'!$G$17,-'Opt 1 Input Sheet'!$G$15/'Opt 1 Input Sheet'!$G$17*Z5,"") -> 
D15: ='Opt 1 Input Sheet'!C16 -> Other fees/duties | F15: £ | H15: =SUM(K15:S15) -> 0 | K15: =IF(K3<'Opt 1 Input Sheet'!$G$17,-'Opt 1 Input Sheet'!$G$16/'Opt 1 Input Sheet'!$G$17*K5,"") -> 0 | L15: =IF(L3<'Opt 1 Input Sheet'!$G$17,-'Opt 1 Input Sheet'!$G$16/'Opt 1 Input Sheet'!$G$17*L5,"") -> 0 | M15: =IF(M3<'Opt 1 Input Sheet'!$G$17,-'Opt 1 Input Sheet'!$G$16/'Opt 1 Input Sheet'!$G$17*M5,"") ->  | N15: =IF(N3<'Opt 1 Input Sheet'!$G$17,-'Opt 1 Input Sheet'!$G$16/'Opt 1 Input Sheet'!$G$17*N5,"") ->  | O15: =IF(O3<'Opt 1 Input Sheet'!$G$17,-'Opt 1 Input Sheet'!$G$16/'Opt 1 Input Sheet'!$G$17*O5,"") ->  | P15: =IF(P3<'Opt 1 Input Sheet'!$G$17,-'Opt 1 Input Sheet'!$G$16/'Opt 1 Input Sheet'!$G$17*P5,"") ->  | Q15: =IF(Q3<'Opt 1 Input Sheet'!$G$17,-'Opt 1 Input Sheet'!$G$16/'Opt 1 Input Sheet'!$G$17*Q5,"") ->  | R15: =IF(R3<'Opt 1 Input Sheet'!$G$17,-'Opt 1 Input Sheet'!$G$16/'Opt 1 Input Sheet'!$G$17*R5,"") ->  | S15: =IF(S3<'Opt 1 Input Sheet'!$G$17,-'Opt 1 Input Sheet'!$G$16/'Opt 1 Input Sheet'!$G$17*S5,"") ->  | T15: =IF(T3<'Opt 1 Input Sheet'!$G$17,-'Opt 1 Input Sheet'!$G$16/'Opt 1 Input Sheet'!$G$17*T5,"") ->  | U15: =IF(U3<'Opt 1 Input Sheet'!$G$17,-'Opt 1 Input Sheet'!$G$16/'Opt 1 Input Sheet'!$G$17*U5,"") ->  | V15: =IF(V3<'Opt 1 Input Sheet'!$G$17,-'Opt 1 Input Sheet'!$G$16/'Opt 1 Input Sheet'!$G$17*V5,"") ->  | W15: =IF(W3<'Opt 1 Input Sheet'!$G$17,-'Opt 1 Input Sheet'!$G$16/'Opt 1 Input Sheet'!$G$17*W5,"") ->  | X15: =IF(X3<'Opt 1 Input Sheet'!$G$17,-'Opt 1 Input Sheet'!$G$16/'Opt 1 Input Sheet'!$G$17*X5,"") ->  | Y15: =IF(Y3<'Opt 1 Input Sheet'!$G$17,-'Opt 1 Input Sheet'!$G$16/'Opt 1 Input Sheet'!$G$17*Y5,"") ->  | Z15: =IF(Z3<'Opt 1 Input Sheet'!$G$17,-'Opt 1 Input Sheet'!$G$16/'Opt 1 Input Sheet'!$G$17*Z5,"") -> 
D16: Refurbishment | F16: £ | H16: =SUM(K16:S16) -> 0 | K16: =IF(AND(K7="Yes",K3>1),-'Opt 1 Input Sheet'!$G$20*K5,0) -> 0 | L16: =IF(AND(L7="Yes",L3>1),-'Opt 1 Input Sheet'!$G$20*L5,0) -> 0 | M16: =IF(AND(M7="Yes",M3>1),-'Opt 1 Input Sheet'!$G$20*M5,0) -> 0 | N16: =IF(AND(N7="Yes",N3>1),-'Opt 1 Input Sheet'!$G$20*N5,0) -> 0 | O16: =IF(AND(O7="Yes",O3>1),-'Opt 1 Input Sheet'!$G$20*O5,0) -> 0 | P16: =IF(AND(P7="Yes",P3>1),-'Opt 1 Input Sheet'!$G$20*P5,0) -> 0 | Q16: =IF(AND(Q7="Yes",Q3>1),-'Opt 1 Input Sheet'!$G$20*Q5,0) -> 0 | R16: =IF(AND(R7="Yes",R3>1),-'Opt 1 Input Sheet'!$G$20*R5,0) -> 0 | S16: =IF(AND(S7="Yes",S3>1),-'Opt 1 Input Sheet'!$G$20*S5,0) -> 0 | T16: =IF(AND(T7="Yes",T3>1),-'Opt 1 Input Sheet'!$G$20*T5,0) -> 0 | U16: =IF(AND(U7="Yes",U3>1),-'Opt 1 Input Sheet'!$G$20*U5,0) -> 0 | V16: =IF(AND(V7="Yes",V3>1),-'Opt 1 Input Sheet'!$G$20*V5,0) -> 0 | W16: =IF(AND(W7="Yes",W3>1),-'Opt 1 Input Sheet'!$G$20*W5,0) -> 0 | X16: =IF(AND(X7="Yes",X3>1),-'Opt 1 Input Sheet'!$G$20*X5,0) -> 0 | Y16: =IF(AND(Y7="Yes",Y3>1),-'Opt 1 Input Sheet'!$G$20*Y5,0) -> 0 | Z16: =IF(AND(Z7="Yes",Z3>1),-'Opt 1 Input Sheet'!$G$20*Z5,0) -> 0
C17: Total capital | F17: £ | H17: =SUM(H12:H16) -> -10100 | K17: =SUM(K12:K16) -> -5000 | L17: =SUM(L12:L16) -> -5100 | M17: =SUM(M12:M16) -> 0 | N17: 0 | O17: 0 | P17: 0 | Q17: 0 | R17: 0 | S17: 0 | T17: 0 | U17: 0 | V17: 0 | W17: 0 | X17: 0 | Y17: 0 | Z17: 0
B19: Cash Flow Statement
C20: Revenue
D21: ='Opt 1 Input Sheet'!B32 -> Membership income | F21: £ | H21: =SUM(K21:S21) -> 4640.777059 | K21: =IF(K3>'Opt 1 Input Sheet'!$G$29,(VLOOKUP(K3,'Opt 1 Input Sheet'!$E$34:$G$48,3,FALSE)*K5*'Opt 1 Input Sheet'!$G$50),"") ->  | L21: =IF(L3>'Opt 1 Input Sheet'!$G$29,(VLOOKUP(L3,'Opt 1 Input Sheet'!$E$34:$G$48,3,FALSE)*L5*'Opt 1 Input Sheet'!$G$50),"") ->  | M21: =IF(M3>'Opt 1 Input Sheet'!$G$29,(VLOOKUP(M3,'Opt 1 Input Sheet'!$E$34:$G$48,3,FALSE)*M5*'Opt 1 Input Sheet'!$G$50),"") -> 624.24 | N21: =IF(N3>'Opt 1 Input Sheet'!$G$29,(VLOOKUP(N3,'Opt 1 Input Sheet'!$E$34:$G$48,3,FALSE)*N5*'Opt 1 Input Sheet'!$G$50),"") -> 636.7248 | O21: =IF(O3>'Opt 1 Input Sheet'!$G$29,(VLOOKUP(O3,'Opt 1 Input Sheet'!$E$34:$G$48,3,FALSE)*O5*'Opt 1 Input Sheet'!$G$50),"") -> 649.459296 | P21: =IF(P3>'Opt 1 Input Sheet'!$G$29,(VLOOKUP(P3,'Opt 1 Input Sheet'!$E$34:$G$48,3,FALSE)*P5*'Opt 1 Input Sheet'!$G$50),"") -> 662.4484819 | Q21: =IF(Q3>'Opt 1 Input Sheet'!$G$29,(VLOOKUP(Q3,'Opt 1 Input Sheet'!$E$34:$G$48,3,FALSE)*Q5*'Opt 1 Input Sheet'!$G$50),"") -> 675.6974516 | R21: =IF(R3>'Opt 1 Input Sheet'!$G$29,(VLOOKUP(R3,'Opt 1 Input Sheet'!$E$34:$G$48,3,FALSE)*R5*'Opt 1 Input Sheet'!$G$50),"") -> 689.2114006 | S21: =IF(S3>'Opt 1 Input Sheet'!$G$29,(VLOOKUP(S3,'Opt 1 Input Sheet'!$E$34:$G$48,3,FALSE)*S5*'Opt 1 Input Sheet'!$G$50),"") -> 702.9956286 | T21: =IF(T3>'Opt 1 Input Sheet'!$G$29,(VLOOKUP(T3,'Opt 1 Input Sheet'!$E$34:$G$48,3,FALSE)*T5*'Opt 1 Input Sheet'!$G$50),"") -> 717.0555412 | U21: =IF(U3>'Opt 1 Input Sheet'!$G$29,(VLOOKUP(U3,'Opt 1 Input Sheet'!$E$34:$G$48,3,FALSE)*U5*'Opt 1 Input Sheet'!$G$50),"") -> 731.396652 | V21: =IF(V3>'Opt 1 Input Sheet'!$G$29,(VLOOKUP(V3,'Opt 1 Input Sheet'!$E$34:$G$48,3,FALSE)*V5*'Opt 1 Input Sheet'!$G$50),"") -> 746.024585 | W21: =IF(W3>'Opt 1 Input Sheet'!$G$29,(VLOOKUP(W3,'Opt 1 Input Sheet'!$E$34:$G$48,3,FALSE)*W5*'Opt 1 Input Sheet'!$G$50),"") -> 0 | X21: =IF(X3>'Opt 1 Input Sheet'!$G$29,(VLOOKUP(X3,'Opt 1 Input Sheet'!$E$34:$G$48,3,FALSE)*X5*'Opt 1 Input Sheet'!$G$50),"") -> 0 | Y21: =IF(Y3>'Opt 1 Input Sheet'!$G$29,(VLOOKUP(Y3,'Opt 1 Input Sheet'!$E$34:$G$48,3,FALSE)*Y5*'Opt 1 Input Sheet'!$G$50),"") -> 0 | Z21: =IF(Z3>'Opt 1 Input Sheet'!$G$29,(VLOOKUP(Z3,'Opt 1 Input Sheet'!$E$34:$G$48,3,FALSE)*Z5*'Opt 1 Input Sheet'!$G$50),"") -> 0 | AD21: Membership income
D22: ='Opt 1 Input Sheet'!C53 -> Accommodation income | F22: £ | H22: 0 | K22: =IF(K3>'Opt 1 Input Sheet'!$G$29,'Opt 1 Input Sheet'!$G$54*'Opt 1 Input Sheet'!$G$55*'Opt 1 Input Sheet'!$G$56/365*'Opt 1 Input Sheet'!$G$57*'Opt 1 Output sheet'!K5,"") ->  | L22: =IF(L3>'Opt 1 Input Sheet'!$G$29,'Opt 1 Input Sheet'!$G$54*'Opt 1 Input Sheet'!$G$55*'Opt 1 Input Sheet'!$G$56/365*'Opt 1 Input Sheet'!$G$57*'Opt 1 Output sheet'!L5,"") ->  | M22: =IF(M3>'Opt 1 Input Sheet'!$G$29,'Opt 1 Input Sheet'!$G$54*'Opt 1 Input Sheet'!$G$55*'Opt 1 Input Sheet'!$G$56/365*'Opt 1 Input Sheet'!$G$57*'Opt 1 Output sheet'!M5,"") -> 0 | N22: =IF(N3>'Opt 1 Input Sheet'!$G$29,'Opt 1 Input Sheet'!$G$54*'Opt 1 Input Sheet'!$G$55*'Opt 1 Input Sheet'!$G$56/365*'Opt 1 Input Sheet'!$G$57*'Opt 1 Output sheet'!N5,"") -> 0 | O22: =IF(O3>'Opt 1 Input Sheet'!$G$29,'Opt 1 Input Sheet'!$G$54*'Opt 1 Input Sheet'!$G$55*'Opt 1 Input Sheet'!$G$56/365*'Opt 1 Input Sheet'!$G$57*'Opt 1 Output sheet'!O5,"") -> 0 | P22: =IF(P3>'Opt 1 Input Sheet'!$G$29,'Opt 1 Input Sheet'!$G$54*'Opt 1 Input Sheet'!$G$55*'Opt 1 Input Sheet'!$G$56/365*'Opt 1 Input Sheet'!$G$57*'Opt 1 Output sheet'!P5,"") -> 0 | Q22: =IF(Q3>'Opt 1 Input Sheet'!$G$29,'Opt 1 Input Sheet'!$G$54*'Opt 1 Input Sheet'!$G$55*'Opt 1 Input Sheet'!$G$56/365*'Opt 1 Input Sheet'!$G$57*'Opt 1 Output sheet'!Q5,"") -> 0 | R22: =IF(R3>'Opt 1 Input Sheet'!$G$29,'Opt 1 Input Sheet'!$G$54*'Opt 1 Input Sheet'!$G$55*'Opt 1 Input Sheet'!$G$56/365*'Opt 1 Input Sheet'!$G$57*'Opt 1 Output sheet'!R5,"") -> 0 | S22: =IF(S3>'Opt 1 Input Sheet'!$G$29,'Opt 1 Input Sheet'!$G$54*'Opt 1 Input Sheet'!$G$55*'Opt 1 Input Sheet'!$G$56/365*'Opt 1 Input Sheet'!$G$57*'Opt 1 Output sheet'!S5,"") -> 0 | T22: =IF(T3>'Opt 1 Input Sheet'!$G$29,'Opt 1 Input Sheet'!$G$54*'Opt 1 Input Sheet'!$G$55*'Opt 1 Input Sheet'!$G$56/365*'Opt 1 Input Sheet'!$G$57*'Opt 1 Output sheet'!T5,"") -> 0 | U22: =IF(U3>'Opt 1 Input Sheet'!$G$29,'Opt 1 Input Sheet'!$G$54*'Opt 1 Input Sheet'!$G$55*'Opt 1 Input Sheet'!$G$56/365*'Opt 1 Input Sheet'!$G$57*'Opt 1 Output sheet'!U5,"") -> 0 | V22: =IF(V3>'Opt 1 Input Sheet'!$G$29,'Opt 1 Input Sheet'!$G$54*'Opt 1 Input Sheet'!$G$55*'Opt 1 Input Sheet'!$G$56/365*'Opt 1 Input Sheet'!$G$57*'Opt 1 Output sheet'!V5,"") -> 0 | W22: =IF(W3>'Opt 1 Input Sheet'!$G$29,'Opt 1 Input Sheet'!$G$54*'Opt 1 Input Sheet'!$G$55*'Opt 1 Input Sheet'!$G$56/365*'Opt 1 Input Sheet'!$G$57*'Opt 1 Output sheet'!W5,"") -> 0 | X22: =IF(X3>'Opt 1 Input Sheet'!$G$29,'Opt 1 Input Sheet'!$G$54*'Opt 1 Input Sheet'!$G$55*'Opt 1 Input Sheet'!$G$56/365*'Opt 1 Input Sheet'!$G$57*'Opt 1 Output sheet'!X5,"") -> 0 | Y22: =IF(Y3>'Opt 1 Input Sheet'!$G$29,'Opt 1 Input Sheet'!$G$54*'Opt 1 Input Sheet'!$G$55*'Opt 1 Input Sheet'!$G$56/365*'Opt 1 Input Sheet'!$G$57*'Opt 1 Output sheet'!Y5,"") -> 0 | Z22: =IF(Z3>'Opt 1 Input Sheet'!$G$29,'Opt 1 Input Sheet'!$G$54*'Opt 1 Input Sheet'!$G$55*'Opt 1 Input Sheet'!$G$56/365*'Opt 1 Input Sheet'!$G$57*'Opt 1 Output sheet'!Z5,"") -> 0 | AD22: Accommodation income
D23: ='Opt 1 Input Sheet'!C59 -> Rental space income | F23: £ | H23: 0 | K23: =IF(K3>'Opt 1 Input Sheet'!$G$29,'Opt 1 Input Sheet'!$G$60*'Opt 1 Input Sheet'!$G$61*'Opt 1 Input Sheet'!$G$62*'Opt 1 Output sheet'!K5,"") ->  | L23: =IF(L3>'Opt 1 Input Sheet'!$G$29,'Opt 1 Input Sheet'!$G$60*'Opt 1 Input Sheet'!$G$61*'Opt 1 Input Sheet'!$G$62*'Opt 1 Output sheet'!L5,"") ->  | M23: =IF(M3>'Opt 1 Input Sheet'!$G$29,'Opt 1 Input Sheet'!$G$60*'Opt 1 Input Sheet'!$G$61*'Opt 1 Input Sheet'!$G$62*'Opt 1 Output sheet'!M5,"") -> 0 | N23: =IF(N3>'Opt 1 Input Sheet'!$G$29,'Opt 1 Input Sheet'!$G$60*'Opt 1 Input Sheet'!$G$61*'Opt 1 Input Sheet'!$G$62*'Opt 1 Output sheet'!N5,"") -> 0 | O23: =IF(O3>'Opt 1 Input Sheet'!$G$29,'Opt 1 Input Sheet'!$G$60*'Opt 1 Input Sheet'!$G$61*'Opt 1 Input Sheet'!$G$62*'Opt 1 Output sheet'!O5,"") -> 0 | P23: =IF(P3>'Opt 1 Input Sheet'!$G$29,'Opt 1 Input Sheet'!$G$60*'Opt 1 Input Sheet'!$G$61*'Opt 1 Input Sheet'!$G$62*'Opt 1 Output sheet'!P5,"") -> 0 | Q23: =IF(Q3>'Opt 1 Input Sheet'!$G$29,'Opt 1 Input Sheet'!$G$60*'Opt 1 Input Sheet'!$G$61*'Opt 1 Input Sheet'!$G$62*'Opt 1 Output sheet'!Q5,"") -> 0 | R23: =IF(R3>'Opt 1 Input Sheet'!$G$29,'Opt 1 Input Sheet'!$G$60*'Opt 1 Input Sheet'!$G$61*'Opt 1 Input Sheet'!$G$62*'Opt 1 Output sheet'!R5,"") -> 0 | S23: =IF(S3>'Opt 1 Input Sheet'!$G$29,'Opt 1 Input Sheet'!$G$60*'Opt 1 Input Sheet'!$G$61*'Opt 1 Input Sheet'!$G$62*'Opt 1 Output sheet'!S5,"") -> 0 | T23: =IF(T3>'Opt 1 Input Sheet'!$G$29,'Opt 1 Input Sheet'!$G$60*'Opt 1 Input Sheet'!$G$61*'Opt 1 Input Sheet'!$G$62*'Opt 1 Output sheet'!T5,"") -> 0 | U23: =IF(U3>'Opt 1 Input Sheet'!$G$29,'Opt 1 Input Sheet'!$G$60*'Opt 1 Input Sheet'!$G$61*'Opt 1 Input Sheet'!$G$62*'Opt 1 Output sheet'!U5,"") -> 0 | V23: =IF(V3>'Opt 1 Input Sheet'!$G$29,'Opt 1 Input Sheet'!$G$60*'Opt 1 Input Sheet'!$G$61*'Opt 1 Input Sheet'!$G$62*'Opt 1 Output sheet'!V5,"") -> 0 | W23: =IF(W3>'Opt 1 Input Sheet'!$G$29,'Opt 1 Input Sheet'!$G$60*'Opt 1 Input Sheet'!$G$61*'Opt 1 Input Sheet'!$G$62*'Opt 1 Output sheet'!W5,"") -> 0 | X23: =IF(X3>'Opt 1 Input Sheet'!$G$29,'Opt 1 Input Sheet'!$G$60*'Opt 1 Input Sheet'!$G$61*'Opt 1 Input Sheet'!$G$62*'Opt 1 Output sheet'!X5,"") -> 0 | Y23: =IF(Y3>'Opt 1 Input Sheet'!$G$29,'Opt 1 Input Sheet'!$G$60*'Opt 1 Input Sheet'!$G$61*'Opt 1 Input Sheet'!$G$62*'Opt 1 Output sheet'!Y5,"") -> 0 | Z23: =IF(Z3>'Opt 1 Input Sheet'!$G$29,'Opt 1 Input Sheet'!$G$60*'Opt 1 Input Sheet'!$G$61*'Opt 1 Input Sheet'!$G$62*'Opt 1 Output sheet'!Z5,"") -> 0 | AD23: Rental space income
D24: ='Opt 1 Input Sheet'!C64 -> Room & equipment hire income | F24: £ | H24: 0 | K24: =IF(K3>'Opt 1 Input Sheet'!$G$29,'Opt 1 Input Sheet'!$G$65*'Opt 1 Input Sheet'!$G$66*'Opt 1 Input Sheet'!$G$67/365*'Opt 1 Input Sheet'!$G$68*'Opt 1 Output sheet'!K5,"") ->  | L24: =IF(L3>'Opt 1 Input Sheet'!$G$29,'Opt 1 Input Sheet'!$G$65*'Opt 1 Input Sheet'!$G$66*'Opt 1 Input Sheet'!$G$67/365*'Opt 1 Input Sheet'!$G$68*'Opt 1 Output sheet'!L5,"") ->  | M24: =IF(M3>'Opt 1 Input Sheet'!$G$29,'Opt 1 Input Sheet'!$G$65*'Opt 1 Input Sheet'!$G$66*'Opt 1 Input Sheet'!$G$67/365*'Opt 1 Input Sheet'!$G$68*'Opt 1 Output sheet'!M5,"") -> 0 | N24: =IF(N3>'Opt 1 Input Sheet'!$G$29,'Opt 1 Input Sheet'!$G$65*'Opt 1 Input Sheet'!$G$66*'Opt 1 Input Sheet'!$G$67/365*'Opt 1 Input Sheet'!$G$68*'Opt 1 Output sheet'!N5,"") -> 0 | O24: =IF(O3>'Opt 1 Input Sheet'!$G$29,'Opt 1 Input Sheet'!$G$65*'Opt 1 Input Sheet'!$G$66*'Opt 1 Input Sheet'!$G$67/365*'Opt 1 Input Sheet'!$G$68*'Opt 1 Output sheet'!O5,"") -> 0 | P24: =IF(P3>'Opt 1 Input Sheet'!$G$29,'Opt 1 Input Sheet'!$G$65*'Opt 1 Input Sheet'!$G$66*'Opt 1 Input Sheet'!$G$67/365*'Opt 1 Input Sheet'!$G$68*'Opt 1 Output sheet'!P5,"") -> 0 | Q24: =IF(Q3>'Opt 1 Input Sheet'!$G$29,'Opt 1 Input Sheet'!$G$65*'Opt 1 Input Sheet'!$G$66*'Opt 1 Input Sheet'!$G$67/365*'Opt 1 Input Sheet'!$G$68*'Opt 1 Output sheet'!Q5,"") -> 0 | R24: =IF(R3>'Opt 1 Input Sheet'!$G$29,'Opt 1 Input Sheet'!$G$65*'Opt 1 Input Sheet'!$G$66*'Opt 1 Input Sheet'!$G$67/365*'Opt 1 Input Sheet'!$G$68*'Opt 1 Output sheet'!R5,"") -> 0 | S24: =IF(S3>'Opt 1 Input Sheet'!$G$29,'Opt 1 Input Sheet'!$G$65*'Opt 1 Input Sheet'!$G$66*'Opt 1 Input Sheet'!$G$67/365*'Opt 1 Input Sheet'!$G$68*'Opt 1 Output sheet'!S5,"") -> 0 | T24: =IF(T3>'Opt 1 Input Sheet'!$G$29,'Opt 1 Input Sheet'!$G$65*'Opt 1 Input Sheet'!$G$66*'Opt 1 Input Sheet'!$G$67/365*'Opt 1 Input Sheet'!$G$68*'Opt 1 Output sheet'!T5,"") -> 0 | U24: =IF(U3>'Opt 1 Input Sheet'!$G$29,'Opt 1 Input Sheet'!$G$65*'Opt 1 Input Sheet'!$G$66*'Opt 1 Input Sheet'!$G$67/365*'Opt 1 Input Sheet'!$G$68*'Opt 1 Output sheet'!U5,"") -> 0 | V24: =IF(V3>'Opt 1 Input Sheet'!$G$29,'Opt 1 Input Sheet'!$G$65*'Opt 1 Input Sheet'!$G$66*'Opt 1 Input Sheet'!$G$67/365*'Opt 1 Input Sheet'!$G$68*'Opt 1 Output sheet'!V5,"") -> 0 | W24: =IF(W3>'Opt 1 Input Sheet'!$G$29,'Opt 1 Input Sheet'!$G$65*'Opt 1 Input Sheet'!$G$66*'Opt 1 Input Sheet'!$G$67/365*'Opt 1 Input Sheet'!$G$68*'Opt 1 Output sheet'!W5,"") -> 0 | X24: =IF(X3>'Opt 1 Input Sheet'!$G$29,'Opt 1 Input Sheet'!$G$65*'Opt 1 Input Sheet'!$G$66*'Opt 1 Input Sheet'!$G$67/365*'Opt 1 Input Sheet'!$G$68*'Opt 1 Output sheet'!X5,"") -> 0 | Y24: =IF(Y3>'Opt 1 Input Sheet'!$G$29,'Opt 1 Input Sheet'!$G$65*'Opt 1 Input Sheet'!$G$66*'Opt 1 Input Sheet'!$G$67/365*'Opt 1 Input Sheet'!$G$68*'Opt 1 Output sheet'!Y5,"") -> 0 | Z24: =IF(Z3>'Opt 1 Input Sheet'!$G$29,'Opt 1 Input Sheet'!$G$65*'Opt 1 Input Sheet'!$G$66*'Opt 1 Input Sheet'!$G$67/365*'Opt 1 Input Sheet'!$G$68*'Opt 1 Output sheet'!Z5,"") -> 0 | AD24: Room & equipment hire income
D25: ='Opt 1 Input Sheet'!C70 -> Restaurant and private dining income | F25: £ | H25: 0 | K25: =IF(K3>'Opt 1 Input Sheet'!$G$29,'Opt 1 Input Sheet'!$G$71*'Opt 1 Input Sheet'!$G$72*'Opt 1 Input Sheet'!$G$73/365*'Opt 1 Output sheet'!K5,"") ->  | L25: =IF(L3>'Opt 1 Input Sheet'!$G$29,'Opt 1 Input Sheet'!$G$71*'Opt 1 Input Sheet'!$G$72*'Opt 1 Input Sheet'!$G$73/365*'Opt 1 Output sheet'!L5,"") ->  | M25: =IF(M3>'Opt 1 Input Sheet'!$G$29,'Opt 1 Input Sheet'!$G$71*'Opt 1 Input Sheet'!$G$72*'Opt 1 Input Sheet'!$G$73/365*'Opt 1 Output sheet'!M5,"") -> 0 | N25: =IF(N3>'Opt 1 Input Sheet'!$G$29,'Opt 1 Input Sheet'!$G$71*'Opt 1 Input Sheet'!$G$72*'Opt 1 Input Sheet'!$G$73/365*'Opt 1 Output sheet'!N5,"") -> 0 | O25: =IF(O3>'Opt 1 Input Sheet'!$G$29,'Opt 1 Input Sheet'!$G$71*'Opt 1 Input Sheet'!$G$72*'Opt 1 Input Sheet'!$G$73/365*'Opt 1 Output sheet'!O5,"") -> 0 | P25: =IF(P3>'Opt 1 Input Sheet'!$G$29,'Opt 1 Input Sheet'!$G$71*'Opt 1 Input Sheet'!$G$72*'Opt 1 Input Sheet'!$G$73/365*'Opt 1 Output sheet'!P5,"") -> 0 | Q25: =IF(Q3>'Opt 1 Input Sheet'!$G$29,'Opt 1 Input Sheet'!$G$71*'Opt 1 Input Sheet'!$G$72*'Opt 1 Input Sheet'!$G$73/365*'Opt 1 Output sheet'!Q5,"") -> 0 | R25: =IF(R3>'Opt 1 Input Sheet'!$G$29,'Opt 1 Input Sheet'!$G$71*'Opt 1 Input Sheet'!$G$72*'Opt 1 Input Sheet'!$G$73/365*'Opt 1 Output sheet'!R5,"") -> 0 | S25: =IF(S3>'Opt 1 Input Sheet'!$G$29,'Opt 1 Input Sheet'!$G$71*'Opt 1 Input Sheet'!$G$72*'Opt 1 Input Sheet'!$G$73/365*'Opt 1 Output sheet'!S5,"") -> 0 | T25: =IF(T3>'Opt 1 Input Sheet'!$G$29,'Opt 1 Input Sheet'!$G$71*'Opt 1 Input Sheet'!$G$72*'Opt 1 Input Sheet'!$G$73/365*'Opt 1 Output sheet'!T5,"") -> 0 | U25: =IF(U3>'Opt 1 Input Sheet'!$G$29,'Opt 1 Input Sheet'!$G$71*'Opt 1 Input Sheet'!$G$72*'Opt 1 Input Sheet'!$G$73/365*'Opt 1 Output sheet'!U5,"") -> 0 | V25: =IF(V3>'Opt 1 Input Sheet'!$G$29,'Opt 1 Input Sheet'!$G$71*'Opt 1 Input Sheet'!$G$72*'Opt 1 Input Sheet'!$G$73/365*'Opt 1 Output sheet'!V5,"") -> 0 | W25: =IF(W3>'Opt 1 Input Sheet'!$G$29,'Opt 1 Input Sheet'!$G$71*'Opt 1 Input Sheet'!$G$72*'Opt 1 Input Sheet'!$G$73/365*'Opt 1 Output sheet'!W5,"") -> 0 | X25: =IF(X3>'Opt 1 Input Sheet'!$G$29,'Opt 1 Input Sheet'!$G$71*'Opt 1 Input Sheet'!$G$72*'Opt 1 Input Sheet'!$G$73/365*'Opt 1 Output sheet'!X5,"") -> 0 | Y25: =IF(Y3>'Opt 1 Input Sheet'!$G$29,'Opt 1 Input Sheet'!$G$71*'Opt 1 Input Sheet'!$G$72*'Opt 1 Input Sheet'!$G$73/365*'Opt 1 Output sheet'!Y5,"") -> 0 | Z25: =IF(Z3>'Opt 1 Input Sheet'!$G$29,'Opt 1 Input Sheet'!$G$71*'Opt 1 Input Sheet'!$G$72*'Opt 1 Input Sheet'!$G$73/365*'Opt 1 Output sheet'!Z5,"") -> 0 | AD25: Restaurant and private dining income
D26: ='Opt 1 Input Sheet'!C76 -> Events income | F26: £ | H26: 0 | K26: =IF(K3>'Opt 1 Input Sheet'!$G$29,'Opt 1 Input Sheet'!$G$77*'Opt 1 Input Sheet'!$G$78*'Opt 1 Input Sheet'!$G$79*'Opt 1 Output sheet'!K5,"") ->  | L26: =IF(L3>'Opt 1 Input Sheet'!$G$29,'Opt 1 Input Sheet'!$G$77*'Opt 1 Input Sheet'!$G$78*'Opt 1 Input Sheet'!$G$79*'Opt 1 Output sheet'!L5,"") ->  | M26: =IF(M3>'Opt 1 Input Sheet'!$G$29,'Opt 1 Input Sheet'!$G$77*'Opt 1 Input Sheet'!$G$78*'Opt 1 Input Sheet'!$G$79*'Opt 1 Output sheet'!M5,"") -> 0 | N26: =IF(N3>'Opt 1 Input Sheet'!$G$29,'Opt 1 Input Sheet'!$G$77*'Opt 1 Input Sheet'!$G$78*'Opt 1 Input Sheet'!$G$79*'Opt 1 Output sheet'!N5,"") -> 0 | O26: =IF(O3>'Opt 1 Input Sheet'!$G$29,'Opt 1 Input Sheet'!$G$77*'Opt 1 Input Sheet'!$G$78*'Opt 1 Input Sheet'!$G$79*'Opt 1 Output sheet'!O5,"") -> 0 | P26: =IF(P3>'Opt 1 Input Sheet'!$G$29,'Opt 1 Input Sheet'!$G$77*'Opt 1 Input Sheet'!$G$78*'Opt 1 Input Sheet'!$G$79*'Opt 1 Output sheet'!P5,"") -> 0 | Q26: =IF(Q3>'Opt 1 Input Sheet'!$G$29,'Opt 1 Input Sheet'!$G$77*'Opt 1 Input Sheet'!$G$78*'Opt 1 Input Sheet'!$G$79*'Opt 1 Output sheet'!Q5,"") -> 0 | R26: =IF(R3>'Opt 1 Input Sheet'!$G$29,'Opt 1 Input Sheet'!$G$77*'Opt 1 Input Sheet'!$G$78*'Opt 1 Input Sheet'!$G$79*'Opt 1 Output sheet'!R5,"") -> 0 | S26: =IF(S3>'Opt 1 Input Sheet'!$G$29,'Opt 1 Input Sheet'!$G$77*'Opt 1 Input Sheet'!$G$78*'Opt 1 Input Sheet'!$G$79*'Opt 1 Output sheet'!S5,"") -> 0 | T26: =IF(T3>'Opt 1 Input Sheet'!$G$29,'Opt 1 Input Sheet'!$G$77*'Opt 1 Input Sheet'!$G$78*'Opt 1 Input Sheet'!$G$79*'Opt 1 Output sheet'!T5,"") -> 0 | U26: =IF(U3>'Opt 1 Input Sheet'!$G$29,'Opt 1 Input Sheet'!$G$77*'Opt 1 Input Sheet'!$G$78*'Opt 1 Input Sheet'!$G$79*'Opt 1 Output sheet'!U5,"") -> 0 | V26: =IF(V3>'Opt 1 Input Sheet'!$G$29,'Opt 1 Input Sheet'!$G$77*'Opt 1 Input Sheet'!$G$78*'Opt 1 Input Sheet'!$G$79*'Opt 1 Output sheet'!V5,"") -> 0 | W26: =IF(W3>'Opt 1 Input Sheet'!$G$29,'Opt 1 Input Sheet'!$G$77*'Opt 1 Input Sheet'!$G$78*'Opt 1 Input Sheet'!$G$79*'Opt 1 Output sheet'!W5,"") -> 0 | X26: =IF(X3>'Opt 1 Input Sheet'!$G$29,'Opt 1 Input Sheet'!$G$77*'Opt 1 Input Sheet'!$G$78*'Opt 1 Input Sheet'!$G$79*'Opt 1 Output sheet'!X5,"") -> 0 | Y26: =IF(Y3>'Opt 1 Input Sheet'!$G$29,'Opt 1 Input Sheet'!$G$77*'Opt 1 Input Sheet'!$G$78*'Opt 1 Input Sheet'!$G$79*'Opt 1 Output sheet'!Y5,"") -> 0 | Z26: =IF(Z3>'Opt 1 Input Sheet'!$G$29,'Opt 1 Input Sheet'!$G$77*'Opt 1 Input Sheet'!$G$78*'Opt 1 Input Sheet'!$G$79*'Opt 1 Output sheet'!Z5,"") -> 0 | AD26: Events income
C27: Total revenue | F27: £ | H27: =SUM(H21:H26) -> 4640.777059 | L27: =SUM(L21:L26) -> 0 | M27: =SUM(M21:M26) -> 624.24 | N27: 636.7248 | O27: 649.459296 | P27: 662.4484819 | Q27: 675.6974516 | R27: 689.2114006 | S27: 702.9956286 | T27: =SUM(T21:T26) -> 717.0555412 | U27: 731.396652 | V27: 746.024585 | W27: 0 | X27: 0 | Y27: 0 | Z27: 0
C30: Expenditure
D31: ='Opt 1 Input Sheet'!D83 -> Staff costs | F31: £ | H31: =SUM(K31:S31) -> 0 | K31: =IF(K3>'Opt 1 Input Sheet'!$G$29,-'Opt 1 Input Sheet'!$G$83*'Opt 1 Output sheet'!K5,"") ->  | L31: =IF(L3>'Opt 1 Input Sheet'!$G$29,-'Opt 1 Input Sheet'!$G$83*'Opt 1 Output sheet'!L5,"") ->  | M31: =IF(M3>'Opt 1 Input Sheet'!$G$29,-'Opt 1 Input Sheet'!$G$83*'Opt 1 Output sheet'!M5,"") -> 0 | N31: =IF(N3>'Opt 1 Input Sheet'!$G$29,-'Opt 1 Input Sheet'!$G$83*'Opt 1 Output sheet'!N5,"") -> 0 | O31: =IF(O3>'Opt 1 Input Sheet'!$G$29,-'Opt 1 Input Sheet'!$G$83*'Opt 1 Output sheet'!O5,"") -> 0 | P31: =IF(P3>'Opt 1 Input Sheet'!$G$29,-'Opt 1 Input Sheet'!$G$83*'Opt 1 Output sheet'!P5,"") -> 0 | Q31: =IF(Q3>'Opt 1 Input Sheet'!$G$29,-'Opt 1 Input Sheet'!$G$83*'Opt 1 Output sheet'!Q5,"") -> 0 | R31: =IF(R3>'Opt 1 Input Sheet'!$G$29,-'Opt 1 Input Sheet'!$G$83*'Opt 1 Output sheet'!R5,"") -> 0 | S31: =IF(S3>'Opt 1 Input Sheet'!$G$29,-'Opt 1 Input Sheet'!$G$83*'Opt 1 Output sheet'!S5,"") -> 0 | T31: =IF(T3>'Opt 1 Input Sheet'!$G$29,-'Opt 1 Input Sheet'!$G$83*'Opt 1 Output sheet'!T5,"") -> 0 | U31: =IF(U3>'Opt 1 Input Sheet'!$G$29,-'Opt 1 Input Sheet'!$G$83*'Opt 1 Output sheet'!U5,"") -> 0 | V31: =IF(V3>'Opt 1 Input Sheet'!$G$29,-'Opt 1 Input Sheet'!$G$83*'Opt 1 Output sheet'!V5,"") -> 0 | W31: =IF(W3>'Opt 1 Input Sheet'!$G$29,-'Opt 1 Input Sheet'!$G$83*'Opt 1 Output sheet'!W5,"") -> 0 | X31: =IF(X3>'Opt 1 Input Sheet'!$G$29,-'Opt 1 Input Sheet'!$G$83*'Opt 1 Output sheet'!X5,"") -> 0 | Y31: =IF(Y3>'Opt 1 Input Sheet'!$G$29,-'Opt 1 Input Sheet'!$G$83*'Opt 1 Output sheet'!Y5,"") -> 0 | Z31: =IF(Z3>'Opt 1 Input Sheet'!$G$29,-'Opt 1 Input Sheet'!$G$83*'Opt 1 Output sheet'!Z5,"") -> 0 | AD31: Staff costs
D32: ='Opt 1 Input Sheet'!D85 -> Cost of sales | F32: £ | H32: =SUM(K32:S32) -> 0 | K32: =IF(K3>'Opt 1 Input Sheet'!$G$29,-'Opt 1 Input Sheet'!$G$85*'Opt 1 Output sheet'!K5,"") ->  | L32: =IF(L3>'Opt 1 Input Sheet'!$G$29,-'Opt 1 Input Sheet'!$G$85*'Opt 1 Output sheet'!L5,"") ->  | M32: =IF(M3>'Opt 1 Input Sheet'!$G$29,-'Opt 1 Input Sheet'!$G$85*'Opt 1 Output sheet'!M5,"") -> 0 | N32: =IF(N3>'Opt 1 Input Sheet'!$G$29,-'Opt 1 Input Sheet'!$G$85*'Opt 1 Output sheet'!N5,"") -> 0 | O32: =IF(O3>'Opt 1 Input Sheet'!$G$29,-'Opt 1 Input Sheet'!$G$85*'Opt 1 Output sheet'!O5,"") -> 0 | P32: =IF(P3>'Opt 1 Input Sheet'!$G$29,-'Opt 1 Input Sheet'!$G$85*'Opt 1 Output sheet'!P5,"") -> 0 | Q32: =IF(Q3>'Opt 1 Input Sheet'!$G$29,-'Opt 1 Input Sheet'!$G$85*'Opt 1 Output sheet'!Q5,"") -> 0 | R32: =IF(R3>'Opt 1 Input Sheet'!$G$29,-'Opt 1 Input Sheet'!$G$85*'Opt 1 Output sheet'!R5,"") -> 0 | S32: =IF(S3>'Opt 1 Input Sheet'!$G$29,-'Opt 1 Input Sheet'!$G$85*'Opt 1 Output sheet'!S5,"") -> 0 | T32: =IF(T3>'Opt 1 Input Sheet'!$G$29,-'Opt 1 Input Sheet'!$G$85*'Opt 1 Output sheet'!T5,"") -> 0 | U32: =IF(U3>'Opt 1 Input Sheet'!$G$29,-'Opt 1 Input Sheet'!$G$85*'Opt 1 Output sheet'!U5,"") -> 0 | V32: =IF(V3>'Opt 1 Input Sheet'!$G$29,-'Opt 1 Input Sheet'!$G$85*'Opt 1 Output sheet'!V5,"") -> 0 | W32: =IF(W3>'Opt 1 Input Sheet'!$G$29,-'Opt 1 Input Sheet'!$G$85*'Opt 1 Output sheet'!W5,"") -> 0 | X32: =IF(X3>'Opt 1 Input Sheet'!$G$29,-'Opt 1 Input Sheet'!$G$85*'Opt 1 Output sheet'!X5,"") -> 0 | Y32: =IF(Y3>'Opt 1 Input Sheet'!$G$29,-'Opt 1 Input Sheet'!$G$85*'Opt 1 Output sheet'!Y5,"") -> 0 | Z32: =IF(Z3>'Opt 1 Input Sheet'!$G$29,-'Opt 1 Input Sheet'!$G$85*'Opt 1 Output sheet'!Z5,"") -> 0 | AD32: Cost of sales
D33: ='Opt 1 Input Sheet'!D87 -> Marketing | F33: £ | H33: =SUM(K33:S33) -> 0 | K33: =IF(K3>'Opt 1 Input Sheet'!$G$29,-'Opt 1 Input Sheet'!$G$87*'Opt 1 Output sheet'!K5,"") ->  | L33: =IF(L3>'Opt 1 Input Sheet'!$G$29,-'Opt 1 Input Sheet'!$G$87*'Opt 1 Output sheet'!L5,"") ->  | M33: =IF(M3>'Opt 1 Input Sheet'!$G$29,-'Opt 1 Input Sheet'!$G$87*'Opt 1 Output sheet'!M5,"") -> 0 | N33: =IF(N3>'Opt 1 Input Sheet'!$G$29,-'Opt 1 Input Sheet'!$G$87*'Opt 1 Output sheet'!N5,"") -> 0 | O33: =IF(O3>'Opt 1 Input Sheet'!$G$29,-'Opt 1 Input Sheet'!$G$87*'Opt 1 Output sheet'!O5,"") -> 0 | P33: =IF(P3>'Opt 1 Input Sheet'!$G$29,-'Opt 1 Input Sheet'!$G$87*'Opt 1 Output sheet'!P5,"") -> 0 | Q33: =IF(Q3>'Opt 1 Input Sheet'!$G$29,-'Opt 1 Input Sheet'!$G$87*'Opt 1 Output sheet'!Q5,"") -> 0 | R33: =IF(R3>'Opt 1 Input Sheet'!$G$29,-'Opt 1 Input Sheet'!$G$87*'Opt 1 Output sheet'!R5,"") -> 0 | S33: =IF(S3>'Opt 1 Input Sheet'!$G$29,-'Opt 1 Input Sheet'!$G$87*'Opt 1 Output sheet'!S5,"") -> 0 | T33: =IF(T3>'Opt 1 Input Sheet'!$G$29,-'Opt 1 Input Sheet'!$G$87*'Opt 1 Output sheet'!T5,"") -> 0 | U33: =IF(U3>'Opt 1 Input Sheet'!$G$29,-'Opt 1 Input Sheet'!$G$87*'Opt 1 Output sheet'!U5,"") -> 0 | V33: =IF(V3>'Opt 1 Input Sheet'!$G$29,-'Opt 1 Input Sheet'!$G$87*'Opt 1 Output sheet'!V5,"") -> 0 | W33: =IF(W3>'Opt 1 Input Sheet'!$G$29,-'Opt 1 Input Sheet'!$G$87*'Opt 1 Output sheet'!W5,"") -> 0 | X33: =IF(X3>'Opt 1 Input Sheet'!$G$29,-'Opt 1 Input Sheet'!$G$87*'Opt 1 Output sheet'!X5,"") -> 0 | Y33: =IF(Y3>'Opt 1 Input Sheet'!$G$29,-'Opt 1 Input Sheet'!$G$87*'Opt 1 Output sheet'!Y5,"") -> 0 | Z33: =IF(Z3>'Opt 1 Input Sheet'!$G$29,-'Opt 1 Input Sheet'!$G$87*'Opt 1 Output sheet'!Z5,"") -> 0 | AD33: Marketing
D34: ='Opt 1 Input Sheet'!D88 -> Other opex | F34: £ | H34: 0 | K34: =IF(K3>'Opt 1 Input Sheet'!$G$29,-'Opt 1 Input Sheet'!$G$88*'Opt 1 Output sheet'!K5,"") ->  | L34: =IF(L3>'Opt 1 Input Sheet'!$G$29,-'Opt 1 Input Sheet'!$G$88*'Opt 1 Output sheet'!L5,"") ->  | M34: =IF(M3>'Opt 1 Input Sheet'!$G$29,-'Opt 1 Input Sheet'!$G$88*'Opt 1 Output sheet'!M5,"") -> 0 | N34: =IF(N3>'Opt 1 Input Sheet'!$G$29,-'Opt 1 Input Sheet'!$G$88*'Opt 1 Output sheet'!N5,"") -> 0 | O34: =IF(O3>'Opt 1 Input Sheet'!$G$29,-'Opt 1 Input Sheet'!$G$88*'Opt 1 Output sheet'!O5,"") -> 0 | P34: =IF(P3>'Opt 1 Input Sheet'!$G$29,-'Opt 1 Input Sheet'!$G$88*'Opt 1 Output sheet'!P5,"") -> 0 | Q34: =IF(Q3>'Opt 1 Input Sheet'!$G$29,-'Opt 1 Input Sheet'!$G$88*'Opt 1 Output sheet'!Q5,"") -> 0 | R34: =IF(R3>'Opt 1 Input Sheet'!$G$29,-'Opt 1 Input Sheet'!$G$88*'Opt 1 Output sheet'!R5,"") -> 0 | S34: =IF(S3>'Opt 1 Input Sheet'!$G$29,-'Opt 1 Input Sheet'!$G$88*'Opt 1 Output sheet'!S5,"") -> 0 | T34: =IF(T3>'Opt 1 Input Sheet'!$G$29,-'Opt 1 Input Sheet'!$G$88*'Opt 1 Output sheet'!T5,"") -> 0 | U34: =IF(U3>'Opt 1 Input Sheet'!$G$29,-'Opt 1 Input Sheet'!$G$88*'Opt 1 Output sheet'!U5,"") -> 0 | V34: =IF(V3>'Opt 1 Input Sheet'!$G$29,-'Opt 1 Input Sheet'!$G$88*'Opt 1 Output sheet'!V5,"") -> 0 | W34: =IF(W3>'Opt 1 Input Sheet'!$G$29,-'Opt 1 Input Sheet'!$G$88*'Opt 1 Output sheet'!W5,"") -> 0 | X34: =IF(X3>'Opt 1 Input Sheet'!$G$29,-'Opt 1 Input Sheet'!$G$88*'Opt 1 Output sheet'!X5,"") -> 0 | Y34: =IF(Y3>'Opt 1 Input Sheet'!$G$29,-'Opt 1 Input Sheet'!$G$88*'Opt 1 Output sheet'!Y5,"") -> 0 | Z34: =IF(Z3>'Opt 1 Input Sheet'!$G$29,-'Opt 1 Input Sheet'!$G$88*'Opt 1 Output sheet'!Z5,"") -> 0 | AD34: Other opex
D35: ='Opt 1 Input Sheet'!D90 -> Estates costs | F35: £ | H35: 0 | K35: =IF(K3>'Opt 1 Input Sheet'!$G$29,-'Opt 1 Input Sheet'!$G$90*'Opt 1 Output sheet'!K5,"") ->  | L35: =IF(L3>'Opt 1 Input Sheet'!$G$29,-'Opt 1 Input Sheet'!$G$90*'Opt 1 Output sheet'!L5,"") ->  | M35: =IF(M3>'Opt 1 Input Sheet'!$G$29,-'Opt 1 Input Sheet'!$G$90*'Opt 1 Output sheet'!M5,"") -> 0 | N35: =IF(N3>'Opt 1 Input Sheet'!$G$29,-'Opt 1 Input Sheet'!$G$90*'Opt 1 Output sheet'!N5,"") -> 0 | O35: =IF(O3>'Opt 1 Input Sheet'!$G$29,-'Opt 1 Input Sheet'!$G$90*'Opt 1 Output sheet'!O5,"") -> 0 | P35: =IF(P3>'Opt 1 Input Sheet'!$G$29,-'Opt 1 Input Sheet'!$G$90*'Opt 1 Output sheet'!P5,"") -> 0 | Q35: =IF(Q3>'Opt 1 Input Sheet'!$G$29,-'Opt 1 Input Sheet'!$G$90*'Opt 1 Output sheet'!Q5,"") -> 0 | R35: =IF(R3>'Opt 1 Input Sheet'!$G$29,-'Opt 1 Input Sheet'!$G$90*'Opt 1 Output sheet'!R5,"") -> 0 | S35: =IF(S3>'Opt 1 Input Sheet'!$G$29,-'Opt 1 Input Sheet'!$G$90*'Opt 1 Output sheet'!S5,"") -> 0 | T35: =IF(T3>'Opt 1 Input Sheet'!$G$29,-'Opt 1 Input Sheet'!$G$90*'Opt 1 Output sheet'!T5,"") -> 0 | U35: =IF(U3>'Opt 1 Input Sheet'!$G$29,-'Opt 1 Input Sheet'!$G$90*'Opt 1 Output sheet'!U5,"") -> 0 | V35: =IF(V3>'Opt 1 Input Sheet'!$G$29,-'Opt 1 Input Sheet'!$G$90*'Opt 1 Output sheet'!V5,"") -> 0 | W35: =IF(W3>'Opt 1 Input Sheet'!$G$29,-'Opt 1 Input Sheet'!$G$90*'Opt 1 Output sheet'!W5,"") -> 0 | X35: =IF(X3>'Opt 1 Input Sheet'!$G$29,-'Opt 1 Input Sheet'!$G$90*'Opt 1 Output sheet'!X5,"") -> 0 | Y35: =IF(Y3>'Opt 1 Input Sheet'!$G$29,-'Opt 1 Input Sheet'!$G$90*'Opt 1 Output sheet'!Y5,"") -> 0 | Z35: =IF(Z3>'Opt 1 Input Sheet'!$G$29,-'Opt 1 Input Sheet'!$G$90*'Opt 1 Output sheet'!Z5,"") -> 0 | AD35: Estates costs
D36: ='Opt 1 Input Sheet'!D91 -> Equipment | F36: £ | H36: 0 | K36: =IF(K3>'Opt 1 Input Sheet'!$G$29,-'Opt 1 Input Sheet'!$G$91*'Opt 1 Output sheet'!K5,"") ->  | L36: =IF(L3>'Opt 1 Input Sheet'!$G$29,-'Opt 1 Input Sheet'!$G$91*'Opt 1 Output sheet'!L5,"") ->  | M36: =IF(M3>'Opt 1 Input Sheet'!$G$29,-'Opt 1 Input Sheet'!$G$91*'Opt 1 Output sheet'!M5,"") -> 0 | N36: =IF(N3>'Opt 1 Input Sheet'!$G$29,-'Opt 1 Input Sheet'!$G$91*'Opt 1 Output sheet'!N5,"") -> 0 | O36: =IF(O3>'Opt 1 Input Sheet'!$G$29,-'Opt 1 Input Sheet'!$G$91*'Opt 1 Output sheet'!O5,"") -> 0 | P36: =IF(P3>'Opt 1 Input Sheet'!$G$29,-'Opt 1 Input Sheet'!$G$91*'Opt 1 Output sheet'!P5,"") -> 0 | Q36: =IF(Q3>'Opt 1 Input Sheet'!$G$29,-'Opt 1 Input Sheet'!$G$91*'Opt 1 Output sheet'!Q5,"") -> 0 | R36: =IF(R3>'Opt 1 Input Sheet'!$G$29,-'Opt 1 Input Sheet'!$G$91*'Opt 1 Output sheet'!R5,"") -> 0 | S36: =IF(S3>'Opt 1 Input Sheet'!$G$29,-'Opt 1 Input Sheet'!$G$91*'Opt 1 Output sheet'!S5,"") -> 0 | T36: =IF(T3>'Opt 1 Input Sheet'!$G$29,-'Opt 1 Input Sheet'!$G$91*'Opt 1 Output sheet'!T5,"") -> 0 | U36: =IF(U3>'Opt 1 Input Sheet'!$G$29,-'Opt 1 Input Sheet'!$G$91*'Opt 1 Output sheet'!U5,"") -> 0 | V36: =IF(V3>'Opt 1 Input Sheet'!$G$29,-'Opt 1 Input Sheet'!$G$91*'Opt 1 Output sheet'!V5,"") -> 0 | W36: =IF(W3>'Opt 1 Input Sheet'!$G$29,-'Opt 1 Input Sheet'!$G$91*'Opt 1 Output sheet'!W5,"") -> 0 | X36: =IF(X3>'Opt 1 Input Sheet'!$G$29,-'Opt 1 Input Sheet'!$G$91*'Opt 1 Output sheet'!X5,"") -> 0 | Y36: =IF(Y3>'Opt 1 Input Sheet'!$G$29,-'Opt 1 Input Sheet'!$G$91*'Opt 1 Output sheet'!Y5,"") -> 0 | Z36: =IF(Z3>'Opt 1 Input Sheet'!$G$29,-'Opt 1 Input Sheet'!$G$91*'Opt 1 Output sheet'!Z5,"") -> 0 | AD36: Equipment
D37: ='Opt 1 Input Sheet'!D92 -> Lease costs | F37: £ | H37: 0 | K37: =IF(K3>'Opt 1 Input Sheet'!$G$29,-'Opt 1 Input Sheet'!$G$92*'Opt 1 Output sheet'!K5,"") ->  | L37: =IF(L3>'Opt 1 Input Sheet'!$G$29,-'Opt 1 Input Sheet'!$G$92*'Opt 1 Output sheet'!L5,"") ->  | M37: =IF(M3>'Opt 1 Input Sheet'!$G$29,-'Opt 1 Input Sheet'!$G$92*'Opt 1 Output sheet'!M5,"") -> 0 | N37: =IF(N3>'Opt 1 Input Sheet'!$G$29,-'Opt 1 Input Sheet'!$G$92*'Opt 1 Output sheet'!N5,"") -> 0 | O37: =IF(O3>'Opt 1 Input Sheet'!$G$29,-'Opt 1 Input Sheet'!$G$92*'Opt 1 Output sheet'!O5,"") -> 0 | P37: =IF(P3>'Opt 1 Input Sheet'!$G$29,-'Opt 1 Input Sheet'!$G$92*'Opt 1 Output sheet'!P5,"") -> 0 | Q37: =IF(Q3>'Opt 1 Input Sheet'!$G$29,-'Opt 1 Input Sheet'!$G$92*'Opt 1 Output sheet'!Q5,"") -> 0 | R37: =IF(R3>'Opt 1 Input Sheet'!$G$29,-'Opt 1 Input Sheet'!$G$92*'Opt 1 Output sheet'!R5,"") -> 0 | S37: =IF(S3>'Opt 1 Input Sheet'!$G$29,-'Opt 1 Input Sheet'!$G$92*'Opt 1 Output sheet'!S5,"") -> 0 | T37: =IF(T3>'Opt 1 Input Sheet'!$G$29,-'Opt 1 Input Sheet'!$G$92*'Opt 1 Output sheet'!T5,"") -> 0 | U37: =IF(U3>'Opt 1 Input Sheet'!$G$29,-'Opt 1 Input Sheet'!$G$92*'Opt 1 Output sheet'!U5,"") -> 0 | V37: =IF(V3>'Opt 1 Input Sheet'!$G$29,-'Opt 1 Input Sheet'!$G$92*'Opt 1 Output sheet'!V5,"") -> 0 | W37: =IF(W3>'Opt 1 Input Sheet'!$G$29,-'Opt 1 Input Sheet'!$G$92*'Opt 1 Output sheet'!W5,"") -> 0 | X37: =IF(X3>'Opt 1 Input Sheet'!$G$29,-'Opt 1 Input Sheet'!$G$92*'Opt 1 Output sheet'!X5,"") -> 0 | Y37: =IF(Y3>'Opt 1 Input Sheet'!$G$29,-'Opt 1 Input Sheet'!$G$92*'Opt 1 Output sheet'!Y5,"") -> 0 | Z37: =IF(Z3>'Opt 1 Input Sheet'!$G$29,-'Opt 1 Input Sheet'!$G$92*'Opt 1 Output sheet'!Z5,"") -> 0 | AD37: Lease costs
D38: ='Opt 1 Input Sheet'!D93 -> Rates | F38: £ | H38: 0 | K38: =IF(K3>'Opt 1 Input Sheet'!$G$29,-'Opt 1 Input Sheet'!$G$93*'Opt 1 Output sheet'!K5,"") ->  | L38: =IF(L3>'Opt 1 Input Sheet'!$G$29,-'Opt 1 Input Sheet'!$G$93*'Opt 1 Output sheet'!L5,"") ->  | M38: =IF(M3>'Opt 1 Input Sheet'!$G$29,-'Opt 1 Input Sheet'!$G$93*'Opt 1 Output sheet'!M5,"") -> 0 | N38: =IF(N3>'Opt 1 Input Sheet'!$G$29,-'Opt 1 Input Sheet'!$G$93*'Opt 1 Output sheet'!N5,"") -> 0 | O38: =IF(O3>'Opt 1 Input Sheet'!$G$29,-'Opt 1 Input Sheet'!$G$93*'Opt 1 Output sheet'!O5,"") -> 0 | P38: =IF(P3>'Opt 1 Input Sheet'!$G$29,-'Opt 1 Input Sheet'!$G$93*'Opt 1 Output sheet'!P5,"") -> 0 | Q38: =IF(Q3>'Opt 1 Input Sheet'!$G$29,-'Opt 1 Input Sheet'!$G$93*'Opt 1 Output sheet'!Q5,"") -> 0 | R38: =IF(R3>'Opt 1 Input Sheet'!$G$29,-'Opt 1 Input Sheet'!$G$93*'Opt 1 Output sheet'!R5,"") -> 0 | S38: =IF(S3>'Opt 1 Input Sheet'!$G$29,-'Opt 1 Input Sheet'!$G$93*'Opt 1 Output sheet'!S5,"") -> 0 | T38: =IF(T3>'Opt 1 Input Sheet'!$G$29,-'Opt 1 Input Sheet'!$G$93*'Opt 1 Output sheet'!T5,"") -> 0 | U38: =IF(U3>'Opt 1 Input Sheet'!$G$29,-'Opt 1 Input Sheet'!$G$93*'Opt 1 Output sheet'!U5,"") -> 0 | V38: =IF(V3>'Opt 1 Input Sheet'!$G$29,-'Opt 1 Input Sheet'!$G$93*'Opt 1 Output sheet'!V5,"") -> 0 | W38: =IF(W3>'Opt 1 Input Sheet'!$G$29,-'Opt 1 Input Sheet'!$G$93*'Opt 1 Output sheet'!W5,"") -> 0 | X38: =IF(X3>'Opt 1 Input Sheet'!$G$29,-'Opt 1 Input Sheet'!$G$93*'Opt 1 Output sheet'!X5,"") -> 0 | Y38: =IF(Y3>'Opt 1 Input Sheet'!$G$29,-'Opt 1 Input Sheet'!$G$93*'Opt 1 Output sheet'!Y5,"") -> 0 | Z38: =IF(Z3>'Opt 1 Input Sheet'!$G$29,-'Opt 1 Input Sheet'!$G$93*'Opt 1 Output sheet'!Z5,"") -> 0 | AD38: Rates
D39: Interest on loan | F39: £ | H39: 0 | K39: =IF(K3>'Opt 1 Input Sheet'!$G$24,'Opt 1 Input Sheet'!$G$25*-'Opt 1 Input Sheet'!$G$23*'Opt 1 Output sheet'!K5,"") ->  | L39: =IF(L3>'Opt 1 Input Sheet'!$G$24,'Opt 1 Input Sheet'!$G$25*-'Opt 1 Input Sheet'!$G$23*'Opt 1 Output sheet'!L5,"") -> 0 | M39: =IF(M3>'Opt 1 Input Sheet'!$G$24,'Opt 1 Input Sheet'!$G$25*-'Opt 1 Input Sheet'!$G$23*'Opt 1 Output sheet'!M5,"") -> 0 | N39: =IF(N3>'Opt 1 Input Sheet'!$G$24,'Opt 1 Input Sheet'!$G$25*-'Opt 1 Input Sheet'!$G$23*'Opt 1 Output sheet'!N5,"") -> 0 | O39: =IF(O3>'Opt 1 Input Sheet'!$G$24,'Opt 1 Input Sheet'!$G$25*-'Opt 1 Input Sheet'!$G$23*'Opt 1 Output sheet'!O5,"") -> 0 | P39: =IF(P3>'Opt 1 Input Sheet'!$G$24,'Opt 1 Input Sheet'!$G$25*-'Opt 1 Input Sheet'!$G$23*'Opt 1 Output sheet'!P5,"") -> 0 | Q39: =IF(Q3>'Opt 1 Input Sheet'!$G$24,'Opt 1 Input Sheet'!$G$25*-'Opt 1 Input Sheet'!$G$23*'Opt 1 Output sheet'!Q5,"") -> 0 | R39: =IF(R3>'Opt 1 Input Sheet'!$G$24,'Opt 1 Input Sheet'!$G$25*-'Opt 1 Input Sheet'!$G$23*'Opt 1 Output sheet'!R5,"") -> 0 | S39: =IF(S3>'Opt 1 Input Sheet'!$G$24,'Opt 1 Input Sheet'!$G$25*-'Opt 1 Input Sheet'!$G$23*'Opt 1 Output sheet'!S5,"") -> 0 | T39: =IF(T3>'Opt 1 Input Sheet'!$G$24,'Opt 1 Input Sheet'!$G$25*-'Opt 1 Input Sheet'!$G$23*'Opt 1 Output sheet'!T5,"") -> 0 | U39: =IF(U3>'Opt 1 Input Sheet'!$G$24,'Opt 1 Input Sheet'!$G$25*-'Opt 1 Input Sheet'!$G$23*'Opt 1 Output sheet'!U5,"") -> 0 | V39: =IF(V3>'Opt 1 Input Sheet'!$G$24,'Opt 1 Input Sheet'!$G$25*-'Opt 1 Input Sheet'!$G$23*'Opt 1 Output sheet'!V5,"") -> 0 | W39: =IF(W3>'Opt 1 Input Sheet'!$G$24,'Opt 1 Input Sheet'!$G$25*-'Opt 1 Input Sheet'!$G$23*'Opt 1 Output sheet'!W5,"") -> 0 | X39: =IF(X3>'Opt 1 Input Sheet'!$G$24,'Opt 1 Input Sheet'!$G$25*-'Opt 1 Input Sheet'!$G$23*'Opt 1 Output sheet'!X5,"") -> 0 | Y39: =IF(Y3>'Opt 1 Input Sheet'!$G$24,'Opt 1 Input Sheet'!$G$25*-'Opt 1 Input Sheet'!$G$23*'Opt 1 Output sheet'!Y5,"") -> 0 | Z39: =IF(Z3>'Opt 1 Input Sheet'!$G$24,'Opt 1 Input Sheet'!$G$25*-'Opt 1 Input Sheet'!$G$23*'Opt 1 Output sheet'!Z5,"") -> 0 | AD39: Interest on loan
C40: Total expenditure | F40: £ | H40: =SUM(H31:H39) -> 0 | K40: =SUM(K31:K39) -> 0 | L40: =SUM(L31:L39) -> 0 | M40: =SUM(M31:M39) -> 0 | N40: 0 | O40: 0 | P40: 0 | Q40: 0 | R40: 0 | S40: 0 | T40: 0 | U40: 0 | V40: 0 | W40: 0 | X40: 0 | Y40: 0 | Z40: 0
C42: Terminal value | Z42: ='Opt 1 Input Sheet'!G18*'Opt 1 Output sheet'!Z5 -> 0
B44: Free Cash Flow | F44: £ | H44: =SUM(K44:S44) -> -5459.222941 | K44: =K27+K40+K17+K42 -> -5000 | L44: -5100 | M44: 624.24 | N44: 636.7248 | O44: 649.459296 | P44: 662.4484819 | Q44: 675.6974516 | R44: 689.2114006 | S44: 702.9956286 | T44: 717.0555412 | U44: 731.396652 | V44: 746.024585 | W44: 0 | X44: 0 | Y44: 0 | Z44: 0
B45: IRR | C45: =IRR(K44:Z44) -> -0.05918240944
B47: Operating cash | F47: £ | H47: =SUM(K47:S47) -> 4640.777059 | K47: =K40+K27 -> 0 | L47: =L40+L27 -> 0 | M47: =M40+M27 -> 624.24 | N47: =N40+N27 -> 636.7248 | O47: 649.459296 | P47: 662.4484819 | Q47: 675.6974516 | R47: 689.2114006 | S47: 702.9956286 | T47: 717.0555412 | U47: 731.396652 | V47: 746.024585 | W47: 0 | X47: 0 | Y47: 0 | Z47: 0
B48: Yield on cash | C48: =-(AVERAGE(K47:Z47))/(SUM(H12:H16)) -> 0.04229736285
B50: UPPER CASE
K51: ='Model input'!D5 -> 2016 | L51: =L52+$K$51 -> 2017 | M51: =M52+$K$2 -> 2018 | N51: 2019 | O51: 2020 | P51: 2021 | Q51: 2022 | R51: 2023 | S51: 2024 | T51: 2025 | U51: 2026 | V51: 2027 | W51: 2028 | X51: 2029 | Y51: 2030 | Z51: 2031
K52: 0 | L52: 1 | M52: 2 | N52: 3 | O52: 4 | P52: 5 | Q52: 6 | R52: 7 | S52: 8 | T52: 9 | U52: 10 | V52: 11 | W52: 12 | X52: 13 | Y52: 14 | Z52: 15
B54: Inflation index | C54: ='Opt 1 Input Sheet'!G146 -> 0 | K54: =(1+'Opt 1 Input Sheet'!$G146)^K52 -> 1 | L54: =(1+'Opt 1 Input Sheet'!$G146)^L52 -> 1 | M54: =(1+'Opt 1 Input Sheet'!$G146)^M52 -> 1 | N54: =(1+'Opt 1 Input Sheet'!$G146)^N52 -> 1 | O54: =(1+'Opt 1 Input Sheet'!$G146)^O52 -> 1 | P54: =(1+'Opt 1 Input Sheet'!$G146)^P52 -> 1 | Q54: =(1+'Opt 1 Input Sheet'!$G146)^Q52 -> 1 | R54: =(1+'Opt 1 Input Sheet'!$G146)^R52 -> 1 | S54: =(1+'Opt 1 Input Sheet'!$G146)^S52 -> 1 | T54: =(1+'Opt 1 Input Sheet'!$G146)^T52 -> 1 | U54: =(1+'Opt 1 Input Sheet'!$G146)^U52 -> 1 | V54: =(1+'Opt 1 Input Sheet'!$G146)^V52 -> 1 | W54: =(1+'Opt 1 Input Sheet'!$G146)^W52 -> 1 | X54: =(1+'Opt 1 Input Sheet'!$G146)^X52 -> 1 | Y54: =(1+'Opt 1 Input Sheet'!$G146)^Y52 -> 1 | Z54: =(1+'Opt 1 Input Sheet'!$G146)^Z52 -> 1
B57: Refurbishment | K57: =IF(K52='Opt 1 Input Sheet'!$G$19,"Yes","No") -> Yes | L57: =IF(L52='Opt 1 Input Sheet'!$G$19,"Yes","No") -> No | M57: =IF(M52='Opt 1 Input Sheet'!$G$19,"Yes","No") -> No | N57: =IF(N52='Opt 1 Input Sheet'!$G$19,"Yes","No") -> No | O57: =IF(O52='Opt 1 Input Sheet'!$G$19,"Yes","No") -> No | P57: =IF(P52='Opt 1 Input Sheet'!$G$19,"Yes","No") -> No | Q57: =IF(Q52='Opt 1 Input Sheet'!$G$19,"Yes","No") -> No | R57: =IF(R52='Opt 1 Input Sheet'!$G$19,"Yes","No") -> No | S57: =IF(S52='Opt 1 Input Sheet'!$G$19,"Yes","No") -> No | T57: =IF(T52='Opt 1 Input Sheet'!$G$19,"Yes","No") -> No | U57: =IF(U52='Opt 1 Input Sheet'!$G$19,"Yes","No") -> No | V57: =IF(V52='Opt 1 Input Sheet'!$G$19,"Yes","No") -> No | W57: =IF(W52='Opt 1 Input Sheet'!$G$19,"Yes","No") -> No | X57: =IF(X52='Opt 1 Input Sheet'!$G$19,"Yes","No") -> No | Y57: =IF(Y52='Opt 1 Input Sheet'!$G$19,"Yes","No") -> No | Z57: =IF(Z52='Opt 1 Input Sheet'!$G$19,"Yes","No") -> No
B58: Refurbishment factor | K58: =IF(K57="No",1,0.5) -> 0.5 | L58: =IF(L57="No",1,0.5) -> 1 | M58: 1 | N58: 1 | O58: 1 | P58: 1 | Q58: 1 | R58: 1 | S58: 1 | T58: 1 | U58: 1 | V58: 1 | W58: 1 | X58: 1 | Y58: 1 | Z58: 1
B60: Capital
C61: New capital cost | F61: £ | H61: =SUM(K61:S61) ->  | K61: =(-'Opt 1 Input Sheet'!#REF!*'Opt 1 Input Sheet'!J$9-'Opt 1 Input Sheet'!#REF!)/18*12 ->  | L61: =((-'Opt 1 Input Sheet'!#REF!*'Opt 1 Input Sheet'!J$9-'Opt 1 Input Sheet'!#REF!)/18*6)*L5 -> 
C62: CIL/s.106/s.278 costs | F62: £ | K62: =-'Opt 1 Input Sheet'!#REF!/18*12 ->  | L62: =-'Opt 1 Input Sheet'!#REF!/18*6*L5 -> 
C63: Professional fees | F63: £ | K63: =-'Opt 1 Input Sheet'!#REF!/18*12 ->  | L63: =-'Opt 1 Input Sheet'!#REF!/18*6*L5 -> 
C64: VAT | F64: £ | H64: 0 | K64: 0 | L64: 0
C65: Refurbishment | F65: £ | K65: =IF(K$8=1,0,-('Opt 1 Input Sheet'!#REF!*'Opt 1 Input Sheet'!$J$18*K$5)) ->  | L65: =IF(L$8=1,0,-('Opt 1 Input Sheet'!#REF!*'Opt 1 Input Sheet'!$J$18*L$5)) -> 0 | M65: =IF(M$8=1,0,-('Opt 1 Input Sheet'!#REF!*'Opt 1 Input Sheet'!$J$18*M$5)) -> 0 | N65: =IF(N$8=1,0,-('Opt 1 Input Sheet'!#REF!*'Opt 1 Input Sheet'!$J$18*N$5)) -> 0 | O65: =IF(O$8=1,0,-('Opt 1 Input Sheet'!#REF!*'Opt 1 Input Sheet'!$J$18*O$5)) -> 0 | P65: =IF(P$8=1,0,-('Opt 1 Input Sheet'!#REF!*'Opt 1 Input Sheet'!$J$18*P$5)) -> 0 | Q65: =IF(Q$8=1,0,-('Opt 1 Input Sheet'!#REF!*'Opt 1 Input Sheet'!$J$18*Q$5)) -> 0 | R65: =IF(R$8=1,0,-('Opt 1 Input Sheet'!#REF!*'Opt 1 Input Sheet'!$J$18*R$5)) -> 0 | S65: =IF(S$8=1,0,-('Opt 1 Input Sheet'!#REF!*'Opt 1 Input Sheet'!$J$18*S$5)) -> 0
H66: 0
B68: Cash Flow Statement
C69: Revenue
D70: Office space rental | F70: £ | H70: =SUM(K70:S70) -> 0 | L70: =('Opt 1 Input Sheet'!$J$34*'Opt 1 Input Sheet'!$J$18*'Opt 1 Input Sheet'!$J$60)*L$5/12*6 -> 0 | M70: =('Opt 1 Input Sheet'!$J$34*'Opt 1 Input Sheet'!$J$18*'Opt 1 Input Sheet'!$J$60)*M$5 -> 0 | N70: =('Opt 1 Input Sheet'!$J$34*'Opt 1 Input Sheet'!$J$18*'Opt 1 Input Sheet'!$J$61)*N$5 -> 0 | O70: =('Opt 1 Input Sheet'!$J$34*'Opt 1 Input Sheet'!$J$18*'Opt 1 Input Sheet'!$J$62)*O$5 -> 0 | P70: =('Opt 1 Input Sheet'!$J$34*'Opt 1 Input Sheet'!$J$18*'Opt 1 Input Sheet'!$J$62)*P$5 -> 0 | Q70: =('Opt 1 Input Sheet'!$J$34*'Opt 1 Input Sheet'!$J$18*'Opt 1 Input Sheet'!$J$62)*Q$5 -> 0 | R70: =('Opt 1 Input Sheet'!$J$34*'Opt 1 Input Sheet'!$J$18*'Opt 1 Input Sheet'!$J$62)*R$5 -> 0 | S70: =('Opt 1 Input Sheet'!$J$34*'Opt 1 Input Sheet'!$J$18*'Opt 1 Input Sheet'!$J$62)*S$5 -> 0
D71: Office space service charge | F71: £ | H71: 0 | L71: =('Opt 1 Input Sheet'!$J$35*'Opt 1 Input Sheet'!$J$18*'Opt 1 Input Sheet'!$J$60)*L$5/12*6 -> 0 | M71: =('Opt 1 Input Sheet'!$J$35*'Opt 1 Input Sheet'!$J$18*'Opt 1 Input Sheet'!$J$60)*M$5 -> 0 | N71: =('Opt 1 Input Sheet'!$J$35*'Opt 1 Input Sheet'!$J$18*'Opt 1 Input Sheet'!$J$61)*N$5 -> 0 | O71: =('Opt 1 Input Sheet'!$J$35*'Opt 1 Input Sheet'!$J$18*'Opt 1 Input Sheet'!$J$62)*O$5 -> 0 | P71: =('Opt 1 Input Sheet'!$J$35*'Opt 1 Input Sheet'!$J$18*'Opt 1 Input Sheet'!$J$62)*P$5 -> 0 | Q71: =('Opt 1 Input Sheet'!$J$35*'Opt 1 Input Sheet'!$J$18*'Opt 1 Input Sheet'!$J$62)*Q$5 -> 0 | R71: =('Opt 1 Input Sheet'!$J$35*'Opt 1 Input Sheet'!$J$18*'Opt 1 Input Sheet'!$J$62)*R$5 -> 0 | S71: =('Opt 1 Input Sheet'!$J$35*'Opt 1 Input Sheet'!$J$18*'Opt 1 Input Sheet'!$J$62)*S$5 -> 0
D72: Office space rates | F72: £ | H72: 0 | L72: =('Opt 1 Input Sheet'!$J$36*'Opt 1 Input Sheet'!$J$18*'Opt 1 Input Sheet'!$J$60)*'Opt 1 Output sheet'!L5/12*6 -> 0 | M72: =('Opt 1 Input Sheet'!$J$36*'Opt 1 Input Sheet'!$J$18*'Opt 1 Input Sheet'!$J$60)*'Opt 1 Output sheet'!M5 -> 0 | N72: =('Opt 1 Input Sheet'!$J$36*'Opt 1 Input Sheet'!$J$18*'Opt 1 Input Sheet'!$J$61)*'Opt 1 Output sheet'!N5 -> 0 | O72: =('Opt 1 Input Sheet'!$J$36*'Opt 1 Input Sheet'!$J$18*'Opt 1 Input Sheet'!$J$62)*'Opt 1 Output sheet'!O5 -> 0 | P72: =('Opt 1 Input Sheet'!$J$36*'Opt 1 Input Sheet'!$J$18*'Opt 1 Input Sheet'!$J$62)*'Opt 1 Output sheet'!P5 -> 0 | Q72: =('Opt 1 Input Sheet'!$J$36*'Opt 1 Input Sheet'!$J$18*'Opt 1 Input Sheet'!$J$62)*'Opt 1 Output sheet'!Q5 -> 0 | R72: =('Opt 1 Input Sheet'!$J$36*'Opt 1 Input Sheet'!$J$18*'Opt 1 Input Sheet'!$J$62)*'Opt 1 Output sheet'!R5 -> 0 | S72: =('Opt 1 Input Sheet'!$J$36*'Opt 1 Input Sheet'!$J$18*'Opt 1 Input Sheet'!$J$62)*'Opt 1 Output sheet'!S5 -> 0
D73: Amenity space rental | F73: £ | H73: 0 | L73: =('Opt 1 Input Sheet'!$J$54*'Opt 1 Input Sheet'!$J$60*'Opt 1 Input Sheet'!$J$10)*'Opt 1 Output sheet'!L5/12*6 -> 0 | M73: =('Opt 1 Input Sheet'!$J$54*'Opt 1 Input Sheet'!$J$60*'Opt 1 Input Sheet'!$J$10)*'Opt 1 Output sheet'!M5 -> 0 | N73: =('Opt 1 Input Sheet'!$J$54*'Opt 1 Input Sheet'!$J$61*'Opt 1 Input Sheet'!$J$10)*'Opt 1 Output sheet'!N5 -> 0 | O73: =('Opt 1 Input Sheet'!$J$54*'Opt 1 Input Sheet'!$J$62*'Opt 1 Input Sheet'!$J$10)*'Opt 1 Output sheet'!O5 -> 0 | P73: =('Opt 1 Input Sheet'!$J$54*'Opt 1 Input Sheet'!$J$62*'Opt 1 Input Sheet'!$J$10)*'Opt 1 Output sheet'!P5 -> 0 | Q73: =('Opt 1 Input Sheet'!$J$54*'Opt 1 Input Sheet'!$J$62*'Opt 1 Input Sheet'!$J$10)*'Opt 1 Output sheet'!Q5 -> 0 | R73: =('Opt 1 Input Sheet'!$J$54*'Opt 1 Input Sheet'!$J$62*'Opt 1 Input Sheet'!$J$10)*'Opt 1 Output sheet'!R5 -> 0 | S73: =('Opt 1 Input Sheet'!$J$54*'Opt 1 Input Sheet'!$J$62*'Opt 1 Input Sheet'!$J$10)*'Opt 1 Output sheet'!S5 -> 0
D74: Amenity space service charge | F74: £ | H74: 0 | L74: =('Opt 1 Input Sheet'!$J$55*'Opt 1 Input Sheet'!$J$10*'Opt 1 Input Sheet'!$J$60)*'Opt 1 Output sheet'!L5/12*6 -> 0 | M74: =('Opt 1 Input Sheet'!$J$55*'Opt 1 Input Sheet'!$J$10*'Opt 1 Input Sheet'!$J$60)*'Opt 1 Output sheet'!M5 -> 0 | N74: =('Opt 1 Input Sheet'!$J$55*'Opt 1 Input Sheet'!$J$10*'Opt 1 Input Sheet'!$J$61)*'Opt 1 Output sheet'!N5 -> 0 | O74: =('Opt 1 Input Sheet'!$J$55*'Opt 1 Input Sheet'!$J$10*'Opt 1 Input Sheet'!$J$62)*'Opt 1 Output sheet'!O5 -> 0 | P74: =('Opt 1 Input Sheet'!$J$55*'Opt 1 Input Sheet'!$J$10*'Opt 1 Input Sheet'!$J$62)*'Opt 1 Output sheet'!P5 -> 0 | Q74: =('Opt 1 Input Sheet'!$J$55*'Opt 1 Input Sheet'!$J$10*'Opt 1 Input Sheet'!$J$62)*'Opt 1 Output sheet'!Q5 -> 0 | R74: =('Opt 1 Input Sheet'!$J$55*'Opt 1 Input Sheet'!$J$10*'Opt 1 Input Sheet'!$J$62)*'Opt 1 Output sheet'!R5 -> 0 | S74: =('Opt 1 Input Sheet'!$J$55*'Opt 1 Input Sheet'!$J$10*'Opt 1 Input Sheet'!$J$62)*'Opt 1 Output sheet'!S5 -> 0
D75: Amenity space rates | F75: £ | H75: 0 | L75: =('Opt 1 Input Sheet'!$J$56*'Opt 1 Input Sheet'!$J$10*'Opt 1 Input Sheet'!$J$60)*'Opt 1 Output sheet'!L5/12*6 -> 0 | M75: =('Opt 1 Input Sheet'!$J$56*'Opt 1 Input Sheet'!$J$10*'Opt 1 Input Sheet'!$J$60)*'Opt 1 Output sheet'!M5 -> 0 | N75: =('Opt 1 Input Sheet'!$J$56*'Opt 1 Input Sheet'!$J$10*'Opt 1 Input Sheet'!$J$61)*'Opt 1 Output sheet'!N5 -> 0 | O75: =('Opt 1 Input Sheet'!$J$56*'Opt 1 Input Sheet'!$J$10*'Opt 1 Input Sheet'!$J$62)*'Opt 1 Output sheet'!O5 -> 0 | P75: =('Opt 1 Input Sheet'!$J$56*'Opt 1 Input Sheet'!$J$10*'Opt 1 Input Sheet'!$J$62)*'Opt 1 Output sheet'!P5 -> 0 | Q75: =('Opt 1 Input Sheet'!$J$56*'Opt 1 Input Sheet'!$J$10*'Opt 1 Input Sheet'!$J$62)*'Opt 1 Output sheet'!Q5 -> 0 | R75: =('Opt 1 Input Sheet'!$J$56*'Opt 1 Input Sheet'!$J$10*'Opt 1 Input Sheet'!$J$62)*'Opt 1 Output sheet'!R5 -> 0 | S75: =('Opt 1 Input Sheet'!$J$56*'Opt 1 Input Sheet'!$J$10*'Opt 1 Input Sheet'!$J$62)*'Opt 1 Output sheet'!S5 -> 0
C76: Total revenue | F76: £ | H76: =SUM(H70:H75) -> 0 | L76: =SUM(L70:L75) -> 0 | M76: 0 | N76: 0 | O76: 0 | P76: 0 | Q76: 0 | R76: 0 | S76: 0
C79: Expenditure
D80: Service charge | F80: £ | H80: =SUM(K80:S80) -> 0 | L80: =(-'Opt 1 Input Sheet'!$J$83*(('Opt 1 Input Sheet'!$J$10+'Opt 1 Input Sheet'!$J$18)+'Opt 1 Input Sheet'!$J$20))*'Opt 1 Output sheet'!L5/12*6 -> 0 | M80: =(-'Opt 1 Input Sheet'!$J$83*(('Opt 1 Input Sheet'!$J$10+'Opt 1 Input Sheet'!$J$18)+'Opt 1 Input Sheet'!$J$20))*'Opt 1 Output sheet'!M5 -> 0 | N80: =(-'Opt 1 Input Sheet'!$J$83*(('Opt 1 Input Sheet'!$J$10+'Opt 1 Input Sheet'!$J$18)+'Opt 1 Input Sheet'!$J$20))*'Opt 1 Output sheet'!N5 -> 0 | O80: =(-'Opt 1 Input Sheet'!$J$83*(('Opt 1 Input Sheet'!$J$10+'Opt 1 Input Sheet'!$J$18)+'Opt 1 Input Sheet'!$J$20))*'Opt 1 Output sheet'!O5 -> 0 | P80: =(-'Opt 1 Input Sheet'!$J$83*(('Opt 1 Input Sheet'!$J$10+'Opt 1 Input Sheet'!$J$18)+'Opt 1 Input Sheet'!$J$20))*'Opt 1 Output sheet'!P5 -> 0 | Q80: =(-'Opt 1 Input Sheet'!$J$83*(('Opt 1 Input Sheet'!$J$10+'Opt 1 Input Sheet'!$J$18)+'Opt 1 Input Sheet'!$J$20))*'Opt 1 Output sheet'!Q5 -> 0 | R80: =(-'Opt 1 Input Sheet'!$J$83*(('Opt 1 Input Sheet'!$J$10+'Opt 1 Input Sheet'!$J$18)+'Opt 1 Input Sheet'!$J$20))*'Opt 1 Output sheet'!R5 -> 0 | S80: =(-'Opt 1 Input Sheet'!$J$83*(('Opt 1 Input Sheet'!$J$10+'Opt 1 Input Sheet'!$J$18)+'Opt 1 Input Sheet'!$J$20))*'Opt 1 Output sheet'!S5 -> 0
D81: Rates | F81: £ | H81: =SUM(K81:S81) -> 0 | L81: =(-'Opt 1 Input Sheet'!$J$85*(('Opt 1 Input Sheet'!$J$10+'Opt 1 Input Sheet'!$J$18))*'Opt 1 Output sheet'!L5/12*6) -> 0 | M81: =(-'Opt 1 Input Sheet'!$J$85*('Opt 1 Input Sheet'!$J$10+'Opt 1 Input Sheet'!$J$18))*'Opt 1 Output sheet'!M5 -> 0 | N81: =(-'Opt 1 Input Sheet'!$J$85*('Opt 1 Input Sheet'!$J$10+'Opt 1 Input Sheet'!$J$18))*'Opt 1 Output sheet'!N5 -> 0 | O81: =(-'Opt 1 Input Sheet'!$J$85*('Opt 1 Input Sheet'!$J$10+'Opt 1 Input Sheet'!$J$18))*'Opt 1 Output sheet'!O5 -> 0 | P81: =(-'Opt 1 Input Sheet'!$J$85*('Opt 1 Input Sheet'!$J$10+'Opt 1 Input Sheet'!$J$18))*'Opt 1 Output sheet'!P5 -> 0 | Q81: =(-'Opt 1 Input Sheet'!$J$85*('Opt 1 Input Sheet'!$J$10+'Opt 1 Input Sheet'!$J$18))*'Opt 1 Output sheet'!Q5 -> 0 | R81: =(-'Opt 1 Input Sheet'!$J$85*('Opt 1 Input Sheet'!$J$10+'Opt 1 Input Sheet'!$J$18))*'Opt 1 Output sheet'!R5 -> 0 | S81: =(-'Opt 1 Input Sheet'!$J$85*('Opt 1 Input Sheet'!$J$10+'Opt 1 Input Sheet'!$J$18))*'Opt 1 Output sheet'!S5 -> 0
C82: Total expenditure | F82: £ | H82: =SUM(H80:H81) -> 0 | L82: =SUM(L80:L81) -> 0 | M82: 0 | N82: 0 | O82: 0 | P82: 0 | Q82: 0 | R82: 0 | S82: 0
C84: Terminal value
B86: Free Cash Flow | F86: £ | H86: =SUM(K86:S86) ->  | K86: =K76+K82+K65+K61+K84+K62+K63+K64 ->  | L86: =L76+L82+L65+L61+L84+L62+L63+L64 ->  | M86: =M76+M82+M65+M61+M84 -> 0 | N86: 0 | O86: 0 | P86: 0 | Q86: 0 | R86: 0 | S86: 0
B87: IRR | C87: =IRR(K86:S86) -> 
B89: Operating cash | L89: =L82+L76 -> 0 | M89: 0 | N89: 0 | O89: 0 | P89: 0 | Q89: 0 | R89: 0 | S89: 0
B90: Yield on cash | C90: =-(AVERAGE(L89:S89))/(SUM(H61:H63)) -> 
B92: LOWER CASE
B93: Capital
C95: New capital cost | F95: £ | H95: =SUM(K95:S95) ->  | K95: =(-'Opt 1 Input Sheet'!#REF!*'Opt 1 Input Sheet'!K$9-'Opt 1 Input Sheet'!#REF!)/18*12 ->  | L95: =(-'Opt 1 Input Sheet'!#REF!*'Opt 1 Input Sheet'!K$9-'Opt 1 Input Sheet'!#REF!)/18*6*L5 -> 
C96: CIL/s.106/s.278 costs | F96: £ | H96: =SUM(K96:S96) ->  | K96: =-'Opt 1 Input Sheet'!#REF!/18*12 ->  | L96: =-'Opt 1 Input Sheet'!#REF!/18*6*L5 -> 
C97: Professional fees | F97: £ | H97: =SUM(K97:S97) ->  | K97: =-'Opt 1 Input Sheet'!#REF!/18*12 ->  | L97: =-'Opt 1 Input Sheet'!#REF!/18*6*L5 -> 
C98: VAT | F98: £ | H98: =SUM(K98:S98) -> 0 | K98: 0 | L98: 0
C99: Refurbishment | F99: £ | H99: =SUM(K99:S99) ->  | K99: =IF(K$8=1,0,-('Opt 1 Input Sheet'!#REF!*'Opt 1 Input Sheet'!$K$18*K$5)) ->  | L99: =IF(L$8=1,0,-('Opt 1 Input Sheet'!#REF!*'Opt 1 Input Sheet'!$K$18*L$5)) -> 0 | M99: =IF(M$8=1,0,-('Opt 1 Input Sheet'!#REF!*'Opt 1 Input Sheet'!$K$18*M$5)) -> 0 | N99: =IF(N$8=1,0,-('Opt 1 Input Sheet'!#REF!*'Opt 1 Input Sheet'!$K$18*N$5)) -> 0 | O99: =IF(O$8=1,0,-('Opt 1 Input Sheet'!#REF!*'Opt 1 Input Sheet'!$K$18*O$5)) -> 0 | P99: =IF(P$8=1,0,-('Opt 1 Input Sheet'!#REF!*'Opt 1 Input Sheet'!$K$18*P$5)) -> 0 | Q99: =IF(Q$8=1,0,-('Opt 1 Input Sheet'!#REF!*'Opt 1 Input Sheet'!$K$18*Q$5)) -> 0 | R99: =IF(R$8=1,0,-('Opt 1 Input Sheet'!#REF!*'Opt 1 Input Sheet'!$K$18*R$5)) -> 0 | S99: =IF(S$8=1,0,-('Opt 1 Input Sheet'!#REF!*'Opt 1 Input Sheet'!$K$18*S$5)) -> 0
H100: =SUM(H95:H99) -> 
B102: Cash Flow Statement
C103: Revenue
D104: Office space rental | F104: £ | H104: =SUM(K104:S104) -> 0 | L104: =('Opt 1 Input Sheet'!$K$34*'Opt 1 Input Sheet'!$K$18*'Opt 1 Input Sheet'!$K$60)*L$5/12*6 -> 0 | M104: =('Opt 1 Input Sheet'!$K$34*'Opt 1 Input Sheet'!$K$18*'Opt 1 Input Sheet'!$K$60)*M$5 -> 0 | N104: =('Opt 1 Input Sheet'!$K$34*'Opt 1 Input Sheet'!$K$18*'Opt 1 Input Sheet'!$K$61)*N$5 -> 0 | O104: =('Opt 1 Input Sheet'!$K$34*'Opt 1 Input Sheet'!$K$18*'Opt 1 Input Sheet'!$K$62)*O$5 -> 0 | P104: =('Opt 1 Input Sheet'!$K$34*'Opt 1 Input Sheet'!$K$18*'Opt 1 Input Sheet'!$K$62)*P$5 -> 0 | Q104: =('Opt 1 Input Sheet'!$K$34*'Opt 1 Input Sheet'!$K$18*'Opt 1 Input Sheet'!$K$62)*Q$5 -> 0 | R104: =('Opt 1 Input Sheet'!$K$34*'Opt 1 Input Sheet'!$K$18*'Opt 1 Input Sheet'!$K$62)*R$5 -> 0 | S104: =('Opt 1 Input Sheet'!$K$34*'Opt 1 Input Sheet'!$K$18*'Opt 1 Input Sheet'!$K$62)*S$5 -> 0
D105: Office space service charge | F105: £ | H105: 0 | L105: =('Opt 1 Input Sheet'!$K$35*'Opt 1 Input Sheet'!$K$18*'Opt 1 Input Sheet'!$K$60)*L$5/12*6 -> 0 | M105: =('Opt 1 Input Sheet'!$K$35*'Opt 1 Input Sheet'!$K$18*'Opt 1 Input Sheet'!$K$60)*M$5 -> 0 | N105: =('Opt 1 Input Sheet'!$K$35*'Opt 1 Input Sheet'!$K$18*'Opt 1 Input Sheet'!$K$61)*N$5 -> 0 | O105: =('Opt 1 Input Sheet'!$K$35*'Opt 1 Input Sheet'!$K$18*'Opt 1 Input Sheet'!$K$62)*O$5 -> 0 | P105: =('Opt 1 Input Sheet'!$K$35*'Opt 1 Input Sheet'!$K$18*'Opt 1 Input Sheet'!$K$62)*P$5 -> 0 | Q105: =('Opt 1 Input Sheet'!$K$35*'Opt 1 Input Sheet'!$K$18*'Opt 1 Input Sheet'!$K$62)*Q$5 -> 0 | R105: =('Opt 1 Input Sheet'!$K$35*'Opt 1 Input Sheet'!$K$18*'Opt 1 Input Sheet'!$K$62)*R$5 -> 0 | S105: =('Opt 1 Input Sheet'!$K$35*'Opt 1 Input Sheet'!$K$18*'Opt 1 Input Sheet'!$K$62)*S$5 -> 0
D106: Office space rates | F106: £ | H106: 0 | L106: =('Opt 1 Input Sheet'!$K$36*'Opt 1 Input Sheet'!$K$18*'Opt 1 Input Sheet'!$K$60)*'Opt 1 Output sheet'!L5/12*6 -> 0 | M106: =('Opt 1 Input Sheet'!$K$36*'Opt 1 Input Sheet'!$K$18*'Opt 1 Input Sheet'!$K$60)*'Opt 1 Output sheet'!M5 -> 0 | N106: =('Opt 1 Input Sheet'!$K$36*'Opt 1 Input Sheet'!$K$18*'Opt 1 Input Sheet'!$K$61)*'Opt 1 Output sheet'!N5 -> 0 | O106: =('Opt 1 Input Sheet'!$K$36*'Opt 1 Input Sheet'!$K$18*'Opt 1 Input Sheet'!$K$62)*'Opt 1 Output sheet'!O5 -> 0 | P106: =('Opt 1 Input Sheet'!$K$36*'Opt 1 Input Sheet'!$K$18*'Opt 1 Input Sheet'!$K$62)*'Opt 1 Output sheet'!P5 -> 0 | Q106: =('Opt 1 Input Sheet'!$K$36*'Opt 1 Input Sheet'!$K$18*'Opt 1 Input Sheet'!$K$62)*'Opt 1 Output sheet'!Q5 -> 0 | R106: =('Opt 1 Input Sheet'!$K$36*'Opt 1 Input Sheet'!$K$18*'Opt 1 Input Sheet'!$K$62)*'Opt 1 Output sheet'!R5 -> 0 | S106: =('Opt 1 Input Sheet'!$K$36*'Opt 1 Input Sheet'!$K$18*'Opt 1 Input Sheet'!$K$62)*'Opt 1 Output sheet'!S5 -> 0
D107: Amenity space rental | F107: £ | H107: 0 | L107: =('Opt 1 Input Sheet'!$K$54*'Opt 1 Input Sheet'!$K$60*'Opt 1 Input Sheet'!$K$10)*'Opt 1 Output sheet'!L5/12*6 -> 0 | M107: =('Opt 1 Input Sheet'!$K$54*'Opt 1 Input Sheet'!$K$60*'Opt 1 Input Sheet'!$K$10)*'Opt 1 Output sheet'!M5 -> 0 | N107: =('Opt 1 Input Sheet'!$K$54*'Opt 1 Input Sheet'!$K$61*'Opt 1 Input Sheet'!$K$10)*'Opt 1 Output sheet'!N5 -> 0 | O107: =('Opt 1 Input Sheet'!$K$54*'Opt 1 Input Sheet'!$K$62*'Opt 1 Input Sheet'!$K$10)*'Opt 1 Output sheet'!O5 -> 0 | P107: =('Opt 1 Input Sheet'!$K$54*'Opt 1 Input Sheet'!$K$62*'Opt 1 Input Sheet'!$K$10)*'Opt 1 Output sheet'!P5 -> 0 | Q107: =('Opt 1 Input Sheet'!$K$54*'Opt 1 Input Sheet'!$K$62*'Opt 1 Input Sheet'!$K$10)*'Opt 1 Output sheet'!Q5 -> 0 | R107: =('Opt 1 Input Sheet'!$K$54*'Opt 1 Input Sheet'!$K$62*'Opt 1 Input Sheet'!$K$10)*'Opt 1 Output sheet'!R5 -> 0 | S107: =('Opt 1 Input Sheet'!$K$54*'Opt 1 Input Sheet'!$K$62*'Opt 1 Input Sheet'!$K$10)*'Opt 1 Output sheet'!S5 -> 0
D108: Amenity space service charge | F108: £ | H108: 0 | L108: =('Opt 1 Input Sheet'!$K$55*'Opt 1 Input Sheet'!$K$10*'Opt 1 Input Sheet'!$K$60)*'Opt 1 Output sheet'!L5/12*6 -> 0 | M108: =('Opt 1 Input Sheet'!$K$55*'Opt 1 Input Sheet'!$K$10*'Opt 1 Input Sheet'!$K$60)*'Opt 1 Output sheet'!M5 -> 0 | N108: =('Opt 1 Input Sheet'!$K$55*'Opt 1 Input Sheet'!$K$10*'Opt 1 Input Sheet'!$K$61)*'Opt 1 Output sheet'!N5 -> 0 | O108: =('Opt 1 Input Sheet'!$K$55*'Opt 1 Input Sheet'!$K$10*'Opt 1 Input Sheet'!$K$62)*'Opt 1 Output sheet'!O5 -> 0 | P108: =('Opt 1 Input Sheet'!$K$55*'Opt 1 Input Sheet'!$K$10*'Opt 1 Input Sheet'!$K$62)*'Opt 1 Output sheet'!P5 -> 0 | Q108: =('Opt 1 Input Sheet'!$K$55*'Opt 1 Input Sheet'!$K$10*'Opt 1 Input Sheet'!$K$62)*'Opt 1 Output sheet'!Q5 -> 0 | R108: =('Opt 1 Input Sheet'!$K$55*'Opt 1 Input Sheet'!$K$10*'Opt 1 Input Sheet'!$K$62)*'Opt 1 Output sheet'!R5 -> 0 | S108: =('Opt 1 Input Sheet'!$K$55*'Opt 1 Input Sheet'!$K$10*'Opt 1 Input Sheet'!$K$62)*'Opt 1 Output sheet'!S5 -> 0
D109: Amenity space rates | F109: £ | H109: 0 | L109: =('Opt 1 Input Sheet'!$K$56*'Opt 1 Input Sheet'!$K$10*'Opt 1 Input Sheet'!$K$60)*'Opt 1 Output sheet'!L5/12*6 -> 0 | M109: =('Opt 1 Input Sheet'!$K$56*'Opt 1 Input Sheet'!$K$10*'Opt 1 Input Sheet'!$K$60)*'Opt 1 Output sheet'!M5 -> 0 | N109: =('Opt 1 Input Sheet'!$K$56*'Opt 1 Input Sheet'!$K$10*'Opt 1 Input Sheet'!$K$61)*'Opt 1 Output sheet'!N5 -> 0 | O109: =('Opt 1 Input Sheet'!$K$56*'Opt 1 Input Sheet'!$K$10*'Opt 1 Input Sheet'!$K$62)*'Opt 1 Output sheet'!O5 -> 0 | P109: =('Opt 1 Input Sheet'!$K$56*'Opt 1 Input Sheet'!$K$10*'Opt 1 Input Sheet'!$K$62)*'Opt 1 Output sheet'!P5 -> 0 | Q109: =('Opt 1 Input Sheet'!$K$56*'Opt 1 Input Sheet'!$K$10*'Opt 1 Input Sheet'!$K$62)*'Opt 1 Output sheet'!Q5 -> 0 | R109: =('Opt 1 Input Sheet'!$K$56*'Opt 1 Input Sheet'!$K$10*'Opt 1 Input Sheet'!$K$62)*'Opt 1 Output sheet'!R5 -> 0 | S109: =('Opt 1 Input Sheet'!$K$56*'Opt 1 Input Sheet'!$K$10*'Opt 1 Input Sheet'!$K$62)*'Opt 1 Output sheet'!S5 -> 0
C110: Total revenue | F110: £ | H110: =SUM(H104:H109) -> 0 | L110: =SUM(L104:L109) -> 0 | M110: 0 | N110: 0 | O110: 0 | P110: 0 | Q110: 0 | R110: 0 | S110: 0
C113: Expenditure
D114: Service charge | F114: £ | H114: =SUM(K114:S114) -> 0 | L114: =(-'Opt 1 Input Sheet'!$K$83*(('Opt 1 Input Sheet'!$K$10+'Opt 1 Input Sheet'!$K$18)+'Opt 1 Input Sheet'!$K$20))*'Opt 1 Output sheet'!L5/12*6 -> 0 | M114: =(-'Opt 1 Input Sheet'!$K$83*(('Opt 1 Input Sheet'!$K$10+'Opt 1 Input Sheet'!$K$18)+'Opt 1 Input Sheet'!$K$20))*'Opt 1 Output sheet'!M5 -> 0 | N114: =(-'Opt 1 Input Sheet'!$K$83*(('Opt 1 Input Sheet'!$K$10+'Opt 1 Input Sheet'!$K$18)+'Opt 1 Input Sheet'!$K$20))*'Opt 1 Output sheet'!N5 -> 0 | O114: =(-'Opt 1 Input Sheet'!$K$83*(('Opt 1 Input Sheet'!$K$10+'Opt 1 Input Sheet'!$K$18)+'Opt 1 Input Sheet'!$K$20))*'Opt 1 Output sheet'!O5 -> 0 | P114: =(-'Opt 1 Input Sheet'!$K$83*(('Opt 1 Input Sheet'!$K$10+'Opt 1 Input Sheet'!$K$18)+'Opt 1 Input Sheet'!$K$20))*'Opt 1 Output sheet'!P5 -> 0 | Q114: =(-'Opt 1 Input Sheet'!$K$83*(('Opt 1 Input Sheet'!$K$10+'Opt 1 Input Sheet'!$K$18)+'Opt 1 Input Sheet'!$K$20))*'Opt 1 Output sheet'!Q5 -> 0 | R114: =(-'Opt 1 Input Sheet'!$K$83*(('Opt 1 Input Sheet'!$K$10+'Opt 1 Input Sheet'!$K$18)+'Opt 1 Input Sheet'!$K$20))*'Opt 1 Output sheet'!R5 -> 0 | S114: =(-'Opt 1 Input Sheet'!$K$83*(('Opt 1 Input Sheet'!$K$10+'Opt 1 Input Sheet'!$K$18)+'Opt 1 Input Sheet'!$K$20))*'Opt 1 Output sheet'!S5 -> 0
D115: Rates | F115: £ | H115: =SUM(K115:S115) -> 0 | L115: =(-'Opt 1 Input Sheet'!$K$85*(('Opt 1 Input Sheet'!$K$10+'Opt 1 Input Sheet'!$K$18))*'Opt 1 Output sheet'!L5/12*6) -> 0 | M115: =(-'Opt 1 Input Sheet'!$K$85*('Opt 1 Input Sheet'!$K$10+'Opt 1 Input Sheet'!$K$18))*'Opt 1 Output sheet'!M5 -> 0 | N115: =(-'Opt 1 Input Sheet'!$K$85*('Opt 1 Input Sheet'!$K$10+'Opt 1 Input Sheet'!$K$18))*'Opt 1 Output sheet'!N5 -> 0 | O115: =(-'Opt 1 Input Sheet'!$K$85*('Opt 1 Input Sheet'!$K$10+'Opt 1 Input Sheet'!$K$18))*'Opt 1 Output sheet'!O5 -> 0 | P115: =(-'Opt 1 Input Sheet'!$K$85*('Opt 1 Input Sheet'!$K$10+'Opt 1 Input Sheet'!$K$18))*'Opt 1 Output sheet'!P5 -> 0 | Q115: =(-'Opt 1 Input Sheet'!$K$85*('Opt 1 Input Sheet'!$K$10+'Opt 1 Input Sheet'!$K$18))*'Opt 1 Output sheet'!Q5 -> 0 | R115: =(-'Opt 1 Input Sheet'!$K$85*('Opt 1 Input Sheet'!$K$10+'Opt 1 Input Sheet'!$K$18))*'Opt 1 Output sheet'!R5 -> 0 | S115: =(-'Opt 1 Input Sheet'!$K$85*('Opt 1 Input Sheet'!$K$10+'Opt 1 Input Sheet'!$K$18))*'Opt 1 Output sheet'!S5 -> 0
C116: Total expenditure | F116: £ | H116: =SUM(H114:H115) -> 0 | L116: =SUM(L114:L115) -> 0 | M116: 0 | N116: 0 | O116: 0 | P116: 0 | Q116: 0 | R116: 0 | S116: 0
C118: Terminal value
B120: Free Cash Flow | F120: £ | H120: =SUM(K120:S120) ->  | K120: =K110+K116+K99+K95+K118+K96+K97+K98 ->  | L120: =L110+L116+L99+L95+L118+L96+L97+L98 ->  | M120: =M110+M116+M99+M95+M118 -> 0 | N120: 0 | O120: 0 | P120: 0 | Q120: 0 | R120: 0 | S120: 0
B121: IRR | C121: =IRR(K120:S120) -> 
B123: Operating cash | L123: =L116+L110 -> 0 | M123: =M116+M110 -> 0 | N123: 0 | O123: 0 | P123: =P116+P110 -> 0 | Q123: 0 | R123: 0 | S123: 0
B124: Yield on cash | C124: =-(AVERAGE(L123:S123))/(SUM(H95:H97)) -> 
B126: Payback period | C126: =IF(K126>0,K2,IF(L126>0,L2,IF(M126>0,M2,IF(N126>0,N2,IF(O126>0,O2,IF(P126>0,P2,IF(Q126>0,Q2,IF(R126>0,R2,IF(S126>0,S2,IF(T126>0,T2,IF(U126>0,U2,IF(V126>0,V2,IF(W126>0,W2,IF(X126>0,X2,IF(Y126>0,Y2,IF(Z126>0,Z2,0)))))))))))))))) -> 0 | K126: =H17+K44-K17 -> -10100 | L126: =K126+L44-L17 -> -10100 | M126: =L126+M44-M17 -> -9475.76 | N126: -8839.0352 | O126: -8189.575904 | P126: -7527.127422 | Q126: -6851.429971 | R126: =Q126+R44-R17 -> -6162.21857 | S126: -5459.222941 | T126: -4742.1674 | U126: -4010.770748 | V126: -3264.746163 | W126: -3264.746163 | X126: -3264.746163 | Y126: -3264.746163 | Z126: -3264.746163
B129: Profit Margin | K129: =IFERROR((K27-K40)/K40,0) -> 0 | L129: =IFERROR((L27-L40)/L40,0) -> 0 | M129: 0 | N129: 0 | O129: 0 | P129: 0 | Q129: 0 | R129: 0 | S129: 0 | T129: 0 | U129: 0 | V129: 0 | W129: 0 | X129: 0 | Y129: 0 | Z129: 0

Sheet Opt 2 Input Sheet
A1: ='Model input'!D3&" Analysis - Option 2" -> Investment A Analysis - Option 2 | G1: Factor to change | H1: Number of years for capex
A2: Input Sheet | G2: Change by | H2: 0.75
A4: Scenario | G4: 1 | I4: 1 | J4: 2 | K4: 3 | L4: 4
A5: Description | G5: =HLOOKUP(G4,I4:K5,2) -> Base Case | I5: Base Case | J5: Upper Case | K5: Lower Case | L5: Variable | N5: Source
A7: Balance sheet
B8: Initial start up
C9: Initial capital costs | G9: =OFFSET(H9,0,G$4) -> 0 | I9: =I13+(I10*I12)+(I10*I11) -> 0 | L9: =IF(C9=$H$1,I9*(1+$H$2),I9) -> 0
C10: Total area | G10: =OFFSET(H10,0,G$4) -> 0 | L10: =IF(C10=$H$1,I10*(1+$H$2),I10) -> 0
C11: Construction costs (£/sq ft) | G11: 0 | L11: 0
C12: Fit out costs (£/sq ft) | G12: 0 | L12: 0
C13: Purchase cost | G13: 0 | L13: =IF(C13=$H$1,I13*(1+$H$2),I13) -> 0
C14: Professional fees | G14: 0 | L14: 0
C15: VAT | G15: 0 | L15: 0
C16: Other fees/duties | G16: 0 | L16: 0
C17: Number of years for capex | G17: 2 | I17: 2 | L17: 3.5
C18: Residual value | G18: 0 | L18: 0
C19: Refurbishment schedule | G19: 0 | L19: 0
C20: Refurbishment costs (£/sq ft) | G20: 0 | L20: 0
B22: Financing
C23: Drawdown value | G23: =OFFSET(H23,0,G$4) -> 0 | L23: =IF(C23=$H$1,I23*(1+$H$2),I23) -> 0
C24: Drawdown year | G24: 0 | L24: 0
C25: Interest rate | G25: 0 | L25: 0
C26: Payment schedule | G26: 0 | L26: 0
A28: Income statement
B29: Year to commence operations | G29: =OFFSET(H29,0,G$4)-0.01 -> 1.99 | I29: 2 | L29: =IF(C29=$H$1,I29*(1+$H$2),I29) -> 2
A31: Revenue generation
B32: Membership income
C33: No of members
D34: Yr 1 | E34: 1 | G34: =OFFSET(H34,0,G$4) -> 0 | L34: =IF(D34=$H$1,I34*(1+$H$2),I34) -> 0
D35: Yr 2 | E35: 2 | G35: 0 | L35: =IF(D35=$H$1,I35*(1+$H$2),I35) -> 0
D36: Yr 3 | E36: 3 | G36: 0 | L36: 0
D37: Yr 4 | E37: 4 | G37: 0 | L37: 0
D38: Yr 5 | E38: 5 | G38: 0 | L38: 0
D39: Yr 6 | E39: 6 | G39: 0 | L39: 0
D40: Yr 7 | E40: 7 | G40: 0 | L40: 0
D41: Yr 8 | E41: 8 | G41: 0 | L41: 0
D42: Yr 9 | E42: 9 | G42: 0 | L42: 0
D43: Yr 10 | E43: 10 | G43: 0 | L43: 0
D44: Yr 11 | E44: 11 | G44: 0 | L44: 0
D45: Yr 12 | E45: 12 | G45: 0 | L45: 0
D46: Yr 13 | E46: 13 | G46: 0 | L46: 0
D47: Yr 14 | E47: 14 | G47: 0 | L47: 0
D48: Yr 15 | E48: 15 | G48: 0 | L48: 0
C50: Membership rate (£ per annum) | G50: 0 | L50: =IF(D50=$H$1,I50*(1+$H$2),I50) -> 0
G51: 0 | L51: =IF(C51=$H$1,I51*(1+$H$2),I51) -> 0
C53: Accommodation income
D54: Number of rooms | G54: =OFFSET(H54,0,G$4) -> 0 | L54: =IF(D54=$H$1,I54*(1+$H$2),I54) -> 0
D55: Price per night (£) | G55: 0 | L55: =IF(D55=$H$1,I55*(1+$H$2),I55) -> 0
D56: Nights in operation | G56: 0 | L56: 0
D57: Occupancy | G57: 0 | L57: =IF(D57=$H$1,I57*(1+$H$2),I57) -> 0
C59: Rental space income
D60: Rent per sq/ft | G60: =OFFSET(H60,0,G$4) -> 0 | L60: =IF(D60=$H$1,I60*(1+$H$2),I60) -> 0
D61: Rental area (sq/ft) | G61: 0 | L61: 0
G62: 0 | L62: 0
C64: Room & equipment hire income
D65: Number of rooms | G65: =OFFSET(H65,0,G$4) -> 0 | L65: =IF(D65=$H$1,I65*(1+$H$2),I65) -> 0
D66: Blended rate (£/day) | G66: 0 | L66: 0
D67: Days in operation | G67: 0 | L67: 0
D68: Occupancy | G68: 0 | L68: 0
C70: Restaurant and private dining income
D71: Covers per day - Club | G71: =OFFSET(H71,0,G$4) -> 0 | L71: =IF(D71=$H$1,I71*(1+$H$2),I71) -> 0
D72: Price (£/cover) - Club | G72: =OFFSET(H72,0,G$4) -> 0 | L72: 0
D73: Days in operation | G73: 0 | L73: 0
G74: 0 | L74: 0
C76: Events income
D77: Number of events per annum | G77: =OFFSET(H77,0,G$4) -> 0 | L77: =IF(D77=$H$1,I77*(1+$H$2),I77) -> 0
D78: Average takings (£/event) | G78: 0 | L78: 0
D79: Funded by ticket sales | G79: 0 | L79: 0
B81: Expenditure
D83: Staff costs | G83: =OFFSET(H83,0,G$4) -> 0 | L83: =IF(D83=$H$1,I83*(1+$H$2),I83) -> 0
D85: Cost of sales | G85: 0 | L85: =IF(D85=$H$1,I85*(1+$H$2),I85) -> 0
D87: Marketing | G87: =OFFSET(H87,0,G$4) -> 0 | L87: =IF(D87=$H$1,I87*(1+$H$2),I87) -> 0
D88: Other opex | G88: 0 | L88: 0
D90: Estates costs | G90: =OFFSET(H90,0,G$4) -> 0 | L90: =IF(D90=$H$1,I90*(1+$H$2),I90) -> 0
D91: Equipment | G91: 0 | L91: 0
D92: Lease costs | L92: 0
D93: Rates | G93: 0 | L93: 0
A95: Other factors
B96: Inflation (@ RPI) | G96: =OFFSET(H96,0,G$4) -> 0.02 | I96: ='Model input'!D6 -> 0.02 | L96: =IF(B96=$H$1,I96*(1+$H$2),I96) -> 0.02
B97: Discount factor (RPI+2.5%) | G97: 0.04 | I97: ='Model input'!D7 -> 0.04 | L97: =IF(B97=$H$1,I97*(1+$H$2),I97) -> 0.04

Sheet Opt 2 Output sheet
B1: ='Model input'!D3&" Analysis - Option 2" -> Investment A Analysis - Option 2
B2: Workings Sheet | K2: ='Model input'!D5 -> 2016 | L2: =L3+$K$2 -> 2017 | M2: =M3+$K$2 -> 2018 | N2: 2019 | O2: 2020 | P2: 2021 | Q2: 2022 | R2: 2023 | S2: 2024 | T2: 2025 | U2: 2026 | V2: 2027 | W2: 2028 | X2: 2029 | Y2: 2030 | Z2: 2031
K3: 0 | L3: 1 | M3: 2 | N3: 3 | O3: 4 | P3: 5 | Q3: 6 | R3: 7 | S3: 8 | T3: 9 | U3: 10 | V3: 11 | W3: 12 | X3: 13 | Y3: 14 | Z3: 15
B5: Inflation index | C5: ='Opt 2 Input Sheet'!G96 -> 0.02 | K5: =(1+'Opt 2 Input Sheet'!$G96)^K3 -> 1 | L5: =(1+'Opt 2 Input Sheet'!$G96)^L3 -> 1.02 | M5: =(1+'Opt 2 Input Sheet'!$G96)^M3 -> 1.0404 | N5: =(1+'Opt 2 Input Sheet'!$G96)^N3 -> 1.061208 | O5: =(1+'Opt 2 Input Sheet'!$G96)^O3 -> 1.08243216 | P5: =(1+'Opt 2 Input Sheet'!$G96)^P3 -> 1.104080803 | Q5: =(1+'Opt 2 Input Sheet'!$G96)^Q3 -> 1.126162419 | R5: =(1+'Opt 2 Input Sheet'!$G96)^R3 -> 1.148685668 | S5: =(1+'Opt 2 Input Sheet'!$G96)^S3 -> 1.171659381 | T5: =(1+'Opt 2 Input Sheet'!$G96)^T3 -> 1.195092569 | U5: =(1+'Opt 2 Input Sheet'!$G96)^U3 -> 1.21899442 | V5: =(1+'Opt 2 Input Sheet'!$G96)^V3 -> 1.243374308 | W5: =(1+'Opt 2 Input Sheet'!$G96)^W3 -> 1.268241795 | X5: =(1+'Opt 2 Input Sheet'!$G96)^X3 -> 1.29360663 | Y5: =(1+'Opt 2 Input Sheet'!$G96)^Y3 -> 1.319478763 | Z5: =(1+'Opt 2 Input Sheet'!$G96)^Z3 -> 1.345868338
B7: Refurbishment | K7: =IF(K3='Opt 2 Input Sheet'!$G$19,"Yes","No") -> Yes | L7: =IF(L3='Opt 2 Input Sheet'!$G$19,"Yes","No") -> No | M7: =IF(M3='Opt 2 Input Sheet'!$G$19,"Yes","No") -> No | N7: =IF(N3='Opt 2 Input Sheet'!$G$19,"Yes","No") -> No | O7: =IF(O3='Opt 2 Input Sheet'!$G$19,"Yes","No") -> No | P7: =IF(P3='Opt 2 Input Sheet'!$G$19,"Yes","No") -> No | Q7: =IF(Q3='Opt 2 Input Sheet'!$G$19,"Yes","No") -> No | R7: =IF(R3='Opt 2 Input Sheet'!$G$19,"Yes","No") -> No | S7: =IF(S3='Opt 2 Input Sheet'!$G$19,"Yes","No") -> No | T7: =IF(T3='Opt 2 Input Sheet'!$G$19,"Yes","No") -> No | U7: =IF(U3='Opt 2 Input Sheet'!$G$19,"Yes","No") -> No | V7: =IF(V3='Opt 2 Input Sheet'!$G$19,"Yes","No") -> No | W7: =IF(W3='Opt 2 Input Sheet'!$G$19,"Yes","No") -> No | X7: =IF(X3='Opt 2 Input Sheet'!$G$19,"Yes","No") -> No | Y7: =IF(Y3='Opt 2 Input Sheet'!$G$19,"Yes","No") -> No | Z7: =IF(Z3='Opt 2 Input Sheet'!$G$19,"Yes","No") -> No
B8: Refurbishment factor | K8: =IF(K7="No",1,0.5) -> 0.5 | L8: =IF(L7="No",1,0.5) -> 1 | M8: 1 | N8: 1 | O8: 1 | P8: 1 | Q8: 1 | R8: 1 | S8: 1 | T8: 1 | U8: 1 | V8: 1 | W8: 1 | X8: 1 | Y8: 1 | Z8: 1
B10: BASE CASE
B11: Balance Sheet | C11: Capital | H11: Total | I11: Sparkline
D12: Initial capital cost | F12: £ | H12: =SUM(K12:S12) -> 0 | K12: =IF(K3<'Opt 2 Input Sheet'!$G$17,-'Opt 2 Input Sheet'!$G$9/'Opt 2 Input Sheet'!$G$17*K5,"") -> 0 | L12: =IF(L3<'Opt 2 Input Sheet'!$G$17,-'Opt 2 Input Sheet'!$G$9/'Opt 2 Input Sheet'!$G$17*L5,"") -> 0 | M12: =IF(M3<'Opt 2 Input Sheet'!$G$17,-'Opt 2 Input Sheet'!$G$9/'Opt 2 Input Sheet'!$G$17*M5,"") ->  | N12: =IF(N3<'Opt 2 Input Sheet'!$G$17,-'Opt 2 Input Sheet'!$G$9/'Opt 2 Input Sheet'!$G$17*N5,"") ->  | O12: =IF(O3<'Opt 2 Input Sheet'!$G$17,-'Opt 2 Input Sheet'!$G$9/'Opt 2 Input Sheet'!$G$17*O5,"") ->  | P12: =IF(P3<'Opt 2 Input Sheet'!$G$17,-'Opt 2 Input Sheet'!$G$9/'Opt 2 Input Sheet'!$G$17*P5,"") ->  | Q12: =IF(Q3<'Opt 2 Input Sheet'!$G$17,-'Opt 2 Input Sheet'!$G$9/'Opt 2 Input Sheet'!$G$17*Q5,"") ->  | R12: =IF(R3<'Opt 2 Input Sheet'!$G$17,-'Opt 2 Input Sheet'!$G$9/'Opt 2 Input Sheet'!$G$17*R5,"") ->  | S12: =IF(S3<'Opt 2 Input Sheet'!$G$17,-'Opt 2 Input Sheet'!$G$9/'Opt 2 Input Sheet'!$G$17*S5,"") ->  | T12: =IF(T3<'Opt 2 Input Sheet'!$G$17,-'Opt 2 Input Sheet'!$G$9/'Opt 2 Input Sheet'!$G$17*T5,"") ->  | U12: =IF(U3<'Opt 2 Input Sheet'!$G$17,-'Opt 2 Input Sheet'!$G$9/'Opt 2 Input Sheet'!$G$17*U5,"") ->  | V12: =IF(V3<'Opt 2 Input Sheet'!$G$17,-'Opt 2 Input Sheet'!$G$9/'Opt 2 Input Sheet'!$G$17*V5,"") ->  | W12: =IF(W3<'Opt 2 Input Sheet'!$G$17,-'Opt 2 Input Sheet'!$G$9/'Opt 2 Input Sheet'!$G$17*W5,"") ->  | X12: =IF(X3<'Opt 2 Input Sheet'!$G$17,-'Opt 2 Input Sheet'!$G$9/'Opt 2 Input Sheet'!$G$17*X5,"") ->  | Y12: =IF(Y3<'Opt 2 Input Sheet'!$G$17,-'Opt 2 Input Sheet'!$G$9/'Opt 2 Input Sheet'!$G$17*Y5,"") ->  | Z12: =IF(Z3<'Opt 2 Input Sheet'!$G$17,-'Opt 2 Input Sheet'!$G$9/'Opt 2 Input Sheet'!$G$17*Z5,"") -> 
D13: ='Opt 2 Input Sheet'!C14 -> Professional fees | F13: £ | H13: =SUM(K13:S13) -> 0 | K13: =IF(K3<'Opt 2 Input Sheet'!$G$17,-'Opt 2 Input Sheet'!$G$14/'Opt 2 Input Sheet'!$G$17*K5,"") -> 0 | L13: =IF(L3<'Opt 2 Input Sheet'!$G$17,-'Opt 2 Input Sheet'!$G$14/'Opt 2 Input Sheet'!$G$17*L5,"") -> 0 | M13: =IF(M3<'Opt 2 Input Sheet'!$G$17,-'Opt 2 Input Sheet'!$G$14/'Opt 2 Input Sheet'!$G$17*M5,"") ->  | N13: =IF(N3<'Opt 2 Input Sheet'!$G$17,-'Opt 2 Input Sheet'!$G$14/'Opt 2 Input Sheet'!$G$17*N5,"") ->  | O13: =IF(O3<'Opt 2 Input Sheet'!$G$17,-'Opt 2 Input Sheet'!$G$14/'Opt 2 Input Sheet'!$G$17*O5,"") ->  | P13: =IF(P3<'Opt 2 Input Sheet'!$G$17,-'Opt 2 Input Sheet'!$G$14/'Opt 2 Input Sheet'!$G$17*P5,"") ->  | Q13: =IF(Q3<'Opt 2 Input Sheet'!$G$17,-'Opt 2 Input Sheet'!$G$14/'Opt 2 Input Sheet'!$G$17*Q5,"") ->  | R13: =IF(R3<'Opt 2 Input Sheet'!$G$17,-'Opt 2 Input Sheet'!$G$14/'Opt 2 Input Sheet'!$G$17*R5,"") ->  | S13: =IF(S3<'Opt 2 Input Sheet'!$G$17,-'Opt 2 Input Sheet'!$G$14/'Opt 2 Input Sheet'!$G$17*S5,"") ->  | T13: =IF(T3<'Opt 2 Input Sheet'!$G$17,-'Opt 2 Input Sheet'!$G$14/'Opt 2 Input Sheet'!$G$17*T5,"") ->  | U13: =IF(U3<'Opt 2 Input Sheet'!$G$17,-'Opt 2 Input Sheet'!$G$14/'Opt 2 Input Sheet'!$G$17*U5,"") ->  | V13: =IF(V3<'Opt 2 Input Sheet'!$G$17,-'Opt 2 Input Sheet'!$G$14/'Opt 2 Input Sheet'!$G$17*V5,"") ->  | W13: =IF(W3<'Opt 2 Input Sheet'!$G$17,-'Opt 2 Input Sheet'!$G$14/'Opt 2 Input Sheet'!$G$17*W5,"") ->  | X13: =IF(X3<'Opt 2 Input Sheet'!$G$17,-'Opt 2 Input Sheet'!$G$14/'Opt 2 Input Sheet'!$G$17*X5,"") ->  | Y13: =IF(Y3<'Opt 2 Input Sheet'!$G$17,-'Opt 2 Input Sheet'!$G$14/'Opt 2 Input Sheet'!$G$17*Y5,"") ->  | Z13: =IF(Z3<'Opt 2 Input Sheet'!$G$17,-'Opt 2 Input Sheet'!$G$14/'Opt 2 Input Sheet'!$G$17*Z5,"") -> 
D14: ='Opt 2 Input Sheet'!C15 -> VAT | F14: £ | H14: =SUM(K14:S14) -> 0 | K14: =IF(K3<'Opt 2 Input Sheet'!$G$17,-'Opt 2 Input Sheet'!$G$15/'Opt 2 Input Sheet'!$G$17*K5,"") -> 0 | L14: =IF(L3<'Opt 2 Input Sheet'!$G$17,-'Opt 2 Input Sheet'!$G$15/'Opt 2 Input Sheet'!$G$17*L5,"") -> 0 | M14: =IF(M3<'Opt 2 Input Sheet'!$G$17,-'Opt 2 Input Sheet'!$G$15/'Opt 2 Input Sheet'!$G$17*M5,"") ->  | N14: =IF(N3<'Opt 2 Input Sheet'!$G$17,-'Opt 2 Input Sheet'!$G$15/'Opt 2 Input Sheet'!$G$17*N5,"") ->  | O14: =IF(O3<'Opt 2 Input Sheet'!$G$17,-'Opt 2 Input Sheet'!$G$15/'Opt 2 Input Sheet'!$G$17*O5,"") ->  | P14: =IF(P3<'Opt 2 Input Sheet'!$G$17,-'Opt 2 Input Sheet'!$G$15/'Opt 2 Input Sheet'!$G$17*P5,"") ->  | Q14: =IF(Q3<'Opt 2 Input Sheet'!$G$17,-'Opt 2 Input Sheet'!$G$15/'Opt 2 Input Sheet'!$G$17*Q5,"") ->  | R14: =IF(R3<'Opt 2 Input Sheet'!$G$17,-'Opt 2 Input Sheet'!$G$15/'Opt 2 Input Sheet'!$G$17*R5,"") ->  | S14: =IF(S3<'Opt 2 Input Sheet'!$G$17,-'Opt 2 Input Sheet'!$G$15/'Opt 2 Input Sheet'!$G$17*S5,"") ->  | T14: =IF(T3<'Opt 2 Input Sheet'!$G$17,-'Opt 2 Input Sheet'!$G$15/'Opt 2 Input Sheet'!$G$17*T5,"") ->  | U14: =IF(U3<'Opt 2 Input Sheet'!$G$17,-'Opt 2 Input Sheet'!$G$15/'Opt 2 Input Sheet'!$G$17*U5,"") ->  | V14: =IF(V3<'Opt 2 Input Sheet'!$G$17,-'Opt 2 Input Sheet'!$G$15/'Opt 2 Input Sheet'!$G$17*V5,"") ->  | W14: =IF(W3<'Opt 2 Input Sheet'!$G$17,-'Opt 2 Input Sheet'!$G$15/'Opt 2 Input Sheet'!$G$17*W5,"") ->  | X14: =IF(X3<'Opt 2 Input Sheet'!$G$17,-'Opt 2 Input Sheet'!$G$15/'Opt 2 Input Sheet'!$G$17*X5,"") ->  | Y14: =IF(Y3<'Opt 2 Input Sheet'!$G$17,-'Opt 2 Input Sheet'!$G$15/'Opt 2 Input Sheet'!$G$17*Y5,"") ->  | Z14: =IF(Z3<'Opt 2 Input Sheet'!$G$17,-'Opt 2 Input Sheet'!$G$15/'Opt 2 Input Sheet'!$G$17*Z5,"") -> 
D15: ='Opt 2 Input Sheet'!C16 -> Other fees/duties | F15: £ | H15: =SUM(K15:S15) -> 0 | K15: =IF(K3<'Opt 2 Input Sheet'!$G$17,-'Opt 2 Input Sheet'!$G$16/'Opt 2 Input Sheet'!$G$17*K5,"") -> 0 | L15: =IF(L3<'Opt 2 Input Sheet'!$G$17,-'Opt 2 Input Sheet'!$G$16/'Opt 2 Input Sheet'!$G$17*L5,"") -> 0 | M15: =IF(M3<'Opt 2 Input Sheet'!$G$17,-'Opt 2 Input Sheet'!$G$16/'Opt 2 Input Sheet'!$G$17*M5,"") ->  | N15: =IF(N3<'Opt 2 Input Sheet'!$G$17,-'Opt 2 Input Sheet'!$G$16/'Opt 2 Input Sheet'!$G$17*N5,"") ->  | O15: =IF(O3<'Opt 2 Input Sheet'!$G$17,-'Opt 2 Input Sheet'!$G$16/'Opt 2 Input Sheet'!$G$17*O5,"") ->  | P15: =IF(P3<'Opt 2 Input Sheet'!$G$17,-'Opt 2 Input Sheet'!$G$16/'Opt 2 Input Sheet'!$G$17*P5,"") ->  | Q15: =IF(Q3<'Opt 2 Input Sheet'!$G$17,-'Opt 2 Input Sheet'!$G$16/'Opt 2 Input Sheet'!$G$17*Q5,"") ->  | R15: =IF(R3<'Opt 2 Input Sheet'!$G$17,-'Opt 2 Input Sheet'!$G$16/'Opt 2 Input Sheet'!$G$17*R5,"") ->  | S15: =IF(S3<'Opt 2 Input Sheet'!$G$17,-'Opt 2 Input Sheet'!$G$16/'Opt 2 Input Sheet'!$G$17*S5,"") ->  | T15: =IF(T3<'Opt 2 Input Sheet'!$G$17,-'Opt 2 Input Sheet'!$G$16/'Opt 2 Input Sheet'!$G$17*T5,"") ->  | U15: =IF(U3<'Opt 2 Input Sheet'!$G$17,-'Opt 2 Input Sheet'!$G$16/'Opt 2 Input Sheet'!$G$17*U5,"") ->  | V15: =IF(V3<'Opt 2 Input Sheet'!$G$17,-'Opt 2 Input Sheet'!$G$16/'Opt 2 Input Sheet'!$G$17*V5,"") ->  | W15: =IF(W3<'Opt 2 Input Sheet'!$G$17,-'Opt 2 Input Sheet'!$G$16/'Opt 2 Input Sheet'!$G$17*W5,"") ->  | X15: =IF(X3<'Opt 2 Input Sheet'!$G$17,-'Opt 2 Input Sheet'!$G$16/'Opt 2 Input Sheet'!$G$17*X5,"") ->  | Y15: =IF(Y3<'Opt 2 Input Sheet'!$G$17,-'Opt 2 Input Sheet'!$G$16/'Opt 2 Input Sheet'!$G$17*Y5,"") ->  | Z15: =IF(Z3<'Opt 2 Input Sheet'!$G$17,-'Opt 2 Input Sheet'!$G$16/'Opt 2 Input Sheet'!$G$17*Z5,"") -> 
D16: Refurbishment | F16: £ | H16: =SUM(K16:S16) -> 0 | K16: =IF(AND(K7="Yes",K3>1),-'Opt 2 Input Sheet'!$G$20*K5,0) -> 0 | L16: =IF(AND(L7="Yes",L3>1),-'Opt 2 Input Sheet'!$G$20*L5,0) -> 0 | M16: =IF(AND(M7="Yes",M3>1),-'Opt 2 Input Sheet'!$G$20*M5,0) -> 0 | N16: =IF(AND(N7="Yes",N3>1),-'Opt 2 Input Sheet'!$G$20*N5,0) -> 0 | O16: =IF(AND(O7="Yes",O3>1),-'Opt 2 Input Sheet'!$G$20*O5,0) -> 0 | P16: =IF(AND(P7="Yes",P3>1),-'Opt 2 Input Sheet'!$G$20*P5,0) -> 0 | Q16: =IF(AND(Q7="Yes",Q3>1),-'Opt 2 Input Sheet'!$G$20*Q5,0) -> 0 | R16: =IF(AND(R7="Yes",R3>1),-'Opt 2 Input Sheet'!$G$20*R5,0) -> 0 | S16: =IF(AND(S7="Yes",S3>1),-'Opt 2 Input Sheet'!$G$20*S5,0) -> 0 | T16: =IF(AND(T7="Yes",T3>1),-'Opt 2 Input Sheet'!$G$20*T5,0) -> 0 | U16: =IF(AND(U7="Yes",U3>1),-'Opt 2 Input Sheet'!$G$20*U5,0) -> 0 | V16: =IF(AND(V7="Yes",V3>1),-'Opt 2 Input Sheet'!$G$20*V5,0) -> 0 | W16: =IF(AND(W7="Yes",W3>1),-'Opt 2 Input Sheet'!$G$20*W5,0) -> 0 | X16: =IF(AND(X7="Yes",X3>1),-'Opt 2 Input Sheet'!$G$20*X5,0) -> 0 | Y16: =IF(AND(Y7="Yes",Y3>1),-'Opt 2 Input Sheet'!$G$20*Y5,0) -> 0 | Z16: =IF(AND(Z7="Yes",Z3>1),-'Opt 2 Input Sheet'!$G$20*Z5,0) -> 0
C17: Total capital | F17: £ | H17: =SUM(H12:H16) -> 0 | K17: =SUM(K12:K16) -> 0 | L17: =SUM(L12:L16) -> 0 | M17: =SUM(M12:M16) -> 0 | N17: 0 | O17: 0 | P17: 0 | Q17: 0 | R17: 0 | S17: 0 | T17: 0 | U17: 0 | V17: 0 | W17: 0 | X17: 0 | Y17: 0 | Z17: 0
B19: Cash Flow Statement
C20: Revenue
D21: ='Opt 2 Input Sheet'!B32 -> Membership income | F21: £ | H21: =SUM(K21:S21) -> 0 | K21: =IF(K3>'Opt 2 Input Sheet'!$G$29,(VLOOKUP(K3,'Opt 2 Input Sheet'!$E$34:$G$48,3,FALSE)*K5*'Opt 2 Input Sheet'!$G$50),"") ->  | L21: =IF(L3>'Opt 2 Input Sheet'!$G$29,(VLOOKUP(L3,'Opt 2 Input Sheet'!$E$34:$G$48,3,FALSE)*L5*'Opt 2 Input Sheet'!$G$50),"") ->  | M21: =IF(M3>'Opt 2 Input Sheet'!$G$29,(VLOOKUP(M3,'Opt 2 Input Sheet'!$E$34:$G$48,3,FALSE)*M5*'Opt 2 Input Sheet'!$G$50),"") -> 0 | N21: =IF(N3>'Opt 2 Input Sheet'!$G$29,(VLOOKUP(N3,'Opt 2 Input Sheet'!$E$34:$G$48,3,FALSE)*N5*'Opt 2 Input Sheet'!$G$50),"") -> 0 | O21: =IF(O3>'Opt 2 Input Sheet'!$G$29,(VLOOKUP(O3,'Opt 2 Input Sheet'!$E$34:$G$48,3,FALSE)*O5*'Opt 2 Input Sheet'!$G$50),"") -> 0 | P21: =IF(P3>'Opt 2 Input Sheet'!$G$29,(VLOOKUP(P3,'Opt 2 Input Sheet'!$E$34:$G$48,3,FALSE)*P5*'Opt 2 Input Sheet'!$G$50),"") -> 0 | Q21: =IF(Q3>'Opt 2 Input Sheet'!$G$29,(VLOOKUP(Q3,'Opt 2 Input Sheet'!$E$34:$G$48,3,FALSE)*Q5*'Opt 2 Input Sheet'!$G$50),"") -> 0 | R21: =IF(R3>'Opt 2 Input Sheet'!$G$29,(VLOOKUP(R3,'Opt 2 Input Sheet'!$E$34:$G$48,3,FALSE)*R5*'Opt 2 Input Sheet'!$G$50),"") -> 0 | S21: =IF(S3>'Opt 2 Input Sheet'!$G$29,(VLOOKUP(S3,'Opt 2 Input Sheet'!$E$34:$G$48,3,FALSE)*S5*'Opt 2 Input Sheet'!$G$50),"") -> 0 | T21: =IF(T3>'Opt 2 Input Sheet'!$G$29,(VLOOKUP(T3,'Opt 2 Input Sheet'!$E$34:$G$48,3,FALSE)*T5*'Opt 2 Input Sheet'!$G$50),"") -> 0 | U21: =IF(U3>'Opt 2 Input Sheet'!$G$29,(VLOOKUP(U3,'Opt 2 Input Sheet'!$E$34:$G$48,3,FALSE)*U5*'Opt 2 Input Sheet'!$G$50),"") -> 0 | V21: =IF(V3>'Opt 2 Input Sheet'!$G$29,(VLOOKUP(V3,'Opt 2 Input Sheet'!$E$34:$G$48,3,FALSE)*V5*'Opt 2 Input Sheet'!$G$50),"") -> 0 | W21: =IF(W3>'Opt 2 Input Sheet'!$G$29,(VLOOKUP(W3,'Opt 2 Input Sheet'!$E$34:$G$48,3,FALSE)*W5*'Opt 2 Input Sheet'!$G$50),"") -> 0 | X21: =IF(X3>'Opt 2 Input Sheet'!$G$29,(VLOOKUP(X3,'Opt 2 Input Sheet'!$E$34:$G$48,3,FALSE)*X5*'Opt 2 Input Sheet'!$G$50),"") -> 0 | Y21: =IF(Y3>'Opt 2 Input Sheet'!$G$29,(VLOOKUP(Y3,'Opt 2 Input Sheet'!$E$34:$G$48,3,FALSE)*Y5*'Opt 2 Input Sheet'!$G$50),"") -> 0 | Z21: =IF(Z3>'Opt 2 Input Sheet'!$G$29,(VLOOKUP(Z3,'Opt 2 Input Sheet'!$E$34:$G$48,3,FALSE)*Z5*'Opt 2 Input Sheet'!$G$50),"") -> 0 | AD21: Membership income
D22: ='Opt 2 Input Sheet'!C53 -> Accommodation income | F22: £ | H22: 0 | K22: =IF(K3>'Opt 2 Input Sheet'!$G$29,'Opt 2 Input Sheet'!$G$54*'Opt 2 Input Sheet'!$G$55*'Opt 2 Input Sheet'!$G$56/365*'Opt 2 Input Sheet'!$G$57*'Opt 2 Output sheet'!K5,"") ->  | L22: =IF(L3>'Opt 2 Input Sheet'!$G$29,'Opt 2 Input Sheet'!$G$54*'Opt 2 Input Sheet'!$G$55*'Opt 2 Input Sheet'!$G$56/365*'Opt 2 Input Sheet'!$G$57*'Opt 2 Output sheet'!L5,"") ->  | M22: =IF(M3>'Opt 2 Input Sheet'!$G$29,'Opt 2 Input Sheet'!$G$54*'Opt 2 Input Sheet'!$G$55*'Opt 2 Input Sheet'!$G$56/365*'Opt 2 Input Sheet'!$G$57*'Opt 2 Output sheet'!M5,"") -> 0 | N22: =IF(N3>'Opt 2 Input Sheet'!$G$29,'Opt 2 Input Sheet'!$G$54*'Opt 2 Input Sheet'!$G$55*'Opt 2 Input Sheet'!$G$56/365*'Opt 2 Input Sheet'!$G$57*'Opt 2 Output sheet'!N5,"") -> 0 | O22: =IF(O3>'Opt 2 Input Sheet'!$G$29,'Opt 2 Input Sheet'!$G$54*'Opt 2 Input Sheet'!$G$55*'Opt 2 Input Sheet'!$G$56/365*'Opt 2 Input Sheet'!$G$57*'Opt 2 Output sheet'!O5,"") -> 0 | P22: =IF(P3>'Opt 2 Input Sheet'!$G$29,'Opt 2 Input Sheet'!$G$54*'Opt 2 Input Sheet'!$G$55*'Opt 2 Input Sheet'!$G$56/365*'Opt 2 Input Sheet'!$G$57*'Opt 2 Output sheet'!P5,"") -> 0 | Q22: =IF(Q3>'Opt 2 Input Sheet'!$G$29,'Opt 2 Input Sheet'!$G$54*'Opt 2 Input Sheet'!$G$55*'Opt 2 Input Sheet'!$G$56/365*'Opt 2 Input Sheet'!$G$57*'Opt 2 Output sheet'!Q5,"") -> 0 | R22: =IF(R3>'Opt 2 Input Sheet'!$G$29,'Opt 2 Input Sheet'!$G$54*'Opt 2 Input Sheet'!$G$55*'Opt 2 Input Sheet'!$G$56/365*'Opt 2 Input Sheet'!$G$57*'Opt 2 Output sheet'!R5,"") -> 0 | S22: =IF(S3>'Opt 2 Input Sheet'!$G$29,'Opt 2 Input Sheet'!$G$54*'Opt 2 Input Sheet'!$G$55*'Opt 2 Input Sheet'!$G$56/365*'Opt 2 Input Sheet'!$G$57*'Opt 2 Output sheet'!S5,"") -> 0 | T22: =IF(T3>'Opt 2 Input Sheet'!$G$29,'Opt 2 Input Sheet'!$G$54*'Opt 2 Input Sheet'!$G$55*'Opt 2 Input Sheet'!$G$56/365*'Opt 2 Input Sheet'!$G$57*'Opt 2 Output sheet'!T5,"") -> 0 | U22: =IF(U3>'Opt 2 Input Sheet'!$G$29,'Opt 2 Input Sheet'!$G$54*'Opt 2 Input Sheet'!$G$55*'Opt 2 Input Sheet'!$G$56/365*'Opt 2 Input Sheet'!$G$57*'Opt 2 Output sheet'!U5,"") -> 0 | V22: =IF(V3>'Opt 2 Input Sheet'!$G$29,'Opt 2 Input Sheet'!$G$54*'Opt 2 Input Sheet'!$G$55*'Opt 2 Input Sheet'!$G$56/365*'Opt 2 Input Sheet'!$G$57*'Opt 2 Output sheet'!V5,"") -> 0 | W22: =IF(W3>'Opt 2 Input Sheet'!$G$29,'Opt 2 Input Sheet'!$G$54*'Opt 2 Input Sheet'!$G$55*'Opt 2 Input Sheet'!$G$56/365*'Opt 2 Input Sheet'!$G$57*'Opt 2 Output sheet'!W5,"") -> 0 | X22: =IF(X3>'Opt 2 Input Sheet'!$G$29,'Opt 2 Input Sheet'!$G$54*'Opt 2 Input Sheet'!$G$55*'Opt 2 Input Sheet'!$G$56/365*'Opt 2 Input Sheet'!$G$57*'Opt 2 Output sheet'!X5,"") -> 0 | Y22: =IF(Y3>'Opt 2 Input Sheet'!$G$29,'Opt 2 Input Sheet'!$G$54*'Opt 2 Input Sheet'!$G$55*'Opt 2 Input Sheet'!$G$56/365*'Opt 2 Input Sheet'!$G$57*'Opt 2 Output sheet'!Y5,"") -> 0 | Z22: =IF(Z3>'Opt 2 Input Sheet'!$G$29,'Opt 2 Input Sheet'!$G$54*'Opt 2 Input Sheet'!$G$55*'Opt 2 Input Sheet'!$G$56/365*'Opt 2 Input Sheet'!$G$57*'Opt 2 Output sheet'!Z5,"") -> 0 | AD22: Accommodation income
D23: ='Opt 2 Input Sheet'!C59 -> Rental space income | F23: £ | H23: 0 | K23: =IF(K3>'Opt 2 Input Sheet'!$G$29,'Opt 2 Input Sheet'!$G$60*'Opt 2 Input Sheet'!$G$61*'Opt 2 Input Sheet'!$G$62*'Opt 2 Output sheet'!K5,"") ->  | L23: =IF(L3>'Opt 2 Input Sheet'!$G$29,'Opt 2 Input Sheet'!$G$60*'Opt 2 Input Sheet'!$G$61*'Opt 2 Input Sheet'!$G$62*'Opt 2 Output sheet'!L5,"") ->  | M23: =IF(M3>'Opt 2 Input Sheet'!$G$29,'Opt 2 Input Sheet'!$G$60*'Opt 2 Input Sheet'!$G$61*'Opt 2 Input Sheet'!$G$62*'Opt 2 Output sheet'!M5,"") -> 0 | N23: =IF(N3>'Opt 2 Input Sheet'!$G$29,'Opt 2 Input Sheet'!$G$60*'Opt 2 Input Sheet'!$G$61*'Opt 2 Input Sheet'!$G$62*'Opt 2 Output sheet'!N5,"") -> 0 | O23: =IF(O3>'Opt 2 Input Sheet'!$G$29,'Opt 2 Input Sheet'!$G$60*'Opt 2 Input Sheet'!$G$61*'Opt 2 Input Sheet'!$G$62*'Opt 2 Output sheet'!O5,"") -> 0 | P23: =IF(P3>'Opt 2 Input Sheet'!$G$29,'Opt 2 Input Sheet'!$G$60*'Opt 2 Input Sheet'!$G$61*'Opt 2 Input Sheet'!$G$62*'Opt 2 Output sheet'!P5,"") -> 0 | Q23: =IF(Q3>'Opt 2 Input Sheet'!$G$29,'Opt 2 Input Sheet'!$G$60*'Opt 2 Input Sheet'!$G$61*'Opt 2 Input Sheet'!$G$62*'Opt 2 Output sheet'!Q5,"") -> 0 | R23: =IF(R3>'Opt 2 Input Sheet'!$G$29,'Opt 2 Input Sheet'!$G$60*'Opt 2 Input Sheet'!$G$61*'Opt 2 Input Sheet'!$G$62*'Opt 2 Output sheet'!R5,"") -> 0 | S23: =IF(S3>'Opt 2 Input Sheet'!$G$29,'Opt 2 Input Sheet'!$G$60*'Opt 2 Input Sheet'!$G$61*'Opt 2 Input Sheet'!$G$62*'Opt 2 Output sheet'!S5,"") -> 0 | T23: =IF(T3>'Opt 2 Input Sheet'!$G$29,'Opt 2 Input Sheet'!$G$60*'Opt 2 Input Sheet'!$G$61*'Opt 2 Input Sheet'!$G$62*'Opt 2 Output sheet'!T5,"") -> 0 | U23: =IF(U3>'Opt 2 Input Sheet'!$G$29,'Opt 2 Input Sheet'!$G$60*'Opt 2 Input Sheet'!$G$61*'Opt 2 Input Sheet'!$G$62*'Opt 2 Output sheet'!U5,"") -> 0 | V23: =IF(V3>'Opt 2 Input Sheet'!$G$29,'Opt 2 Input Sheet'!$G$60*'Opt 2 Input Sheet'!$G$61*'Opt 2 Input Sheet'!$G$62*'Opt 2 Output sheet'!V5,"") -> 0 | W23: =IF(W3>'Opt 2 Input Sheet'!$G$29,'Opt 2 Input Sheet'!$G$60*'Opt 2 Input Sheet'!$G$61*'Opt 2 Input Sheet'!$G$62*'Opt 2 Output sheet'!W5,"") -> 0 | X23: =IF(X3>'Opt 2 Input Sheet'!$G$29,'Opt 2 Input Sheet'!$G$60*'Opt 2 Input Sheet'!$G$61*'Opt 2 Input Sheet'!$G$62*'Opt 2 Output sheet'!X5,"") -> 0 | Y23: =IF(Y3>'Opt 2 Input Sheet'!$G$29,'Opt 2 Input Sheet'!$G$60*'Opt 2 Input Sheet'!$G$61*'Opt 2 Input Sheet'!$G$62*'Opt 2 Output sheet'!Y5,"") -> 0 | Z23: =IF(Z3>'Opt 2 Input Sheet'!$G$29,'Opt 2 Input Sheet'!$G$60*'Opt 2 Input Sheet'!$G$61*'Opt 2 Input Sheet'!$G$62*'Opt 2 Output sheet'!Z5,"") -> 0 | AD23: Rental space income
D24: ='Opt 2 Input Sheet'!C64 -> Room & equipment hire income | F24: £ | H24: 0 | K24: =IF(K3>'Opt 2 Input Sheet'!$G$29,'Opt 2 Input Sheet'!$G$65*'Opt 2 Input Sheet'!$G$66*'Opt 2 Input Sheet'!$G$67/365*'Opt 2 Input Sheet'!$G$68*'Opt 2 Output sheet'!K5,"") ->  | L24: =IF(L3>'Opt 2 Input Sheet'!$G$29,'Opt 2 Input Sheet'!$G$65*'Opt 2 Input Sheet'!$G$66*'Opt 2 Input Sheet'!$G$67/365*'Opt 2 Input Sheet'!$G$68*'Opt 2 Output sheet'!L5,"") ->  | M24: =IF(M3>'Opt 2 Input Sheet'!$G$29,'Opt 2 Input Sheet'!$G$65*'Opt 2 Input Sheet'!$G$66*'Opt 2 Input Sheet'!$G$67/365*'Opt 2 Input Sheet'!$G$68*'Opt 2 Output sheet'!M5,"") -> 0 | N24: =IF(N3>'Opt 2 Input Sheet'!$G$29,'Opt 2 Input Sheet'!$G$65*'Opt 2 Input Sheet'!$G$66*'Opt 2 Input Sheet'!$G$67/365*'Opt 2 Input Sheet'!$G$68*'Opt 2 Output sheet'!N5,"") -> 0 | O24: =IF(O3>'Opt 2 Input Sheet'!$G$29,'Opt 2 Input Sheet'!$G$65*'Opt 2 Input Sheet'!$G$66*'Opt 2 Input Sheet'!$G$67/365*'Opt 2 Input Sheet'!$G$68*'Opt 2 Output sheet'!O5,"") -> 0 | P24: =IF(P3>'Opt 2 Input Sheet'!$G$29,'Opt 2 Input Sheet'!$G$65*'Opt 2 Input Sheet'!$G$66*'Opt 2 Input Sheet'!$G$67/365*'Opt 2 Input Sheet'!$G$68*'Opt 2 Output sheet'!P5,"") -> 0 | Q24: =IF(Q3>'Opt 2 Input Sheet'!$G$29,'Opt 2 Input Sheet'!$G$65*'Opt 2 Input Sheet'!$G$66*'Opt 2 Input Sheet'!$G$67/365*'Opt 2 Input Sheet'!$G$68*'Opt 2 Output sheet'!Q5,"") -> 0 | R24: =IF(R3>'Opt 2 Input Sheet'!$G$29,'Opt 2 Input Sheet'!$G$65*'Opt 2 Input Sheet'!$G$66*'Opt 2 Input Sheet'!$G$67/365*'Opt 2 Input Sheet'!$G$68*'Opt 2 Output sheet'!R5,"") -> 0 | S24: =IF(S3>'Opt 2 Input Sheet'!$G$29,'Opt 2 Input Sheet'!$G$65*'Opt 2 Input Sheet'!$G$66*'Opt 2 Input Sheet'!$G$67/365*'Opt 2 Input Sheet'!$G$68*'Opt 2 Output sheet'!S5,"") -> 0 | T24: =IF(T3>'Opt 2 Input Sheet'!$G$29,'Opt 2 Input Sheet'!$G$65*'Opt 2 Input Sheet'!$G$66*'Opt 2 Input Sheet'!$G$67/365*'Opt 2 Input Sheet'!$G$68*'Opt 2 Output sheet'!T5,"") -> 0 | U24: =IF(U3>'Opt 2 Input Sheet'!$G$29,'Opt 2 Input Sheet'!$G$65*'Opt 2 Input Sheet'!$G$66*'Opt 2 Input Sheet'!$G$67/365*'Opt 2 Input Sheet'!$G$68*'Opt 2 Output sheet'!U5,"") -> 0 | V24: =IF(V3>'Opt 2 Input Sheet'!$G$29,'Opt 2 Input Sheet'!$G$65*'Opt 2 Input Sheet'!$G$66*'Opt 2 Input Sheet'!$G$67/365*'Opt 2 Input Sheet'!$G$68*'Opt 2 Output sheet'!V5,"") -> 0 | W24: =IF(W3>'Opt 2 Input Sheet'!$G$29,'Opt 2 Input Sheet'!$G$65*'Opt 2 Input Sheet'!$G$66*'Opt 2 Input Sheet'!$G$67/365*'Opt 2 Input Sheet'!$G$68*'Opt 2 Output sheet'!W5,"") -> 0 | X24: =IF(X3>'Opt 2 Input Sheet'!$G$29,'Opt 2 Input Sheet'!$G$65*'Opt 2 Input Sheet'!$G$66*'Opt 2 Input Sheet'!$G$67/365*'Opt 2 Input Sheet'!$G$68*'Opt 2 Output sheet'!X5,"") -> 0 | Y24: =IF(Y3>'Opt 2 Input Sheet'!$G$29,'Opt 2 Input Sheet'!$G$65*'Opt 2 Input Sheet'!$G$66*'Opt 2 Input Sheet'!$G$67/365*'Opt 2 Input Sheet'!$G$68*'Opt 2 Output sheet'!Y5,"") -> 0 | Z24: =IF(Z3>'Opt 2 Input Sheet'!$G$29,'Opt 2 Input Sheet'!$G$65*'Opt 2 Input Sheet'!$G$66*'Opt 2 Input Sheet'!$G$67/365*'Opt 2 Input Sheet'!$G$68*'Opt 2 Output sheet'!Z5,"") -> 0 | AD24: Room & equipment hire income
D25: ='Opt 2 Input Sheet'!C70 -> Restaurant and private dining income | F25: £ | H25: 0 | K25: =IF(K3>'Opt 2 Input Sheet'!$G$29,'Opt 2 Input Sheet'!$G$71*'Opt 2 Input Sheet'!$G$72*'Opt 2 Input Sheet'!$G$73/365*'Opt 2 Output sheet'!K5,"") ->  | L25: =IF(L3>'Opt 2 Input Sheet'!$G$29,'Opt 2 Input Sheet'!$G$71*'Opt 2 Input Sheet'!$G$72*'Opt 2 Input Sheet'!$G$73/365*'Opt 2 Output sheet'!L5,"") ->  | M25: =IF(M3>'Opt 2 Input Sheet'!$G$29,'Opt 2 Input Sheet'!$G$71*'Opt 2 Input Sheet'!$G$72*'Opt 2 Input Sheet'!$G$73/365*'Opt 2 Output sheet'!M5,"") -> 0 | N25: =IF(N3>'Opt 2 Input Sheet'!$G$29,'Opt 2 Input Sheet'!$G$71*'Opt 2 Input Sheet'!$G$72*'Opt 2 Input Sheet'!$G$73/365*'Opt 2 Output sheet'!N5,"") -> 0 | O25: =IF(O3>'Opt 2 Input Sheet'!$G$29,'Opt 2 Input Sheet'!$G$71*'Opt 2 Input Sheet'!$G$72*'Opt 2 Input Sheet'!$G$73/365*'Opt 2 Output sheet'!O5,"") -> 0 | P25: =IF(P3>'Opt 2 Input Sheet'!$G$29,'Opt 2 Input Sheet'!$G$71*'Opt 2 Input Sheet'!$G$72*'Opt 2 Input Sheet'!$G$73/365*'Opt 2 Output sheet'!P5,"") -> 0 | Q25: =IF(Q3>'Opt 2 Input Sheet'!$G$29,'Opt 2 Input Sheet'!$G$71*'Opt 2 Input Sheet'!$G$72*'Opt 2 Input Sheet'!$G$73/365*'Opt 2 Output sheet'!Q5,"") -> 0 | R25: =IF(R3>'Opt 2 Input Sheet'!$G$29,'Opt 2 Input Sheet'!$G$71*'Opt 2 Input Sheet'!$G$72*'Opt 2 Input Sheet'!$G$73/365*'Opt 2 Output sheet'!R5,"") -> 0 | S25: =IF(S3>'Opt 2 Input Sheet'!$G$29,'Opt 2 Input Sheet'!$G$71*'Opt 2 Input Sheet'!$G$72*'Opt 2 Input Sheet'!$G$73/365*'Opt 2 Output sheet'!S5,"") -> 0 | T25: =IF(T3>'Opt 2 Input Sheet'!$G$29,'Opt 2 Input Sheet'!$G$71*'Opt 2 Input Sheet'!$G$72*'Opt 2 Input Sheet'!$G$73/365*'Opt 2 Output sheet'!T5,"") -> 0 | U25: =IF(U3>'Opt 2 Input Sheet'!$G$29,'Opt 2 Input Sheet'!$G$71*'Opt 2 Input Sheet'!$G$72*'Opt 2 Input Sheet'!$G$73/365*'Opt 2 Output sheet'!U5,"") -> 0 | V25: =IF(V3>'Opt 2 Input Sheet'!$G$29,'Opt 2 Input Sheet'!$G$71*'Opt 2 Input Sheet'!$G$72*'Opt 2 Input Sheet'!$G$73/365*'Opt 2 Output sheet'!V5,"") -> 0 | W25: =IF(W3>'Opt 2 Input Sheet'!$G$29,'Opt 2 Input Sheet'!$G$71*'Opt 2 Input Sheet'!$G$72*'Opt 2 Input Sheet'!$G$73/365*'Opt 2 Output sheet'!W5,"") -> 0 | X25: =IF(X3>'Opt 2 Input Sheet'!$G$29,'Opt 2 Input Sheet'!$G$71*'Opt 2 Input Sheet'!$G$72*'Opt 2 Input Sheet'!$G$73/365*'Opt 2 Output sheet'!X5,"") -> 0 | Y25: =IF(Y3>'Opt 2 Input Sheet'!$G$29,'Opt 2 Input Sheet'!$G$71*'Opt 2 Input Sheet'!$G$72*'Opt 2 Input Sheet'!$G$73/365*'Opt 2 Output sheet'!Y5,"") -> 0 | Z25: =IF(Z3>'Opt 2 Input Sheet'!$G$29,'Opt 2 Input Sheet'!$G$71*'Opt 2 Input Sheet'!$G$72*'Opt 2 Input Sheet'!$G$73/365*'Opt 2 Output sheet'!Z5,"") -> 0 | AD25: Restaurant and private dining income
D26: ='Opt 2 Input Sheet'!C76 -> Events income | F26: £ | H26: 0 | K26: =IF(K3>'Opt 2 Input Sheet'!$G$29,'Opt 2 Input Sheet'!$G$77*'Opt 2 Input Sheet'!$G$78*'Opt 2 Input Sheet'!$G$79*'Opt 2 Output sheet'!K5,"") ->  | L26: =IF(L3>'Opt 2 Input Sheet'!$G$29,'Opt 2 Input Sheet'!$G$77*'Opt 2 Input Sheet'!$G$78*'Opt 2 Input Sheet'!$G$79*'Opt 2 Output sheet'!L5,"") ->  | M26: =IF(M3>'Opt 2 Input Sheet'!$G$29,'Opt 2 Input Sheet'!$G$77*'Opt 2 Input Sheet'!$G$78*'Opt 2 Input Sheet'!$G$79*'Opt 2 Output sheet'!M5,"") -> 0 | N26: =IF(N3>'Opt 2 Input Sheet'!$G$29,'Opt 2 Input Sheet'!$G$77*'Opt 2 Input Sheet'!$G$78*'Opt 2 Input Sheet'!$G$79*'Opt 2 Output sheet'!N5,"") -> 0 | O26: =IF(O3>'Opt 2 Input Sheet'!$G$29,'Opt 2 Input Sheet'!$G$77*'Opt 2 Input Sheet'!$G$78*'Opt 2 Input Sheet'!$G$79*'Opt 2 Output sheet'!O5,"") -> 0 | P26: =IF(P3>'Opt 2 Input Sheet'!$G$29,'Opt 2 Input Sheet'!$G$77*'Opt 2 Input Sheet'!$G$78*'Opt 2 Input Sheet'!$G$79*'Opt 2 Output sheet'!P5,"") -> 0 | Q26: =IF(Q3>'Opt 2 Input Sheet'!$G$29,'Opt 2 Input Sheet'!$G$77*'Opt 2 Input Sheet'!$G$78*'Opt 2 Input Sheet'!$G$79*'Opt 2 Output sheet'!Q5,"") -> 0 | R26: =IF(R3>'Opt 2 Input Sheet'!$G$29,'Opt 2 Input Sheet'!$G$77*'Opt 2 Input Sheet'!$G$78*'Opt 2 Input Sheet'!$G$79*'Opt 2 Output sheet'!R5,"") -> 0 | S26: =IF(S3>'Opt 2 Input Sheet'!$G$29,'Opt 2 Input Sheet'!$G$77*'Opt 2 Input Sheet'!$G$78*'Opt 2 Input Sheet'!$G$79*'Opt 2 Output sheet'!S5,"") -> 0 | T26: =IF(T3>'Opt 2 Input Sheet'!$G$29,'Opt 2 Input Sheet'!$G$77*'Opt 2 Input Sheet'!$G$78*'Opt 2 Input Sheet'!$G$79*'Opt 2 Output sheet'!T5,"") -> 0 | U26: =IF(U3>'Opt 2 Input Sheet'!$G$29,'Opt 2 Input Sheet'!$G$77*'Opt 2 Input Sheet'!$G$78*'Opt 2 Input Sheet'!$G$79*'Opt 2 Output sheet'!U5,"") -> 0 | V26: =IF(V3>'Opt 2 Input Sheet'!$G$29,'Opt 2 Input Sheet'!$G$77*'Opt 2 Input Sheet'!$G$78*'Opt 2 Input Sheet'!$G$79*'Opt 2 Output sheet'!V5,"") -> 0 | W26: =IF(W3>'Opt 2 Input Sheet'!$G$29,'Opt 2 Input Sheet'!$G$77*'Opt 2 Input Sheet'!$G$78*'Opt 2 Input Sheet'!$G$79*'Opt 2 Output sheet'!W5,"") -> 0 | X26: =IF(X3>'Opt 2 Input Sheet'!$G$29,'Opt 2 Input Sheet'!$G$77*'Opt 2 Input Sheet'!$G$78*'Opt 2 Input Sheet'!$G$79*'Opt 2 Output sheet'!X5,"") -> 0 | Y26: =IF(Y3>'Opt 2 Input Sheet'!$G$29,'Opt 2 Input Sheet'!$G$77*'Opt 2 Input Sheet'!$G$78*'Opt 2 Input Sheet'!$G$79*'Opt 2 Output sheet'!Y5,"") -> 0 | Z26: =IF(Z3>'Opt 2 Input Sheet'!$G$29,'Opt 2 Input Sheet'!$G$77*'Opt 2 Input Sheet'!$G$78*'Opt 2 Input Sheet'!$G$79*'Opt 2 Output sheet'!Z5,"") -> 0 | AD26: Events income
C27: Total revenue | F27: £ | H27: =SUM(H21:H26) -> 0 | L27: =SUM(L21:L26) -> 0 | M27: =SUM(M21:M26) -> 0 | N27: 0 | O27: 0 | P27: 0 | Q27: 0 | R27: 0 | S27: 0 | T27: 0 | U27: 0 | V27: 0 | W27: 0 | X27: 0 | Y27: 0 | Z27: 0
C30: Expenditure
D31: ='Opt 2 Input Sheet'!D83 -> Staff costs | F31: £ | H31: =SUM(K31:S31) -> 0 | K31: =IF(K3>'Opt 2 Input Sheet'!$G$29,-'Opt 2 Input Sheet'!$G$83*'Opt 2 Output sheet'!K5,"") ->  | L31: =IF(L3>'Opt 2 Input Sheet'!$G$29,-'Opt 2 Input Sheet'!$G$83*'Opt 2 Output sheet'!L5,"") ->  | M31: =IF(M3>'Opt 2 Input Sheet'!$G$29,-'Opt 2 Input Sheet'!$G$83*'Opt 2 Output sheet'!M5,"") -> 0 | N31: =IF(N3>'Opt 2 Input Sheet'!$G$29,-'Opt 2 Input Sheet'!$G$83*'Opt 2 Output sheet'!N5,"") -> 0 | O31: =IF(O3>'Opt 2 Input Sheet'!$G$29,-'Opt 2 Input Sheet'!$G$83*'Opt 2 Output sheet'!O5,"") -> 0 | P31: =IF(P3>'Opt 2 Input Sheet'!$G$29,-'Opt 2 Input Sheet'!$G$83*'Opt 2 Output sheet'!P5,"") -> 0 | Q31: =IF(Q3>'Opt 2 Input Sheet'!$G$29,-'Opt 2 Input Sheet'!$G$83*'Opt 2 Output sheet'!Q5,"") -> 0 | R31: =IF(R3>'Opt 2 Input Sheet'!$G$29,-'Opt 2 Input Sheet'!$G$83*'Opt 2 Output sheet'!R5,"") -> 0 | S31: =IF(S3>'Opt 2 Input Sheet'!$G$29,-'Opt 2 Input Sheet'!$G$83*'Opt 2 Output sheet'!S5,"") -> 0 | T31: =IF(T3>'Opt 2 Input Sheet'!$G$29,-'Opt 2 Input Sheet'!$G$83*'Opt 2 Output sheet'!T5,"") -> 0 | U31: =IF(U3>'Opt 2 Input Sheet'!$G$29,-'Opt 2 Input Sheet'!$G$83*'Opt 2 Output sheet'!U5,"") -> 0 | V31: =IF(V3>'Opt 2 Input Sheet'!$G$29,-'Opt 2 Input Sheet'!$G$83*'Opt 2 Output sheet'!V5,"") -> 0 | W31: =IF(W3>'Opt 2 Input Sheet'!$G$29,-'Opt 2 Input Sheet'!$G$83*'Opt 2 Output sheet'!W5,"") -> 0 | X31: =IF(X3>'Opt 2 Input Sheet'!$G$29,-'Opt 2 Input Sheet'!$G$83*'Opt 2 Output sheet'!X5,"") -> 0 | Y31: =IF(Y3>'Opt 2 Input Sheet'!$G$29,-'Opt 2 Input Sheet'!$G$83*'Opt 2 Output sheet'!Y5,"") -> 0 | Z31: =IF(Z3>'Opt 2 Input Sheet'!$G$29,-'Opt 2 Input Sheet'!$G$83*'Opt 2 Output sheet'!Z5,"") -> 0 | AD31: Staff costs
D32: ='Opt 2 Input Sheet'!D85 -> Cost of sales | F32: £ | H32: =SUM(K32:S32) -> 0 | K32: =IF(K3>'Opt 2 Input Sheet'!$G$29,-'Opt 2 Input Sheet'!$G$85*'Opt 2 Output sheet'!K5,"") ->  | L32: =IF(L3>'Opt 2 Input Sheet'!$G$29,-'Opt 2 Input Sheet'!$G$85*'Opt 2 Output sheet'!L5,"") ->  | M32: =IF(M3>'Opt 2 Input Sheet'!$G$29,-'Opt 2 Input Sheet'!$G$85*'Opt 2 Output sheet'!M5,"") -> 0 | N32: =IF(N3>'Opt 2 Input Sheet'!$G$29,-'Opt 2 Input Sheet'!$G$85*'Opt 2 Output sheet'!N5,"") -> 0 | O32: =IF(O3>'Opt 2 Input Sheet'!$G$29,-'Opt 2 Input Sheet'!$G$85*'Opt 2 Output sheet'!O5,"") -> 0 | P32: =IF(P3>'Opt 2 Input Sheet'!$G$29,-'Opt 2 Input Sheet'!$G$85*'Opt 2 Output sheet'!P5,"") -> 0 | Q32: =IF(Q3>'Opt 2 Input Sheet'!$G$29,-'Opt 2 Input Sheet'!$G$85*'Opt 2 Output sheet'!Q5,"") -> 0 | R32: =IF(R3>'Opt 2 Input Sheet'!$G$29,-'Opt 2 Input Sheet'!$G$85*'Opt 2 Output sheet'!R5,"") -> 0 | S32: =IF(S3>'Opt 2 Input Sheet'!$G$29,-'Opt 2 Input Sheet'!$G$85*'Opt 2 Output sheet'!S5,"") -> 0 | T32: =IF(T3>'Opt 2 Input Sheet'!$G$29,-'Opt 2 Input Sheet'!$G$85*'Opt 2 Output sheet'!T5,"") -> 0 | U32: =IF(U3>'Opt 2 Input Sheet'!$G$29,-'Opt 2 Input Sheet'!$G$85*'Opt 2 Output sheet'!U5,"") -> 0 | V32: =IF(V3>'Opt 2 Input Sheet'!$G$29,-'Opt 2 Input Sheet'!$G$85*'Opt 2 Output sheet'!V5,"") -> 0 | W32: =IF(W3>'Opt 2 Input Sheet'!$G$29,-'Opt 2 Input Sheet'!$G$85*'Opt 2 Output sheet'!W5,"") -> 0 | X32: =IF(X3>'Opt 2 Input Sheet'!$G$29,-'Opt 2 Input Sheet'!$G$85*'Opt 2 Output sheet'!X5,"") -> 0 | Y32: =IF(Y3>'Opt 2 Input Sheet'!$G$29,-'Opt 2 Input Sheet'!$G$85*'Opt 2 Output sheet'!Y5,"") -> 0 | Z32: =IF(Z3>'Opt 2 Input Sheet'!$G$29,-'Opt 2 Input Sheet'!$G$85*'Opt 2 Output sheet'!Z5,"") -> 0 | AD32: Cost of sales
D33: ='Opt 2 Input Sheet'!D87 -> Marketing | F33: £ | H33: =SUM(K33:S33) -> 0 | K33: =IF(K3>'Opt 2 Input Sheet'!$G$29,-'Opt 2 Input Sheet'!$G$87*'Opt 2 Output sheet'!K5,"") ->  | L33: =IF(L3>'Opt 2 Input Sheet'!$G$29,-'Opt 2 Input Sheet'!$G$87*'Opt 2 Output sheet'!L5,"") ->  | M33: =IF(M3>'Opt 2 Input Sheet'!$G$29,-'Opt 2 Input Sheet'!$G$87*'Opt 2 Output sheet'!M5,"") -> 0 | N33: =IF(N3>'Opt 2 Input Sheet'!$G$29,-'Opt 2 Input Sheet'!$G$87*'Opt 2 Output sheet'!N5,"") -> 0 | O33: =IF(O3>'Opt 2 Input Sheet'!$G$29,-'Opt 2 Input Sheet'!$G$87*'Opt 2 Output sheet'!O5,"") -> 0 | P33: =IF(P3>'Opt 2 Input Sheet'!$G$29,-'Opt 2 Input Sheet'!$G$87*'Opt 2 Output sheet'!P5,"") -> 0 | Q33: =IF(Q3>'Opt 2 Input Sheet'!$G$29,-'Opt 2 Input Sheet'!$G$87*'Opt 2 Output sheet'!Q5,"") -> 0 | R33: =IF(R3>'Opt 2 Input Sheet'!$G$29,-'Opt 2 Input Sheet'!$G$87*'Opt 2 Output sheet'!R5,"") -> 0 | S33: =IF(S3>'Opt 2 Input Sheet'!$G$29,-'Opt 2 Input Sheet'!$G$87*'Opt 2 Output sheet'!S5,"") -> 0 | T33: =IF(T3>'Opt 2 Input Sheet'!$G$29,-'Opt 2 Input Sheet'!$G$87*'Opt 2 Output sheet'!T5,"") -> 0 | U33: =IF(U3>'Opt 2 Input Sheet'!$G$29,-'Opt 2 Input Sheet'!$G$87*'Opt 2 Output sheet'!U5,"") -> 0 | V33: =IF(V3>'Opt 2 Input Sheet'!$G$29,-'Opt 2 Input Sheet'!$G$87*'Opt 2 Output sheet'!V5,"") -> 0 | W33: =IF(W3>'Opt 2 Input Sheet'!$G$29,-'Opt 2 Input Sheet'!$G$87*'Opt 2 Output sheet'!W5,"") -> 0 | X33: =IF(X3>'Opt 2 Input Sheet'!$G$29,-'Opt 2 Input Sheet'!$G$87*'Opt 2 Output sheet'!X5,"") -> 0 | Y33: =IF(Y3>'Opt 2 Input Sheet'!$G$29,-'Opt 2 Input Sheet'!$G$87*'Opt 2 Output sheet'!Y5,"") -> 0 | Z33: =IF(Z3>'Opt 2 Input Sheet'!$G$29,-'Opt 2 Input Sheet'!$G$87*'Opt 2 Output sheet'!Z5,"") -> 0 | AD33: Marketing
D34: ='Opt 2 Input Sheet'!D88 -> Other opex | F34: £ | H34: 0 | K34: =IF(K3>'Opt 2 Input Sheet'!$G$29,-'Opt 2 Input Sheet'!$G$88*'Opt 2 Output sheet'!K5,"") ->  | L34: =IF(L3>'Opt 2 Input Sheet'!$G$29,-'Opt 2 Input Sheet'!$G$88*'Opt 2 Output sheet'!L5,"") ->  | M34: =IF(M3>'Opt 2 Input Sheet'!$G$29,-'Opt 2 Input Sheet'!$G$88*'Opt 2 Output sheet'!M5,"") -> 0 | N34: =IF(N3>'Opt 2 Input Sheet'!$G$29,-'Opt 2 Input Sheet'!$G$88*'Opt 2 Output sheet'!N5,"") -> 0 | O34: =IF(O3>'Opt 2 Input Sheet'!$G$29,-'Opt 2 Input Sheet'!$G$88*'Opt 2 Output sheet'!O5,"") -> 0 | P34: =IF(P3>'Opt 2 Input Sheet'!$G$29,-'Opt 2 Input Sheet'!$G$88*'Opt 2 Output sheet'!P5,"") -> 0 | Q34: =IF(Q3>'Opt 2 Input Sheet'!$G$29,-'Opt 2 Input Sheet'!$G$88*'Opt 2 Output sheet'!Q5,"") -> 0 | R34: =IF(R3>'Opt 2 Input Sheet'!$G$29,-'Opt 2 Input Sheet'!$G$88*'Opt 2 Output sheet'!R5,"") -> 0 | S34: =IF(S3>'Opt 2 Input Sheet'!$G$29,-'Opt 2 Input Sheet'!$G$88*'Opt 2 Output sheet'!S5,"") -> 0 | T34: =IF(T3>'Opt 2 Input Sheet'!$G$29,-'Opt 2 Input Sheet'!$G$88*'Opt 2 Output sheet'!T5,"") -> 0 | U34: =IF(U3>'Opt 2 Input Sheet'!$G$29,-'Opt 2 Input Sheet'!$G$88*'Opt 2 Output sheet'!U5,"") -> 0 | V34: =IF(V3>'Opt 2 Input Sheet'!$G$29,-'Opt 2 Input Sheet'!$G$88*'Opt 2 Output sheet'!V5,"") -> 0 | W34: =IF(W3>'Opt 2 Input Sheet'!$G$29,-'Opt 2 Input Sheet'!$G$88*'Opt 2 Output sheet'!W5,"") -> 0 | X34: =IF(X3>'Opt 2 Input Sheet'!$G$29,-'Opt 2 Input Sheet'!$G$88*'Opt 2 Output sheet'!X5,"") -> 0 | Y34: =IF(Y3>'Opt 2 Input Sheet'!$G$29,-'Opt 2 Input Sheet'!$G$88*'Opt 2 Output sheet'!Y5,"") -> 0 | Z34: =IF(Z3>'Opt 2 Input Sheet'!$G$29,-'Opt 2 Input Sheet'!$G$88*'Opt 2 Output sheet'!Z5,"") -> 0 | AD34: Other opex
D35: ='Opt 2 Input Sheet'!D90 -> Estates costs | F35: £ | H35: 0 | K35: =IF(K3>'Opt 2 Input Sheet'!$G$29,-'Opt 2 Input Sheet'!$G$90*'Opt 2 Output sheet'!K5,"") ->  | L35: =IF(L3>'Opt 2 Input Sheet'!$G$29,-'Opt 2 Input Sheet'!$G$90*'Opt 2 Output sheet'!L5,"") ->  | M35: =IF(M3>'Opt 2 Input Sheet'!$G$29,-'Opt 2 Input Sheet'!$G$90*'Opt 2 Output sheet'!M5,"") -> 0 | N35: =IF(N3>'Opt 2 Input Sheet'!$G$29,-'Opt 2 Input Sheet'!$G$90*'Opt 2 Output sheet'!N5,"") -> 0 | O35: =IF(O3>'Opt 2 Input Sheet'!$G$29,-'Opt 2 Input Sheet'!$G$90*'Opt 2 Output sheet'!O5,"") -> 0 | P35: =IF(P3>'Opt 2 Input Sheet'!$G$29,-'Opt 2 Input Sheet'!$G$90*'Opt 2 Output sheet'!P5,"") -> 0 | Q35: =IF(Q3>'Opt 2 Input Sheet'!$G$29,-'Opt 2 Input Sheet'!$G$90*'Opt 2 Output sheet'!Q5,"") -> 0 | R35: =IF(R3>'Opt 2 Input Sheet'!$G$29,-'Opt 2 Input Sheet'!$G$90*'Opt 2 Output sheet'!R5,"") -> 0 | S35: =IF(S3>'Opt 2 Input Sheet'!$G$29,-'Opt 2 Input Sheet'!$G$90*'Opt 2 Output sheet'!S5,"") -> 0 | T35: =IF(T3>'Opt 2 Input Sheet'!$G$29,-'Opt 2 Input Sheet'!$G$90*'Opt 2 Output sheet'!T5,"") -> 0 | U35: =IF(U3>'Opt 2 Input Sheet'!$G$29,-'Opt 2 Input Sheet'!$G$90*'Opt 2 Output sheet'!U5,"") -> 0 | V35: =IF(V3>'Opt 2 Input Sheet'!$G$29,-'Opt 2 Input Sheet'!$G$90*'Opt 2 Output sheet'!V5,"") -> 0 | W35: =IF(W3>'Opt 2 Input Sheet'!$G$29,-'Opt 2 Input Sheet'!$G$90*'Opt 2 Output sheet'!W5,"") -> 0 | X35: =IF(X3>'Opt 2 Input Sheet'!$G$29,-'Opt 2 Input Sheet'!$G$90*'Opt 2 Output sheet'!X5,"") -> 0 | Y35: =IF(Y3>'Opt 2 Input Sheet'!$G$29,-'Opt 2 Input Sheet'!$G$90*'Opt 2 Output sheet'!Y5,"") -> 0 | Z35: =IF(Z3>'Opt 2 Input Sheet'!$G$29,-'Opt 2 Input Sheet'!$G$90*'Opt 2 Output sheet'!Z5,"") -> 0 | AD35: Estates costs
D36: ='Opt 2 Input Sheet'!D91 -> Equipment | F36: £ | H36: 0 | K36: =IF(K3>'Opt 2 Input Sheet'!$G$29,-'Opt 2 Input Sheet'!$G$91*'Opt 2 Output sheet'!K5,"") ->  | L36: =IF(L3>'Opt 2 Input Sheet'!$G$29,-'Opt 2 Input Sheet'!$G$91*'Opt 2 Output sheet'!L5,"") ->  | M36: =IF(M3>'Opt 2 Input Sheet'!$G$29,-'Opt 2 Input Sheet'!$G$91*'Opt 2 Output sheet'!M5,"") -> 0 | N36: =IF(N3>'Opt 2 Input Sheet'!$G$29,-'Opt 2 Input Sheet'!$G$91*'Opt 2 Output sheet'!N5,"") -> 0 | O36: =IF(O3>'Opt 2 Input Sheet'!$G$29,-'Opt 2 Input Sheet'!$G$91*'Opt 2 Output sheet'!O5,"") -> 0 | P36: =IF(P3>'Opt 2 Input Sheet'!$G$29,-'Opt 2 Input Sheet'!$G$91*'Opt 2 Output sheet'!P5,"") -> 0 | Q36: =IF(Q3>'Opt 2 Input Sheet'!$G$29,-'Opt 2 Input Sheet'!$G$91*'Opt 2 Output sheet'!Q5,"") -> 0 | R36: =IF(R3>'Opt 2 Input Sheet'!$G$29,-'Opt 2 Input Sheet'!$G$91*'Opt 2 Output sheet'!R5,"") -> 0 | S36: =IF(S3>'Opt 2 Input Sheet'!$G$29,-'Opt 2 Input Sheet'!$G$91*'Opt 2 Output sheet'!S5,"") -> 0 | T36: =IF(T3>'Opt 2 Input Sheet'!$G$29,-'Opt 2 Input Sheet'!$G$91*'Opt 2 Output sheet'!T5,"") -> 0 | U36: =IF(U3>'Opt 2 Input Sheet'!$G$29,-'Opt 2 Input Sheet'!$G$91*'Opt 2 Output sheet'!U5,"") -> 0 | V36: =IF(V3>'Opt 2 Input Sheet'!$G$29,-'Opt 2 Input Sheet'!$G$91*'Opt 2 Output sheet'!V5,"") -> 0 | W36: =IF(W3>'Opt 2 Input Sheet'!$G$29,-'Opt 2 Input Sheet'!$G$91*'Opt 2 Output sheet'!W5,"") -> 0 | X36: =IF(X3>'Opt 2 Input Sheet'!$G$29,-'Opt 2 Input Sheet'!$G$91*'Opt 2 Output sheet'!X5,"") -> 0 | Y36: =IF(Y3>'Opt 2 Input Sheet'!$G$29,-'Opt 2 Input Sheet'!$G$91*'Opt 2 Output sheet'!Y5,"") -> 0 | Z36: =IF(Z3>'Opt 2 Input Sheet'!$G$29,-'Opt 2 Input Sheet'!$G$91*'Opt 2 Output sheet'!Z5,"") -> 0 | AD36: Equipment
D37: ='Opt 2 Input Sheet'!D92 -> Lease costs | F37: £ | H37: 0 | K37: =IF(K3>'Opt 2 Input Sheet'!$G$29,-'Opt 2 Input Sheet'!$G$92*'Opt 2 Output sheet'!K5,"") ->  | L37: =IF(L3>'Opt 2 Input Sheet'!$G$29,-'Opt 2 Input Sheet'!$G$92*'Opt 2 Output sheet'!L5,"") ->  | M37: =IF(M3>'Opt 2 Input Sheet'!$G$29,-'Opt 2 Input Sheet'!$G$92*'Opt 2 Output sheet'!M5,"") -> 0 | N37: =IF(N3>'Opt 2 Input Sheet'!$G$29,-'Opt 2 Input Sheet'!$G$92*'Opt 2 Output sheet'!N5,"") -> 0 | O37: =IF(O3>'Opt 2 Input Sheet'!$G$29,-'Opt 2 Input Sheet'!$G$92*'Opt 2 Output sheet'!O5,"") -> 0 | P37: =IF(P3>'Opt 2 Input Sheet'!$G$29,-'Opt 2 Input Sheet'!$G$92*'Opt 2 Output sheet'!P5,"") -> 0 | Q37: =IF(Q3>'Opt 2 Input Sheet'!$G$29,-'Opt 2 Input Sheet'!$G$92*'Opt 2 Output sheet'!Q5,"") -> 0 | R37: =IF(R3>'Opt 2 Input Sheet'!$G$29,-'Opt 2 Input Sheet'!$G$92*'Opt 2 Output sheet'!R5,"") -> 0 | S37: =IF(S3>'Opt 2 Input Sheet'!$G$29,-'Opt 2 Input Sheet'!$G$92*'Opt 2 Output sheet'!S5,"") -> 0 | T37: =IF(T3>'Opt 2 Input Sheet'!$G$29,-'Opt 2 Input Sheet'!$G$92*'Opt 2 Output sheet'!T5,"") -> 0 | U37: =IF(U3>'Opt 2 Input Sheet'!$G$29,-'Opt 2 Input Sheet'!$G$92*'Opt 2 Output sheet'!U5,"") -> 0 | V37: =IF(V3>'Opt 2 Input Sheet'!$G$29,-'Opt 2 Input Sheet'!$G$92*'Opt 2 Output sheet'!V5,"") -> 0 | W37: =IF(W3>'Opt 2 Input Sheet'!$G$29,-'Opt 2 Input Sheet'!$G$92*'Opt 2 Output sheet'!W5,"") -> 0 | X37: =IF(X3>'Opt 2 Input Sheet'!$G$29,-'Opt 2 Input Sheet'!$G$92*'Opt 2 Output sheet'!X5,"") -> 0 | Y37: =IF(Y3>'Opt 2 Input Sheet'!$G$29,-'Opt 2 Input Sheet'!$G$92*'Opt 2 Output sheet'!Y5,"") -> 0 | Z37: =IF(Z3>'Opt 2 Input Sheet'!$G$29,-'Opt 2 Input Sheet'!$G$92*'Opt 2 Output sheet'!Z5,"") -> 0 | AD37: Lease costs
D38: ='Opt 2 Input Sheet'!D93 -> Rates | F38: £ | H38: 0 | K38: =IF(K3>'Opt 2 Input Sheet'!$G$29,-'Opt 2 Input Sheet'!$G$93*'Opt 2 Output sheet'!K5,"") ->  | L38: =IF(L3>'Opt 2 Input Sheet'!$G$29,-'Opt 2 Input Sheet'!$G$93*'Opt 2 Output sheet'!L5,"") ->  | M38: =IF(M3>'Opt 2 Input Sheet'!$G$29,-'Opt 2 Input Sheet'!$G$93*'Opt 2 Output sheet'!M5,"") -> 0 | N38: =IF(N3>'Opt 2 Input Sheet'!$G$29,-'Opt 2 Input Sheet'!$G$93*'Opt 2 Output sheet'!N5,"") -> 0 | O38: =IF(O3>'Opt 2 Input Sheet'!$G$29,-'Opt 2 Input Sheet'!$G$93*'Opt 2 Output sheet'!O5,"") -> 0 | P38: =IF(P3>'Opt 2 Input Sheet'!$G$29,-'Opt 2 Input Sheet'!$G$93*'Opt 2 Output sheet'!P5,"") -> 0 | Q38: =IF(Q3>'Opt 2 Input Sheet'!$G$29,-'Opt 2 Input Sheet'!$G$93*'Opt 2 Output sheet'!Q5,"") -> 0 | R38: =IF(R3>'Opt 2 Input Sheet'!$G$29,-'Opt 2 Input Sheet'!$G$93*'Opt 2 Output sheet'!R5,"") -> 0 | S38: =IF(S3>'Opt 2 Input Sheet'!$G$29,-'Opt 2 Input Sheet'!$G$93*'Opt 2 Output sheet'!S5,"") -> 0 | T38: =IF(T3>'Opt 2 Input Sheet'!$G$29,-'Opt 2 Input Sheet'!$G$93*'Opt 2 Output sheet'!T5,"") -> 0 | U38: =IF(U3>'Opt 2 Input Sheet'!$G$29,-'Opt 2 Input Sheet'!$G$93*'Opt 2 Output sheet'!U5,"") -> 0 | V38: =IF(V3>'Opt 2 Input Sheet'!$G$29,-'Opt 2 Input Sheet'!$G$93*'Opt 2 Output sheet'!V5,"") -> 0 | W38: =IF(W3>'Opt 2 Input Sheet'!$G$29,-'Opt 2 Input Sheet'!$G$93*'Opt 2 Output sheet'!W5,"") -> 0 | X38: =IF(X3>'Opt 2 Input Sheet'!$G$29,-'Opt 2 Input Sheet'!$G$93*'Opt 2 Output sheet'!X5,"") -> 0 | Y38: =IF(Y3>'Opt 2 Input Sheet'!$G$29,-'Opt 2 Input Sheet'!$G$93*'Opt 2 Output sheet'!Y5,"") -> 0 | Z38: =IF(Z3>'Opt 2 Input Sheet'!$G$29,-'Opt 2 Input Sheet'!$G$93*'Opt 2 Output sheet'!Z5,"") -> 0 | AD38: Rates
D39: Interest on loan | F39: £ | H39: 0 | K39: =IF(K3>'Opt 2 Input Sheet'!$G$24,'Opt 2 Input Sheet'!$G$25*-'Opt 2 Input Sheet'!$G$23*'Opt 2 Output sheet'!K5,"") ->  | L39: =IF(L3>'Opt 2 Input Sheet'!$G$24,'Opt 2 Input Sheet'!$G$25*-'Opt 2 Input Sheet'!$G$23*'Opt 2 Output sheet'!L5,"") -> 0 | M39: =IF(M3>'Opt 2 Input Sheet'!$G$24,'Opt 2 Input Sheet'!$G$25*-'Opt 2 Input Sheet'!$G$23*'Opt 2 Output sheet'!M5,"") -> 0 | N39: =IF(N3>'Opt 2 Input Sheet'!$G$24,'Opt 2 Input Sheet'!$G$25*-'Opt 2 Input Sheet'!$G$23*'Opt 2 Output sheet'!N5,"") -> 0 | O39: =IF(O3>'Opt 2 Input Sheet'!$G$24,'Opt 2 Input Sheet'!$G$25*-'Opt 2 Input Sheet'!$G$23*'Opt 2 Output sheet'!O5,"") -> 0 | P39: =IF(P3>'Opt 2 Input Sheet'!$G$24,'Opt 2 Input Sheet'!$G$25*-'Opt 2 Input Sheet'!$G$23*'Opt 2 Output sheet'!P5,"") -> 0 | Q39: =IF(Q3>'Opt 2 Input Sheet'!$G$24,'Opt 2 Input Sheet'!$G$25*-'Opt 2 Input Sheet'!$G$23*'Opt 2 Output sheet'!Q5,"") -> 0 | R39: =IF(R3>'Opt 2 Input Sheet'!$G$24,'Opt 2 Input Sheet'!$G$25*-'Opt 2 Input Sheet'!$G$23*'Opt 2 Output sheet'!R5,"") -> 0 | S39: =IF(S3>'Opt 2 Input Sheet'!$G$24,'Opt 2 Input Sheet'!$G$25*-'Opt 2 Input Sheet'!$G$23*'Opt 2 Output sheet'!S5,"") -> 0 | T39: =IF(T3>'Opt 2 Input Sheet'!$G$24,'Opt 2 Input Sheet'!$G$25*-'Opt 2 Input Sheet'!$G$23*'Opt 2 Output sheet'!T5,"") -> 0 | U39: =IF(U3>'Opt 2 Input Sheet'!$G$24,'Opt 2 Input Sheet'!$G$25*-'Opt 2 Input Sheet'!$G$23*'Opt 2 Output sheet'!U5,"") -> 0 | V39: =IF(V3>'Opt 2 Input Sheet'!$G$24,'Opt 2 Input Sheet'!$G$25*-'Opt 2 Input Sheet'!$G$23*'Opt 2 Output sheet'!V5,"") -> 0 | W39: =IF(W3>'Opt 2 Input Sheet'!$G$24,'Opt 2 Input Sheet'!$G$25*-'Opt 2 Input Sheet'!$G$23*'Opt 2 Output sheet'!W5,"") -> 0 | X39: =IF(X3>'Opt 2 Input Sheet'!$G$24,'Opt 2 Input Sheet'!$G$25*-'Opt 2 Input Sheet'!$G$23*'Opt 2 Output sheet'!X5,"") -> 0 | Y39: =IF(Y3>'Opt 2 Input Sheet'!$G$24,'Opt 2 Input Sheet'!$G$25*-'Opt 2 Input Sheet'!$G$23*'Opt 2 Output sheet'!Y5,"") -> 0 | Z39: =IF(Z3>'Opt 2 Input Sheet'!$G$24,'Opt 2 Input Sheet'!$G$25*-'Opt 2 Input Sheet'!$G$23*'Opt 2 Output sheet'!Z5,"") -> 0 | AD39: Interest on loan
C40: Total expenditure | F40: £ | H40: =SUM(H31:H39) -> 0 | K40: =SUM(K31:K39) -> 0 | L40: =SUM(L31:L39) -> 0 | M40: =SUM(M31:M39) -> 0 | N40: 0 | O40: 0 | P40: 0 | Q40: 0 | R40: 0 | S40: 0 | T40: 0 | U40: 0 | V40: 0 | W40: 0 | X40: 0 | Y40: 0 | Z40: 0
C42: Terminal value | Z42: ='Opt 2 Input Sheet'!G18*'Opt 2 Output sheet'!Z5 -> 0
B44: Free Cash Flow | F44: £ | H44: =SUM(K44:S44) -> 0 | K44: =K27+K40+K17+K42 -> 0 | L44: 0 | M44: 0 | N44: 0 | O44: 0 | P44: 0 | Q44: 0 | R44: 0 | S44: 0 | T44: 0 | U44: 0 | V44: 0 | W44: 0 | X44: 0 | Y44: 0 | Z44: 0
B45: IRR | C45: =IRR(K44:Z44) -> 
B47: Operating cash | F47: £ | H47: =SUM(K47:S47) -> 0 | K47: =K40+K27 -> 0 | L47: =L40+L27 -> 0 | M47: =M40+M27 -> 0 | N47: =N40+N27 -> 0 | O47: 0 | P47: 0 | Q47: 0 | R47: 0 | S47: 0 | T47: 0 | U47: 0 | V47: 0 | W47: 0 | X47: 0 | Y47: 0 | Z47: 0
B48: Yield on cash | C48: =-(AVERAGE(K47:Z47))/(SUM(H12:H16)) -> 
B50: UPPER CASE
K51: ='Model input'!D5 -> 2016 | L51: =L52+$K$51 -> 2017 | M51: =M52+$K$2 -> 2018 | N51: 2019 | O51: 2020 | P51: 2021 | Q51: 2022 | R51: 2023 | S51: 2024 | T51: 2025 | U51: 2026 | V51: 2027 | W51: 2028 | X51: 2029 | Y51: 2030 | Z51: 2031
K52: 0 | L52: 1 | M52: 2 | N52: 3 | O52: 4 | P52: 5 | Q52: 6 | R52: 7 | S52: 8 | T52: 9 | U52: 10 | V52: 11 | W52: 12 | X52: 13 | Y52: 14 | Z52: 15
B54: Inflation index | C54: ='Opt 2 Input Sheet'!G146 -> 0 | K54: =(1+'Opt 2 Input Sheet'!$G146)^K52 -> 1 | L54: =(1+'Opt 2 Input Sheet'!$G146)^L52 -> 1 | M54: =(1+'Opt 2 Input Sheet'!$G146)^M52 -> 1 | N54: =(1+'Opt 2 Input Sheet'!$G146)^N52 -> 1 | O54: =(1+'Opt 2 Input Sheet'!$G146)^O52 -> 1 | P54: =(1+'Opt 2 Input Sheet'!$G146)^P52 -> 1 | Q54: =(1+'Opt 2 Input Sheet'!$G146)^Q52 -> 1 | R54: =(1+'Opt 2 Input Sheet'!$G146)^R52 -> 1 | S54: =(1+'Opt 2 Input Sheet'!$G146)^S52 -> 1 | T54: =(1+'Opt 2 Input Sheet'!$G146)^T52 -> 1 | U54: =(1+'Opt 2 Input Sheet'!$G146)^U52 -> 1 | V54: =(1+'Opt 2 Input Sheet'!$G146)^V52 -> 1 | W54: =(1+'Opt 2 Input Sheet'!$G146)^W52 -> 1 | X54: =(1+'Opt 2 Input Sheet'!$G146)^X52 -> 1 | Y54: =(1+'Opt 2 Input Sheet'!$G146)^Y52 -> 1 | Z54: =(1+'Opt 2 Input Sheet'!$G146)^Z52 -> 1
B57: Refurbishment | K57: =IF(K52='Opt 2 Input Sheet'!$G$19,"Yes","No") -> Yes | L57: =IF(L52='Opt 2 Input Sheet'!$G$19,"Yes","No") -> No | M57: =IF(M52='Opt 2 Input Sheet'!$G$19,"Yes","No") -> No | N57: =IF(N52='Opt 2 Input Sheet'!$G$19,"Yes","No") -> No | O57: =IF(O52='Opt 2 Input Sheet'!$G$19,"Yes","No") -> No | P57: =IF(P52='Opt 2 Input Sheet'!$G$19,"Yes","No") -> No | Q57: =IF(Q52='Opt 2 Input Sheet'!$G$19,"Yes","No") -> No | R57: =IF(R52='Opt 2 Input Sheet'!$G$19,"Yes","No") -> No | S57: =IF(S52='Opt 2 Input Sheet'!$G$19,"Yes","No") -> No | T57: =IF(T52='Opt 2 Input Sheet'!$G$19,"Yes","No") -> No | U57: =IF(U52='Opt 2 Input Sheet'!$G$19,"Yes","No") -> No | V57: =IF(V52='Opt 2 Input Sheet'!$G$19,"Yes","No") -> No | W57: =IF(W52='Opt 2 Input Sheet'!$G$19,"Yes","No") -> No | X57: =IF(X52='Opt 2 Input Sheet'!$G$19,"Yes","No") -> No | Y57: =IF(Y52='Opt 2 Input Sheet'!$G$19,"Yes","No") -> No | Z57: =IF(Z52='Opt 2 Input Sheet'!$G$19,"Yes","No") -> No
B58: Refurbishment factor | K58: =IF(K57="No",1,0.5) -> 0.5 | L58: =IF(L57="No",1,0.5) -> 1 | M58: 1 | N58: 1 | O58: 1 | P58: 1 | Q58: 1 | R58: 1 | S58: 1 | T58: 1 | U58: 1 | V58: 1 | W58: 1 | X58: 1 | Y58: 1 | Z58: 1
B60: Capital
C61: New capital cost | F61: £ | H61: =SUM(K61:S61) ->  | K61: =(-'Opt 2 Input Sheet'!#REF!*'Opt 2 Input Sheet'!J$9-'Opt 2 Input Sheet'!#REF!)/18*12 ->  | L61: =((-'Opt 2 Input Sheet'!#REF!*'Opt 2 Input Sheet'!J$9-'Opt 2 Input Sheet'!#REF!)/18*6)*L5 -> 
C62: CIL/s.106/s.278 costs | F62: £ | K62: =-'Opt 2 Input Sheet'!#REF!/18*12 ->  | L62: =-'Opt 2 Input Sheet'!#REF!/18*6*L5 -> 
C63: Professional fees | F63: £ | K63: =-'Opt 2 Input Sheet'!#REF!/18*12 ->  | L63: =-'Opt 2 Input Sheet'!#REF!/18*6*L5 -> 
C64: VAT | F64: £ | H64: 0 | K64: 0 | L64: 0
C65: Refurbishment | F65: £ | K65: =IF(K$8=1,0,-('Opt 2 Input Sheet'!#REF!*'Opt 2 Input Sheet'!$J$18*K$5)) ->  | L65: =IF(L$8=1,0,-('Opt 2 Input Sheet'!#REF!*'Opt 2 Input Sheet'!$J$18*L$5)) -> 0 | M65: =IF(M$8=1,0,-('Opt 2 Input Sheet'!#REF!*'Opt 2 Input Sheet'!$J$18*M$5)) -> 0 | N65: =IF(N$8=1,0,-('Opt 2 Input Sheet'!#REF!*'Opt 2 Input Sheet'!$J$18*N$5)) -> 0 | O65: =IF(O$8=1,0,-('Opt 2 Input Sheet'!#REF!*'Opt 2 Input Sheet'!$J$18*O$5)) -> 0 | P65: =IF(P$8=1,0,-('Opt 2 Input Sheet'!#REF!*'Opt 2 Input Sheet'!$J$18*P$5)) -> 0 | Q65: =IF(Q$8=1,0,-('Opt 2 Input Sheet'!#REF!*'Opt 2 Input Sheet'!$J$18*Q$5)) -> 0 | R65: =IF(R$8=1,0,-('Opt 2 Input Sheet'!#REF!*'Opt 2 Input Sheet'!$J$18*R$5)) -> 0 | S65: =IF(S$8=1,0,-('Opt 2 Input Sheet'!#REF!*'Opt 2 Input Sheet'!$J$18*S$5)) -> 0
H66: 0
B68: Cash Flow Statement
C69: Revenue
D70: Office space rental | F70: £ | H70: =SUM(K70:S70) -> 0 | L70: =('Opt 2 Input Sheet'!$J$34*'Opt 2 Input Sheet'!$J$18*'Opt 2 Input Sheet'!$J$60)*L$5/12*6 -> 0 | M70: =('Opt 2 Input Sheet'!$J$34*'Opt 2 Input Sheet'!$J$18*'Opt 2 Input Sheet'!$J$60)*M$5 -> 0 | N70: =('Opt 2 Input Sheet'!$J$34*'Opt 2 Input Sheet'!$J$18*'Opt 2 Input Sheet'!$J$61)*N$5 -> 0 | O70: =('Opt 2 Input Sheet'!$J$34*'Opt 2 Input Sheet'!$J$18*'Opt 2 Input Sheet'!$J$62)*O$5 -> 0 | P70: =('Opt 2 Input Sheet'!$J$34*'Opt 2 Input Sheet'!$J$18*'Opt 2 Input Sheet'!$J$62)*P$5 -> 0 | Q70: =('Opt 2 Input Sheet'!$J$34*'Opt 2 Input Sheet'!$J$18*'Opt 2 Input Sheet'!$J$62)*Q$5 -> 0 | R70: =('Opt 2 Input Sheet'!$J$34*'Opt 2 Input Sheet'!$J$18*'Opt 2 Input Sheet'!$J$62)*R$5 -> 0 | S70: =('Opt 2 Input Sheet'!$J$34*'Opt 2 Input Sheet'!$J$18*'Opt 2 Input Sheet'!$J$62)*S$5 -> 0
D71: Office space service charge | F71: £ | H71: 0 | L71: =('Opt 2 Input Sheet'!$J$35*'Opt 2 Input Sheet'!$J$18*'Opt 2 Input Sheet'!$J$60)*L$5/12*6 -> 0 | M71: =('Opt 2 Input Sheet'!$J$35*'Opt 2 Input Sheet'!$J$18*'Opt 2 Input Sheet'!$J$60)*M$5 -> 0 | N71: =('Opt 2 Input Sheet'!$J$35*'Opt 2 Input Sheet'!$J$18*'Opt 2 Input Sheet'!$J$61)*N$5 -> 0 | O71: =('Opt 2 Input Sheet'!$J$35*'Opt 2 Input Sheet'!$J$18*'Opt 2 Input Sheet'!$J$62)*O$5 -> 0 | P71: =('Opt 2 Input Sheet'!$J$35*'Opt 2 Input Sheet'!$J$18*'Opt 2 Input Sheet'!$J$62)*P$5 -> 0 | Q71: =('Opt 2 Input Sheet'!$J$35*'Opt 2 Input Sheet'!$J$18*'Opt 2 Input Sheet'!$J$62)*Q$5 -> 0 | R71: =('Opt 2 Input Sheet'!$J$35*'Opt 2 Input Sheet'!$J$18*'Opt 2 Input Sheet'!$J$62)*R$5 -> 0 | S71: =('Opt 2 Input Sheet'!$J$35*'Opt 2 Input Sheet'!$J$18*'Opt 2 Input Sheet'!$J$62)*S$5 -> 0
D72: Office space rates | F72: £ | H72: 0 | L72: =('Opt 2 Input Sheet'!$J$36*'Opt 2 Input Sheet'!$J$18*'Opt 2 Input Sheet'!$J$60)*'Opt 2 Output sheet'!L5/12*6 -> 0 | M72: =('Opt 2 Input Sheet'!$J$36*'Opt 2 Input Sheet'!$J$18*'Opt 2 Input Sheet'!$J$60)*'Opt 2 Output sheet'!M5 -> 0 | N72: =('Opt 2 Input Sheet'!$J$36*'Opt 2 Input Sheet'!$J$18*'Opt 2 Input Sheet'!$J$61)*'Opt 2 Output sheet'!N5 -> 0 | O72: =('Opt 2 Input Sheet'!$J$36*'Opt 2 Input Sheet'!$J$18*'Opt 2 Input Sheet'!$J$62)*'Opt 2 Output sheet'!O5 -> 0 | P72: =('Opt 2 Input Sheet'!$J$36*'Opt 2 Input Sheet'!$J$18*'Opt 2 Input Sheet'!$J$62)*'Opt 2 Output sheet'!P5 -> 0 | Q72: =('Opt 2 Input Sheet'!$J$36*'Opt 2 Input Sheet'!$J$18*'Opt 2 Input Sheet'!$J$62)*'Opt 2 Output sheet'!Q5 -> 0 | R72: =('Opt 2 Input Sheet'!$J$36*'Opt 2 Input Sheet'!$J$18*'Opt 2 Input Sheet'!$J$62)*'Opt 2 Output sheet'!R5 -> 0 | S72: =('Opt 2 Input Sheet'!$J$36*'Opt 2 Input Sheet'!$J$18*'Opt 2 Input Sheet'!$J$62)*'Opt 2 Output sheet'!S5 -> 0
D73: Amenity space rental | F73: £ | H73: 0 | L73: =('Opt 2 Input Sheet'!$J$54*'Opt 2 Input Sheet'!$J$60*'Opt 2 Input Sheet'!$J$10)*'Opt 2 Output sheet'!L5/12*6 -> 0 | M73: =('Opt 2 Input Sheet'!$J$54*'Opt 2 Input Sheet'!$J$60*'Opt 2 Input Sheet'!$J$10)*'Opt 2 Output sheet'!M5 -> 0 | N73: =('Opt 2 Input Sheet'!$J$54*'Opt 2 Input Sheet'!$J$61*'Opt 2 Input Sheet'!$J$10)*'Opt 2 Output sheet'!N5 -> 0 | O73: =('Opt 2 Input Sheet'!$J$54*'Opt 2 Input Sheet'!$J$62*'Opt 2 Input Sheet'!$J$10)*'Opt 2 Output sheet'!O5 -> 0 | P73: =('Opt 2 Input Sheet'!$J$54*'Opt 2 Input Sheet'!$J$62*'Opt 2 Input Sheet'!$J$10)*'Opt 2 Output sheet'!P5 -> 0 | Q73: =('Opt 2 Input Sheet'!$J$54*'Opt 2 Input Sheet'!$J$62*'Opt 2 Input Sheet'!$J$10)*'Opt 2 Output sheet'!Q5 -> 0 | R73: =('Opt 2 Input Sheet'!$J$54*'Opt 2 Input Sheet'!$J$62*'Opt 2 Input Sheet'!$J$10)*'Opt 2 Output sheet'!R5 -> 0 | S73: =('Opt 2 Input Sheet'!$J$54*'Opt 2 Input Sheet'!$J$62*'Opt 2 Input Sheet'!$J$10)*'Opt 2 Output sheet'!S5 -> 0
D74: Amenity space service charge | F74: £ | H74: 0 | L74: =('Opt 2 Input Sheet'!$J$55*'Opt 2 Input Sheet'!$J$10*'Opt 2 Input Sheet'!$J$60)*'Opt 2 Output sheet'!L5/12*6 -> 0 | M74: =('Opt 2 Input Sheet'!$J$55*'Opt 2 Input Sheet'!$J$10*'Opt 2 Input Sheet'!$J$60)*'Opt 2 Output sheet'!M5 -> 0 | N74: =('Opt 2 Input Sheet'!$J$55*'Opt 2 Input Sheet'!$J$10*'Opt 2 Input Sheet'!$J$61)*'Opt 2 Output sheet'!N5 -> 0 | O74: =('Opt 2 Input Sheet'!$J$55*'Opt 2 Input Sheet'!$J$10*'Opt 2 Input Sheet'!$J$62)*'Opt 2 Output sheet'!O5 -> 0 | P74: =('Opt 2 Input Sheet'!$J$55*'Opt 2 Input Sheet'!$J$10*'Opt 2 Input Sheet'!$J$62)*'Opt 2 Output sheet'!P5 -> 0 | Q74: =('Opt 2 Input Sheet'!$J$55*'Opt 2 Input Sheet'!$J$10*'Opt 2 Input Sheet'!$J$62)*'Opt 2 Output sheet'!Q5 -> 0 | R74: =('Opt 2 Input Sheet'!$J$55*'Opt 2 Input Sheet'!$J$10*'Opt 2 Input Sheet'!$J$62)*'Opt 2 Output sheet'!R5 -> 0 | S74: =('Opt 2 Input Sheet'!$J$55*'Opt 2 Input Sheet'!$J$10*'Opt 2 Input Sheet'!$J$62)*'Opt 2 Output sheet'!S5 -> 0
D75: Amenity space rates | F75: £ | H75: 0 | L75: =('Opt 2 Input Sheet'!$J$56*'Opt 2 Input Sheet'!$J$10*'Opt 2 Input Sheet'!$J$60)*'Opt 2 Output sheet'!L5/12*6 -> 0 | M75: =('Opt 2 Input Sheet'!$J$56*'Opt 2 Input Sheet'!$J$10*'Opt 2 Input Sheet'!$J$60)*'Opt 2 Output sheet'!M5 -> 0 | N75: =('Opt 2 Input Sheet'!$J$56*'Opt 2 Input Sheet'!$J$10*'Opt 2 Input Sheet'!$J$61)*'Opt 2 Output sheet'!N5 -> 0 | O75: =('Opt 2 Input Sheet'!$J$56*'Opt 2 Input Sheet'!$J$10*'Opt 2 Input Sheet'!$J$62)*'Opt 2 Output sheet'!O5 -> 0 | P75: =('Opt 2 Input Sheet'!$J$56*'Opt 2 Input Sheet'!$J$10*'Opt 2 Input Sheet'!$J$62)*'Opt 2 Output sheet'!P5 -> 0 | Q75: =('Opt 2 Input Sheet'!$J$56*'Opt 2 Input Sheet'!$J$10*'Opt 2 Input Sheet'!$J$62)*'Opt 2 Output sheet'!Q5 -> 0 | R75: =('Opt 2 Input Sheet'!$J$56*'Opt 2 Input Sheet'!$J$10*'Opt 2 Input Sheet'!$J$62)*'Opt 2 Output sheet'!R5 -> 0 | S75: =('Opt 2 Input Sheet'!$J$56*'Opt 2 Input Sheet'!$J$10*'Opt 2 Input Sheet'!$J$62)*'Opt 2 Output sheet'!S5 -> 0
C76: Total revenue | F76: £ | H76: =SUM(H70:H75) -> 0 | L76: =SUM(L70:L75) -> 0 | M76: 0 | N76: 0 | O76: 0 | P76: 0 | Q76: 0 | R76: 0 | S76: 0
C79: Expenditure
D80: Service charge | F80: £ | H80: =SUM(K80:S80) -> 0 | L80: =(-'Opt 2 Input Sheet'!$J$83*(('Opt 2 Input Sheet'!$J$10+'Opt 2 Input Sheet'!$J$18)+'Opt 2 Input Sheet'!$J$20))*'Opt 2 Output sheet'!L5/12*6 -> 0 | M80: =(-'Opt 2 Input Sheet'!$J$83*(('Opt 2 Input Sheet'!$J$10+'Opt 2 Input Sheet'!$J$18)+'Opt 2 Input Sheet'!$J$20))*'Opt 2 Output sheet'!M5 -> 0 | N80: =(-'Opt 2 Input Sheet'!$J$83*(('Opt 2 Input Sheet'!$J$10+'Opt 2 Input Sheet'!$J$18)+'Opt 2 Input Sheet'!$J$20))*'Opt 2 Output sheet'!N5 -> 0 | O80: =(-'Opt 2 Input Sheet'!$J$83*(('Opt 2 Input Sheet'!$J$10+'Opt 2 Input Sheet'!$J$18)+'Opt 2 Input Sheet'!$J$20))*'Opt 2 Output sheet'!O5 -> 0 | P80: =(-'Opt 2 Input Sheet'!$J$83*(('Opt 2 Input Sheet'!$J$10+'Opt 2 Input Sheet'!$J$18)+'Opt 2 Input Sheet'!$J$20))*'Opt 2 Output sheet'!P5 -> 0 | Q80: =(-'Opt 2 Input Sheet'!$J$83*(('Opt 2 Input Sheet'!$J$10+'Opt 2 Input Sheet'!$J$18)+'Opt 2 Input Sheet'!$J$20))*'Opt 2 Output sheet'!Q5 -> 0 | R80: =(-'Opt 2 Input Sheet'!$J$83*(('Opt 2 Input Sheet'!$J$10+'Opt 2 Input Sheet'!$J$18)+'Opt 2 Input Sheet'!$J$20))*'Opt 2 Output sheet'!R5 -> 0 | S80: =(-'Opt 2 Input Sheet'!$J$83*(('Opt 2 Input Sheet'!$J$10+'Opt 2 Input Sheet'!$J$18)+'Opt 2 Input Sheet'!$J$20))*'Opt 2 Output sheet'!S5 -> 0
D81: Rates | F81: £ | H81: =SUM(K81:S81) -> 0 | L81: =(-'Opt 2 Input Sheet'!$J$85*(('Opt 2 Input Sheet'!$J$10+'Opt 2 Input Sheet'!$J$18))*'Opt 2 Output sheet'!L5/12*6) -> 0 | M81: =(-'Opt 2 Input Sheet'!$J$85*('Opt 2 Input Sheet'!$J$10+'Opt 2 Input Sheet'!$J$18))*'Opt 2 Output sheet'!M5 -> 0 | N81: =(-'Opt 2 Input Sheet'!$J$85*('Opt 2 Input Sheet'!$J$10+'Opt 2 Input Sheet'!$J$18))*'Opt 2 Output sheet'!N5 -> 0 | O81: =(-'Opt 2 Input Sheet'!$J$85*('Opt 2 Input Sheet'!$J$10+'Opt 2 Input Sheet'!$J$18))*'Opt 2 Output sheet'!O5 -> 0 | P81: =(-'Opt 2 Input Sheet'!$J$85*('Opt 2 Input Sheet'!$J$10+'Opt 2 Input Sheet'!$J$18))*'Opt 2 Output sheet'!P5 -> 0 | Q81: =(-'Opt 2 Input Sheet'!$J$85*('Opt 2 Input Sheet'!$J$10+'Opt 2 Input Sheet'!$J$18))*'Opt 2 Output sheet'!Q5 -> 0 | R81: =(-'Opt 2 Input Sheet'!$J$85*('Opt 2 Input Sheet'!$J$10+'Opt 2 Input Sheet'!$J$18))*'Opt 2 Output sheet'!R5 -> 0 | S81: =(-'Opt 2 Input Sheet'!$J$85*('Opt 2 Input Sheet'!$J$10+'Opt 2 Input Sheet'!$J$18))*'Opt 2 Output sheet'!S5 -> 0
C82: Total expenditure | F82: £ | H82: =SUM(H80:H81) -> 0 | L82: =SUM(L80:L81) -> 0 | M82: 0 | N82: 0 | O82: 0 | P82: 0 | Q82: 0 | R82: 0 | S82: 0
C84: Terminal value
B86: Free Cash Flow | F86: £ | H86: =SUM(K86:S86) ->  | K86: =K76+K82+K65+K61+K84+K62+K63+K64 ->  | L86: =L76+L82+L65+L61+L84+L62+L63+L64 ->  | M86: =M76+M82+M65+M61+M84 -> 0 | N86: 0 | O86: 0 | P86: 0 | Q86: 0 | R86: 0 | S86: 0
B87: IRR | C87: =IRR(K86:S86) -> 
B89: Operating cash | L89: =L82+L76 -> 0 | M89: 0 | N89: 0 | O89: 0 | P89: 0 | Q89: 0 | R89: 0 | S89: 0
B90: Yield on cash | C90: =-(AVERAGE(L89:S89))/(SUM(H61:H63)) -> 
B92: LOWER CASE
B93: Capital
C95: New capital cost | F95: £ | H95: =SUM(K95:S95) ->  | K95: =(-'Opt 2 Input Sheet'!#REF!*'Opt 2 Input Sheet'!K$9-'Opt 2 Input Sheet'!#REF!)/18*12 ->  | L95: =(-'Opt 2 Input Sheet'!#REF!*'Opt 2 Input Sheet'!K$9-'Opt 2 Input Sheet'!#REF!)/18*6*L5 -> 
C96: CIL/s.106/s.278 costs | F96: £ | H96: =SUM(K96:S96) ->  | K96: =-'Opt 2 Input Sheet'!#REF!/18*12 ->  | L96: =-'Opt 2 Input Sheet'!#REF!/18*6*L5 -> 
C97: Professional fees | F97: £ | H97: =SUM(K97:S97) ->  | K97: =-'Opt 2 Input Sheet'!#REF!/18*12 ->  | L97: =-'Opt 2 Input Sheet'!#REF!/18*6*L5 -> 
C98: VAT | F98: £ | H98: =SUM(K98:S98) -> 0 | K98: 0 | L98: 0
C99: Refurbishment | F99: £ | H99: =SUM(K99:S99) ->  | K99: =IF(K$8=1,0,-('Opt 2 Input Sheet'!#REF!*'Opt 2 Input Sheet'!$K$18*K$5)) ->  | L99: =IF(L$8=1,0,-('Opt 2 Input Sheet'!#REF!*'Opt 2 Input Sheet'!$K$18*L$5)) -> 0 | M99: =IF(M$8=1,0,-('Opt 2 Input Sheet'!#REF!*'Opt 2 Input Sheet'!$K$18*M$5)) -> 0 | N99: =IF(N$8=1,0,-('Opt 2 Input Sheet'!#REF!*'Opt 2 Input Sheet'!$K$18*N$5)) -> 0 | O99: =IF(O$8=1,0,-('Opt 2 Input Sheet'!#REF!*'Opt 2 Input Sheet'!$K$18*O$5)) -> 0 | P99: =IF(P$8=1,0,-('Opt 2 Input Sheet'!#REF!*'Opt 2 Input Sheet'!$K$18*P$5)) -> 0 | Q99: =IF(Q$8=1,0,-('Opt 2 Input Sheet'!#REF!*'Opt 2 Input Sheet'!$K$18*Q$5)) -> 0 | R99: =IF(R$8=1,0,-('Opt 2 Input Sheet'!#REF!*'Opt 2 Input Sheet'!$K$18*R$5)) -> 0 | S99: =IF(S$8=1,0,-('Opt 2 Input Sheet'!#REF!*'Opt 2 Input Sheet'!$K$18*S$5)) -> 0
H100: =SUM(H95:H99) -> 
B102: Cash Flow Statement
C103: Revenue
D104: Office space rental | F104: £ | H104: =SUM(K104:S104) -> 0 | L104: =('Opt 2 Input Sheet'!$K$34*'Opt 2 Input Sheet'!$K$18*'Opt 2 Input Sheet'!$K$60)*L$5/12*6 -> 0 | M104: =('Opt 2 Input Sheet'!$K$34*'Opt 2 Input Sheet'!$K$18*'Opt 2 Input Sheet'!$K$60)*M$5 -> 0 | N104: =('Opt 2 Input Sheet'!$K$34*'Opt 2 Input Sheet'!$K$18*'Opt 2 Input Sheet'!$K$61)*N$5 -> 0 | O104: =('Opt 2 Input Sheet'!$K$34*'Opt 2 Input Sheet'!$K$18*'Opt 2 Input Sheet'!$K$62)*O$5 -> 0 | P104: =('Opt 2 Input Sheet'!$K$34*'Opt 2 Input Sheet'!$K$18*'Opt 2 Input Sheet'!$K$62)*P$5 -> 0 | Q104: =('Opt 2 Input Sheet'!$K$34*'Opt 2 Input Sheet'!$K$18*'Opt 2 Input Sheet'!$K$62)*Q$5 -> 0 | R104: =('Opt 2 Input Sheet'!$K$34*'Opt 2 Input Sheet'!$K$18*'Opt 2 Input Sheet'!$K$62)*R$5 -> 0 | S104: =('Opt 2 Input Sheet'!$K$34*'Opt 2 Input Sheet'!$K$18*'Opt 2 Input Sheet'!$K$62)*S$5 -> 0
D105: Office space service charge | F105: £ | H105: 0 | L105: =('Opt 2 Input Sheet'!$K$35*'Opt 2 Input Sheet'!$K$18*'Opt 2 Input Sheet'!$K$60)*L$5/12*6 -> 0 | M105: =('Opt 2 Input Sheet'!$K$35*'Opt 2 Input Sheet'!$K$18*'Opt 2 Input Sheet'!$K$60)*M$5 -> 0 | N105: =('Opt 2 Input Sheet'!$K$35*'Opt 2 Input Sheet'!$K$18*'Opt 2 Input Sheet'!$K$61)*N$5 -> 0 | O105: =('Opt 2 Input Sheet'!$K$35*'Opt 2 Input Sheet'!$K$18*'Opt 2 Input Sheet'!$K$62)*O$5 -> 0 | P105: =('Opt 2 Input Sheet'!$K$35*'Opt 2 Input Sheet'!$K$18*'Opt 2 Input Sheet'!$K$62)*P$5 -> 0 | Q105: =('Opt 2 Input Sheet'!$K$35*'Opt 2 Input Sheet'!$K$18*'Opt 2 Input Sheet'!$K$62)*Q$5 -> 0 | R105: =('Opt 2 Input Sheet'!$K$35*'Opt 2 Input Sheet'!$K$18*'Opt 2 Input Sheet'!$K$62)*R$5 -> 0 | S105: =('Opt 2 Input Sheet'!$K$35*'Opt 2 Input Sheet'!$K$18*'Opt 2 Input Sheet'!$K$62)*S$5 -> 0
D106: Office space rates | F106: £ | H106: 0 | L106: =('Opt 2 Input Sheet'!$K$36*'Opt 2 Input Sheet'!$K$18*'Opt 2 Input Sheet'!$K$60)*'Opt 2 Output sheet'!L5/12*6 -> 0 | M106: =('Opt 2 Input Sheet'!$K$36*'Opt 2 Input Sheet'!$K$18*'Opt 2 Input Sheet'!$K$60)*'Opt 2 Output sheet'!M5 -> 0 | N106: =('Opt 2 Input Sheet'!$K$36*'Opt 2 Input Sheet'!$K$18*'Opt 2 Input Sheet'!$K$61)*'Opt 2 Output sheet'!N5 -> 0 | O106: =('Opt 2 Input Sheet'!$K$36*'Opt 2 Input Sheet'!$K$18*'Opt 2 Input Sheet'!$K$62)*'Opt 2 Output sheet'!O5 -> 0 | P106: =('Opt 2 Input Sheet'!$K$36*'Opt 2 Input Sheet'!$K$18*'Opt 2 Input Sheet'!$K$62)*'Opt 2 Output sheet'!P5 -> 0 | Q106: =('Opt 2 Input Sheet'!$K$36*'Opt 2 Input Sheet'!$K$18*'Opt 2 Input Sheet'!$K$62)*'Opt 2 Output sheet'!Q5 -> 0 | R106: =('Opt 2 Input Sheet'!$K$36*'Opt 2 Input Sheet'!$K$18*'Opt 2 Input Sheet'!$K$62)*'Opt 2 Output sheet'!R5 -> 0 | S106: =('Opt 2 Input Sheet'!$K$36*'Opt 2 Input Sheet'!$K$18*'Opt 2 Input Sheet'!$K$62)*'Opt 2 Output sheet'!S5 -> 0
D107: Amenity space rental | F107: £ | H107: 0 | L107: =('Opt 2 Input Sheet'!$K$54*'Opt 2 Input Sheet'!$K$60*'Opt 2 Input Sheet'!$K$10)*'Opt 2 Output sheet'!L5/12*6 -> 0 | M107: =('Opt 2 Input Sheet'!$K$54*'Opt 2 Input Sheet'!$K$60*'Opt 2 Input Sheet'!$K$10)*'Opt 2 Output sheet'!M5 -> 0 | N107: =('Opt 2 Input Sheet'!$K$54*'Opt 2 Input Sheet'!$K$61*'Opt 2 Input Sheet'!$K$10)*'Opt 2 Output sheet'!N5 -> 0 | O107: =('Opt 2 Input Sheet'!$K$54*'Opt 2 Input Sheet'!$K$62*'Opt 2 Input Sheet'!$K$10)*'Opt 2 Output sheet'!O5 -> 0 | P107: =('Opt 2 Input Sheet'!$K$54*'Opt 2 Input Sheet'!$K$62*'Opt 2 Input Sheet'!$K$10)*'Opt 2 Output sheet'!P5 -> 0 | Q107: =('Opt 2 Input Sheet'!$K$54*'Opt 2 Input Sheet'!$K$62*'Opt 2 Input Sheet'!$K$10)*'Opt 2 Output sheet'!Q5 -> 0 | R107: =('Opt 2 Input Sheet'!$K$54*'Opt 2 Input Sheet'!$K$62*'Opt 2 Input Sheet'!$K$10)*'Opt 2 Output sheet'!R5 -> 0 | S107: =('Opt 2 Input Sheet'!$K$54*'Opt 2 Input Sheet'!$K$62*'Opt 2 Input Sheet'!$K$10)*'Opt 2 Output sheet'!S5 -> 0
D108: Amenity space service charge | F108: £ | H108: 0 | L108: =('Opt 2 Input Sheet'!$K$55*'Opt 2 Input Sheet'!$K$10*'Opt 2 Input Sheet'!$K$60)*'Opt 2 Output sheet'!L5/12*6 -> 0 | M108: =('Opt 2 Input Sheet'!$K$55*'Opt 2 Input Sheet'!$K$10*'Opt 2 Input Sheet'!$K$60)*'Opt 2 Output sheet'!M5 -> 0 | N108: =('Opt 2 Input Sheet'!$K$55*'Opt 2 Input Sheet'!$K$10*'Opt 2 Input Sheet'!$K$61)*'Opt 2 Output sheet'!N5 -> 0 | O108: =('Opt 2 Input Sheet'!$K$55*'Opt 2 Input Sheet'!$K$10*'Opt 2 Input Sheet'!$K$62)*'Opt 2 Output sheet'!O5 -> 0 | P108: =('Opt 2 Input Sheet'!$K$55*'Opt 2 Input Sheet'!$K$10*'Opt 2 Input Sheet'!$K$62)*'Opt 2 Output sheet'!P5 -> 0 | Q108: =('Opt 2 Input Sheet'!$K$55*'Opt 2 Input Sheet'!$K$10*'Opt 2 Input Sheet'!$K$62)*'Opt 2 Output sheet'!Q5 -> 0 | R108: =('Opt 2 Input Sheet'!$K$55*'Opt 2 Input Sheet'!$K$10*'Opt 2 Input Sheet'!$K$62)*'Opt 2 Output sheet'!R5 -> 0 | S108: =('Opt 2 Input Sheet'!$K$55*'Opt 2 Input Sheet'!$K$10*'Opt 2 Input Sheet'!$K$62)*'Opt 2 Output sheet'!S5 -> 0
D109: Amenity space rates | F109: £ | H109: 0 | L109: =('Opt 2 Input Sheet'!$K$56*'Opt 2 Input Sheet'!$K$10*'Opt 2 Input Sheet'!$K$60)*'Opt 2 Output sheet'!L5/12*6 -> 0 | M109: =('Opt 2 Input Sheet'!$K$56*'Opt 2 Input Sheet'!$K$10*'Opt 2 Input Sheet'!$K$60)*'Opt 2 Output sheet'!M5 -> 0 | N109: =('Opt 2 Input Sheet'!$K$56*'Opt 2 Input Sheet'!$K$10*'Opt 2 Input Sheet'!$K$61)*'Opt 2 Output sheet'!N5 -> 0 | O109: =('Opt 2 Input Sheet'!$K$56*'Opt 2 Input Sheet'!$K$10*'Opt 2 Input Sheet'!$K$62)*'Opt 2 Output sheet'!O5 -> 0 | P109: =('Opt 2 Input Sheet'!$K$56*'Opt 2 Input Sheet'!$K$10*'Opt 2 Input Sheet'!$K$62)*'Opt 2 Output sheet'!P5 -> 0 | Q109: =('Opt 2 Input Sheet'!$K$56*'Opt 2 Input Sheet'!$K$10*'Opt 2 Input Sheet'!$K$62)*'Opt 2 Output sheet'!Q5 -> 0 | R109: =('Opt 2 Input Sheet'!$K$56*'Opt 2 Input Sheet'!$K$10*'Opt 2 Input Sheet'!$K$62)*'Opt 2 Output sheet'!R5 -> 0 | S109: =('Opt 2 Input Sheet'!$K$56*'Opt 2 Input Sheet'!$K$10*'Opt 2 Input Sheet'!$K$62)*'Opt 2 Output sheet'!S5 -> 0
C110: Total revenue | F110: £ | H110: =SUM(H104:H109) -> 0 | L110: =SUM(L104:L109) -> 0 | M110: 0 | N110: 0 | O110: 0 | P110: 0 | Q110: 0 | R110: 0 | S110: 0
C113: Expenditure
D114: Service charge | F114: £ | H114: =SUM(K114:S114) -> 0 | L114: =(-'Opt 2 Input Sheet'!$K$83*(('Opt 2 Input Sheet'!$K$10+'Opt 2 Input Sheet'!$K$18)+'Opt 2 Input Sheet'!$K$20))*'Opt 2 Output sheet'!L5/12*6 -> 0 | M114: =(-'Opt 2 Input Sheet'!$K$83*(('Opt 2 Input Sheet'!$K$10+'Opt 2 Input Sheet'!$K$18)+'Opt 2 Input Sheet'!$K$20))*'Opt 2 Output sheet'!M5 -> 0 | N114: =(-'Opt 2 Input Sheet'!$K$83*(('Opt 2 Input Sheet'!$K$10+'Opt 2 Input Sheet'!$K$18)+'Opt 2 Input Sheet'!$K$20))*'Opt 2 Output sheet'!N5 -> 0 | O114: =(-'Opt 2 Input Sheet'!$K$83*(('Opt 2 Input Sheet'!$K$10+'Opt 2 Input Sheet'!$K$18)+'Opt 2 Input Sheet'!$K$20))*'Opt 2 Output sheet'!O5 -> 0 | P114: =(-'Opt 2 Input Sheet'!$K$83*(('Opt 2 Input Sheet'!$K$10+'Opt 2 Input Sheet'!$K$18)+'Opt 2 Input Sheet'!$K$20))*'Opt 2 Output sheet'!P5 -> 0 | Q114: =(-'Opt 2 Input Sheet'!$K$83*(('Opt 2 Input Sheet'!$K$10+'Opt 2 Input Sheet'!$K$18)+'Opt 2 Input Sheet'!$K$20))*'Opt 2 Output sheet'!Q5 -> 0 | R114: =(-'Opt 2 Input Sheet'!$K$83*(('Opt 2 Input Sheet'!$K$10+'Opt 2 Input Sheet'!$K$18)+'Opt 2 Input Sheet'!$K$20))*'Opt 2 Output sheet'!R5 -> 0 | S114: =(-'Opt 2 Input Sheet'!$K$83*(('Opt 2 Input Sheet'!$K$10+'Opt 2 Input Sheet'!$K$18)+'Opt 2 Input Sheet'!$K$20))*'Opt 2 Output sheet'!S5 -> 0
D115: Rates | F115: £ | H115: =SUM(K115:S115) -> 0 | L115: =(-'Opt 2 Input Sheet'!$K$85*(('Opt 2 Input Sheet'!$K$10+'Opt 2 Input Sheet'!$K$18))*'Opt 2 Output sheet'!L5/12*6) -> 0 | M115: =(-'Opt 2 Input Sheet'!$K$85*('Opt 2 Input Sheet'!$K$10+'Opt 2 Input Sheet'!$K$18))*'Opt 2 Output sheet'!M5 -> 0 | N115: =(-'Opt 2 Input Sheet'!$K$85*('Opt 2 Input Sheet'!$K$10+'Opt 2 Input Sheet'!$K$18))*'Opt 2 Output sheet'!N5 -> 0 | O115: =(-'Opt 2 Input Sheet'!$K$85*('Opt 2 Input Sheet'!$K$10+'Opt 2 Input Sheet'!$K$18))*'Opt 2 Output sheet'!O5 -> 0 | P115: =(-'Opt 2 Input Sheet'!$K$85*('Opt 2 Input Sheet'!$K$10+'Opt 2 Input Sheet'!$K$18))*'Opt 2 Output sheet'!P5 -> 0 | Q115: =(-'Opt 2 Input Sheet'!$K$85*('Opt 2 Input Sheet'!$K$10+'Opt 2 Input Sheet'!$K$18))*'Opt 2 Output sheet'!Q5 -> 0 | R115: =(-'Opt 2 Input Sheet'!$K$85*('Opt 2 Input Sheet'!$K$10+'Opt 2 Input Sheet'!$K$18))*'Opt 2 Output sheet'!R5 -> 0 | S115: =(-'Opt 2 Input Sheet'!$K$85*('Opt 2 Input Sheet'!$K$10+'Opt 2 Input Sheet'!$K$18))*'Opt 2 Output sheet'!S5 -> 0
C116: Total expenditure | F116: £ | H116: =SUM(H114:H115) -> 0 | L116: =SUM(L114:L115) -> 0 | M116: 0 | N116: 0 | O116: 0 | P116: 0 | Q116: 0 | R116: 0 | S116: 0
C118: Terminal value
B120: Free Cash Flow | F120: £ | H120: =SUM(K120:S120) ->  | K120: =K110+K116+K99+K95+K118+K96+K97+K98 ->  | L120: =L110+L116+L99+L95+L118+L96+L97+L98 ->  | M120: =M110+M116+M99+M95+M118 -> 0 | N120: 0 | O120: 0 | P120: 0 | Q120: 0 | R120: 0 | S120: 0
B121: IRR | C121: =IRR(K120:S120) -> 
B123: Operating cash | L123: =L116+L110 -> 0 | M123: =M116+M110 -> 0 | N123: 0 | O123: 0 | P123: =P116+P110 -> 0 | Q123: 0 | R123: 0 | S123: 0
B124: Yield on cash | C124: =-(AVERAGE(L123:S123))/(SUM(H95:H97)) -> 
B126: Payback period | C126: =IF(K126>0,K2,IF(L126>0,L2,IF(M126>0,M2,IF(N126>0,N2,IF(O126>0,O2,IF(P126>0,P2,IF(Q126>0,Q2,IF(R126>0,R2,IF(S126>0,S2,IF(T126>0,T2,IF(U126>0,U2,IF(V126>0,V2,IF(W126>0,W2,IF(X126>0,X2,IF(Y126>0,Y2,IF(Z126>0,Z2,0)))))))))))))))) -> 0 | K126: =H17+K44-K17 -> 0 | L126: =K126+L44-L17 -> 0 | M126: =L126+M44-M17 -> 0 | N126: 0 | O126: 0 | P126: 0 | Q126: 0 | R126: =Q126+R44-R17 -> 0 | S126: 0 | T126: 0 | U126: 0 | V126: 0 | W126: 0 | X126: 0 | Y126: 0 | Z126: 0
B129: Profit Margin | K129: =IFERROR((K27-K40)/K40,0) -> 0 | L129: =IFERROR((L27-L40)/L40,0) -> 0 | M129: 0 | N129: 0 | O129: 0 | P129: 0 | Q129: 0 | R129: 0 | S129: 0 | T129: 0 | U129: 0 | V129: 0 | W129: 0 | X129: 0 | Y129: =IFERROR((Y27-Y40)/Y40,0) -> 0 | Z129: 0

Sheet Opt 3 Input Sheet
A1: ='Model input'!D3&" Analysis - Option 3" -> Investment A Analysis - Option 3 | G1: Factor to change | H1: Number of years for capex
A2: Input Sheet | G2: Change by | H2: 0.75
A4: Scenario | G4: 1 | I4: 1 | J4: 2 | K4: 3 | L4: 4
A5: Description | G5: =HLOOKUP(G4,I4:K5,2) -> Base Case | I5: Base Case | J5: Upper Case | K5: Lower Case | L5: Variable | N5: Source
A7: Balance sheet
B8: Initial start up
C9: Initial capital costs | G9: =OFFSET(H9,0,G$4) -> 0 | I9: =I13+(I10*I12)+(I10*I11) -> 0 | L9: =IF(C9=$H$1,I9*(1+$H$2),I9) -> 0
C10: Total area | G10: =OFFSET(H10,0,G$4) -> 0 | L10: =IF(C10=$H$1,I10*(1+$H$2),I10) -> 0
C11: Construction costs (£/sq ft) | G11: 0 | L11: 0
C12: Fit out costs (£/sq ft) | G12: 0 | L12: 0
C13: Purchase cost | G13: 0 | L13: 0
C14: Professional fees | G14: 0 | L14: 0
C15: VAT | G15: 0 | L15: 0
C16: Other fees/duties | G16: 0 | L16: 0
C17: Number of years for capex | G17: 2 | I17: 2 | L17: 3.5
C18: Residual value | G18: 0 | L18: 0
C19: Refurbishment schedule | G19: 0 | L19: 0
C20: Refurbishment costs (£/sq ft) | G20: 0 | L20: 0
B22: Financing
C23: Drawdown value | G23: =OFFSET(H23,0,G$4) -> 0 | L23: =IF(C23=$H$1,I23*(1+$H$2),I23) -> 0
C24: Drawdown year | G24: 0 | L24: 0
C25: Interest rate | G25: 0 | L25: 0
C26: Payment schedule | G26: 0 | L26: 0
A28: Income statement
B29: Year to commence operations | G29: =OFFSET(H29,0,G$4)-0.01 -> 1.99 | I29: 2 | L29: =IF(C29=$H$1,I29*(1+$H$2),I29) -> 2
A31: Revenue generation
B32: Membership income
C33: No of members
D34: Yr 1 | E34: 1 | G34: =OFFSET(H34,0,G$4) -> 0 | L34: =IF(D34=$H$1,I34*(1+$H$2),I34) -> 0
D35: Yr 2 | E35: 2 | G35: 0 | L35: =IF(D35=$H$1,I35*(1+$H$2),I35) -> 0
D36: Yr 3 | E36: 3 | G36: 0 | L36: 0
D37: Yr 4 | E37: 4 | G37: 0 | L37: 0
D38: Yr 5 | E38: 5 | G38: 0 | L38: 0
D39: Yr 6 | E39: 6 | G39: 0 | L39: 0
D40: Yr 7 | E40: 7 | G40: 0 | L40: 0
D41: Yr 8 | E41: 8 | G41: 0 | L41: 0
D42: Yr 9 | E42: 9 | G42: 0 | L42: 0
D43: Yr 10 | E43: 10 | G43: 0 | L43: 0
D44: Yr 11 | E44: 11 | G44: 0 | L44: 0
D45: Yr 12 | E45: 12 | G45: 0 | L45: 0
D46: Yr 13 | E46: 13 | G46: 0 | L46: 0
D47: Yr 14 | E47: 14 | G47: 0 | L47: 0
D48: Yr 15 | E48: 15 | G48: 0 | L48: 0
C50: Membership rate (£ per annum) | G50: 0 | L50: =IF(D50=$H$1,I50*(1+$H$2),I50) -> 0
G51: 0 | L51: =IF(C51=$H$1,I51*(1+$H$2),I51) -> 0
C53: Accommodation income
D54: Number of rooms | G54: =OFFSET(H54,0,G$4) -> 0 | L54: =IF(D54=$H$1,I54*(1+$H$2),I54) -> 0
D55: Price per night (£) | G55: 0 | L55: =IF(D55=$H$1,I55*(1+$H$2),I55) -> 0
D56: Nights in operation | G56: 0 | L56: 0
D57: Occupancy | G57: 0 | L57: =IF(D57=$H$1,I57*(1+$H$2),I57) -> 0
C59: Rental space income
D60: Rent per sq/ft | G60: =OFFSET(H60,0,G$4) -> 0 | L60: =IF(D60=$H$1,I60*(1+$H$2),I60) -> 0
D61: Rental area (sq/ft) | G61: 0 | L61: 0
G62: 0 | L62: 0
C64: Room & equipment hire income
D65: Number of rooms | G65: =OFFSET(H65,0,G$4) -> 0 | L65: =IF(D65=$H$1,I65*(1+$H$2),I65) -> 0
D66: Blended rate (£/day) | G66: 0 | L66: 0
D67: Days in operation | G67: 0 | L67: 0
D68: Occupancy | G68: 0 | L68: 0
C70: Restaurant and private dining income
D71: Covers per day - Club | G71: =OFFSET(H71,0,G$4) -> 0 | L71: =IF(D71=$H$1,I71*(1+$H$2),I71) -> 0
D72: Price (£/cover) - Club | G72: =OFFSET(H72,0,G$4) -> 0 | L72: 0
D73: Days in operation | G73: 0 | L73: 0
G74: 0 | L74: 0
C76: Events income
D77: Number of events per annum | G77: =OFFSET(H77,0,G$4) -> 0 | L77: =IF(D77=$H$1,I77*(1+$H$2),I77) -> 0
D78: Average takings (£/event) | G78: 0 | L78: 0
D79: Funded by ticket sales | G79: 0 | L79: 0
B81: Expenditure
D83: Staff costs | G83: =OFFSET(H83,0,G$4) -> 0 | L83: =IF(D83=$H$1,I83*(1+$H$2),I83) -> 0
D85: Cost of sales | G85: 0 | L85: =IF(D85=$H$1,I85*(1+$H$2),I85) -> 0
D87: Marketing | G87: =OFFSET(H87,0,G$4) -> 0 | L87: =IF(D87=$H$1,I87*(1+$H$2),I87) -> 0
D88: Other opex | G88: 0 | L88: 0
D90: Estates costs | G90: =OFFSET(H90,0,G$4) -> 0 | L90: =IF(D90=$H$1,I90*(1+$H$2),I90) -> 0
D91: Equipment | G91: 0 | L91: 0
D92: Lease costs | L92: 0
D93: Rates | G93: 0 | L93: 0
A95: Other factors
B96: Inflation (@ RPI) | G96: =OFFSET(H96,0,G$4) -> 0.02 | I96: ='Model input'!D6 -> 0.02 | L96: =IF(B96=$H$1,I96*(1+$H$2),I96) -> 0.02
B97: Discount factor (RPI+2.5%) | G97: 0.04 | I97: ='Model input'!D7 -> 0.04 | L97: =IF(B97=$H$1,I97*(1+$H$2),I97) -> 0.04

Sheet Opt 3 Output sheet
B1: ='Model input'!D3&" Analysis - Option 3" -> Investment A Analysis - Option 3
B2: Workings Sheet | K2: ='Model input'!D5 -> 2016 | L2: =L3+$K$2 -> 2017 | M2: =M3+$K$2 -> 2018 | N2: 2019 | O2: 2020 | P2: 2021 | Q2: 2022 | R2: 2023 | S2: 2024 | T2: 2025 | U2: 2026 | V2: 2027 | W2: 2028 | X2: 2029 | Y2: 2030 | Z2: 2031
K3: 0 | L3: 1 | M3: 2 | N3: 3 | O3: 4 | P3: 5 | Q3: 6 | R3: 7 | S3: 8 | T3: 9 | U3: 10 | V3: 11 | W3: 12 | X3: 13 | Y3: 14 | Z3: 15
B5: Inflation index | C5: ='Opt 3 Input Sheet'!G96 -> 0.02 | K5: =(1+'Opt 3 Input Sheet'!$G96)^K3 -> 1 | L5: =(1+'Opt 3 Input Sheet'!$G96)^L3 -> 1.02 | M5: =(1+'Opt 3 Input Sheet'!$G96)^M3 -> 1.0404 | N5: =(1+'Opt 3 Input Sheet'!$G96)^N3 -> 1.061208 | O5: =(1+'Opt 3 Input Sheet'!$G96)^O3 -> 1.08243216 | P5: =(1+'Opt 3 Input Sheet'!$G96)^P3 -> 1.104080803 | Q5: =(1+'Opt 3 Input Sheet'!$G96)^Q3 -> 1.126162419 | R5: =(1+'Opt 3 Input Sheet'!$G96)^R3 -> 1.148685668 | S5: =(1+'Opt 3 Input Sheet'!$G96)^S3 -> 1.171659381 | T5: =(1+'Opt 3 Input Sheet'!$G96)^T3 -> 1.195092569 | U5: =(1+'Opt 3 Input Sheet'!$G96)^U3 -> 1.21899442 | V5: =(1+'Opt 3 Input Sheet'!$G96)^V3 -> 1.243374308 | W5: =(1+'Opt 3 Input Sheet'!$G96)^W3 -> 1.268241795 | X5: =(1+'Opt 3 Input Sheet'!$G96)^X3 -> 1.29360663 | Y5: =(1+'Opt 3 Input Sheet'!$G96)^Y3 -> 1.319478763 | Z5: =(1+'Opt 3 Input Sheet'!$G96)^Z3 -> 1.345868338
B7: Refurbishment | K7: =IF(K3='Opt 3 Input Sheet'!$G$19,"Yes","No") -> Yes | L7: =IF(L3='Opt 3 Input Sheet'!$G$19,"Yes","No") -> No | M7: =IF(M3='Opt 3 Input Sheet'!$G$19,"Yes","No") -> No | N7: =IF(N3='Opt 3 Input Sheet'!$G$19,"Yes","No") -> No | O7: =IF(O3='Opt 3 Input Sheet'!$G$19,"Yes","No") -> No | P7: =IF(P3='Opt 3 Input Sheet'!$G$19,"Yes","No") -> No | Q7: =IF(Q3='Opt 3 Input Sheet'!$G$19,"Yes","No") -> No | R7: =IF(R3='Opt 3 Input Sheet'!$G$19,"Yes","No") -> No | S7: =IF(S3='Opt 3 Input Sheet'!$G$19,"Yes","No") -> No | T7: =IF(T3='Opt 3 Input Sheet'!$G$19,"Yes","No") -> No | U7: =IF(U3='Opt 3 Input Sheet'!$G$19,"Yes","No") -> No | V7: =IF(V3='Opt 3 Input Sheet'!$G$19,"Yes","No") -> No | W7: =IF(W3='Opt 3 Input Sheet'!$G$19,"Yes","No") -> No | X7: =IF(X3='Opt 3 Input Sheet'!$G$19,"Yes","No") -> No | Y7: =IF(Y3='Opt 3 Input Sheet'!$G$19,"Yes","No") -> No | Z7: =IF(Z3='Opt 3 Input Sheet'!$G$19,"Yes","No") -> No
B8: Refurbishment factor | K8: =IF(K7="No",1,0.5) -> 0.5 | L8: =IF(L7="No",1,0.5) -> 1 | M8: 1 | N8: 1 | O8: 1 | P8: 1 | Q8: 1 | R8: 1 | S8: 1 | T8: 1 | U8: 1 | V8: 1 | W8: 1 | X8: 1 | Y8: 1 | Z8: 1
B10: BASE CASE
B11: Balance Sheet | C11: Capital | H11: Total | I11: Sparkline
D12: Initial capital cost | F12: £ | H12: =SUM(K12:S12) -> 0 | K12: =IF(K3<'Opt 3 Input Sheet'!$G$17,-'Opt 3 Input Sheet'!$G$9/'Opt 3 Input Sheet'!$G$17*K5,"") -> 0 | L12: =IF(L3<'Opt 3 Input Sheet'!$G$17,-'Opt 3 Input Sheet'!$G$9/'Opt 3 Input Sheet'!$G$17*L5,"") -> 0 | M12: =IF(M3<'Opt 3 Input Sheet'!$G$17,-'Opt 3 Input Sheet'!$G$9/'Opt 3 Input Sheet'!$G$17*M5,"") ->  | N12: =IF(N3<'Opt 3 Input Sheet'!$G$17,-'Opt 3 Input Sheet'!$G$9/'Opt 3 Input Sheet'!$G$17*N5,"") ->  | O12: =IF(O3<'Opt 3 Input Sheet'!$G$17,-'Opt 3 Input Sheet'!$G$9/'Opt 3 Input Sheet'!$G$17*O5,"") ->  | P12: =IF(P3<'Opt 3 Input Sheet'!$G$17,-'Opt 3 Input Sheet'!$G$9/'Opt 3 Input Sheet'!$G$17*P5,"") ->  | Q12: =IF(Q3<'Opt 3 Input Sheet'!$G$17,-'Opt 3 Input Sheet'!$G$9/'Opt 3 Input Sheet'!$G$17*Q5,"") ->  | R12: =IF(R3<'Opt 3 Input Sheet'!$G$17,-'Opt 3 Input Sheet'!$G$9/'Opt 3 Input Sheet'!$G$17*R5,"") ->  | S12: =IF(S3<'Opt 3 Input Sheet'!$G$17,-'Opt 3 Input Sheet'!$G$9/'Opt 3 Input Sheet'!$G$17*S5,"") ->  | T12: =IF(T3<'Opt 3 Input Sheet'!$G$17,-'Opt 3 Input Sheet'!$G$9/'Opt 3 Input Sheet'!$G$17*T5,"") ->  | U12: =IF(U3<'Opt 3 Input Sheet'!$G$17,-'Opt 3 Input Sheet'!$G$9/'Opt 3 Input Sheet'!$G$17*U5,"") ->  | V12: =IF(V3<'Opt 3 Input Sheet'!$G$17,-'Opt 3 Input Sheet'!$G$9/'Opt 3 Input Sheet'!$G$17*V5,"") ->  | W12: =IF(W3<'Opt 3 Input Sheet'!$G$17,-'Opt 3 Input Sheet'!$G$9/'Opt 3 Input Sheet'!$G$17*W5,"") ->  | X12: =IF(X3<'Opt 3 Input Sheet'!$G$17,-'Opt 3 Input Sheet'!$G$9/'Opt 3 Input Sheet'!$G$17*X5,"") ->  | Y12: =IF(Y3<'Opt 3 Input Sheet'!$G$17,-'Opt 3 Input Sheet'!$G$9/'Opt 3 Input Sheet'!$G$17*Y5,"") ->  | Z12: =IF(Z3<'Opt 3 Input Sheet'!$G$17,-'Opt 3 Input Sheet'!$G$9/'Opt 3 Input Sheet'!$G$17*Z5,"") -> 
D13: ='Opt 3 Input Sheet'!C14 -> Professional fees | F13: £ | H13: =SUM(K13:S13) -> 0 | K13: =IF(K3<'Opt 3 Input Sheet'!$G$17,-'Opt 3 Input Sheet'!$G$14/'Opt 3 Input Sheet'!$G$17*K5,"") -> 0 | L13: =IF(L3<'Opt 3 Input Sheet'!$G$17,-'Opt 3 Input Sheet'!$G$14/'Opt 3 Input Sheet'!$G$17*L5,"") -> 0 | M13: =IF(M3<'Opt 3 Input Sheet'!$G$17,-'Opt 3 Input Sheet'!$G$14/'Opt 3 Input Sheet'!$G$17*M5,"") ->  | N13: =IF(N3<'Opt 3 Input Sheet'!$G$17,-'Opt 3 Input Sheet'!$G$14/'Opt 3 Input Sheet'!$G$17*N5,"") ->  | O13: =IF(O3<'Opt 3 Input Sheet'!$G$17,-'Opt 3 Input Sheet'!$G$14/'Opt 3 Input Sheet'!$G$17*O5,"") ->  | P13: =IF(P3<'Opt 3 Input Sheet'!$G$17,-'Opt 3 Input Sheet'!$G$14/'Opt 3 Input Sheet'!$G$17*P5,"") ->  | Q13: =IF(Q3<'Opt 3 Input Sheet'!$G$17,-'Opt 3 Input Sheet'!$G$14/'Opt 3 Input Sheet'!$G$17*Q5,"") ->  | R13: =IF(R3<'Opt 3 Input Sheet'!$G$17,-'Opt 3 Input Sheet'!$G$14/'Opt 3 Input Sheet'!$G$17*R5,"") ->  | S13: =IF(S3<'Opt 3 Input Sheet'!$G$17,-'Opt 3 Input Sheet'!$G$14/'Opt 3 Input Sheet'!$G$17*S5,"") ->  | T13: =IF(T3<'Opt 3 Input Sheet'!$G$17,-'Opt 3 Input Sheet'!$G$14/'Opt 3 Input Sheet'!$G$17*T5,"") ->  | U13: =IF(U3<'Opt 3 Input Sheet'!$G$17,-'Opt 3 Input Sheet'!$G$14/'Opt 3 Input Sheet'!$G$17*U5,"") ->  | V13: =IF(V3<'Opt 3 Input Sheet'!$G$17,-'Opt 3 Input Sheet'!$G$14/'Opt 3 Input Sheet'!$G$17*V5,"") ->  | W13: =IF(W3<'Opt 3 Input Sheet'!$G$17,-'Opt 3 Input Sheet'!$G$14/'Opt 3 Input Sheet'!$G$17*W5,"") ->  | X13: =IF(X3<'Opt 3 Input Sheet'!$G$17,-'Opt 3 Input Sheet'!$G$14/'Opt 3 Input Sheet'!$G$17*X5,"") ->  | Y13: =IF(Y3<'Opt 3 Input Sheet'!$G$17,-'Opt 3 Input Sheet'!$G$14/'Opt 3 Input Sheet'!$G$17*Y5,"") ->  | Z13: =IF(Z3<'Opt 3 Input Sheet'!$G$17,-'Opt 3 Input Sheet'!$G$14/'Opt 3 Input Sheet'!$G$17*Z5,"") -> 
D14: ='Opt 3 Input Sheet'!C15 -> VAT | F14: £ | H14: =SUM(K14:S14) -> 0 | K14: =IF(K3<'Opt 3 Input Sheet'!$G$17,-'Opt 3 Input Sheet'!$G$15/'Opt 3 Input Sheet'!$G$17*K5,"") -> 0 | L14: =IF(L3<'Opt 3 Input Sheet'!$G$17,-'Opt 3 Input Sheet'!$G$15/'Opt 3 Input Sheet'!$G$17*L5,"") -> 0 | M14: =IF(M3<'Opt 3 Input Sheet'!$G$17,-'Opt 3 Input Sheet'!$G$15/'Opt 3 Input Sheet'!$G$17*M5,"") ->  | N14: =IF(N3<'Opt 3 Input Sheet'!$G$17,-'Opt 3 Input Sheet'!$G$15/'Opt 3 Input Sheet'!$G$17*N5,"") ->  | O14: =IF(O3<'Opt 3 Input Sheet'!$G$17,-'Opt 3 Input Sheet'!$G$15/'Opt 3 Input Sheet'!$G$17*O5,"") ->  | P14: =IF(P3<'Opt 3 Input Sheet'!$G$17,-'Opt 3 Input Sheet'!$G$15/'Opt 3 Input Sheet'!$G$17*P5,"") ->  | Q14: =IF(Q3<'Opt 3 Input Sheet'!$G$17,-'Opt 3 Input Sheet'!$G$15/'Opt 3 Input Sheet'!$G$17*Q5,"") ->  | R14: =IF(R3<'Opt 3 Input Sheet'!$G$17,-'Opt 3 Input Sheet'!$G$15/'Opt 3 Input Sheet'!$G$17*R5,"") ->  | S14: =IF(S3<'Opt 3 Input Sheet'!$G$17,-'Opt 3 Input Sheet'!$G$15/'Opt 3 Input Sheet'!$G$17*S5,"") ->  | T14: =IF(T3<'Opt 3 Input Sheet'!$G$17,-'Opt 3 Input Sheet'!$G$15/'Opt 3 Input Sheet'!$G$17*T5,"") ->  | U14: =IF(U3<'Opt 3 Input Sheet'!$G$17,-'Opt 3 Input Sheet'!$G$15/'Opt 3 Input Sheet'!$G$17*U5,"") ->  | V14: =IF(V3<'Opt 3 Input Sheet'!$G$17,-'Opt 3 Input Sheet'!$G$15/'Opt 3 Input Sheet'!$G$17*V5,"") ->  | W14: =IF(W3<'Opt 3 Input Sheet'!$G$17,-'Opt 3 Input Sheet'!$G$15/'Opt 3 Input Sheet'!$G$17*W5,"") ->  | X14: =IF(X3<'Opt 3 Input Sheet'!$G$17,-'Opt 3 Input Sheet'!$G$15/'Opt 3 Input Sheet'!$G$17*X5,"") ->  | Y14: =IF(Y3<'Opt 3 Input Sheet'!$G$17,-'Opt 3 Input Sheet'!$G$15/'Opt 3 Input Sheet'!$G$17*Y5,"") ->  | Z14: =IF(Z3<'Opt 3 Input Sheet'!$G$17,-'Opt 3 Input Sheet'!$G$15/'Opt 3 Input Sheet'!$G$17*Z5,"") -> 
D15: ='Opt 3 Input Sheet'!C16 -> Other fees/duties | F15: £ | H15: =SUM(K15:S15) -> 0 | K15: =IF(K3<'Opt 3 Input Sheet'!$G$17,-'Opt 3 Input Sheet'!$G$16/'Opt 3 Input Sheet'!$G$17*K5,"") -> 0 | L15: =IF(L3<'Opt 3 Input Sheet'!$G$17,-'Opt 3 Input Sheet'!$G$16/'Opt 3 Input Sheet'!$G$17*L5,"") -> 0 | M15: =IF(M3<'Opt 3 Input Sheet'!$G$17,-'Opt 3 Input Sheet'!$G$16/'Opt 3 Input Sheet'!$G$17*M5,"") ->  | N15: =IF(N3<'Opt 3 Input Sheet'!$G$17,-'Opt 3 Input Sheet'!$G$16/'Opt 3 Input Sheet'!$G$17*N5,"") ->  | O15: =IF(O3<'Opt 3 Input Sheet'!$G$17,-'Opt 3 Input Sheet'!$G$16/'Opt 3 Input Sheet'!$G$17*O5,"") ->  | P15: =IF(P3<'Opt 3 Input Sheet'!$G$17,-'Opt 3 Input Sheet'!$G$16/'Opt 3 Input Sheet'!$G$17*P5,"") ->  | Q15: =IF(Q3<'Opt 3 Input Sheet'!$G$17,-'Opt 3 Input Sheet'!$G$16/'Opt 3 Input Sheet'!$G$17*Q5,"") ->  | R15: =IF(R3<'Opt 3 Input Sheet'!$G$17,-'Opt 3 Input Sheet'!$G$16/'Opt 3 Input Sheet'!$G$17*R5,"") ->  | S15: =IF(S3<'Opt 3 Input Sheet'!$G$17,-'Opt 3 Input Sheet'!$G$16/'Opt 3 Input Sheet'!$G$17*S5,"") ->  | T15: =IF(T3<'Opt 3 Input Sheet'!$G$17,-'Opt 3 Input Sheet'!$G$16/'Opt 3 Input Sheet'!$G$17*T5,"") ->  | U15: =IF(U3<'Opt 3 Input Sheet'!$G$17,-'Opt 3 Input Sheet'!$G$16/'Opt 3 Input Sheet'!$G$17*U5,"") ->  | V15: =IF(V3<'Opt 3 Input Sheet'!$G$17,-'Opt 3 Input Sheet'!$G$16/'Opt 3 Input Sheet'!$G$17*V5,"") ->  | W15: =IF(W3<'Opt 3 Input Sheet'!$G$17,-'Opt 3 Input Sheet'!$G$16/'Opt 3 Input Sheet'!$G$17*W5,"") ->  | X15: =IF(X3<'Opt 3 Input Sheet'!$G$17,-'Opt 3 Input Sheet'!$G$16/'Opt 3 Input Sheet'!$G$17*X5,"") ->  | Y15: =IF(Y3<'Opt 3 Input Sheet'!$G$17,-'Opt 3 Input Sheet'!$G$16/'Opt 3 Input Sheet'!$G$17*Y5,"") ->  | Z15: =IF(Z3<'Opt 3 Input Sheet'!$G$17,-'Opt 3 Input Sheet'!$G$16/'Opt 3 Input Sheet'!$G$17*Z5,"") -> 
D16: Refurbishment | F16: £ | H16: =SUM(K16:S16) -> 0 | K16: =IF(AND(K7="Yes",K3>1),-'Opt 3 Input Sheet'!$G$20*K5,0) -> 0 | L16: =IF(AND(L7="Yes",L3>1),-'Opt 3 Input Sheet'!$G$20*L5,0) -> 0 | M16: =IF(AND(M7="Yes",M3>1),-'Opt 3 Input Sheet'!$G$20*M5,0) -> 0 | N16: =IF(AND(N7="Yes",N3>1),-'Opt 3 Input Sheet'!$G$20*N5,0) -> 0 | O16: =IF(AND(O7="Yes",O3>1),-'Opt 3 Input Sheet'!$G$20*O5,0) -> 0 | P16: =IF(AND(P7="Yes",P3>1),-'Opt 3 Input Sheet'!$G$20*P5,0) -> 0 | Q16: =IF(AND(Q7="Yes",Q3>1),-'Opt 3 Input Sheet'!$G$20*Q5,0) -> 0 | R16: =IF(AND(R7="Yes",R3>1),-'Opt 3 Input Sheet'!$G$20*R5,0) -> 0 | S16: =IF(AND(S7="Yes",S3>1),-'Opt 3 Input Sheet'!$G$20*S5,0) -> 0 | T16: =IF(AND(T7="Yes",T3>1),-'Opt 3 Input Sheet'!$G$20*T5,0) -> 0 | U16: =IF(AND(U7="Yes",U3>1),-'Opt 3 Input Sheet'!$G$20*U5,0) -> 0 | V16: =IF(AND(V7="Yes",V3>1),-'Opt 3 Input Sheet'!$G$20*V5,0) -> 0 | W16: =IF(AND(W7="Yes",W3>1),-'Opt 3 Input Sheet'!$G$20*W5,0) -> 0 | X16: =IF(AND(X7="Yes",X3>1),-'Opt 3 Input Sheet'!$G$20*X5,0) -> 0 | Y16: =IF(AND(Y7="Yes",Y3>1),-'Opt 3 Input Sheet'!$G$20*Y5,0) -> 0 | Z16: =IF(AND(Z7="Yes",Z3>1),-'Opt 3 Input Sheet'!$G$20*Z5,0) -> 0
C17: Total capital | F17: £ | H17: =SUM(H12:H16) -> 0 | K17: =SUM(K12:K16) -> 0 | L17: =SUM(L12:L16) -> 0 | M17: =SUM(M12:M16) -> 0 | N17: 0 | O17: 0 | P17: 0 | Q17: 0 | R17: 0 | S17: 0 | T17: 0 | U17: 0 | V17: 0 | W17: 0 | X17: 0 | Y17: 0 | Z17: 0
B19: Cash Flow Statement
C20: Revenue
D21: ='Opt 3 Input Sheet'!B32 -> Membership income | F21: £ | H21: =SUM(K21:S21) -> 0 | K21: =IF(K3>'Opt 3 Input Sheet'!$G$29,(VLOOKUP(K3,'Opt 3 Input Sheet'!$E$34:$G$48,3,FALSE)*K5*'Opt 3 Input Sheet'!$G$50),"") ->  | L21: =IF(L3>'Opt 3 Input Sheet'!$G$29,(VLOOKUP(L3,'Opt 3 Input Sheet'!$E$34:$G$48,3,FALSE)*L5*'Opt 3 Input Sheet'!$G$50),"") ->  | M21: =IF(M3>'Opt 3 Input Sheet'!$G$29,(VLOOKUP(M3,'Opt 3 Input Sheet'!$E$34:$G$48,3,FALSE)*M5*'Opt 3 Input Sheet'!$G$50),"") -> 0 | N21: =IF(N3>'Opt 3 Input Sheet'!$G$29,(VLOOKUP(N3,'Opt 3 Input Sheet'!$E$34:$G$48,3,FALSE)*N5*'Opt 3 Input Sheet'!$G$50),"") -> 0 | O21: =IF(O3>'Opt 3 Input Sheet'!$G$29,(VLOOKUP(O3,'Opt 3 Input Sheet'!$E$34:$G$48,3,FALSE)*O5*'Opt 3 Input Sheet'!$G$50),"") -> 0 | P21: =IF(P3>'Opt 3 Input Sheet'!$G$29,(VLOOKUP(P3,'Opt 3 Input Sheet'!$E$34:$G$48,3,FALSE)*P5*'Opt 3 Input Sheet'!$G$50),"") -> 0 | Q21: =IF(Q3>'Opt 3 Input Sheet'!$G$29,(VLOOKUP(Q3,'Opt 3 Input Sheet'!$E$34:$G$48,3,FALSE)*Q5*'Opt 3 Input Sheet'!$G$50),"") -> 0 | R21: =IF(R3>'Opt 3 Input Sheet'!$G$29,(VLOOKUP(R3,'Opt 3 Input Sheet'!$E$34:$G$48,3,FALSE)*R5*'Opt 3 Input Sheet'!$G$50),"") -> 0 | S21: =IF(S3>'Opt 3 Input Sheet'!$G$29,(VLOOKUP(S3,'Opt 3 Input Sheet'!$E$34:$G$48,3,FALSE)*S5*'Opt 3 Input Sheet'!$G$50),"") -> 0 | T21: =IF(T3>'Opt 3 Input Sheet'!$G$29,(VLOOKUP(T3,'Opt 3 Input Sheet'!$E$34:$G$48,3,FALSE)*T5*'Opt 3 Input Sheet'!$G$50),"") -> 0 | U21: =IF(U3>'Opt 3 Input Sheet'!$G$29,(VLOOKUP(U3,'Opt 3 Input Sheet'!$E$34:$G$48,3,FALSE)*U5*'Opt 3 Input Sheet'!$G$50),"") -> 0 | V21: =IF(V3>'Opt 3 Input Sheet'!$G$29,(VLOOKUP(V3,'Opt 3 Input Sheet'!$E$34:$G$48,3,FALSE)*V5*'Opt 3 Input Sheet'!$G$50),"") -> 0 | W21: =IF(W3>'Opt 3 Input Sheet'!$G$29,(VLOOKUP(W3,'Opt 3 Input Sheet'!$E$34:$G$48,3,FALSE)*W5*'Opt 3 Input Sheet'!$G$50),"") -> 0 | X21: =IF(X3>'Opt 3 Input Sheet'!$G$29,(VLOOKUP(X3,'Opt 3 Input Sheet'!$E$34:$G$48,3,FALSE)*X5*'Opt 3 Input Sheet'!$G$50),"") -> 0 | Y21: =IF(Y3>'Opt 3 Input Sheet'!$G$29,(VLOOKUP(Y3,'Opt 3 Input Sheet'!$E$34:$G$48,3,FALSE)*Y5*'Opt 3 Input Sheet'!$G$50),"") -> 0 | Z21: =IF(Z3>'Opt 3 Input Sheet'!$G$29,(VLOOKUP(Z3,'Opt 3 Input Sheet'!$E$34:$G$48,3,FALSE)*Z5*'Opt 3 Input Sheet'!$G$50),"") -> 0 | AD21: Membership income
D22: ='Opt 3 Input Sheet'!C53 -> Accommodation income | F22: £ | H22: 0 | K22: =IF(K3>'Opt 3 Input Sheet'!$G$29,'Opt 3 Input Sheet'!$G$54*'Opt 3 Input Sheet'!$G$55*'Opt 3 Input Sheet'!$G$56/365*'Opt 3 Input Sheet'!$G$57*'Opt 3 Output sheet'!K5,"") ->  | L22: =IF(L3>'Opt 3 Input Sheet'!$G$29,'Opt 3 Input Sheet'!$G$54*'Opt 3 Input Sheet'!$G$55*'Opt 3 Input Sheet'!$G$56/365*'Opt 3 Input Sheet'!$G$57*'Opt 3 Output sheet'!L5,"") ->  | M22: =IF(M3>'Opt 3 Input Sheet'!$G$29,'Opt 3 Input Sheet'!$G$54*'Opt 3 Input Sheet'!$G$55*'Opt 3 Input Sheet'!$G$56/365*'Opt 3 Input Sheet'!$G$57*'Opt 3 Output sheet'!M5,"") -> 0 | N22: =IF(N3>'Opt 3 Input Sheet'!$G$29,'Opt 3 Input Sheet'!$G$54*'Opt 3 Input Sheet'!$G$55*'Opt 3 Input Sheet'!$G$56/365*'Opt 3 Input Sheet'!$G$57*'Opt 3 Output sheet'!N5,"") -> 0 | O22: =IF(O3>'Opt 3 Input Sheet'!$G$29,'Opt 3 Input Sheet'!$G$54*'Opt 3 Input Sheet'!$G$55*'Opt 3 Input Sheet'!$G$56/365*'Opt 3 Input Sheet'!$G$57*'Opt 3 Output sheet'!O5,"") -> 0 | P22: =IF(P3>'Opt 3 Input Sheet'!$G$29,'Opt 3 Input Sheet'!$G$54*'Opt 3 Input Sheet'!$G$55*'Opt 3 Input Sheet'!$G$56/365*'Opt 3 Input Sheet'!$G$57*'Opt 3 Output sheet'!P5,"") -> 0 | Q22: =IF(Q3>'Opt 3 Input Sheet'!$G$29,'Opt 3 Input Sheet'!$G$54*'Opt 3 Input Sheet'!$G$55*'Opt 3 Input Sheet'!$G$56/365*'Opt 3 Input Sheet'!$G$57*'Opt 3 Output sheet'!Q5,"") -> 0 | R22: =IF(R3>'Opt 3 Input Sheet'!$G$29,'Opt 3 Input Sheet'!$G$54*'Opt 3 Input Sheet'!$G$55*'Opt 3 Input Sheet'!$G$56/365*'Opt 3 Input Sheet'!$G$57*'Opt 3 Output sheet'!R5,"") -> 0 | S22: =IF(S3>'Opt 3 Input Sheet'!$G$29,'Opt 3 Input Sheet'!$G$54*'Opt 3 Input Sheet'!$G$55*'Opt 3 Input Sheet'!$G$56/365*'Opt 3 Input Sheet'!$G$57*'Opt 3 Output sheet'!S5,"") -> 0 | T22: =IF(T3>'Opt 3 Input Sheet'!$G$29,'Opt 3 Input Sheet'!$G$54*'Opt 3 Input Sheet'!$G$55*'Opt 3 Input Sheet'!$G$56/365*'Opt 3 Input Sheet'!$G$57*'Opt 3 Output sheet'!T5,"") -> 0 | U22: =IF(U3>'Opt 3 Input Sheet'!$G$29,'Opt 3 Input Sheet'!$G$54*'Opt 3 Input Sheet'!$G$55*'Opt 3 Input Sheet'!$G$56/365*'Opt 3 Input Sheet'!$G$57*'Opt 3 Output sheet'!U5,"") -> 0 | V22: =IF(V3>'Opt 3 Input Sheet'!$G$29,'Opt 3 Input Sheet'!$G$54*'Opt 3 Input Sheet'!$G$55*'Opt 3 Input Sheet'!$G$56/365*'Opt 3 Input Sheet'!$G$57*'Opt 3 Output sheet'!V5,"") -> 0 | W22: =IF(W3>'Opt 3 Input Sheet'!$G$29,'Opt 3 Input Sheet'!$G$54*'Opt 3 Input Sheet'!$G$55*'Opt 3 Input Sheet'!$G$56/365*'Opt 3 Input Sheet'!$G$57*'Opt 3 Output sheet'!W5,"") -> 0 | X22: =IF(X3>'Opt 3 Input Sheet'!$G$29,'Opt 3 Input Sheet'!$G$54*'Opt 3 Input Sheet'!$G$55*'Opt 3 Input Sheet'!$G$56/365*'Opt 3 Input Sheet'!$G$57*'Opt 3 Output sheet'!X5,"") -> 0 | Y22: =IF(Y3>'Opt 3 Input Sheet'!$G$29,'Opt 3 Input Sheet'!$G$54*'Opt 3 Input Sheet'!$G$55*'Opt 3 Input Sheet'!$G$56/365*'Opt 3 Input Sheet'!$G$57*'Opt 3 Output sheet'!Y5,"") -> 0 | Z22: =IF(Z3>'Opt 3 Input Sheet'!$G$29,'Opt 3 Input Sheet'!$G$54*'Opt 3 Input Sheet'!$G$55*'Opt 3 Input Sheet'!$G$56/365*'Opt 3 Input Sheet'!$G$57*'Opt 3 Output sheet'!Z5,"") -> 0 | AD22: Accommodation income
D23: ='Opt 3 Input Sheet'!C59 -> Rental space income | F23: £ | H23: 0 | K23: =IF(K3>'Opt 3 Input Sheet'!$G$29,'Opt 3 Input Sheet'!$G$60*'Opt 3 Input Sheet'!$G$61*'Opt 3 Input Sheet'!$G$62*'Opt 3 Output sheet'!K5,"") ->  | L23: =IF(L3>'Opt 3 Input Sheet'!$G$29,'Opt 3 Input Sheet'!$G$60*'Opt 3 Input Sheet'!$G$61*'Opt 3 Input Sheet'!$G$62*'Opt 3 Output sheet'!L5,"") ->  | M23: =IF(M3>'Opt 3 Input Sheet'!$G$29,'Opt 3 Input Sheet'!$G$60*'Opt 3 Input Sheet'!$G$61*'Opt 3 Input Sheet'!$G$62*'Opt 3 Output sheet'!M5,"") -> 0 | N23: =IF(N3>'Opt 3 Input Sheet'!$G$29,'Opt 3 Input Sheet'!$G$60*'Opt 3 Input Sheet'!$G$61*'Opt 3 Input Sheet'!$G$62*'Opt 3 Output sheet'!N5,"") -> 0 | O23: =IF(O3>'Opt 3 Input Sheet'!$G$29,'Opt 3 Input Sheet'!$G$60*'Opt 3 Input Sheet'!$G$61*'Opt 3 Input Sheet'!$G$62*'Opt 3 Output sheet'!O5,"") -> 0 | P23: =IF(P3>'Opt 3 Input Sheet'!$G$29,'Opt 3 Input Sheet'!$G$60*'Opt 3 Input Sheet'!$G$61*'Opt 3 Input Sheet'!$G$62*'Opt 3 Output sheet'!P5,"") -> 0 | Q23: =IF(Q3>'Opt 3 Input Sheet'!$G$29,'Opt 3 Input Sheet'!$G$60*'Opt 3 Input Sheet'!$G$61*'Opt 3 Input Sheet'!$G$62*'Opt 3 Output sheet'!Q5,"") -> 0 | R23: =IF(R3>'Opt 3 Input Sheet'!$G$29,'Opt 3 Input Sheet'!$G$60*'Opt 3 Input Sheet'!$G$61*'Opt 3 Input Sheet'!$G$62*'Opt 3 Output sheet'!R5,"") -> 0 | S23: =IF(S3>'Opt 3 Input Sheet'!$G$29,'Opt 3 Input Sheet'!$G$60*'Opt 3 Input Sheet'!$G$61*'Opt 3 Input Sheet'!$G$62*'Opt 3 Output sheet'!S5,"") -> 0 | T23: =IF(T3>'Opt 3 Input Sheet'!$G$29,'Opt 3 Input Sheet'!$G$60*'Opt 3 Input Sheet'!$G$61*'Opt 3 Input Sheet'!$G$62*'Opt 3 Output sheet'!T5,"") -> 0 | U23: =IF(U3>'Opt 3 Input Sheet'!$G$29,'Opt 3 Input Sheet'!$G$60*'Opt 3 Input Sheet'!$G$61*'Opt 3 Input Sheet'!$G$62*'Opt 3 Output sheet'!U5,"") -> 0 | V23: =IF(V3>'Opt 3 Input Sheet'!$G$29,'Opt 3 Input Sheet'!$G$60*'Opt 3 Input Sheet'!$G$61*'Opt 3 Input Sheet'!$G$62*'Opt 3 Output sheet'!V5,"") -> 0 | W23: =IF(W3>'Opt 3 Input Sheet'!$G$29,'Opt 3 Input Sheet'!$G$60*'Opt 3 Input Sheet'!$G$61*'Opt 3 Input Sheet'!$G$62*'Opt 3 Output sheet'!W5,"") -> 0 | X23: =IF(X3>'Opt 3 Input Sheet'!$G$29,'Opt 3 Input Sheet'!$G$60*'Opt 3 Input Sheet'!$G$61*'Opt 3 Input Sheet'!$G$62*'Opt 3 Output sheet'!X5,"") -> 0 | Y23: =IF(Y3>'Opt 3 Input Sheet'!$G$29,'Opt 3 Input Sheet'!$G$60*'Opt 3 Input Sheet'!$G$61*'Opt 3 Input Sheet'!$G$62*'Opt 3 Output sheet'!Y5,"") -> 0 | Z23: =IF(Z3>'Opt 3 Input Sheet'!$G$29,'Opt 3 Input Sheet'!$G$60*'Opt 3 Input Sheet'!$G$61*'Opt 3 Input Sheet'!$G$62*'Opt 3 Output sheet'!Z5,"") -> 0 | AD23: Rental space income
D24: ='Opt 3 Input Sheet'!C64 -> Room & equipment hire income | F24: £ | H24: 0 | K24: =IF(K3>'Opt 3 Input Sheet'!$G$29,'Opt 3 Input Sheet'!$G$65*'Opt 3 Input Sheet'!$G$66*'Opt 3 Input Sheet'!$G$67/365*'Opt 3 Input Sheet'!$G$68*'Opt 3 Output sheet'!K5,"") ->  | L24: =IF(L3>'Opt 3 Input Sheet'!$G$29,'Opt 3 Input Sheet'!$G$65*'Opt 3 Input Sheet'!$G$66*'Opt 3 Input Sheet'!$G$67/365*'Opt 3 Input Sheet'!$G$68*'Opt 3 Output sheet'!L5,"") ->  | M24: =IF(M3>'Opt 3 Input Sheet'!$G$29,'Opt 3 Input Sheet'!$G$65*'Opt 3 Input Sheet'!$G$66*'Opt 3 Input Sheet'!$G$67/365*'Opt 3 Input Sheet'!$G$68*'Opt 3 Output sheet'!M5,"") -> 0 | N24: =IF(N3>'Opt 3 Input Sheet'!$G$29,'Opt 3 Input Sheet'!$G$65*'Opt 3 Input Sheet'!$G$66*'Opt 3 Input Sheet'!$G$67/365*'Opt 3 Input Sheet'!$G$68*'Opt 3 Output sheet'!N5,"") -> 0 | O24: =IF(O3>'Opt 3 Input Sheet'!$G$29,'Opt 3 Input Sheet'!$G$65*'Opt 3 Input Sheet'!$G$66*'Opt 3 Input Sheet'!$G$67/365*'Opt 3 Input Sheet'!$G$68*'Opt 3 Output sheet'!O5,"") -> 0 | P24: =IF(P3>'Opt 3 Input Sheet'!$G$29,'Opt 3 Input Sheet'!$G$65*'Opt 3 Input Sheet'!$G$66*'Opt 3 Input Sheet'!$G$67/365*'Opt 3 Input Sheet'!$G$68*'Opt 3 Output sheet'!P5,"") -> 0 | Q24: =IF(Q3>'Opt 3 Input Sheet'!$G$29,'Opt 3 Input Sheet'!$G$65*'Opt 3 Input Sheet'!$G$66*'Opt 3 Input Sheet'!$G$67/365*'Opt 3 Input Sheet'!$G$68*'Opt 3 Output sheet'!Q5,"") -> 0 | R24: =IF(R3>'Opt 3 Input Sheet'!$G$29,'Opt 3 Input Sheet'!$G$65*'Opt 3 Input Sheet'!$G$66*'Opt 3 Input Sheet'!$G$67/365*'Opt 3 Input Sheet'!$G$68*'Opt 3 Output sheet'!R5,"") -> 0 | S24: =IF(S3>'Opt 3 Input Sheet'!$G$29,'Opt 3 Input Sheet'!$G$65*'Opt 3 Input Sheet'!$G$66*'Opt 3 Input Sheet'!$G$67/365*'Opt 3 Input Sheet'!$G$68*'Opt 3 Output sheet'!S5,"") -> 0 | T24: =IF(T3>'Opt 3 Input Sheet'!$G$29,'Opt 3 Input Sheet'!$G$65*'Opt 3 Input Sheet'!$G$66*'Opt 3 Input Sheet'!$G$67/365*'Opt 3 Input Sheet'!$G$68*'Opt 3 Output sheet'!T5,"") -> 0 | U24: =IF(U3>'Opt 3 Input Sheet'!$G$29,'Opt 3 Input Sheet'!$G$65*'Opt 3 Input Sheet'!$G$66*'Opt 3 Input Sheet'!$G$67/365*'Opt 3 Input Sheet'!$G$68*'Opt 3 Output sheet'!U5,"") -> 0 | V24: =IF(V3>'Opt 3 Input Sheet'!$G$29,'Opt 3 Input Sheet'!$G$65*'Opt 3 Input Sheet'!$G$66*'Opt 3 Input Sheet'!$G$67/365*'Opt 3 Input Sheet'!$G$68*'Opt 3 Output sheet'!V5,"") -> 0 | W24: =IF(W3>'Opt 3 Input Sheet'!$G$29,'Opt 3 Input Sheet'!$G$65*'Opt 3 Input Sheet'!$G$66*'Opt 3 Input Sheet'!$G$67/365*'Opt 3 Input Sheet'!$G$68*'Opt 3 Output sheet'!W5,"") -> 0 | X24: =IF(X3>'Opt 3 Input Sheet'!$G$29,'Opt 3 Input Sheet'!$G$65*'Opt 3 Input Sheet'!$G$66*'Opt 3 Input Sheet'!$G$67/365*'Opt 3 Input Sheet'!$G$68*'Opt 3 Output sheet'!X5,"") -> 0 | Y24: =IF(Y3>'Opt 3 Input Sheet'!$G$29,'Opt 3 Input Sheet'!$G$65*'Opt 3 Input Sheet'!$G$66*'Opt 3 Input Sheet'!$G$67/365*'Opt 3 Input Sheet'!$G$68*'Opt 3 Output sheet'!Y5,"") -> 0 | Z24: =IF(Z3>'Opt 3 Input Sheet'!$G$29,'Opt 3 Input Sheet'!$G$65*'Opt 3 Input Sheet'!$G$66*'Opt 3 Input Sheet'!$G$67/365*'Opt 3 Input Sheet'!$G$68*'Opt 3 Output sheet'!Z5,"") -> 0 | AD24: Room & equipment hire income
D25: ='Opt 3 Input Sheet'!C70 -> Restaurant and private dining income | F25: £ | H25: 0 | K25: =IF(K3>'Opt 3 Input Sheet'!$G$29,'Opt 3 Input Sheet'!$G$71*'Opt 3 Input Sheet'!$G$72*'Opt 3 Input Sheet'!$G$73/365*'Opt 3 Output sheet'!K5,"") ->  | L25: =IF(L3>'Opt 3 Input Sheet'!$G$29,'Opt 3 Input Sheet'!$G$71*'Opt 3 Input Sheet'!$G$72*'Opt 3 Input Sheet'!$G$73/365*'Opt 3 Output sheet'!L5,"") ->  | M25: =IF(M3>'Opt 3 Input Sheet'!$G$29,'Opt 3 Input Sheet'!$G$71*'Opt 3 Input Sheet'!$G$72*'Opt 3 Input Sheet'!$G$73/365*'Opt 3 Output sheet'!M5,"") -> 0 | N25: =IF(N3>'Opt 3 Input Sheet'!$G$29,'Opt 3 Input Sheet'!$G$71*'Opt 3 Input Sheet'!$G$72*'Opt 3 Input Sheet'!$G$73/365*'Opt 3 Output sheet'!N5,"") -> 0 | O25: =IF(O3>'Opt 3 Input Sheet'!$G$29,'Opt 3 Input Sheet'!$G$71*'Opt 3 Input Sheet'!$G$72*'Opt 3 Input Sheet'!$G$73/365*'Opt 3 Output sheet'!O5,"") -> 0 | P25: =IF(P3>'Opt 3 Input Sheet'!$G$29,'Opt 3 Input Sheet'!$G$71*'Opt 3 Input Sheet'!$G$72*'Opt 3 Input Sheet'!$G$73/365*'Opt 3 Output sheet'!P5,"") -> 0 | Q25: =IF(Q3>'Opt 3 Input Sheet'!$G$29,'Opt 3 Input Sheet'!$G$71*'Opt 3 Input Sheet'!$G$72*'Opt 3 Input Sheet'!$G$73/365*'Opt 3 Output sheet'!Q5,"") -> 0 | R25: =IF(R3>'Opt 3 Input Sheet'!$G$29,'Opt 3 Input Sheet'!$G$71*'Opt 3 Input Sheet'!$G$72*'Opt 3 Input Sheet'!$G$73/365*'Opt 3 Output sheet'!R5,"") -> 0 | S25: =IF(S3>'Opt 3 Input Sheet'!$G$29,'Opt 3 Input Sheet'!$G$71*'Opt 3 Input Sheet'!$G$72*'Opt 3 Input Sheet'!$G$73/365*'Opt 3 Output sheet'!S5,"") -> 0 | T25: =IF(T3>'Opt 3 Input Sheet'!$G$29,'Opt 3 Input Sheet'!$G$71*'Opt 3 Input Sheet'!$G$72*'Opt 3 Input Sheet'!$G$73/365*'Opt 3 Output sheet'!T5,"") -> 0 | U25: =IF(U3>'Opt 3 Input Sheet'!$G$29,'Opt 3 Input Sheet'!$G$71*'Opt 3 Input Sheet'!$G$72*'Opt 3 Input Sheet'!$G$73/365*'Opt 3 Output sheet'!U5,"") -> 0 | V25: =IF(V3>'Opt 3 Input Sheet'!$G$29,'Opt 3 Input Sheet'!$G$71*'Opt 3 Input Sheet'!$G$72*'Opt 3 Input Sheet'!$G$73/365*'Opt 3 Output sheet'!V5,"") -> 0 | W25: =IF(W3>'Opt 3 Input Sheet'!$G$29,'Opt 3 Input Sheet'!$G$71*'Opt 3 Input Sheet'!$G$72*'Opt 3 Input Sheet'!$G$73/365*'Opt 3 Output sheet'!W5,"") -> 0 | X25: =IF(X3>'Opt 3 Input Sheet'!$G$29,'Opt 3 Input Sheet'!$G$71*'Opt 3 Input Sheet'!$G$72*'Opt 3 Input Sheet'!$G$73/365*'Opt 3 Output sheet'!X5,"") -> 0 | Y25: =IF(Y3>'Opt 3 Input Sheet'!$G$29,'Opt 3 Input Sheet'!$G$71*'Opt 3 Input Sheet'!$G$72*'Opt 3 Input Sheet'!$G$73/365*'Opt 3 Output sheet'!Y5,"") -> 0 | Z25: =IF(Z3>'Opt 3 Input Sheet'!$G$29,'Opt 3 Input Sheet'!$G$71*'Opt 3 Input Sheet'!$G$72*'Opt 3 Input Sheet'!$G$73/365*'Opt 3 Output sheet'!Z5,"") -> 0 | AD25: Restaurant and private dining income
D26: ='Opt 3 Input Sheet'!C76 -> Events income | F26: £ | H26: 0 | K26: =IF(K3>'Opt 3 Input Sheet'!$G$29,'Opt 3 Input Sheet'!$G$77*'Opt 3 Input Sheet'!$G$78*'Opt 3 Input Sheet'!$G$79*'Opt 3 Output sheet'!K5,"") ->  | L26: =IF(L3>'Opt 3 Input Sheet'!$G$29,'Opt 3 Input Sheet'!$G$77*'Opt 3 Input Sheet'!$G$78*'Opt 3 Input Sheet'!$G$79*'Opt 3 Output sheet'!L5,"") ->  | M26: =IF(M3>'Opt 3 Input Sheet'!$G$29,'Opt 3 Input Sheet'!$G$77*'Opt 3 Input Sheet'!$G$78*'Opt 3 Input Sheet'!$G$79*'Opt 3 Output sheet'!M5,"") -> 0 | N26: =IF(N3>'Opt 3 Input Sheet'!$G$29,'Opt 3 Input Sheet'!$G$77*'Opt 3 Input Sheet'!$G$78*'Opt 3 Input Sheet'!$G$79*'Opt 3 Output sheet'!N5,"") -> 0 | O26: =IF(O3>'Opt 3 Input Sheet'!$G$29,'Opt 3 Input Sheet'!$G$77*'Opt 3 Input Sheet'!$G$78*'Opt 3 Input Sheet'!$G$79*'Opt 3 Output sheet'!O5,"") -> 0 | P26: =IF(P3>'Opt 3 Input Sheet'!$G$29,'Opt 3 Input Sheet'!$G$77*'Opt 3 Input Sheet'!$G$78*'Opt 3 Input Sheet'!$G$79*'Opt 3 Output sheet'!P5,"") -> 0 | Q26: =IF(Q3>'Opt 3 Input Sheet'!$G$29,'Opt 3 Input Sheet'!$G$77*'Opt 3 Input Sheet'!$G$78*'Opt 3 Input Sheet'!$G$79*'Opt 3 Output sheet'!Q5,"") -> 0 | R26: =IF(R3>'Opt 3 Input Sheet'!$G$29,'Opt 3 Input Sheet'!$G$77*'Opt 3 Input Sheet'!$G$78*'Opt 3 Input Sheet'!$G$79*'Opt 3 Output sheet'!R5,"") -> 0 | S26: =IF(S3>'Opt 3 Input Sheet'!$G$29,'Opt 3 Input Sheet'!$G$77*'Opt 3 Input Sheet'!$G$78*'Opt 3 Input Sheet'!$G$79*'Opt 3 Output sheet'!S5,"") -> 0 | T26: =IF(T3>'Opt 3 Input Sheet'!$G$29,'Opt 3 Input Sheet'!$G$77*'Opt 3 Input Sheet'!$G$78*'Opt 3 Input Sheet'!$G$79*'Opt 3 Output sheet'!T5,"") -> 0 | U26: =IF(U3>'Opt 3 Input Sheet'!$G$29,'Opt 3 Input Sheet'!$G$77*'Opt 3 Input Sheet'!$G$78*'Opt 3 Input Sheet'!$G$79*'Opt 3 Output sheet'!U5,"") -> 0 | V26: =IF(V3>'Opt 3 Input Sheet'!$G$29,'Opt 3 Input Sheet'!$G$77*'Opt 3 Input Sheet'!$G$78*'Opt 3 Input Sheet'!$G$79*'Opt 3 Output sheet'!V5,"") -> 0 | W26: =IF(W3>'Opt 3 Input Sheet'!$G$29,'Opt 3 Input Sheet'!$G$77*'Opt 3 Input Sheet'!$G$78*'Opt 3 Input Sheet'!$G$79*'Opt 3 Output sheet'!W5,"") -> 0 | X26: =IF(X3>'Opt 3 Input Sheet'!$G$29,'Opt 3 Input Sheet'!$G$77*'Opt 3 Input Sheet'!$G$78*'Opt 3 Input Sheet'!$G$79*'Opt 3 Output sheet'!X5,"") -> 0 | Y26: =IF(Y3>'Opt 3 Input Sheet'!$G$29,'Opt 3 Input Sheet'!$G$77*'Opt 3 Input Sheet'!$G$78*'Opt 3 Input Sheet'!$G$79*'Opt 3 Output sheet'!Y5,"") -> 0 | Z26: =IF(Z3>'Opt 3 Input Sheet'!$G$29,'Opt 3 Input Sheet'!$G$77*'Opt 3 Input Sheet'!$G$78*'Opt 3 Input Sheet'!$G$79*'Opt 3 Output sheet'!Z5,"") -> 0 | AD26: Events income
C27: Total revenue | F27: £ | H27: =SUM(H21:H26) -> 0 | L27: =SUM(L21:L26) -> 0 | M27: =SUM(M21:M26) -> 0 | N27: 0 | O27: 0 | P27: 0 | Q27: 0 | R27: 0 | S27: 0 | T27: 0 | U27: 0 | V27: 0 | W27: 0 | X27: 0 | Y27: 0 | Z27: 0
C30: Expenditure
D31: ='Opt 3 Input Sheet'!D83 -> Staff costs | F31: £ | H31: =SUM(K31:S31) -> 0 | K31: =IF(K3>'Opt 3 Input Sheet'!$G$29,-'Opt 3 Input Sheet'!$G$83*'Opt 3 Output sheet'!K5,"") ->  | L31: =IF(L3>'Opt 3 Input Sheet'!$G$29,-'Opt 3 Input Sheet'!$G$83*'Opt 3 Output sheet'!L5,"") ->  | M31: =IF(M3>'Opt 3 Input Sheet'!$G$29,-'Opt 3 Input Sheet'!$G$83*'Opt 3 Output sheet'!M5,"") -> 0 | N31: =IF(N3>'Opt 3 Input Sheet'!$G$29,-'Opt 3 Input Sheet'!$G$83*'Opt 3 Output sheet'!N5,"") -> 0 | O31: =IF(O3>'Opt 3 Input Sheet'!$G$29,-'Opt 3 Input Sheet'!$G$83*'Opt 3 Output sheet'!O5,"") -> 0 | P31: =IF(P3>'Opt 3 Input Sheet'!$G$29,-'Opt 3 Input Sheet'!$G$83*'Opt 3 Output sheet'!P5,"") -> 0 | Q31: =IF(Q3>'Opt 3 Input Sheet'!$G$29,-'Opt 3 Input Sheet'!$G$83*'Opt 3 Output sheet'!Q5,"") -> 0 | R31: =IF(R3>'Opt 3 Input Sheet'!$G$29,-'Opt 3 Input Sheet'!$G$83*'Opt 3 Output sheet'!R5,"") -> 0 | S31: =IF(S3>'Opt 3 Input Sheet'!$G$29,-'Opt 3 Input Sheet'!$G$83*'Opt 3 Output sheet'!S5,"") -> 0 | T31: =IF(T3>'Opt 3 Input Sheet'!$G$29,-'Opt 3 Input Sheet'!$G$83*'Opt 3 Output sheet'!T5,"") -> 0 | U31: =IF(U3>'Opt 3 Input Sheet'!$G$29,-'Opt 3 Input Sheet'!$G$83*'Opt 3 Output sheet'!U5,"") -> 0 | V31: =IF(V3>'Opt 3 Input Sheet'!$G$29,-'Opt 3 Input Sheet'!$G$83*'Opt 3 Output sheet'!V5,"") -> 0 | W31: =IF(W3>'Opt 3 Input Sheet'!$G$29,-'Opt 3 Input Sheet'!$G$83*'Opt 3 Output sheet'!W5,"") -> 0 | X31: =IF(X3>'Opt 3 Input Sheet'!$G$29,-'Opt 3 Input Sheet'!$G$83*'Opt 3 Output sheet'!X5,"") -> 0 | Y31: =IF(Y3>'Opt 3 Input Sheet'!$G$29,-'Opt 3 Input Sheet'!$G$83*'Opt 3 Output sheet'!Y5,"") -> 0 | Z31: =IF(Z3>'Opt 3 Input Sheet'!$G$29,-'Opt 3 Input Sheet'!$G$83*'Opt 3 Output sheet'!Z5,"") -> 0 | AD31: Staff costs
D32: ='Opt 3 Input Sheet'!D85 -> Cost of sales | F32: £ | H32: =SUM(K32:S32) -> 0 | K32: =IF(K3>'Opt 3 Input Sheet'!$G$29,-'Opt 3 Input Sheet'!$G$85*'Opt 3 Output sheet'!K5,"") ->  | L32: =IF(L3>'Opt 3 Input Sheet'!$G$29,-'Opt 3 Input Sheet'!$G$85*'Opt 3 Output sheet'!L5,"") ->  | M32: =IF(M3>'Opt 3 Input Sheet'!$G$29,-'Opt 3 Input Sheet'!$G$85*'Opt 3 Output sheet'!M5,"") -> 0 | N32: =IF(N3>'Opt 3 Input Sheet'!$G$29,-'Opt 3 Input Sheet'!$G$85*'Opt 3 Output sheet'!N5,"") -> 0 | O32: =IF(O3>'Opt 3 Input Sheet'!$G$29,-'Opt 3 Input Sheet'!$G$85*'Opt 3 Output sheet'!O5,"") -> 0 | P32: =IF(P3>'Opt 3 Input Sheet'!$G$29,-'Opt 3 Input Sheet'!$G$85*'Opt 3 Output sheet'!P5,"") -> 0 | Q32: =IF(Q3>'Opt 3 Input Sheet'!$G$29,-'Opt 3 Input Sheet'!$G$85*'Opt 3 Output sheet'!Q5,"") -> 0 | R32: =IF(R3>'Opt 3 Input Sheet'!$G$29,-'Opt 3 Input Sheet'!$G$85*'Opt 3 Output sheet'!R5,"") -> 0 | S32: =IF(S3>'Opt 3 Input Sheet'!$G$29,-'Opt 3 Input Sheet'!$G$85*'Opt 3 Output sheet'!S5,"") -> 0 | T32: =IF(T3>'Opt 3 Input Sheet'!$G$29,-'Opt 3 Input Sheet'!$G$85*'Opt 3 Output sheet'!T5,"") -> 0 | U32: =IF(U3>'Opt 3 Input Sheet'!$G$29,-'Opt 3 Input Sheet'!$G$85*'Opt 3 Output sheet'!U5,"") -> 0 | V32: =IF(V3>'Opt 3 Input Sheet'!$G$29,-'Opt 3 Input Sheet'!$G$85*'Opt 3 Output sheet'!V5,"") -> 0 | W32: =IF(W3>'Opt 3 Input Sheet'!$G$29,-'Opt 3 Input Sheet'!$G$85*'Opt 3 Output sheet'!W5,"") -> 0 | X32: =IF(X3>'Opt 3 Input Sheet'!$G$29,-'Opt 3 Input Sheet'!$G$85*'Opt 3 Output sheet'!X5,"") -> 0 | Y32: =IF(Y3>'Opt 3 Input Sheet'!$G$29,-'Opt 3 Input Sheet'!$G$85*'Opt 3 Output sheet'!Y5,"") -> 0 | Z32: =IF(Z3>'Opt 3 Input Sheet'!$G$29,-'Opt 3 Input Sheet'!$G$85*'Opt 3 Output sheet'!Z5,"") -> 0 | AD32: Cost of sales
D33: ='Opt 3 Input Sheet'!D87 -> Marketing | F33: £ | H33: =SUM(K33:S33) -> 0 | K33: =IF(K3>'Opt 3 Input Sheet'!$G$29,-'Opt 3 Input Sheet'!$G$87*'Opt 3 Output sheet'!K5,"") ->  | L33: =IF(L3>'Opt 3 Input Sheet'!$G$29,-'Opt 3 Input Sheet'!$G$87*'Opt 3 Output sheet'!L5,"") ->  | M33: =IF(M3>'Opt 3 Input Sheet'!$G$29,-'Opt 3 Input Sheet'!$G$87*'Opt 3 Output sheet'!M5,"") -> 0 | N33: =IF(N3>'Opt 3 Input Sheet'!$G$29,-'Opt 3 Input Sheet'!$G$87*'Opt 3 Output sheet'!N5,"") -> 0 | O33: =IF(O3>'Opt 3 Input Sheet'!$G$29,-'Opt 3 Input Sheet'!$G$87*'Opt 3 Output sheet'!O5,"") -> 0 | P33: =IF(P3>'Opt 3 Input Sheet'!$G$29,-'Opt 3 Input Sheet'!$G$87*'Opt 3 Output sheet'!P5,"") -> 0 | Q33: =IF(Q3>'Opt 3 Input Sheet'!$G$29,-'Opt 3 Input Sheet'!$G$87*'Opt 3 Output sheet'!Q5,"") -> 0 | R33: =IF(R3>'Opt 3 Input Sheet'!$G$29,-'Opt 3 Input Sheet'!$G$87*'Opt 3 Output sheet'!R5,"") -> 0 | S33: =IF(S3>'Opt 3 Input Sheet'!$G$29,-'Opt 3 Input Sheet'!$G$87*'Opt 3 Output sheet'!S5,"") -> 0 | T33: =IF(T3>'Opt 3 Input Sheet'!$G$29,-'Opt 3 Input Sheet'!$G$87*'Opt 3 Output sheet'!T5,"") -> 0 | U33: =IF(U3>'Opt 3 Input Sheet'!$G$29,-'Opt 3 Input Sheet'!$G$87*'Opt 3 Output sheet'!U5,"") -> 0 | V33: =IF(V3>'Opt 3 Input Sheet'!$G$29,-'Opt 3 Input Sheet'!$G$87*'Opt 3 Output sheet'!V5,"") -> 0 | W33: =IF(W3>'Opt 3 Input Sheet'!$G$29,-'Opt 3 Input Sheet'!$G$87*'Opt 3 Output sheet'!W5,"") -> 0 | X33: =IF(X3>'Opt 3 Input Sheet'!$G$29,-'Opt 3 Input Sheet'!$G$87*'Opt 3 Output sheet'!X5,"") -> 0 | Y33: =IF(Y3>'Opt 3 Input Sheet'!$G$29,-'Opt 3 Input Sheet'!$G$87*'Opt 3 Output sheet'!Y5,"") -> 0 | Z33: =IF(Z3>'Opt 3 Input Sheet'!$G$29,-'Opt 3 Input Sheet'!$G$87*'Opt 3 Output sheet'!Z5,"") -> 0 | AD33: Marketing
D34: ='Opt 3 Input Sheet'!D88 -> Other opex | F34: £ | H34: 0 | K34: =IF(K3>'Opt 3 Input Sheet'!$G$29,-'Opt 3 Input Sheet'!$G$88*'Opt 3 Output sheet'!K5,"") ->  | L34: =IF(L3>'Opt 3 Input Sheet'!$G$29,-'Opt 3 Input Sheet'!$G$88*'Opt 3 Output sheet'!L5,"") ->  | M34: =IF(M3>'Opt 3 Input Sheet'!$G$29,-'Opt 3 Input Sheet'!$G$88*'Opt 3 Output sheet'!M5,"") -> 0 | N34: =IF(N3>'Opt 3 Input Sheet'!$G$29,-'Opt 3 Input Sheet'!$G$88*'Opt 3 Output sheet'!N5,"") -> 0 | O34: =IF(O3>'Opt 3 Input Sheet'!$G$29,-'Opt 3 Input Sheet'!$G$88*'Opt 3 Output sheet'!O5,"") -> 0 | P34: =IF(P3>'Opt 3 Input Sheet'!$G$29,-'Opt 3 Input Sheet'!$G$88*'Opt 3 Output sheet'!P5,"") -> 0 | Q34: =IF(Q3>'Opt 3 Input Sheet'!$G$29,-'Opt 3 Input Sheet'!$G$88*'Opt 3 Output sheet'!Q5,"") -> 0 | R34: =IF(R3>'Opt 3 Input Sheet'!$G$29,-'Opt 3 Input Sheet'!$G$88*'Opt 3 Output sheet'!R5,"") -> 0 | S34: =IF(S3>'Opt 3 Input Sheet'!$G$29,-'Opt 3 Input Sheet'!$G$88*'Opt 3 Output sheet'!S5,"") -> 0 | T34: =IF(T3>'Opt 3 Input Sheet'!$G$29,-'Opt 3 Input Sheet'!$G$88*'Opt 3 Output sheet'!T5,"") -> 0 | U34: =IF(U3>'Opt 3 Input Sheet'!$G$29,-'Opt 3 Input Sheet'!$G$88*'Opt 3 Output sheet'!U5,"") -> 0 | V34: =IF(V3>'Opt 3 Input Sheet'!$G$29,-'Opt 3 Input Sheet'!$G$88*'Opt 3 Output sheet'!V5,"") -> 0 | W34: =IF(W3>'Opt 3 Input Sheet'!$G$29,-'Opt 3 Input Sheet'!$G$88*'Opt 3 Output sheet'!W5,"") -> 0 | X34: =IF(X3>'Opt 3 Input Sheet'!$G$29,-'Opt 3 Input Sheet'!$G$88*'Opt 3 Output sheet'!X5,"") -> 0 | Y34: =IF(Y3>'Opt 3 Input Sheet'!$G$29,-'Opt 3 Input Sheet'!$G$88*'Opt 3 Output sheet'!Y5,"") -> 0 | Z34: =IF(Z3>'Opt 3 Input Sheet'!$G$29,-'Opt 3 Input Sheet'!$G$88*'Opt 3 Output sheet'!Z5,"") -> 0 | AD34: Other opex
